Workbook

Sheet START
F11: =INDIRECT("START!I25") -> START | I11: =INDIRECT("START!K25") -> Описание методологии финмодели
I13: лист | K13: описание листа/столбца/строки/ячейки/блока ячеек
D14: =INDIRECT("Cntrl!M17") -> 0 | E14: =SUM($F14:$PL14) -> 0 | F14: =IFERROR(_xlfn.SHEET($A$1)-SUMIFS(Cntrl!O$15:O$100000,Cntrl!I$15:I$100000,$F$11),1) -> 0
A15: =ROW() -> 15 | I15: разработка финмоделей: https://mngmnt.ru/
A16: =ROW() -> 16 | H16: ФИНАНСОВАЯ МОДЕЛЬ
A17: =ROW() -> 17
A18: =ROW() -> 18
A19: =ROW() -> 19 | H19: ИНВЕСТИЦИОННЫЙ ПРОЕКТ: ПРОИЗВОДСТВО ВИНОГРАДА И ВИНА
A20: =ROW() -> 20
A21: =ROW() -> 21
A22: =ROW() -> 22
A23: =ROW() -> 23 | H23: Методология. Список и предназначение листов настоящей финансовой модели
A24: =ROW() -> 24
A25: =ROW() -> 25 | I25: START | K25: Описание методологии финмодели
A26: =ROW() -> 26 | I26: Cntrl | K26: Общий контроль финансовой модели
A27: =ROW() -> 27 | I27: Periods | K27: Периоды и горизонты моделирования фактических и прогнозных данных
A28: =ROW() -> 28 | I28: Lists | K28: Выпадающие списки финансовой модели
A29: =ROW() -> 29 | I29: Macro | K29: Макропоказатели внешней среды
A30: =ROW() -> 30 | I30: Items | K30: Справочники статей доходов и расходов и т.д.
A31: =ROW() -> 31 | I31: KPI | K31: Справочники ключевых показателей эффективности
A32: =ROW() -> 32 | I32: Sbor | K32: Параметры этапа сбора винограда
A33: =ROW() -> 33 | I33: CapEx | K33: Календарный план-график капитальных затрат
A34: =ROW() -> 34 | I34: Vinodel | K34: Параметры этапа виноделия
A35: =ROW() -> 35 | I35: Prdction | K35: Производственный процесс розлива вина и продажи
A36: =ROW() -> 36 | I36: HR | K36: Штатное расписание
A37: =ROW() -> 37 | I37: Exp | K37: Прочие расходы бизнес-проекта
A38: =ROW() -> 38 | I38: Credits | K38: Источники финансирования и их условия
A39: =ROW() -> 39 | I39: PL | K39: Итоговый отчет о прибылях и убытках
A40: =ROW() -> 40 | I40: CF | K40: Итоговый отчет о движении денежных средств
A41: =ROW() -> 41 | I41: BS | K41: Итоговый баланс
A42: =ROW() -> 42 | I42: MAIN | K42: Ключевые параметры управления и результаты финансовой модели
A43: =ROW() -> 43 | I43: PLd | K43: Детализированный отчет о прибылях и убытках
A44: =ROW() -> 44 | I44: CFd | K44: Детализированный отчет о движении денежных средств
A45: =ROW() -> 45 | I45: BSd | K45: Детализированный баланс
A46: =ROW() -> 46 | I46: Sens | K46: Анализ чувствительности финмодели
A47: =ROW() -> 47 | I47: UnitEc | K47: Расчет юнит-экономики бизнес-проекта
A48: =ROW() -> 48 | I48: CFind | K48: Анализ финансового потока косвенным методом
A49: =ROW() -> 49 | I49: FinEcAn | K49: Финансово-экономический анализ проекта
A50: =ROW() -> 50 | I50: InvAn | K50: Инвестиционный анализ проекта
A51: =ROW() -> 51 | I51: EBITDA | K51: Анализ собственной операционной деят-сти. Точки безубыточности
A52: =ROW() -> 52 | I52: Rep | K52: Укрупненное формирование всей отчетности финмодели
A53: =ROW() -> 53 | I53: Repd | K53: Детализированное формирование всей отчетности финмодели
A54: =ROW() -> 54 | I54: Calc | K54: Функционал финансовой модели. Все расчеты
A55: =ROW() -> 55 | I55: Fact | K55: Учет фактических операций
A56: =ROW() -> 56 | I56: 1S | K56: Выгрузки из 1С карточек с оборотами по счетам бухучета
A57: =ROW() -> 57 | I57: Rules | K57: Правила сопоставления статей для выгрузок из 1С
A58: =ROW() -> 58 | I58: Res1 | K58: Резервная вкладка 1
A59: =ROW() -> 59 | I59: Res2 | K59: Резервная вкладка 2
A60: =ROW() -> 60 | I60: Res3 | K60: Резервная вкладка 3
A61: =ROW() -> 61 | I61: Res4 | K61: Резервная вкладка 4
A62: =ROW() -> 62 | I62: Res5 | K62: Резервная вкладка 5
A63: =ROW() -> 63
A64: =ROW() -> 64 | H64: Обозначение ячеек для задания исходных данных
A65: =ROW() -> 65
A66: =ROW() -> 66 | H66: * | K66: Ячейки для задания исходных данных финмодели вручную
A67: =ROW() -> 67
A68: =ROW() -> 68 | H68: M | K68: Ячейки для задания исходных данных финмодели вручную с вкладки "MAIN"
A69: =ROW() -> 69
A70: =ROW() -> 70 | H70: * | J70: ^ | K70: Ячейки для задания исходных данных финмодели из выпадающих списков вкладки "Lists"
A71: =ROW() -> 71
A72: =ROW() -> 72 | H72: Ячейка F11 | K72: Для каждого листа в этой ячейке отображается название (ярлычка) листа
A73: =ROW() -> 73
A74: =ROW() -> 74 | H74: Ячейка I11 | K74: Для каждого листа в этой ячейке отображается заголовок листа
A75: =ROW() -> 75
A76: =ROW() -> 76 | H76: Ячейка E14 | K76: Для каждого листа в этой ячейке суммируются все контроли листа по 14-той строке
A77: =ROW() -> 77
A78: =ROW() -> 78 | H78: Ячейка D14 | K78: Для каждого листа в этой ячейке отображается общий контроль финмодели из листа "Cntrl"
A79: =ROW() -> 79
A80: =ROW() -> 80 | H80: Ячейка F14 | K80: Для каждого листа в этой ячейке проверяется соответствие названия листа их списку из "START"
A81: =ROW() -> 81
A82: =ROW() -> 82 | H82: Строка 13 | K82: Для каждого листа в этой строке отображаются заголовки столбцов
A83: =ROW() -> 83
A84: =ROW() -> 84 | I84: =$I$26 -> Cntrl | K84: =$K$26 -> Общий контроль финансовой модели
A85: =ROW() -> 85
A86: =ROW() -> 86 | I86: столбец M | K86: Со строки 19 здесь подтягиваются контроли всех листов из ячеек E14
A87: =ROW() -> 87
A88: =ROW() -> 88 | I88: M17 | K88: Общий контроль финмодели - сумма всех контрлей листов в столбце M
A89: =ROW() -> 89
A90: =ROW() -> 90 | I90: столбец O | K90: Со строки 19 здесь рассчитываются порядковые номера ярлычков листов в нижней панели
A91: =ROW() -> 91
A92: =ROW() -> 92 | I92: столбец Q | K92: Со строки 19 здесь из выпадающего списка пользователь выбирает тип листов
A93: =ROW() -> 93
A94: =ROW() -> 94 | I94: столбец S | K94: Со строки 19 здесь проверяется наличие значений из столбца Q в списке столбца U листа "Lists"
A95: =ROW() -> 95
A96: =ROW() -> 96 | I96: столбец G | K96: Со строки 19 здесь проверяется наличие названия из столбца H в заголовках списков листа "Lists"
A97: =ROW() -> 97
A98: =ROW() -> 98 | I98: =$I$27 -> Periods | K98: =$K$27 -> Периоды и горизонты моделирования фактических и прогнозных данных
A99: =ROW() -> 99
A100: =ROW() -> 100 | I100: Q16 | K100: Пользователь задает, выбирая из выпадающего списка, минимальный период шкалы времени
A101: =ROW() -> 101
A102: =ROW() -> 102 | I102: Q17 | K102: Пользователь задает вручную дату, с которой начинаются расчеты моделирования - старт
A103: =ROW() -> 103
A104: =ROW() -> 104 | I104: Q18 | K104: Пользователь задает вручную (от 1 до 400) количество периодов в шкале расчетов - горизонт
A105: =ROW() -> 105
A106: =ROW() -> 106 | I106: строки 20,21 | K106: По данным из ячеек Q16,Q17,Q18 рассчитываются даты начала и окончания периодов шкалы расчетов
A107: =ROW() -> 107
A108: =ROW() -> 108 | I108: строка 22 | K108: Формируются названия периодов шкалы расчетов
A109: =ROW() -> 109
A110: =ROW() -> 110 | I110: Q25 | K110: Пользователь указывает на необходимость отражения фактически проведенных операций
A111: =ROW() -> 111
A112: =ROW() -> 112 | I112: Q26 | K112: В случае выбора "да" в ячейке Q25, пользователь выбирает вариант задания фактического периода
A113: =ROW() -> 113
A114: =ROW() -> 114 | I114: Q30 | K114: Если в ячейках Q25 и Q26 "да", то здесь отображается текущая дата - окончание фактического периода
A115: =ROW() -> 115
A116: =ROW() -> 116 | I116: Q31 | K116: Если в ячейке Q25 "да" и в Q26 "нет", то здесь вручную задаем дату окончания фактического периода
A117: =ROW() -> 117
A118: =ROW() -> 118 | I118: строки 28,29 | K118: По данным из ячеек Q25,Q26,Q30,Q31 рассчитываются даты начала и окончания фактических периодов
A119: =ROW() -> 119
A120: =ROW() -> 120 | I120: Q33 | K120: Пользователь задает, выбирая из выпадающего списка, период шкалы времени для отчетности
A121: =ROW() -> 121
A122: =ROW() -> 122 | I122: строки 35,36 | K122: Рассчитываются даты начала и окончания периодов шкалы отчетности
A123: =ROW() -> 123
A124: =ROW() -> 124 | I124: строка 37 | K124: Формируются названия периодов шкалы отчетности
A125: =ROW() -> 125
A126: =ROW() -> 126 | I126: Q12 | K126: Отображается тип листа
A127: =ROW() -> 127
A128: =ROW() -> 128 | I128: строки 11,12 | K128: В зависимости от типа листа отображаются соответствующие даты начала и окончания периодов
A129: =ROW() -> 129
A130: =ROW() -> 130 | I130: строки 1-10 | K130: Строки носят технический характер, в них рассчитываются следующие параметры:
A131: =ROW() -> 131
A132: =ROW() -> 132 | K132: номер столбца:
A133: =ROW() -> 133 | K133: номер периода модели:
A134: =ROW() -> 134 | K134: номер факт-периода:
A135: =ROW() -> 135 | K135: номер план-периода:
A136: =ROW() -> 136 | K136: число даты начала:
A137: =ROW() -> 137 | K137: номер месяца даты начала:
A138: =ROW() -> 138 | K138: год даты начала:
A139: =ROW() -> 139 | K139: число даты окончания:
A140: =ROW() -> 140 | K140: номер месяца даты окончания:
A141: =ROW() -> 141 | K141: год даты окончания:
A142: =ROW() -> 142
A143: =ROW() -> 143 | I143: столбцы G,S | K143: Производится контроль за корректностью работы выпадающих списков
A144: =ROW() -> 144
A145: =ROW() -> 145 | I145: Lists | K145: Выпадающие списки финансовой модели
A146: =ROW() -> 146
A147: =ROW() -> 147 | I147: строка 1 | K147: Для технических нужд отображаются номера столбцов, в которых находятся выпадающие списки
A148: =ROW() -> 148
A149: =ROW() -> 149 | I149: строка 2 | K149: Для технических нужд отображаются названия столбцов, в которых находятся выпадающие списки
A150: =ROW() -> 150
A151: =ROW() -> 151 | I151: строка 15 | K151: Для технических нужд рассчитываются адреса блоков ячеек с выпадающими списками
A152: =ROW() -> 152
A153: =ROW() -> 153 | I153: столбец Q | K153: Значения выпадающего списка зависят от значения ячейки Q16 листа "Periods" и столбца I
A154: =ROW() -> 154
A155: =ROW() -> 155 | I155: справа от списков | K155: В 1-ом столбце справа от вып.списков производится нумерация актуальных значений вып.списков
A156: =ROW() -> 156
A157: =ROW() -> 157 | I157: справа от списков | K157: Во 2-ом столбце справа от вып.списков производится контроль за неповторяемостью значений
A158: =ROW() -> 158
A159: =ROW() -> 159
A160: =ROW() -> 160
A161: =ROW() -> 161
A162: =ROW() -> 162
A163: =ROW() -> 163
A164: =ROW() -> 164
A165: =ROW() -> 165
A166: =ROW() -> 166
A167: =ROW() -> 167
A168: =ROW() -> 168
A169: =ROW() -> 169
A170: =ROW() -> 170
A171: =ROW() -> 171
A172: =ROW() -> 172
A173: =ROW() -> 173
A174: =ROW() -> 174
A175: =ROW() -> 175
A176: =ROW() -> 176
A177: =ROW() -> 177
A178: =ROW() -> 178

Sheet Cntrl
F11: Cntrl | I11: Общий контроль финансовой модели
I13: лист | K13: ячейка с контролем | M13: контроль | O13: номер листа | Q13: тип листа | V13: точность
D14: 0 | E14: 0 | F14: 0 | G14: 0 | S14: 0
A15: 15 | I15: разработка финмоделей: https://mngmnt.ru/
A16: 16
A17: 17 | G17: 0 | H17: Общий контроль | M17: 0
A18: 18
A19: 19 | G19: 0 | H19: тип листа | I19: START | K19: E14 | M19: 0 | O19: 1 | P19: * | Q19: технический | R19: ^ | S19: 0 | U19: * | V19: 0.0000000
A20: 20 | G20: 0 | H20: тип листа | I20: Cntrl | K20: E14 | M20: 0 | O20: 2 | P20: * | Q20: технический | R20: ^ | S20: 0 | U20: * | V20: 0.0000000
A21: 21 | G21: 0 | H21: тип листа | I21: Periods | K21: E14 | M21: 0 | O21: 3 | P21: * | Q21: расчетный | R21: ^ | S21: 0 | U21: * | V21: 0.0000000
A22: 22 | G22: 0 | H22: тип листа | I22: Lists | K22: E14 | M22: 0 | O22: 4 | P22: * | Q22: технический | R22: ^ | S22: 0 | U22: * | V22: 0.0000000
A23: 23 | G23: 0 | H23: тип листа | I23: Macro | K23: E14 | M23: 0 | O23: 5 | P23: * | Q23: расчетный | R23: ^ | S23: 0 | U23: * | V23: 0.0000000
A24: 24 | G24: 0 | H24: тип листа | I24: Items | K24: E14 | M24: 0 | O24: 6 | P24: * | Q24: технический | R24: ^ | S24: 0 | U24: * | V24: 0.0000000
A25: 25 | G25: 0 | H25: тип листа | I25: KPI | K25: E14 | M25: 0 | O25: 7 | P25: * | Q25: технический | R25: ^ | S25: 0 | U25: * | V25: 0.0000000
A26: 26 | G26: 0 | H26: тип листа | I26: Sbor | K26: E14 | M26: 0 | O26: 8 | P26: * | Q26: расчетный | R26: ^ | S26: 0 | U26: * | V26: 0.0010000
A27: 27 | G27: 0 | H27: тип листа | I27: CapEx | K27: E14 | M27: 0 | O27: 9 | P27: * | Q27: расчетный | R27: ^ | S27: 0 | U27: * | V27: 0.0010000
A28: 28 | G28: 0 | H28: тип листа | I28: Vinodel | K28: E14 | M28: 0 | O28: 10 | P28: * | Q28: расчетный | R28: ^ | S28: 0 | U28: * | V28: 0.0010000
A29: 29 | G29: 0 | H29: тип листа | I29: Prdction | K29: E14 | M29: 0 | O29: 11 | P29: * | Q29: расчетный | R29: ^ | S29: 0 | U29: * | V29: 0.0010000
A30: 30 | G30: 0 | H30: тип листа | I30: HR | K30: E14 | M30: 0 | O30: 12 | P30: * | Q30: расчетный | R30: ^ | S30: 0 | U30: * | V30: 0.0010000
A31: 31 | G31: 0 | H31: тип листа | I31: Exp | K31: E14 | M31: 0 | O31: 13 | P31: * | Q31: расчетный | R31: ^ | S31: 0 | U31: * | V31: 0.0010000
A32: 32 | G32: 0 | H32: тип листа | I32: Credits | K32: E14 | M32: 0 | O32: 14 | P32: * | Q32: расчетный | R32: ^ | S32: 0 | U32: * | V32: 0.0010000
A33: 33 | G33: 0 | H33: тип листа | I33: PL | K33: E14 | M33: 0 | O33: 15 | P33: * | Q33: отчетный | R33: ^ | S33: 0 | U33: * | V33: 0.0010000
A34: 34 | G34: 0 | H34: тип листа | I34: CF | K34: E14 | M34: 0 | O34: 16 | P34: * | Q34: отчетный | R34: ^ | S34: 0 | U34: * | V34: 0.0010000
A35: 35 | G35: 0 | H35: тип листа | I35: BS | K35: E14 | M35: 0 | O35: 17 | P35: * | Q35: отчетный | R35: ^ | S35: 0 | U35: * | V35: 0.0100000
A36: 36 | G36: 0 | H36: тип листа | I36: MAIN | K36: E14 | M36: 0 | O36: 18 | P36: * | Q36: отчетный | R36: ^ | S36: 0 | U36: * | V36: 0.0010000
A37: 37 | G37: 0 | H37: тип листа | I37: PLd | K37: E14 | M37: 0 | O37: 19 | P37: * | Q37: расчетный | R37: ^ | S37: 0 | U37: * | V37: 0.0100000
A38: 38 | G38: 0 | H38: тип листа | I38: CFd | K38: E14 | M38: 0 | O38: 20 | P38: * | Q38: расчетный | R38: ^ | S38: 0 | U38: * | V38: 0.0100000
A39: 39 | G39: 0 | H39: тип листа | I39: BSd | K39: E14 | M39: 0 | O39: 21 | P39: * | Q39: расчетный | R39: ^ | S39: 0 | U39: * | V39: 0.1000000
A40: 40 | G40: 0 | H40: тип листа | I40: Sens | K40: E14 | M40: 0 | O40: 22 | P40: * | Q40: отчетный | R40: ^ | S40: 0 | U40: * | V40: 0.0010000
A41: 41 | G41: 0 | H41: тип листа | I41: UnitEc | K41: E14 | M41: 0 | O41: 23 | P41: * | Q41: отчетный | R41: ^ | S41: 0 | U41: * | V41: 0.0010000
A42: 42 | G42: 0 | H42: тип листа | I42: CFind | K42: E14 | M42: 0 | O42: 24 | P42: * | Q42: отчетный | R42: ^ | S42: 0 | U42: * | V42: 0.0100000
A43: 43 | G43: 0 | H43: тип листа | I43: FinEcAn | K43: E14 | M43: 0 | O43: 25 | P43: * | Q43: отчетный | R43: ^ | S43: 0 | U43: * | V43: 0.0010000
A44: 44 | G44: 0 | H44: тип листа | I44: InvAn | K44: E14 | M44: 0 | O44: 26 | P44: * | Q44: отчетный | R44: ^ | S44: 0 | U44: * | V44: 0.0010000
A45: 45 | G45: 0 | H45: тип листа | I45: EBITDA | K45: E14 | M45: 0 | O45: 27 | P45: * | Q45: отчетный | R45: ^ | S45: 0 | U45: * | V45: 0.0010000
A46: 46 | G46: 0 | H46: тип листа | I46: Rep | K46: E14 | M46: 0 | O46: 28 | P46: * | Q46: отчетный | R46: ^ | S46: 0 | U46: * | V46: 0.0100000
A47: 47 | G47: 0 | H47: тип листа | I47: Repd | K47: E14 | M47: 0 | O47: 29 | P47: * | Q47: расчетный | R47: ^ | S47: 0 | U47: * | V47: 0.1000000
A48: 48 | G48: 0 | H48: тип листа | I48: Calc | K48: E14 | M48: 0 | O48: 30 | P48: * | Q48: расчетный | R48: ^ | S48: 0 | U48: * | V48: 0.1000000
A49: 49 | G49: 0 | H49: тип листа | I49: Fact | K49: E14 | P49: * | Q49: расчетный | R49: ^ | S49: 0 | U49: * | V49: 0.0000000
A50: 50 | G50: 0 | H50: тип листа | I50: 1S | K50: E14 | P50: * | Q50: расчетный | R50: ^ | S50: 0 | U50: * | V50: 0.0000000
A51: 51 | G51: 0 | H51: тип листа | I51: Rules | K51: E14 | P51: * | Q51: расчетный | R51: ^ | S51: 0 | U51: * | V51: 0.0000000
A52: 52 | G52: 0 | H52: тип листа | I52: Res1 | K52: E14 | P52: * | Q52: расчетный | R52: ^ | S52: 0 | U52: * | V52: 0.0000000
A53: 53 | G53: 0 | H53: тип листа | I53: Res2 | K53: E14 | P53: * | Q53: расчетный | R53: ^ | S53: 0 | U53: * | V53: 0.0000000
A54: 54 | G54: 0 | H54: тип листа | I54: Res3 | K54: E14 | P54: * | Q54: расчетный | R54: ^ | S54: 0 | U54: * | V54: 0.0000000
A55: 55 | G55: 0 | H55: тип листа | I55: Res4 | K55: E14 | P55: * | Q55: расчетный | R55: ^ | S55: 0 | U55: * | V55: 0.0000000
A56: 56 | G56: 0 | H56: тип листа | I56: Res5 | K56: E14 | P56: * | Q56: расчетный | R56: ^ | S56: 0 | U56: * | V56: 0.0000000
A57: 57
A58: 58
A59: 59
A60: 60
A61: 61
A62: 62
A63: 63
A64: 64
A65: 65
A66: 66
A67: 67
A68: 68
A69: 69
A70: 70

Sheet Periods
Y1: номер столбца: | AA1: 27 | AB1: 28 | AC1: 29 | AD1: 30 | AE1: 31 | AF1: 32 | AG1: 33 | AH1: 34 | AI1: 35 | AJ1: 36 | AK1: 37 | AL1: 38 | AM1: 39 | AN1: 40 | AO1: 41 | AP1: 42 | AQ1: 43 | AR1: 44 | AS1: 45 | AT1: 46 | AU1: 47 | AV1: 48 | AW1: 49 | AX1: 50 | AY1: 51 | AZ1: 52 | BA1: 53 | BB1: 54 | BC1: 55 | BD1: 56 | BE1: 57 | BF1: 58 | BG1: 59 | BH1: 60 | BI1: 61 | BJ1: 62 | BK1: 63 | BL1: 64 | BM1: 65 | BN1: 66 | BO1: 67 | BP1: 68 | BQ1: 69 | BR1: 70 | BS1: 71 | BT1: 72 | BU1: 73 | BV1: 74 | BW1: 75 | BX1: 76 | BY1: 77 | BZ1: 78 | CA1: 79 | CB1: 80 | CC1: 81 | CD1: 82 | CE1: 83 | CF1: 84 | CG1: 85 | CH1: 86 | CI1: 87 | CJ1: 88 | CK1: 89 | CL1: 90 | CM1: 91 | CN1: 92 | CO1: 93 | CP1: 94 | CQ1: 95 | CR1: 96 | CS1: 97 | CT1: 98 | CU1: 99 | CV1: 100 | CW1: 101 | CX1: 102 | CY1: 103 | CZ1: 104 | DA1: 105 | DB1: 106 | DC1: 107 | DD1: 108 | DE1: 109 | DF1: 110 | DG1: 111 | DH1: 112 | DI1: 113 | DJ1: 114 | DK1: 115 | DL1: 116 | DM1: 117 | DN1: 118 | DO1: 119 | DP1: 120 | DQ1: 121 | DR1: 122 | DS1: 123 | DT1: 124 | DU1: 125 | DV1: 126 | DW1: 127 | DX1: 128 | DY1: 129 | DZ1: 130 | EA1: 131 | EB1: 132 | EC1: 133 | ED1: 134 | EE1: 135 | EF1: 136 | EG1: 137 | EH1: 138 | EI1: 139 | EJ1: 140 | EK1: 141 | EL1: 142 | EM1: 143 | EN1: 144 | EO1: 145 | EP1: 146 | EQ1: 147 | ER1: 148 | ES1: 149 | ET1: 150 | EU1: 151 | EV1: 152 | EW1: 153 | EX1: 154 | EY1: 155 | EZ1: 156 | FA1: 157 | FB1: 158 | FC1: 159 | FD1: 160 | FE1: 161 | FF1: 162 | FG1: 163 | FH1: 164 | FI1: 165 | FJ1: 166 | FK1: 167 | FL1: 168 | FM1: 169 | FN1: 170 | FO1: 171 | FP1: 172 | FQ1: 173 | FR1: 174 | FS1: 175 | FT1: 176 | FU1: 177 | FV1: 178 | FW1: 179 | FX1: 180 | FY1: 181 | FZ1: 182 | GA1: 183 | GB1: 184 | GC1: 185 | GD1: 186 | GE1: 187 | GF1: 188 | GG1: 189 | GH1: 190 | GI1: 191 | GJ1: 192 | GK1: 193 | GL1: 194 | GM1: 195 | GN1: 196 | GO1: 197 | GP1: 198 | GQ1: 199 | GR1: 200 | GS1: 201 | GT1: 202 | GU1: 203 | GV1: 204 | GW1: 205 | GX1: 206 | GY1: 207 | GZ1: 208 | HA1: 209 | HB1: 210 | HC1: 211 | HD1: 212 | HE1: 213 | HF1: 214 | HG1: 215 | HH1: 216 | HI1: 217 | HJ1: 218 | HK1: 219
Y2: номер периода модели: | AA2: 1 | AB2: 2 | AC2: 3 | AD2: 4 | AE2: 5 | AF2: 6 | AG2: 7 | AH2: 8 | AI2: 9 | AJ2: 10 | AK2: 11 | AL2: 12 | AM2: 13 | AN2: 14 | AO2: 15 | AP2: 16 | AQ2: 17 | AR2: 18 | AS2: 19 | AT2: 20 | AU2: 21 | AV2: 22 | AW2: 23 | AX2: 24 | AY2: 25 | AZ2: 26 | BA2: 27 | BB2: 28 | BC2: 29 | BD2: 30 | BE2: 31 | BF2: 32 | BG2: 33 | BH2: 34 | BI2: 35 | BJ2: 36 | BK2: 37 | BL2: 38 | BM2: 39 | BN2: 40 | BO2: 41 | BP2: 42 | BQ2: 43 | BR2: 44 | BS2: 45 | BT2: 46 | BU2: 47 | BV2: 48 | BW2: 49 | BX2: 50 | BY2: 51 | BZ2: 52 | CA2: 53 | CB2: 54 | CC2: 55 | CD2: 56 | CE2: 57 | CF2: 58 | CG2: 59 | CH2: 60 | CI2: 61 | CJ2: 62 | CK2: 63 | CL2: 64 | CM2: 65 | CN2: 66 | CO2: 67 | CP2: 68 | CQ2: 69 | CR2: 70 | CS2: 71 | CT2: 72 | CU2: 73 | CV2: 74 | CW2: 75 | CX2: 76 | CY2: 77 | CZ2: 78 | DA2: 79 | DB2: 80 | DC2: 81 | DD2: 82 | DE2: 83 | DF2: 84 | DG2: 85 | DH2: 86 | DI2: 87 | DJ2: 88 | DK2: 89 | DL2: 90 | DM2: 91 | DN2: 92 | DO2: 93 | DP2: 94 | DQ2: 95 | DR2: 96 | DS2: 97 | DT2: 98 | DU2: 99 | DV2: 100 | DW2: 101 | DX2: 102 | DY2: 103 | DZ2: 104 | EA2: 105 | EB2: 106 | EC2: 107 | ED2: 108 | EE2: 109 | EF2: 110 | EG2: 111 | EH2: 112 | EI2: 113 | EJ2: 114 | EK2: 115 | EL2: 116 | EM2: 117 | EN2: 118 | EO2: 119 | EP2: 120 | EQ2: 121 | ER2: 122 | ES2: 123 | ET2: 124 | EU2: 125 | EV2: 126 | EW2: 127 | EX2: 128 | EY2: 129 | EZ2: 130 | FA2: 131 | FB2: 132 | FC2: 133 | FD2: 134 | FE2: 135 | FF2: 136 | FG2: 137 | FH2: 138 | FI2: 139 | FJ2: 140 | FK2: 141 | FL2: 142 | FM2: 143 | FN2: 144 | FO2: 145 | FP2: 146 | FQ2: 147 | FR2: 148 | FS2: 149 | FT2: 150 | FU2: 151 | FV2: 152 | FW2: 153 | FX2: 154 | FY2: 155 | FZ2: 156 | GA2: 157 | GB2: 158 | GC2: 159 | GD2: 160 | GE2: 161 | GF2: 162 | GG2: 163 | GH2: 164 | GI2: 165 | GJ2: 166 | GK2: 167 | GL2: 168 | GM2: 169 | GN2: 170 | GO2: 171 | GP2: 172 | GQ2: 173 | GR2: 174 | GS2: 175 | GT2: 176 | GU2: 177 | GV2: 178 | GW2: 179 | GX2: 180 | GY2: 181 | GZ2: 182 | HA2: 183 | HB2: 184 | HC2: 185 | HD2: 186 | HE2: 187 | HF2: 188 | HG2: 189 | HH2: 190 | HI2: 191 | HJ2: 192 | HK2: 193
Y3: номер факт-периода:
Y4: номер план-периода: | AA4: 1 | AB4: 2 | AC4: 3 | AD4: 4 | AE4: 5 | AF4: 6 | AG4: 7 | AH4: 8 | AI4: 9 | AJ4: 10 | AK4: 11 | AL4: 12 | AM4: 13 | AN4: 14 | AO4: 15 | AP4: 16 | AQ4: 17 | AR4: 18 | AS4: 19 | AT4: 20 | AU4: 21 | AV4: 22 | AW4: 23 | AX4: 24 | AY4: 25 | AZ4: 26 | BA4: 27 | BB4: 28 | BC4: 29 | BD4: 30 | BE4: 31 | BF4: 32 | BG4: 33 | BH4: 34 | BI4: 35 | BJ4: 36 | BK4: 37 | BL4: 38 | BM4: 39 | BN4: 40 | BO4: 41 | BP4: 42 | BQ4: 43 | BR4: 44 | BS4: 45 | BT4: 46 | BU4: 47 | BV4: 48 | BW4: 49 | BX4: 50 | BY4: 51 | BZ4: 52 | CA4: 53 | CB4: 54 | CC4: 55 | CD4: 56 | CE4: 57 | CF4: 58 | CG4: 59 | CH4: 60 | CI4: 61 | CJ4: 62 | CK4: 63 | CL4: 64 | CM4: 65 | CN4: 66 | CO4: 67 | CP4: 68 | CQ4: 69 | CR4: 70 | CS4: 71 | CT4: 72 | CU4: 73 | CV4: 74 | CW4: 75 | CX4: 76 | CY4: 77 | CZ4: 78 | DA4: 79 | DB4: 80 | DC4: 81 | DD4: 82 | DE4: 83 | DF4: 84 | DG4: 85 | DH4: 86 | DI4: 87 | DJ4: 88 | DK4: 89 | DL4: 90 | DM4: 91 | DN4: 92 | DO4: 93 | DP4: 94 | DQ4: 95 | DR4: 96 | DS4: 97 | DT4: 98 | DU4: 99 | DV4: 100 | DW4: 101 | DX4: 102 | DY4: 103 | DZ4: 104 | EA4: 105 | EB4: 106 | EC4: 107 | ED4: 108 | EE4: 109 | EF4: 110 | EG4: 111 | EH4: 112 | EI4: 113 | EJ4: 114 | EK4: 115 | EL4: 116 | EM4: 117 | EN4: 118 | EO4: 119 | EP4: 120 | EQ4: 121 | ER4: 122 | ES4: 123 | ET4: 124 | EU4: 125 | EV4: 126 | EW4: 127 | EX4: 128 | EY4: 129 | EZ4: 130 | FA4: 131 | FB4: 132 | FC4: 133 | FD4: 134 | FE4: 135 | FF4: 136 | FG4: 137 | FH4: 138 | FI4: 139 | FJ4: 140 | FK4: 141 | FL4: 142 | FM4: 143 | FN4: 144 | FO4: 145 | FP4: 146 | FQ4: 147 | FR4: 148 | FS4: 149 | FT4: 150 | FU4: 151 | FV4: 152 | FW4: 153 | FX4: 154 | FY4: 155 | FZ4: 156 | GA4: 157 | GB4: 158 | GC4: 159 | GD4: 160 | GE4: 161 | GF4: 162 | GG4: 163 | GH4: 164 | GI4: 165 | GJ4: 166 | GK4: 167 | GL4: 168 | GM4: 169 | GN4: 170 | GO4: 171 | GP4: 172 | GQ4: 173 | GR4: 174 | GS4: 175 | GT4: 176 | GU4: 177 | GV4: 178 | GW4: 179 | GX4: 180
Y5: число даты начала: | AA5: 1 | AB5: 1 | AC5: 1 | AD5: 1 | AE5: 1 | AF5: 1 | AG5: 1 | AH5: 1 | AI5: 1 | AJ5: 1 | AK5: 1 | AL5: 1 | AM5: 1 | AN5: 1 | AO5: 1 | AP5: 1 | AQ5: 1 | AR5: 1 | AS5: 1 | AT5: 1 | AU5: 1 | AV5: 1 | AW5: 1 | AX5: 1 | AY5: 1 | AZ5: 1 | BA5: 1 | BB5: 1 | BC5: 1 | BD5: 1 | BE5: 1 | BF5: 1 | BG5: 1 | BH5: 1 | BI5: 1 | BJ5: 1 | BK5: 1 | BL5: 1 | BM5: 1 | BN5: 1 | BO5: 1 | BP5: 1 | BQ5: 1 | BR5: 1 | BS5: 1 | BT5: 1 | BU5: 1 | BV5: 1 | BW5: 1 | BX5: 1 | BY5: 1 | BZ5: 1 | CA5: 1 | CB5: 1 | CC5: 1 | CD5: 1 | CE5: 1 | CF5: 1 | CG5: 1 | CH5: 1 | CI5: 1 | CJ5: 1 | CK5: 1 | CL5: 1 | CM5: 1 | CN5: 1 | CO5: 1 | CP5: 1 | CQ5: 1 | CR5: 1 | CS5: 1 | CT5: 1 | CU5: 1 | CV5: 1 | CW5: 1 | CX5: 1 | CY5: 1 | CZ5: 1 | DA5: 1 | DB5: 1 | DC5: 1 | DD5: 1 | DE5: 1 | DF5: 1 | DG5: 1 | DH5: 1 | DI5: 1 | DJ5: 1 | DK5: 1 | DL5: 1 | DM5: 1 | DN5: 1 | DO5: 1 | DP5: 1 | DQ5: 1 | DR5: 1 | DS5: 1 | DT5: 1 | DU5: 1 | DV5: 1 | DW5: 1 | DX5: 1 | DY5: 1 | DZ5: 1 | EA5: 1 | EB5: 1 | EC5: 1 | ED5: 1 | EE5: 1 | EF5: 1 | EG5: 1 | EH5: 1 | EI5: 1 | EJ5: 1 | EK5: 1 | EL5: 1 | EM5: 1 | EN5: 1 | EO5: 1 | EP5: 1 | EQ5: 1 | ER5: 1 | ES5: 1 | ET5: 1 | EU5: 1 | EV5: 1 | EW5: 1 | EX5: 1 | EY5: 1 | EZ5: 1 | FA5: 1 | FB5: 1 | FC5: 1 | FD5: 1 | FE5: 1 | FF5: 1 | FG5: 1 | FH5: 1 | FI5: 1 | FJ5: 1 | FK5: 1 | FL5: 1 | FM5: 1 | FN5: 1 | FO5: 1 | FP5: 1 | FQ5: 1 | FR5: 1 | FS5: 1 | FT5: 1 | FU5: 1 | FV5: 1 | FW5: 1 | FX5: 1 | FY5: 1 | FZ5: 1 | GA5: 1 | GB5: 1 | GC5: 1 | GD5: 1 | GE5: 1 | GF5: 1 | GG5: 1 | GH5: 1 | GI5: 1 | GJ5: 1 | GK5: 1 | GL5: 1 | GM5: 1 | GN5: 1 | GO5: 1 | GP5: 1 | GQ5: 1 | GR5: 1 | GS5: 1 | GT5: 1 | GU5: 1 | GV5: 1 | GW5: 1 | GX5: 1
Y6: номер месяца даты начала: | AA6: 9 | AB6: 10 | AC6: 11 | AD6: 12 | AE6: 1 | AF6: 2 | AG6: 3 | AH6: 4 | AI6: 5 | AJ6: 6 | AK6: 7 | AL6: 8 | AM6: 9 | AN6: 10 | AO6: 11 | AP6: 12 | AQ6: 1 | AR6: 2 | AS6: 3 | AT6: 4 | AU6: 5 | AV6: 6 | AW6: 7 | AX6: 8 | AY6: 9 | AZ6: 10 | BA6: 11 | BB6: 12 | BC6: 1 | BD6: 2 | BE6: 3 | BF6: 4 | BG6: 5 | BH6: 6 | BI6: 7 | BJ6: 8 | BK6: 9 | BL6: 10 | BM6: 11 | BN6: 12 | BO6: 1 | BP6: 2 | BQ6: 3 | BR6: 4 | BS6: 5 | BT6: 6 | BU6: 7 | BV6: 8 | BW6: 9 | BX6: 10 | BY6: 11 | BZ6: 12 | CA6: 1 | CB6: 2 | CC6: 3 | CD6: 4 | CE6: 5 | CF6: 6 | CG6: 7 | CH6: 8 | CI6: 9 | CJ6: 10 | CK6: 11 | CL6: 12 | CM6: 1 | CN6: 2 | CO6: 3 | CP6: 4 | CQ6: 5 | CR6: 6 | CS6: 7 | CT6: 8 | CU6: 9 | CV6: 10 | CW6: 11 | CX6: 12 | CY6: 1 | CZ6: 2 | DA6: 3 | DB6: 4 | DC6: 5 | DD6: 6 | DE6: 7 | DF6: 8 | DG6: 9 | DH6: 10 | DI6: 11 | DJ6: 12 | DK6: 1 | DL6: 2 | DM6: 3 | DN6: 4 | DO6: 5 | DP6: 6 | DQ6: 7 | DR6: 8 | DS6: 9 | DT6: 10 | DU6: 11 | DV6: 12 | DW6: 1 | DX6: 2 | DY6: 3 | DZ6: 4 | EA6: 5 | EB6: 6 | EC6: 7 | ED6: 8 | EE6: 9 | EF6: 10 | EG6: 11 | EH6: 12 | EI6: 1 | EJ6: 2 | EK6: 3 | EL6: 4 | EM6: 5 | EN6: 6 | EO6: 7 | EP6: 8 | EQ6: 9 | ER6: 10 | ES6: 11 | ET6: 12 | EU6: 1 | EV6: 2 | EW6: 3 | EX6: 4 | EY6: 5 | EZ6: 6 | FA6: 7 | FB6: 8 | FC6: 9 | FD6: 10 | FE6: 11 | FF6: 12 | FG6: 1 | FH6: 2 | FI6: 3 | FJ6: 4 | FK6: 5 | FL6: 6 | FM6: 7 | FN6: 8 | FO6: 9 | FP6: 10 | FQ6: 11 | FR6: 12 | FS6: 1 | FT6: 2 | FU6: 3 | FV6: 4 | FW6: 5 | FX6: 6 | FY6: 7 | FZ6: 8 | GA6: 9 | GB6: 10 | GC6: 11 | GD6: 12 | GE6: 1 | GF6: 2 | GG6: 3 | GH6: 4 | GI6: 5 | GJ6: 6 | GK6: 7 | GL6: 8 | GM6: 9 | GN6: 10 | GO6: 11 | GP6: 12 | GQ6: 1 | GR6: 2 | GS6: 3 | GT6: 4 | GU6: 5 | GV6: 6 | GW6: 7 | GX6: 8
Y7: год даты начала: | AA7: 21 | AB7: 21 | AC7: 21 | AD7: 21 | AE7: 22 | AF7: 22 | AG7: 22 | AH7: 22 | AI7: 22 | AJ7: 22 | AK7: 22 | AL7: 22 | AM7: 22 | AN7: 22 | AO7: 22 | AP7: 22 | AQ7: 23 | AR7: 23 | AS7: 23 | AT7: 23 | AU7: 23 | AV7: 23 | AW7: 23 | AX7: 23 | AY7: 23 | AZ7: 23 | BA7: 23 | BB7: 23 | BC7: 24 | BD7: 24 | BE7: 24 | BF7: 24 | BG7: 24 | BH7: 24 | BI7: 24 | BJ7: 24 | BK7: 24 | BL7: 24 | BM7: 24 | BN7: 24 | BO7: 25 | BP7: 25 | BQ7: 25 | BR7: 25 | BS7: 25 | BT7: 25 | BU7: 25 | BV7: 25 | BW7: 25 | BX7: 25 | BY7: 25 | BZ7: 25 | CA7: 26 | CB7: 26 | CC7: 26 | CD7: 26 | CE7: 26 | CF7: 26 | CG7: 26 | CH7: 26 | CI7: 26 | CJ7: 26 | CK7: 26 | CL7: 26 | CM7: 27 | CN7: 27 | CO7: 27 | CP7: 27 | CQ7: 27 | CR7: 27 | CS7: 27 | CT7: 27 | CU7: 27 | CV7: 27 | CW7: 27 | CX7: 27 | CY7: 28 | CZ7: 28 | DA7: 28 | DB7: 28 | DC7: 28 | DD7: 28 | DE7: 28 | DF7: 28 | DG7: 28 | DH7: 28 | DI7: 28 | DJ7: 28 | DK7: 29 | DL7: 29 | DM7: 29 | DN7: 29 | DO7: 29 | DP7: 29 | DQ7: 29 | DR7: 29 | DS7: 29 | DT7: 29 | DU7: 29 | DV7: 29 | DW7: 30 | DX7: 30 | DY7: 30 | DZ7: 30 | EA7: 30 | EB7: 30 | EC7: 30 | ED7: 30 | EE7: 30 | EF7: 30 | EG7: 30 | EH7: 30 | EI7: 31 | EJ7: 31 | EK7: 31 | EL7: 31 | EM7: 31 | EN7: 31 | EO7: 31 | EP7: 31 | EQ7: 31 | ER7: 31 | ES7: 31 | ET7: 31 | EU7: 32 | EV7: 32 | EW7: 32 | EX7: 32 | EY7: 32 | EZ7: 32 | FA7: 32 | FB7: 32 | FC7: 32 | FD7: 32 | FE7: 32 | FF7: 32 | FG7: 33 | FH7: 33 | FI7: 33 | FJ7: 33 | FK7: 33 | FL7: 33 | FM7: 33 | FN7: 33 | FO7: 33 | FP7: 33 | FQ7: 33 | FR7: 33 | FS7: 34 | FT7: 34 | FU7: 34 | FV7: 34 | FW7: 34 | FX7: 34 | FY7: 34 | FZ7: 34 | GA7: 34 | GB7: 34 | GC7: 34 | GD7: 34 | GE7: 35 | GF7: 35 | GG7: 35 | GH7: 35 | GI7: 35 | GJ7: 35 | GK7: 35 | GL7: 35 | GM7: 35 | GN7: 35 | GO7: 35 | GP7: 35 | GQ7: 36 | GR7: 36 | GS7: 36 | GT7: 36 | GU7: 36 | GV7: 36 | GW7: 36 | GX7: 36
Y8: число даты окончания: | AA8: 30 | AB8: 31 | AC8: 30 | AD8: 31 | AE8: 31 | AF8: 28 | AG8: 31 | AH8: 30 | AI8: 31 | AJ8: 30 | AK8: 31 | AL8: 31 | AM8: 30 | AN8: 31 | AO8: 30 | AP8: 31 | AQ8: 31 | AR8: 28 | AS8: 31 | AT8: 30 | AU8: 31 | AV8: 30 | AW8: 31 | AX8: 31 | AY8: 30 | AZ8: 31 | BA8: 30 | BB8: 31 | BC8: 31 | BD8: 29 | BE8: 31 | BF8: 30 | BG8: 31 | BH8: 30 | BI8: 31 | BJ8: 31 | BK8: 30 | BL8: 31 | BM8: 30 | BN8: 31 | BO8: 31 | BP8: 28 | BQ8: 31 | BR8: 30 | BS8: 31 | BT8: 30 | BU8: 31 | BV8: 31 | BW8: 30 | BX8: 31 | BY8: 30 | BZ8: 31 | CA8: 31 | CB8: 28 | CC8: 31 | CD8: 30 | CE8: 31 | CF8: 30 | CG8: 31 | CH8: 31 | CI8: 30 | CJ8: 31 | CK8: 30 | CL8: 31 | CM8: 31 | CN8: 28 | CO8: 31 | CP8: 30 | CQ8: 31 | CR8: 30 | CS8: 31 | CT8: 31 | CU8: 30 | CV8: 31 | CW8: 30 | CX8: 31 | CY8: 31 | CZ8: 29 | DA8: 31 | DB8: 30 | DC8: 31 | DD8: 30 | DE8: 31 | DF8: 31 | DG8: 30 | DH8: 31 | DI8: 30 | DJ8: 31 | DK8: 31 | DL8: 28 | DM8: 31 | DN8: 30 | DO8: 31 | DP8: 30 | DQ8: 31 | DR8: 31 | DS8: 30 | DT8: 31 | DU8: 30 | DV8: 31 | DW8: 31 | DX8: 28 | DY8: 31 | DZ8: 30 | EA8: 31 | EB8: 30 | EC8: 31 | ED8: 31 | EE8: 30 | EF8: 31 | EG8: 30 | EH8: 31 | EI8: 31 | EJ8: 28 | EK8: 31 | EL8: 30 | EM8: 31 | EN8: 30 | EO8: 31 | EP8: 31 | EQ8: 30 | ER8: 31 | ES8: 30 | ET8: 31 | EU8: 31 | EV8: 29 | EW8: 31 | EX8: 30 | EY8: 31 | EZ8: 30 | FA8: 31 | FB8: 31 | FC8: 30 | FD8: 31 | FE8: 30 | FF8: 31 | FG8: 31 | FH8: 28 | FI8: 31 | FJ8: 30 | FK8: 31 | FL8: 30 | FM8: 31 | FN8: 31 | FO8: 30 | FP8: 31 | FQ8: 30 | FR8: 31 | FS8: 31 | FT8: 28 | FU8: 31 | FV8: 30 | FW8: 31 | FX8: 30 | FY8: 31 | FZ8: 31 | GA8: 30 | GB8: 31 | GC8: 30 | GD8: 31 | GE8: 31 | GF8: 28 | GG8: 31 | GH8: 30 | GI8: 31 | GJ8: 30 | GK8: 31 | GL8: 31 | GM8: 30 | GN8: 31 | GO8: 30 | GP8: 31 | GQ8: 31 | GR8: 29 | GS8: 31 | GT8: 30 | GU8: 31 | GV8: 30 | GW8: 31 | GX8: 31
Y9: номер месяца даты окончания: | AA9: 9 | AB9: 10 | AC9: 11 | AD9: 12 | AE9: 1 | AF9: 2 | AG9: 3 | AH9: 4 | AI9: 5 | AJ9: 6 | AK9: 7 | AL9: 8 | AM9: 9 | AN9: 10 | AO9: 11 | AP9: 12 | AQ9: 1 | AR9: 2 | AS9: 3 | AT9: 4 | AU9: 5 | AV9: 6 | AW9: 7 | AX9: 8 | AY9: 9 | AZ9: 10 | BA9: 11 | BB9: 12 | BC9: 1 | BD9: 2 | BE9: 3 | BF9: 4 | BG9: 5 | BH9: 6 | BI9: 7 | BJ9: 8 | BK9: 9 | BL9: 10 | BM9: 11 | BN9: 12 | BO9: 1 | BP9: 2 | BQ9: 3 | BR9: 4 | BS9: 5 | BT9: 6 | BU9: 7 | BV9: 8 | BW9: 9 | BX9: 10 | BY9: 11 | BZ9: 12 | CA9: 1 | CB9: 2 | CC9: 3 | CD9: 4 | CE9: 5 | CF9: 6 | CG9: 7 | CH9: 8 | CI9: 9 | CJ9: 10 | CK9: 11 | CL9: 12 | CM9: 1 | CN9: 2 | CO9: 3 | CP9: 4 | CQ9: 5 | CR9: 6 | CS9: 7 | CT9: 8 | CU9: 9 | CV9: 10 | CW9: 11 | CX9: 12 | CY9: 1 | CZ9: 2 | DA9: 3 | DB9: 4 | DC9: 5 | DD9: 6 | DE9: 7 | DF9: 8 | DG9: 9 | DH9: 10 | DI9: 11 | DJ9: 12 | DK9: 1 | DL9: 2 | DM9: 3 | DN9: 4 | DO9: 5 | DP9: 6 | DQ9: 7 | DR9: 8 | DS9: 9 | DT9: 10 | DU9: 11 | DV9: 12 | DW9: 1 | DX9: 2 | DY9: 3 | DZ9: 4 | EA9: 5 | EB9: 6 | EC9: 7 | ED9: 8 | EE9: 9 | EF9: 10 | EG9: 11 | EH9: 12 | EI9: 1 | EJ9: 2 | EK9: 3 | EL9: 4 | EM9: 5 | EN9: 6 | EO9: 7 | EP9: 8 | EQ9: 9 | ER9: 10 | ES9: 11 | ET9: 12 | EU9: 1 | EV9: 2 | EW9: 3 | EX9: 4 | EY9: 5 | EZ9: 6 | FA9: 7 | FB9: 8 | FC9: 9 | FD9: 10 | FE9: 11 | FF9: 12 | FG9: 1 | FH9: 2 | FI9: 3 | FJ9: 4 | FK9: 5 | FL9: 6 | FM9: 7 | FN9: 8 | FO9: 9 | FP9: 10 | FQ9: 11 | FR9: 12 | FS9: 1 | FT9: 2 | FU9: 3 | FV9: 4 | FW9: 5 | FX9: 6 | FY9: 7 | FZ9: 8 | GA9: 9 | GB9: 10 | GC9: 11 | GD9: 12 | GE9: 1 | GF9: 2 | GG9: 3 | GH9: 4 | GI9: 5 | GJ9: 6 | GK9: 7 | GL9: 8 | GM9: 9 | GN9: 10 | GO9: 11 | GP9: 12 | GQ9: 1 | GR9: 2 | GS9: 3 | GT9: 4 | GU9: 5 | GV9: 6 | GW9: 7 | GX9: 8
Y10: год даты окончания: | AA10: 21 | AB10: 21 | AC10: 21 | AD10: 21 | AE10: 22 | AF10: 22 | AG10: 22 | AH10: 22 | AI10: 22 | AJ10: 22 | AK10: 22 | AL10: 22 | AM10: 22 | AN10: 22 | AO10: 22 | AP10: 22 | AQ10: 23 | AR10: 23 | AS10: 23 | AT10: 23 | AU10: 23 | AV10: 23 | AW10: 23 | AX10: 23 | AY10: 23 | AZ10: 23 | BA10: 23 | BB10: 23 | BC10: 24 | BD10: 24 | BE10: 24 | BF10: 24 | BG10: 24 | BH10: 24 | BI10: 24 | BJ10: 24 | BK10: 24 | BL10: 24 | BM10: 24 | BN10: 24 | BO10: 25 | BP10: 25 | BQ10: 25 | BR10: 25 | BS10: 25 | BT10: 25 | BU10: 25 | BV10: 25 | BW10: 25 | BX10: 25 | BY10: 25 | BZ10: 25 | CA10: 26 | CB10: 26 | CC10: 26 | CD10: 26 | CE10: 26 | CF10: 26 | CG10: 26 | CH10: 26 | CI10: 26 | CJ10: 26 | CK10: 26 | CL10: 26 | CM10: 27 | CN10: 27 | CO10: 27 | CP10: 27 | CQ10: 27 | CR10: 27 | CS10: 27 | CT10: 27 | CU10: 27 | CV10: 27 | CW10: 27 | CX10: 27 | CY10: 28 | CZ10: 28 | DA10: 28 | DB10: 28 | DC10: 28 | DD10: 28 | DE10: 28 | DF10: 28 | DG10: 28 | DH10: 28 | DI10: 28 | DJ10: 28 | DK10: 29 | DL10: 29 | DM10: 29 | DN10: 29 | DO10: 29 | DP10: 29 | DQ10: 29 | DR10: 29 | DS10: 29 | DT10: 29 | DU10: 29 | DV10: 29 | DW10: 30 | DX10: 30 | DY10: 30 | DZ10: 30 | EA10: 30 | EB10: 30 | EC10: 30 | ED10: 30 | EE10: 30 | EF10: 30 | EG10: 30 | EH10: 30 | EI10: 31 | EJ10: 31 | EK10: 31 | EL10: 31 | EM10: 31 | EN10: 31 | EO10: 31 | EP10: 31 | EQ10: 31 | ER10: 31 | ES10: 31 | ET10: 31 | EU10: 32 | EV10: 32 | EW10: 32 | EX10: 32 | EY10: 32 | EZ10: 32 | FA10: 32 | FB10: 32 | FC10: 32 | FD10: 32 | FE10: 32 | FF10: 32 | FG10: 33 | FH10: 33 | FI10: 33 | FJ10: 33 | FK10: 33 | FL10: 33 | FM10: 33 | FN10: 33 | FO10: 33 | FP10: 33 | FQ10: 33 | FR10: 33 | FS10: 34 | FT10: 34 | FU10: 34 | FV10: 34 | FW10: 34 | FX10: 34 | FY10: 34 | FZ10: 34 | GA10: 34 | GB10: 34 | GC10: 34 | GD10: 34 | GE10: 35 | GF10: 35 | GG10: 35 | GH10: 35 | GI10: 35 | GJ10: 35 | GK10: 35 | GL10: 35 | GM10: 35 | GN10: 35 | GO10: 35 | GP10: 35 | GQ10: 36 | GR10: 36 | GS10: 36 | GT10: 36 | GU10: 36 | GV10: 36 | GW10: 36 | GX10: 36
F11: Periods | I11: Периоды и горизонты моделирования фактических и прогнозных данных | X11: 2021-09-01 | AA11: 2021-09-01 | AB11: 2021-10-01 | AC11: 2021-11-01 | AD11: 2021-12-01 | AE11: 2022-01-01 | AF11: 2022-02-01 | AG11: 2022-03-01 | AH11: 2022-04-01 | AI11: 2022-05-01 | AJ11: 2022-06-01 | AK11: 2022-07-01 | AL11: 2022-08-01 | AM11: 2022-09-01 | AN11: 2022-10-01 | AO11: 2022-11-01 | AP11: 2022-12-01 | AQ11: 2023-01-01 | AR11: 2023-02-01 | AS11: 2023-03-01 | AT11: 2023-04-01 | AU11: 2023-05-01 | AV11: 2023-06-01 | AW11: 2023-07-01 | AX11: 2023-08-01 | AY11: 2023-09-01 | AZ11: 2023-10-01 | BA11: 2023-11-01 | BB11: 2023-12-01 | BC11: 2024-01-01 | BD11: 2024-02-01 | BE11: 2024-03-01 | BF11: 2024-04-01 | BG11: 2024-05-01 | BH11: 2024-06-01 | BI11: 2024-07-01 | BJ11: 2024-08-01 | BK11: 2024-09-01 | BL11: 2024-10-01 | BM11: 2024-11-01 | BN11: 2024-12-01 | BO11: 2025-01-01 | BP11: 2025-02-01 | BQ11: 2025-03-01 | BR11: 2025-04-01 | BS11: 2025-05-01 | BT11: 2025-06-01 | BU11: 2025-07-01 | BV11: 2025-08-01 | BW11: 2025-09-01 | BX11: 2025-10-01 | BY11: 2025-11-01 | BZ11: 2025-12-01 | CA11: 2026-01-01 | CB11: 2026-02-01 | CC11: 2026-03-01 | CD11: 2026-04-01 | CE11: 2026-05-01 | CF11: 2026-06-01 | CG11: 2026-07-01 | CH11: 2026-08-01 | CI11: 2026-09-01 | CJ11: 2026-10-01 | CK11: 2026-11-01 | CL11: 2026-12-01 | CM11: 2027-01-01 | CN11: 2027-02-01 | CO11: 2027-03-01 | CP11: 2027-04-01 | CQ11: 2027-05-01 | CR11: 2027-06-01 | CS11: 2027-07-01 | CT11: 2027-08-01 | CU11: 2027-09-01 | CV11: 2027-10-01 | CW11: 2027-11-01 | CX11: 2027-12-01 | CY11: 2028-01-01 | CZ11: 2028-02-01 | DA11: 2028-03-01 | DB11: 2028-04-01 | DC11: 2028-05-01 | DD11: 2028-06-01 | DE11: 2028-07-01 | DF11: 2028-08-01 | DG11: 2028-09-01 | DH11: 2028-10-01 | DI11: 2028-11-01 | DJ11: 2028-12-01 | DK11: 2029-01-01 | DL11: 2029-02-01 | DM11: 2029-03-01 | DN11: 2029-04-01 | DO11: 2029-05-01 | DP11: 2029-06-01 | DQ11: 2029-07-01 | DR11: 2029-08-01 | DS11: 2029-09-01 | DT11: 2029-10-01 | DU11: 2029-11-01 | DV11: 2029-12-01 | DW11: 2030-01-01 | DX11: 2030-02-01 | DY11: 2030-03-01 | DZ11: 2030-04-01 | EA11: 2030-05-01 | EB11: 2030-06-01 | EC11: 2030-07-01 | ED11: 2030-08-01 | EE11: 2030-09-01 | EF11: 2030-10-01 | EG11: 2030-11-01 | EH11: 2030-12-01 | EI11: 2031-01-01 | EJ11: 2031-02-01 | EK11: 2031-03-01 | EL11: 2031-04-01 | EM11: 2031-05-01 | EN11: 2031-06-01 | EO11: 2031-07-01 | EP11: 2031-08-01 | EQ11: 2031-09-01 | ER11: 2031-10-01 | ES11: 2031-11-01 | ET11: 2031-12-01 | EU11: 2032-01-01 | EV11: 2032-02-01 | EW11: 2032-03-01 | EX11: 2032-04-01 | EY11: 2032-05-01 | EZ11: 2032-06-01 | FA11: 2032-07-01 | FB11: 2032-08-01 | FC11: 2032-09-01 | FD11: 2032-10-01 | FE11: 2032-11-01 | FF11: 2032-12-01 | FG11: 2033-01-01 | FH11: 2033-02-01 | FI11: 2033-03-01 | FJ11: 2033-04-01 | FK11: 2033-05-01 | FL11: 2033-06-01 | FM11: 2033-07-01 | FN11: 2033-08-01 | FO11: 2033-09-01 | FP11: 2033-10-01 | FQ11: 2033-11-01 | FR11: 2033-12-01 | FS11: 2034-01-01 | FT11: 2034-02-01 | FU11: 2034-03-01 | FV11: 2034-04-01 | FW11: 2034-05-01 | FX11: 2034-06-01 | FY11: 2034-07-01 | FZ11: 2034-08-01 | GA11: 2034-09-01 | GB11: 2034-10-01 | GC11: 2034-11-01 | GD11: 2034-12-01 | GE11: 2035-01-01 | GF11: 2035-02-01 | GG11: 2035-03-01 | GH11: 2035-04-01 | GI11: 2035-05-01 | GJ11: 2035-06-01 | GK11: 2035-07-01 | GL11: 2035-08-01 | GM11: 2035-09-01 | GN11: 2035-10-01 | GO11: 2035-11-01 | GP11: 2035-12-01 | GQ11: 2036-01-01 | GR11: 2036-02-01 | GS11: 2036-03-01 | GT11: 2036-04-01 | GU11: 2036-05-01 | GV11: 2036-06-01 | GW11: 2036-07-01 | GX11: 2036-08-01
H12: тип листа | Q12: расчетный | X12: 2036-08-31 | AA12: 2021-09-30 | AB12: 2021-10-31 | AC12: 2021-11-30 | AD12: 2021-12-31 | AE12: 2022-01-31 | AF12: 2022-02-28 | AG12: 2022-03-31 | AH12: 2022-04-30 | AI12: 2022-05-31 | AJ12: 2022-06-30 | AK12: 2022-07-31 | AL12: 2022-08-31 | AM12: 2022-09-30 | AN12: 2022-10-31 | AO12: 2022-11-30 | AP12: 2022-12-31 | AQ12: 2023-01-31 | AR12: 2023-02-28 | AS12: 2023-03-31 | AT12: 2023-04-30 | AU12: 2023-05-31 | AV12: 2023-06-30 | AW12: 2023-07-31 | AX12: 2023-08-31 | AY12: 2023-09-30 | AZ12: 2023-10-31 | BA12: 2023-11-30 | BB12: 2023-12-31 | BC12: 2024-01-31 | BD12: 2024-02-29 | BE12: 2024-03-31 | BF12: 2024-04-30 | BG12: 2024-05-31 | BH12: 2024-06-30 | BI12: 2024-07-31 | BJ12: 2024-08-31 | BK12: 2024-09-30 | BL12: 2024-10-31 | BM12: 2024-11-30 | BN12: 2024-12-31 | BO12: 2025-01-31 | BP12: 2025-02-28 | BQ12: 2025-03-31 | BR12: 2025-04-30 | BS12: 2025-05-31 | BT12: 2025-06-30 | BU12: 2025-07-31 | BV12: 2025-08-31 | BW12: 2025-09-30 | BX12: 2025-10-31 | BY12: 2025-11-30 | BZ12: 2025-12-31 | CA12: 2026-01-31 | CB12: 2026-02-28 | CC12: 2026-03-31 | CD12: 2026-04-30 | CE12: 2026-05-31 | CF12: 2026-06-30 | CG12: 2026-07-31 | CH12: 2026-08-31 | CI12: 2026-09-30 | CJ12: 2026-10-31 | CK12: 2026-11-30 | CL12: 2026-12-31 | CM12: 2027-01-31 | CN12: 2027-02-28 | CO12: 2027-03-31 | CP12: 2027-04-30 | CQ12: 2027-05-31 | CR12: 2027-06-30 | CS12: 2027-07-31 | CT12: 2027-08-31 | CU12: 2027-09-30 | CV12: 2027-10-31 | CW12: 2027-11-30 | CX12: 2027-12-31 | CY12: 2028-01-31 | CZ12: 2028-02-29 | DA12: 2028-03-31 | DB12: 2028-04-30 | DC12: 2028-05-31 | DD12: 2028-06-30 | DE12: 2028-07-31 | DF12: 2028-08-31 | DG12: 2028-09-30 | DH12: 2028-10-31 | DI12: 2028-11-30 | DJ12: 2028-12-31 | DK12: 2029-01-31 | DL12: 2029-02-28 | DM12: 2029-03-31 | DN12: 2029-04-30 | DO12: 2029-05-31 | DP12: 2029-06-30 | DQ12: 2029-07-31 | DR12: 2029-08-31 | DS12: 2029-09-30 | DT12: 2029-10-31 | DU12: 2029-11-30 | DV12: 2029-12-31 | DW12: 2030-01-31 | DX12: 2030-02-28 | DY12: 2030-03-31 | DZ12: 2030-04-30 | EA12: 2030-05-31 | EB12: 2030-06-30 | EC12: 2030-07-31 | ED12: 2030-08-31 | EE12: 2030-09-30 | EF12: 2030-10-31 | EG12: 2030-11-30 | EH12: 2030-12-31 | EI12: 2031-01-31 | EJ12: 2031-02-28 | EK12: 2031-03-31 | EL12: 2031-04-30 | EM12: 2031-05-31 | EN12: 2031-06-30 | EO12: 2031-07-31 | EP12: 2031-08-31 | EQ12: 2031-09-30 | ER12: 2031-10-31 | ES12: 2031-11-30 | ET12: 2031-12-31 | EU12: 2032-01-31 | EV12: 2032-02-29 | EW12: 2032-03-31 | EX12: 2032-04-30 | EY12: 2032-05-31 | EZ12: 2032-06-30 | FA12: 2032-07-31 | FB12: 2032-08-31 | FC12: 2032-09-30 | FD12: 2032-10-31 | FE12: 2032-11-30 | FF12: 2032-12-31 | FG12: 2033-01-31 | FH12: 2033-02-28 | FI12: 2033-03-31 | FJ12: 2033-04-30 | FK12: 2033-05-31 | FL12: 2033-06-30 | FM12: 2033-07-31 | FN12: 2033-08-31 | FO12: 2033-09-30 | FP12: 2033-10-31 | FQ12: 2033-11-30 | FR12: 2033-12-31 | FS12: 2034-01-31 | FT12: 2034-02-28 | FU12: 2034-03-31 | FV12: 2034-04-30 | FW12: 2034-05-31 | FX12: 2034-06-30 | FY12: 2034-07-31 | FZ12: 2034-08-31 | GA12: 2034-09-30 | GB12: 2034-10-31 | GC12: 2034-11-30 | GD12: 2034-12-31 | GE12: 2035-01-31 | GF12: 2035-02-28 | GG12: 2035-03-31 | GH12: 2035-04-30 | GI12: 2035-05-31 | GJ12: 2035-06-30 | GK12: 2035-07-31 | GL12: 2035-08-31 | GM12: 2035-09-30 | GN12: 2035-10-31 | GO12: 2035-11-30 | GP12: 2035-12-31 | GQ12: 2036-01-31 | GR12: 2036-02-29 | GS12: 2036-03-31 | GT12: 2036-04-30 | GU12: 2036-05-31 | GV12: 2036-06-30 | GW12: 2036-07-31 | GX12: 2036-08-31
H13: показатель | Q13: значение | X13: итого | AA13: 2021-09-01 | AB13: 2021-10-01 | AC13: 2021-11-01 | AD13: 2021-12-01 | AE13: 2022-01-01 | AF13: 2022-02-01 | AG13: 2022-03-01 | AH13: 2022-04-01 | AI13: 2022-05-01 | AJ13: 2022-06-01 | AK13: 2022-07-01 | AL13: 2022-08-01 | AM13: 2022-09-01 | AN13: 2022-10-01 | AO13: 2022-11-01 | AP13: 2022-12-01 | AQ13: 2023-01-01 | AR13: 2023-02-01 | AS13: 2023-03-01 | AT13: 2023-04-01 | AU13: 2023-05-01 | AV13: 2023-06-01 | AW13: 2023-07-01 | AX13: 2023-08-01 | AY13: 2023-09-01 | AZ13: 2023-10-01 | BA13: 2023-11-01 | BB13: 2023-12-01 | BC13: 2024-01-01 | BD13: 2024-02-01 | BE13: 2024-03-01 | BF13: 2024-04-01 | BG13: 2024-05-01 | BH13: 2024-06-01 | BI13: 2024-07-01 | BJ13: 2024-08-01 | BK13: 2024-09-01 | BL13: 2024-10-01 | BM13: 2024-11-01 | BN13: 2024-12-01 | BO13: 2025-01-01 | BP13: 2025-02-01 | BQ13: 2025-03-01 | BR13: 2025-04-01 | BS13: 2025-05-01 | BT13: 2025-06-01 | BU13: 2025-07-01 | BV13: 2025-08-01 | BW13: 2025-09-01 | BX13: 2025-10-01 | BY13: 2025-11-01 | BZ13: 2025-12-01 | CA13: 2026-01-01 | CB13: 2026-02-01 | CC13: 2026-03-01 | CD13: 2026-04-01 | CE13: 2026-05-01 | CF13: 2026-06-01 | CG13: 2026-07-01 | CH13: 2026-08-01 | CI13: 2026-09-01 | CJ13: 2026-10-01 | CK13: 2026-11-01 | CL13: 2026-12-01 | CM13: 2027-01-01 | CN13: 2027-02-01 | CO13: 2027-03-01 | CP13: 2027-04-01 | CQ13: 2027-05-01 | CR13: 2027-06-01 | CS13: 2027-07-01 | CT13: 2027-08-01 | CU13: 2027-09-01 | CV13: 2027-10-01 | CW13: 2027-11-01 | CX13: 2027-12-01 | CY13: 2028-01-01 | CZ13: 2028-02-01 | DA13: 2028-03-01 | DB13: 2028-04-01 | DC13: 2028-05-01 | DD13: 2028-06-01 | DE13: 2028-07-01 | DF13: 2028-08-01 | DG13: 2028-09-01 | DH13: 2028-10-01 | DI13: 2028-11-01 | DJ13: 2028-12-01 | DK13: 2029-01-01 | DL13: 2029-02-01 | DM13: 2029-03-01 | DN13: 2029-04-01 | DO13: 2029-05-01 | DP13: 2029-06-01 | DQ13: 2029-07-01 | DR13: 2029-08-01 | DS13: 2029-09-01 | DT13: 2029-10-01 | DU13: 2029-11-01 | DV13: 2029-12-01 | DW13: 2030-01-01 | DX13: 2030-02-01 | DY13: 2030-03-01 | DZ13: 2030-04-01 | EA13: 2030-05-01 | EB13: 2030-06-01 | EC13: 2030-07-01 | ED13: 2030-08-01 | EE13: 2030-09-01 | EF13: 2030-10-01 | EG13: 2030-11-01 | EH13: 2030-12-01 | EI13: 2031-01-01 | EJ13: 2031-02-01 | EK13: 2031-03-01 | EL13: 2031-04-01 | EM13: 2031-05-01 | EN13: 2031-06-01 | EO13: 2031-07-01 | EP13: 2031-08-01 | EQ13: 2031-09-01 | ER13: 2031-10-01 | ES13: 2031-11-01 | ET13: 2031-12-01 | EU13: 2032-01-01 | EV13: 2032-02-01 | EW13: 2032-03-01 | EX13: 2032-04-01 | EY13: 2032-05-01 | EZ13: 2032-06-01 | FA13: 2032-07-01 | FB13: 2032-08-01 | FC13: 2032-09-01 | FD13: 2032-10-01 | FE13: 2032-11-01 | FF13: 2032-12-01 | FG13: 2033-01-01 | FH13: 2033-02-01 | FI13: 2033-03-01 | FJ13: 2033-04-01 | FK13: 2033-05-01 | FL13: 2033-06-01 | FM13: 2033-07-01 | FN13: 2033-08-01 | FO13: 2033-09-01 | FP13: 2033-10-01 | FQ13: 2033-11-01 | FR13: 2033-12-01 | FS13: 2034-01-01 | FT13: 2034-02-01 | FU13: 2034-03-01 | FV13: 2034-04-01 | FW13: 2034-05-01 | FX13: 2034-06-01 | FY13: 2034-07-01 | FZ13: 2034-08-01 | GA13: 2034-09-01 | GB13: 2034-10-01 | GC13: 2034-11-01 | GD13: 2034-12-01 | GE13: 2035-01-01 | GF13: 2035-02-01 | GG13: 2035-03-01 | GH13: 2035-04-01 | GI13: 2035-05-01 | GJ13: 2035-06-01 | GK13: 2035-07-01 | GL13: 2035-08-01 | GM13: 2035-09-01 | GN13: 2035-10-01 | GO13: 2035-11-01 | GP13: 2035-12-01 | GQ13: 2036-01-01 | GR13: 2036-02-01 | GS13: 2036-03-01 | GT13: 2036-04-01 | GU13: 2036-05-01 | GV13: 2036-06-01 | GW13: 2036-07-01 | GX13: 2036-08-01
D14: 0 | E14: 0 | F14: 0 | G14: 0 | S14: 0
A15: 15 | H15: разработка финмоделей: https://mngmnt.ru/
A16: 16 | G16: 0 | H16: минимальный период расчетов | P16: * | Q16: месяц | R16: ^ | S16: 0 | Y16: номер периода модели: | AA16: 1 | AB16: 2 | AC16: 3 | AD16: 4 | AE16: 5 | AF16: 6 | AG16: 7 | AH16: 8 | AI16: 9 | AJ16: 10 | AK16: 11 | AL16: 12 | AM16: 13 | AN16: 14 | AO16: 15 | AP16: 16 | AQ16: 17 | AR16: 18 | AS16: 19 | AT16: 20 | AU16: 21 | AV16: 22 | AW16: 23 | AX16: 24 | AY16: 25 | AZ16: 26 | BA16: 27 | BB16: 28 | BC16: 29 | BD16: 30 | BE16: 31 | BF16: 32 | BG16: 33 | BH16: 34 | BI16: 35 | BJ16: 36 | BK16: 37 | BL16: 38 | BM16: 39 | BN16: 40 | BO16: 41 | BP16: 42 | BQ16: 43 | BR16: 44 | BS16: 45 | BT16: 46 | BU16: 47 | BV16: 48 | BW16: 49 | BX16: 50 | BY16: 51 | BZ16: 52 | CA16: 53 | CB16: 54 | CC16: 55 | CD16: 56 | CE16: 57 | CF16: 58 | CG16: 59 | CH16: 60 | CI16: 61 | CJ16: 62 | CK16: 63 | CL16: 64 | CM16: 65 | CN16: 66 | CO16: 67 | CP16: 68 | CQ16: 69 | CR16: 70 | CS16: 71 | CT16: 72 | CU16: 73 | CV16: 74 | CW16: 75 | CX16: 76 | CY16: 77 | CZ16: 78 | DA16: 79 | DB16: 80 | DC16: 81 | DD16: 82 | DE16: 83 | DF16: 84 | DG16: 85 | DH16: 86 | DI16: 87 | DJ16: 88 | DK16: 89 | DL16: 90 | DM16: 91 | DN16: 92 | DO16: 93 | DP16: 94 | DQ16: 95 | DR16: 96 | DS16: 97 | DT16: 98 | DU16: 99 | DV16: 100 | DW16: 101 | DX16: 102 | DY16: 103 | DZ16: 104 | EA16: 105 | EB16: 106 | EC16: 107 | ED16: 108 | EE16: 109 | EF16: 110 | EG16: 111 | EH16: 112 | EI16: 113 | EJ16: 114 | EK16: 115 | EL16: 116 | EM16: 117 | EN16: 118 | EO16: 119 | EP16: 120 | EQ16: 121 | ER16: 122 | ES16: 123 | ET16: 124 | EU16: 125 | EV16: 126 | EW16: 127 | EX16: 128 | EY16: 129 | EZ16: 130 | FA16: 131 | FB16: 132 | FC16: 133 | FD16: 134 | FE16: 135 | FF16: 136 | FG16: 137 | FH16: 138 | FI16: 139 | FJ16: 140 | FK16: 141 | FL16: 142 | FM16: 143 | FN16: 144 | FO16: 145 | FP16: 146 | FQ16: 147 | FR16: 148 | FS16: 149 | FT16: 150 | FU16: 151 | FV16: 152 | FW16: 153 | FX16: 154 | FY16: 155 | FZ16: 156 | GA16: 157 | GB16: 158 | GC16: 159 | GD16: 160 | GE16: 161 | GF16: 162 | GG16: 163 | GH16: 164 | GI16: 165 | GJ16: 166 | GK16: 167 | GL16: 168 | GM16: 169 | GN16: 170 | GO16: 171 | GP16: 172 | GQ16: 173 | GR16: 174 | GS16: 175 | GT16: 176 | GU16: 177 | GV16: 178 | GW16: 179 | GX16: 180 | GY16: 181 | GZ16: 182 | HA16: 183 | HB16: 184 | HC16: 185 | HD16: 186 | HE16: 187 | HF16: 188 | HG16: 189 | HH16: 190 | HI16: 191 | HJ16: 192 | HK16: 193
A17: 17 | G17: 0 | H17: дата старта проекта | P17: * | Q17: 2021-09-01 | S17: 0 | Y17: номер месяца даты начала: | AA17: 9 | AB17: 10 | AC17: 11 | AD17: 12 | AE17: 1 | AF17: 2 | AG17: 3 | AH17: 4 | AI17: 5 | AJ17: 6 | AK17: 7 | AL17: 8 | AM17: 9 | AN17: 10 | AO17: 11 | AP17: 12 | AQ17: 1 | AR17: 2 | AS17: 3 | AT17: 4 | AU17: 5 | AV17: 6 | AW17: 7 | AX17: 8 | AY17: 9 | AZ17: 10 | BA17: 11 | BB17: 12 | BC17: 1 | BD17: 2 | BE17: 3 | BF17: 4 | BG17: 5 | BH17: 6 | BI17: 7 | BJ17: 8 | BK17: 9 | BL17: 10 | BM17: 11 | BN17: 12 | BO17: 1 | BP17: 2 | BQ17: 3 | BR17: 4 | BS17: 5 | BT17: 6 | BU17: 7 | BV17: 8 | BW17: 9 | BX17: 10 | BY17: 11 | BZ17: 12 | CA17: 1 | CB17: 2 | CC17: 3 | CD17: 4 | CE17: 5 | CF17: 6 | CG17: 7 | CH17: 8 | CI17: 9 | CJ17: 10 | CK17: 11 | CL17: 12 | CM17: 1 | CN17: 2 | CO17: 3 | CP17: 4 | CQ17: 5 | CR17: 6 | CS17: 7 | CT17: 8 | CU17: 9 | CV17: 10 | CW17: 11 | CX17: 12 | CY17: 1 | CZ17: 2 | DA17: 3 | DB17: 4 | DC17: 5 | DD17: 6 | DE17: 7 | DF17: 8 | DG17: 9 | DH17: 10 | DI17: 11 | DJ17: 12 | DK17: 1 | DL17: 2 | DM17: 3 | DN17: 4 | DO17: 5 | DP17: 6 | DQ17: 7 | DR17: 8 | DS17: 9 | DT17: 10 | DU17: 11 | DV17: 12 | DW17: 1 | DX17: 2 | DY17: 3 | DZ17: 4 | EA17: 5 | EB17: 6 | EC17: 7 | ED17: 8 | EE17: 9 | EF17: 10 | EG17: 11 | EH17: 12 | EI17: 1 | EJ17: 2 | EK17: 3 | EL17: 4 | EM17: 5 | EN17: 6 | EO17: 7 | EP17: 8 | EQ17: 9 | ER17: 10 | ES17: 11 | ET17: 12 | EU17: 1 | EV17: 2 | EW17: 3 | EX17: 4 | EY17: 5 | EZ17: 6 | FA17: 7 | FB17: 8 | FC17: 9 | FD17: 10 | FE17: 11 | FF17: 12 | FG17: 1 | FH17: 2 | FI17: 3 | FJ17: 4 | FK17: 5 | FL17: 6 | FM17: 7 | FN17: 8 | FO17: 9 | FP17: 10 | FQ17: 11 | FR17: 12 | FS17: 1 | FT17: 2 | FU17: 3 | FV17: 4 | FW17: 5 | FX17: 6 | FY17: 7 | FZ17: 8 | GA17: 9 | GB17: 10 | GC17: 11 | GD17: 12 | GE17: 1 | GF17: 2 | GG17: 3 | GH17: 4 | GI17: 5 | GJ17: 6 | GK17: 7 | GL17: 8 | GM17: 9 | GN17: 10 | GO17: 11 | GP17: 12 | GQ17: 1 | GR17: 2 | GS17: 3 | GT17: 4 | GU17: 5 | GV17: 6 | GW17: 7 | GX17: 8
A18: 18 | G18: 0 | H18: горизонт моделирования в кол-ве периодов | P18: * | Q18: 180 | S18: 0 | Y18: год даты начала: | AA18: 21 | AB18: 21 | AC18: 21 | AD18: 21 | AE18: 22 | AF18: 22 | AG18: 22 | AH18: 22 | AI18: 22 | AJ18: 22 | AK18: 22 | AL18: 22 | AM18: 22 | AN18: 22 | AO18: 22 | AP18: 22 | AQ18: 23 | AR18: 23 | AS18: 23 | AT18: 23 | AU18: 23 | AV18: 23 | AW18: 23 | AX18: 23 | AY18: 23 | AZ18: 23 | BA18: 23 | BB18: 23 | BC18: 24 | BD18: 24 | BE18: 24 | BF18: 24 | BG18: 24 | BH18: 24 | BI18: 24 | BJ18: 24 | BK18: 24 | BL18: 24 | BM18: 24 | BN18: 24 | BO18: 25 | BP18: 25 | BQ18: 25 | BR18: 25 | BS18: 25 | BT18: 25 | BU18: 25 | BV18: 25 | BW18: 25 | BX18: 25 | BY18: 25 | BZ18: 25 | CA18: 26 | CB18: 26 | CC18: 26 | CD18: 26 | CE18: 26 | CF18: 26 | CG18: 26 | CH18: 26 | CI18: 26 | CJ18: 26 | CK18: 26 | CL18: 26 | CM18: 27 | CN18: 27 | CO18: 27 | CP18: 27 | CQ18: 27 | CR18: 27 | CS18: 27 | CT18: 27 | CU18: 27 | CV18: 27 | CW18: 27 | CX18: 27 | CY18: 28 | CZ18: 28 | DA18: 28 | DB18: 28 | DC18: 28 | DD18: 28 | DE18: 28 | DF18: 28 | DG18: 28 | DH18: 28 | DI18: 28 | DJ18: 28 | DK18: 29 | DL18: 29 | DM18: 29 | DN18: 29 | DO18: 29 | DP18: 29 | DQ18: 29 | DR18: 29 | DS18: 29 | DT18: 29 | DU18: 29 | DV18: 29 | DW18: 30 | DX18: 30 | DY18: 30 | DZ18: 30 | EA18: 30 | EB18: 30 | EC18: 30 | ED18: 30 | EE18: 30 | EF18: 30 | EG18: 30 | EH18: 30 | EI18: 31 | EJ18: 31 | EK18: 31 | EL18: 31 | EM18: 31 | EN18: 31 | EO18: 31 | EP18: 31 | EQ18: 31 | ER18: 31 | ES18: 31 | ET18: 31 | EU18: 32 | EV18: 32 | EW18: 32 | EX18: 32 | EY18: 32 | EZ18: 32 | FA18: 32 | FB18: 32 | FC18: 32 | FD18: 32 | FE18: 32 | FF18: 32 | FG18: 33 | FH18: 33 | FI18: 33 | FJ18: 33 | FK18: 33 | FL18: 33 | FM18: 33 | FN18: 33 | FO18: 33 | FP18: 33 | FQ18: 33 | FR18: 33 | FS18: 34 | FT18: 34 | FU18: 34 | FV18: 34 | FW18: 34 | FX18: 34 | FY18: 34 | FZ18: 34 | GA18: 34 | GB18: 34 | GC18: 34 | GD18: 34 | GE18: 35 | GF18: 35 | GG18: 35 | GH18: 35 | GI18: 35 | GJ18: 35 | GK18: 35 | GL18: 35 | GM18: 35 | GN18: 35 | GO18: 35 | GP18: 35 | GQ18: 36 | GR18: 36 | GS18: 36 | GT18: 36 | GU18: 36 | GV18: 36 | GW18: 36 | GX18: 36
A19: 19
A20: 20 | G20: 0 | H20: дата старта периода расчетов модели | X20: 2021-09-01 | AA20: 2021-09-01 | AB20: 2021-10-01 | AC20: 2021-11-01 | AD20: 2021-12-01 | AE20: 2022-01-01 | AF20: 2022-02-01 | AG20: 2022-03-01 | AH20: 2022-04-01 | AI20: 2022-05-01 | AJ20: 2022-06-01 | AK20: 2022-07-01 | AL20: 2022-08-01 | AM20: 2022-09-01 | AN20: 2022-10-01 | AO20: 2022-11-01 | AP20: 2022-12-01 | AQ20: 2023-01-01 | AR20: 2023-02-01 | AS20: 2023-03-01 | AT20: 2023-04-01 | AU20: 2023-05-01 | AV20: 2023-06-01 | AW20: 2023-07-01 | AX20: 2023-08-01 | AY20: 2023-09-01 | AZ20: 2023-10-01 | BA20: 2023-11-01 | BB20: 2023-12-01 | BC20: 2024-01-01 | BD20: 2024-02-01 | BE20: 2024-03-01 | BF20: 2024-04-01 | BG20: 2024-05-01 | BH20: 2024-06-01 | BI20: 2024-07-01 | BJ20: 2024-08-01 | BK20: 2024-09-01 | BL20: 2024-10-01 | BM20: 2024-11-01 | BN20: 2024-12-01 | BO20: 2025-01-01 | BP20: 2025-02-01 | BQ20: 2025-03-01 | BR20: 2025-04-01 | BS20: 2025-05-01 | BT20: 2025-06-01 | BU20: 2025-07-01 | BV20: 2025-08-01 | BW20: 2025-09-01 | BX20: 2025-10-01 | BY20: 2025-11-01 | BZ20: 2025-12-01 | CA20: 2026-01-01 | CB20: 2026-02-01 | CC20: 2026-03-01 | CD20: 2026-04-01 | CE20: 2026-05-01 | CF20: 2026-06-01 | CG20: 2026-07-01 | CH20: 2026-08-01 | CI20: 2026-09-01 | CJ20: 2026-10-01 | CK20: 2026-11-01 | CL20: 2026-12-01 | CM20: 2027-01-01 | CN20: 2027-02-01 | CO20: 2027-03-01 | CP20: 2027-04-01 | CQ20: 2027-05-01 | CR20: 2027-06-01 | CS20: 2027-07-01 | CT20: 2027-08-01 | CU20: 2027-09-01 | CV20: 2027-10-01 | CW20: 2027-11-01 | CX20: 2027-12-01 | CY20: 2028-01-01 | CZ20: 2028-02-01 | DA20: 2028-03-01 | DB20: 2028-04-01 | DC20: 2028-05-01 | DD20: 2028-06-01 | DE20: 2028-07-01 | DF20: 2028-08-01 | DG20: 2028-09-01 | DH20: 2028-10-01 | DI20: 2028-11-01 | DJ20: 2028-12-01 | DK20: 2029-01-01 | DL20: 2029-02-01 | DM20: 2029-03-01 | DN20: 2029-04-01 | DO20: 2029-05-01 | DP20: 2029-06-01 | DQ20: 2029-07-01 | DR20: 2029-08-01 | DS20: 2029-09-01 | DT20: 2029-10-01 | DU20: 2029-11-01 | DV20: 2029-12-01 | DW20: 2030-01-01 | DX20: 2030-02-01 | DY20: 2030-03-01 | DZ20: 2030-04-01 | EA20: 2030-05-01 | EB20: 2030-06-01 | EC20: 2030-07-01 | ED20: 2030-08-01 | EE20: 2030-09-01 | EF20: 2030-10-01 | EG20: 2030-11-01 | EH20: 2030-12-01 | EI20: 2031-01-01 | EJ20: 2031-02-01 | EK20: 2031-03-01 | EL20: 2031-04-01 | EM20: 2031-05-01 | EN20: 2031-06-01 | EO20: 2031-07-01 | EP20: 2031-08-01 | EQ20: 2031-09-01 | ER20: 2031-10-01 | ES20: 2031-11-01 | ET20: 2031-12-01 | EU20: 2032-01-01 | EV20: 2032-02-01 | EW20: 2032-03-01 | EX20: 2032-04-01 | EY20: 2032-05-01 | EZ20: 2032-06-01 | FA20: 2032-07-01 | FB20: 2032-08-01 | FC20: 2032-09-01 | FD20: 2032-10-01 | FE20: 2032-11-01 | FF20: 2032-12-01 | FG20: 2033-01-01 | FH20: 2033-02-01 | FI20: 2033-03-01 | FJ20: 2033-04-01 | FK20: 2033-05-01 | FL20: 2033-06-01 | FM20: 2033-07-01 | FN20: 2033-08-01 | FO20: 2033-09-01 | FP20: 2033-10-01 | FQ20: 2033-11-01 | FR20: 2033-12-01 | FS20: 2034-01-01 | FT20: 2034-02-01 | FU20: 2034-03-01 | FV20: 2034-04-01 | FW20: 2034-05-01 | FX20: 2034-06-01 | FY20: 2034-07-01 | FZ20: 2034-08-01 | GA20: 2034-09-01 | GB20: 2034-10-01 | GC20: 2034-11-01 | GD20: 2034-12-01 | GE20: 2035-01-01 | GF20: 2035-02-01 | GG20: 2035-03-01 | GH20: 2035-04-01 | GI20: 2035-05-01 | GJ20: 2035-06-01 | GK20: 2035-07-01 | GL20: 2035-08-01 | GM20: 2035-09-01 | GN20: 2035-10-01 | GO20: 2035-11-01 | GP20: 2035-12-01 | GQ20: 2036-01-01 | GR20: 2036-02-01 | GS20: 2036-03-01 | GT20: 2036-04-01 | GU20: 2036-05-01 | GV20: 2036-06-01 | GW20: 2036-07-01 | GX20: 2036-08-01
A21: 21 | G21: 0 | H21: дата завершения периода расчетов модели | X21: 2036-08-31 | AA21: 2021-09-30 | AB21: 2021-10-31 | AC21: 2021-11-30 | AD21: 2021-12-31 | AE21: 2022-01-31 | AF21: 2022-02-28 | AG21: 2022-03-31 | AH21: 2022-04-30 | AI21: 2022-05-31 | AJ21: 2022-06-30 | AK21: 2022-07-31 | AL21: 2022-08-31 | AM21: 2022-09-30 | AN21: 2022-10-31 | AO21: 2022-11-30 | AP21: 2022-12-31 | AQ21: 2023-01-31 | AR21: 2023-02-28 | AS21: 2023-03-31 | AT21: 2023-04-30 | AU21: 2023-05-31 | AV21: 2023-06-30 | AW21: 2023-07-31 | AX21: 2023-08-31 | AY21: 2023-09-30 | AZ21: 2023-10-31 | BA21: 2023-11-30 | BB21: 2023-12-31 | BC21: 2024-01-31 | BD21: 2024-02-29 | BE21: 2024-03-31 | BF21: 2024-04-30 | BG21: 2024-05-31 | BH21: 2024-06-30 | BI21: 2024-07-31 | BJ21: 2024-08-31 | BK21: 2024-09-30 | BL21: 2024-10-31 | BM21: 2024-11-30 | BN21: 2024-12-31 | BO21: 2025-01-31 | BP21: 2025-02-28 | BQ21: 2025-03-31 | BR21: 2025-04-30 | BS21: 2025-05-31 | BT21: 2025-06-30 | BU21: 2025-07-31 | BV21: 2025-08-31 | BW21: 2025-09-30 | BX21: 2025-10-31 | BY21: 2025-11-30 | BZ21: 2025-12-31 | CA21: 2026-01-31 | CB21: 2026-02-28 | CC21: 2026-03-31 | CD21: 2026-04-30 | CE21: 2026-05-31 | CF21: 2026-06-30 | CG21: 2026-07-31 | CH21: 2026-08-31 | CI21: 2026-09-30 | CJ21: 2026-10-31 | CK21: 2026-11-30 | CL21: 2026-12-31 | CM21: 2027-01-31 | CN21: 2027-02-28 | CO21: 2027-03-31 | CP21: 2027-04-30 | CQ21: 2027-05-31 | CR21: 2027-06-30 | CS21: 2027-07-31 | CT21: 2027-08-31 | CU21: 2027-09-30 | CV21: 2027-10-31 | CW21: 2027-11-30 | CX21: 2027-12-31 | CY21: 2028-01-31 | CZ21: 2028-02-29 | DA21: 2028-03-31 | DB21: 2028-04-30 | DC21: 2028-05-31 | DD21: 2028-06-30 | DE21: 2028-07-31 | DF21: 2028-08-31 | DG21: 2028-09-30 | DH21: 2028-10-31 | DI21: 2028-11-30 | DJ21: 2028-12-31 | DK21: 2029-01-31 | DL21: 2029-02-28 | DM21: 2029-03-31 | DN21: 2029-04-30 | DO21: 2029-05-31 | DP21: 2029-06-30 | DQ21: 2029-07-31 | DR21: 2029-08-31 | DS21: 2029-09-30 | DT21: 2029-10-31 | DU21: 2029-11-30 | DV21: 2029-12-31 | DW21: 2030-01-31 | DX21: 2030-02-28 | DY21: 2030-03-31 | DZ21: 2030-04-30 | EA21: 2030-05-31 | EB21: 2030-06-30 | EC21: 2030-07-31 | ED21: 2030-08-31 | EE21: 2030-09-30 | EF21: 2030-10-31 | EG21: 2030-11-30 | EH21: 2030-12-31 | EI21: 2031-01-31 | EJ21: 2031-02-28 | EK21: 2031-03-31 | EL21: 2031-04-30 | EM21: 2031-05-31 | EN21: 2031-06-30 | EO21: 2031-07-31 | EP21: 2031-08-31 | EQ21: 2031-09-30 | ER21: 2031-10-31 | ES21: 2031-11-30 | ET21: 2031-12-31 | EU21: 2032-01-31 | EV21: 2032-02-29 | EW21: 2032-03-31 | EX21: 2032-04-30 | EY21: 2032-05-31 | EZ21: 2032-06-30 | FA21: 2032-07-31 | FB21: 2032-08-31 | FC21: 2032-09-30 | FD21: 2032-10-31 | FE21: 2032-11-30 | FF21: 2032-12-31 | FG21: 2033-01-31 | FH21: 2033-02-28 | FI21: 2033-03-31 | FJ21: 2033-04-30 | FK21: 2033-05-31 | FL21: 2033-06-30 | FM21: 2033-07-31 | FN21: 2033-08-31 | FO21: 2033-09-30 | FP21: 2033-10-31 | FQ21: 2033-11-30 | FR21: 2033-12-31 | FS21: 2034-01-31 | FT21: 2034-02-28 | FU21: 2034-03-31 | FV21: 2034-04-30 | FW21: 2034-05-31 | FX21: 2034-06-30 | FY21: 2034-07-31 | FZ21: 2034-08-31 | GA21: 2034-09-30 | GB21: 2034-10-31 | GC21: 2034-11-30 | GD21: 2034-12-31 | GE21: 2035-01-31 | GF21: 2035-02-28 | GG21: 2035-03-31 | GH21: 2035-04-30 | GI21: 2035-05-31 | GJ21: 2035-06-30 | GK21: 2035-07-31 | GL21: 2035-08-31 | GM21: 2035-09-30 | GN21: 2035-10-31 | GO21: 2035-11-30 | GP21: 2035-12-31 | GQ21: 2036-01-31 | GR21: 2036-02-29 | GS21: 2036-03-31 | GT21: 2036-04-30 | GU21: 2036-05-31 | GV21: 2036-06-30 | GW21: 2036-07-31 | GX21: 2036-08-31
A22: 22 | G22: 0 | H22: названия периодов расчета | AA22: 2021-09-01 | AB22: 2021-10-01 | AC22: 2021-11-01 | AD22: 2021-12-01 | AE22: 2022-01-01 | AF22: 2022-02-01 | AG22: 2022-03-01 | AH22: 2022-04-01 | AI22: 2022-05-01 | AJ22: 2022-06-01 | AK22: 2022-07-01 | AL22: 2022-08-01 | AM22: 2022-09-01 | AN22: 2022-10-01 | AO22: 2022-11-01 | AP22: 2022-12-01 | AQ22: 2023-01-01 | AR22: 2023-02-01 | AS22: 2023-03-01 | AT22: 2023-04-01 | AU22: 2023-05-01 | AV22: 2023-06-01 | AW22: 2023-07-01 | AX22: 2023-08-01 | AY22: 2023-09-01 | AZ22: 2023-10-01 | BA22: 2023-11-01 | BB22: 2023-12-01 | BC22: 2024-01-01 | BD22: 2024-02-01 | BE22: 2024-03-01 | BF22: 2024-04-01 | BG22: 2024-05-01 | BH22: 2024-06-01 | BI22: 2024-07-01 | BJ22: 2024-08-01 | BK22: 2024-09-01 | BL22: 2024-10-01 | BM22: 2024-11-01 | BN22: 2024-12-01 | BO22: 2025-01-01 | BP22: 2025-02-01 | BQ22: 2025-03-01 | BR22: 2025-04-01 | BS22: 2025-05-01 | BT22: 2025-06-01 | BU22: 2025-07-01 | BV22: 2025-08-01 | BW22: 2025-09-01 | BX22: 2025-10-01 | BY22: 2025-11-01 | BZ22: 2025-12-01 | CA22: 2026-01-01 | CB22: 2026-02-01 | CC22: 2026-03-01 | CD22: 2026-04-01 | CE22: 2026-05-01 | CF22: 2026-06-01 | CG22: 2026-07-01 | CH22: 2026-08-01 | CI22: 2026-09-01 | CJ22: 2026-10-01 | CK22: 2026-11-01 | CL22: 2026-12-01 | CM22: 2027-01-01 | CN22: 2027-02-01 | CO22: 2027-03-01 | CP22: 2027-04-01 | CQ22: 2027-05-01 | CR22: 2027-06-01 | CS22: 2027-07-01 | CT22: 2027-08-01 | CU22: 2027-09-01 | CV22: 2027-10-01 | CW22: 2027-11-01 | CX22: 2027-12-01 | CY22: 2028-01-01 | CZ22: 2028-02-01 | DA22: 2028-03-01 | DB22: 2028-04-01 | DC22: 2028-05-01 | DD22: 2028-06-01 | DE22: 2028-07-01 | DF22: 2028-08-01 | DG22: 2028-09-01 | DH22: 2028-10-01 | DI22: 2028-11-01 | DJ22: 2028-12-01 | DK22: 2029-01-01 | DL22: 2029-02-01 | DM22: 2029-03-01 | DN22: 2029-04-01 | DO22: 2029-05-01 | DP22: 2029-06-01 | DQ22: 2029-07-01 | DR22: 2029-08-01 | DS22: 2029-09-01 | DT22: 2029-10-01 | DU22: 2029-11-01 | DV22: 2029-12-01 | DW22: 2030-01-01 | DX22: 2030-02-01 | DY22: 2030-03-01 | DZ22: 2030-04-01 | EA22: 2030-05-01 | EB22: 2030-06-01 | EC22: 2030-07-01 | ED22: 2030-08-01 | EE22: 2030-09-01 | EF22: 2030-10-01 | EG22: 2030-11-01 | EH22: 2030-12-01 | EI22: 2031-01-01 | EJ22: 2031-02-01 | EK22: 2031-03-01 | EL22: 2031-04-01 | EM22: 2031-05-01 | EN22: 2031-06-01 | EO22: 2031-07-01 | EP22: 2031-08-01 | EQ22: 2031-09-01 | ER22: 2031-10-01 | ES22: 2031-11-01 | ET22: 2031-12-01 | EU22: 2032-01-01 | EV22: 2032-02-01 | EW22: 2032-03-01 | EX22: 2032-04-01 | EY22: 2032-05-01 | EZ22: 2032-06-01 | FA22: 2032-07-01 | FB22: 2032-08-01 | FC22: 2032-09-01 | FD22: 2032-10-01 | FE22: 2032-11-01 | FF22: 2032-12-01 | FG22: 2033-01-01 | FH22: 2033-02-01 | FI22: 2033-03-01 | FJ22: 2033-04-01 | FK22: 2033-05-01 | FL22: 2033-06-01 | FM22: 2033-07-01 | FN22: 2033-08-01 | FO22: 2033-09-01 | FP22: 2033-10-01 | FQ22: 2033-11-01 | FR22: 2033-12-01 | FS22: 2034-01-01 | FT22: 2034-02-01 | FU22: 2034-03-01 | FV22: 2034-04-01 | FW22: 2034-05-01 | FX22: 2034-06-01 | FY22: 2034-07-01 | FZ22: 2034-08-01 | GA22: 2034-09-01 | GB22: 2034-10-01 | GC22: 2034-11-01 | GD22: 2034-12-01 | GE22: 2035-01-01 | GF22: 2035-02-01 | GG22: 2035-03-01 | GH22: 2035-04-01 | GI22: 2035-05-01 | GJ22: 2035-06-01 | GK22: 2035-07-01 | GL22: 2035-08-01 | GM22: 2035-09-01 | GN22: 2035-10-01 | GO22: 2035-11-01 | GP22: 2035-12-01 | GQ22: 2036-01-01 | GR22: 2036-02-01 | GS22: 2036-03-01 | GT22: 2036-04-01 | GU22: 2036-05-01 | GV22: 2036-06-01 | GW22: 2036-07-01 | GX22: 2036-08-01
A23: 23
A24: 24 | G24: 0 | H24: ответ "да/нет"
A25: 25 | G25: 0 | H25: ответ "да/нет" | I25: учесть фактические данные? | P25: * | Q25: нет | R25: ^ | S25: 0
A26: 26 | G26: 0 | H26: ответ "да/нет" | I26: фактический период выбрать по умолчанию? | Q26: да | R26: ^ | S26: 0
A27: 27
A28: 28 | G28: 0 | H28: дата начала фактического периода
A29: 29 | G29: 0 | H29: дата окончания фактического периода
A30: 30 | G30: 0 | H30: дата окончания фактического периода | I30: по умолчанию - сегодняшний день | Q30: 2022-02-08
A31: 31 | G31: 0 | H31: дата окончания фактического периода | I31: задать вручную дату окончания периода | Q31: 2020-10-31 | Y31: номер периода модели: | AA31: 1 | AB31: 2 | AC31: 3 | AD31: 4 | AE31: 5 | AF31: 6 | AG31: 7 | AH31: 8 | AI31: 9 | AJ31: 10 | AK31: 11 | AL31: 12 | AM31: 13 | AN31: 14 | AO31: 15 | AP31: 16 | AQ31: 17 | AR31: 18 | AS31: 19 | AT31: 20 | AU31: 21 | AV31: 22 | AW31: 23 | AX31: 24 | AY31: 25 | AZ31: 26 | BA31: 27 | BB31: 28 | BC31: 29 | BD31: 30 | BE31: 31 | BF31: 32 | BG31: 33 | BH31: 34 | BI31: 35 | BJ31: 36 | BK31: 37 | BL31: 38 | BM31: 39 | BN31: 40 | BO31: 41 | BP31: 42 | BQ31: 43 | BR31: 44 | BS31: 45 | BT31: 46 | BU31: 47 | BV31: 48 | BW31: 49 | BX31: 50 | BY31: 51 | BZ31: 52 | CA31: 53 | CB31: 54 | CC31: 55 | CD31: 56 | CE31: 57 | CF31: 58 | CG31: 59 | CH31: 60 | CI31: 61 | CJ31: 62 | CK31: 63 | CL31: 64 | CM31: 65 | CN31: 66 | CO31: 67 | CP31: 68 | CQ31: 69 | CR31: 70 | CS31: 71 | CT31: 72 | CU31: 73 | CV31: 74 | CW31: 75 | CX31: 76 | CY31: 77 | CZ31: 78 | DA31: 79 | DB31: 80 | DC31: 81 | DD31: 82 | DE31: 83 | DF31: 84 | DG31: 85 | DH31: 86 | DI31: 87 | DJ31: 88 | DK31: 89 | DL31: 90 | DM31: 91 | DN31: 92 | DO31: 93 | DP31: 94 | DQ31: 95 | DR31: 96 | DS31: 97 | DT31: 98 | DU31: 99 | DV31: 100 | DW31: 101 | DX31: 102 | DY31: 103 | DZ31: 104 | EA31: 105 | EB31: 106 | EC31: 107 | ED31: 108 | EE31: 109 | EF31: 110 | EG31: 111 | EH31: 112 | EI31: 113 | EJ31: 114 | EK31: 115 | EL31: 116 | EM31: 117 | EN31: 118 | EO31: 119 | EP31: 120 | EQ31: 121 | ER31: 122 | ES31: 123 | ET31: 124 | EU31: 125 | EV31: 126 | EW31: 127 | EX31: 128 | EY31: 129 | EZ31: 130 | FA31: 131 | FB31: 132 | FC31: 133 | FD31: 134 | FE31: 135 | FF31: 136 | FG31: 137 | FH31: 138 | FI31: 139 | FJ31: 140 | FK31: 141 | FL31: 142 | FM31: 143 | FN31: 144 | FO31: 145 | FP31: 146 | FQ31: 147 | FR31: 148 | FS31: 149 | FT31: 150 | FU31: 151 | FV31: 152 | FW31: 153 | FX31: 154 | FY31: 155 | FZ31: 156 | GA31: 157 | GB31: 158 | GC31: 159 | GD31: 160 | GE31: 161 | GF31: 162 | GG31: 163 | GH31: 164 | GI31: 165 | GJ31: 166 | GK31: 167 | GL31: 168 | GM31: 169 | GN31: 170 | GO31: 171 | GP31: 172 | GQ31: 173 | GR31: 174 | GS31: 175 | GT31: 176 | GU31: 177 | GV31: 178 | GW31: 179 | GX31: 180 | GY31: 181 | GZ31: 182 | HA31: 183 | HB31: 184 | HC31: 185 | HD31: 186 | HE31: 187 | HF31: 188 | HG31: 189 | HH31: 190 | HI31: 191 | HJ31: 192 | HK31: 193
A32: 32 | Y32: номер месяца даты начала: | AA32: 9 | AB32: 9 | AC32: 9 | AD32: 9 | AE32: 9 | AF32: 9 | AG32: 9 | AH32: 9 | AI32: 9 | AJ32: 9 | AK32: 9 | AL32: 9 | AM32: 9 | AN32: 9 | AO32: 9
A33: 33 | G33: 0 | H33: период отчетности | P33: * | Q33: год текущий | R33: ^ | S33: 0 | Y33: год даты начала: | AA33: 21 | AB33: 22 | AC33: 23 | AD33: 24 | AE33: 25 | AF33: 26 | AG33: 27 | AH33: 28 | AI33: 29 | AJ33: 30 | AK33: 31 | AL33: 32 | AM33: 33 | AN33: 34 | AO33: 35
A34: 34
A35: 35 | G35: 0 | H35: дата старта отчетности модели | X35: 2021-09-01 | AA35: 2021-09-01 | AB35: 2022-09-01 | AC35: 2023-09-01 | AD35: 2024-09-01 | AE35: 2025-09-01 | AF35: 2026-09-01 | AG35: 2027-09-01 | AH35: 2028-09-01 | AI35: 2029-09-01 | AJ35: 2030-09-01 | AK35: 2031-09-01 | AL35: 2032-09-01 | AM35: 2033-09-01 | AN35: 2034-09-01 | AO35: 2035-09-01
A36: 36 | G36: 0 | H36: дата завершения отчетности модели | X36: 2036-08-31 | AA36: 2022-08-31 | AB36: 2023-08-31 | AC36: 2024-08-31 | AD36: 2025-08-31 | AE36: 2026-08-31 | AF36: 2027-08-31 | AG36: 2028-08-31 | AH36: 2029-08-31 | AI36: 2030-08-31 | AJ36: 2031-08-31 | AK36: 2032-08-31 | AL36: 2033-08-31 | AM36: 2034-08-31 | AN36: 2035-08-31 | AO36: 2036-08-31
A37: 37 | G37: 0 | H37: названия периодов отчетности | AA37: 1 год | AB37: 2 год | AC37: 3 год | AD37: 4 год | AE37: 5 год | AF37: 6 год | AG37: 7 год | AH37: 8 год | AI37: 9 год | AJ37: 10 год | AK37: 11 год | AL37: 12 год | AM37: 13 год | AN37: 14 год | AO37: 15 год
A38: 38
A39: 39
A40: 40
A41: 41
A42: 42 | H42: разработка финмоделей: https://mngmnt.ru/
A43: 43
A44: 44
A45: 45
A46: 46
A47: 47
A48: 48
A49: 49
A50: 50
A51: 51
A52: 52
A53: 53
A54: 54
A55: 55
A56: 56
A57: 57
A58: 58
A59: 59
A60: 60
A61: 61
A62: 62
A63: 63
A64: 64
A65: 65
A66: 66
A67: 67
A68: 68
A69: 69
A70: 70

Sheet Lists
I1: =COLUMN() -> 9 | M1: =COLUMN() -> 13 | Q1: =COLUMN() -> 17 | U1: =COLUMN() -> 21 | AB1: =COLUMN() -> 28 | AF1: =COLUMN() -> 32 | AI1: =COLUMN() -> 35 | AM1: =COLUMN() -> 39 | AQ1: =COLUMN() -> 43 | AU1: =COLUMN() -> 47 | AY1: =COLUMN() -> 51 | BC1: =COLUMN() -> 55 | BG1: =COLUMN() -> 59 | BS1: =COLUMN() -> 71 | BW1: =COLUMN() -> 75 | CA1: =COLUMN() -> 79 | CE1: =COLUMN() -> 83 | CI1: =COLUMN() -> 87 | CM1: =COLUMN() -> 91 | CQ1: =COLUMN() -> 95 | CU1: =COLUMN() -> 99 | CY1: =COLUMN() -> 103
I2: =LEFT(ADDRESS(1,COLUMN(),4),LEN(ADDRESS(1,COLUMN(),4))-1) -> I | M2: =LEFT(ADDRESS(1,COLUMN(),4),LEN(ADDRESS(1,COLUMN(),4))-1) -> M | Q2: =LEFT(ADDRESS(1,COLUMN(),4),LEN(ADDRESS(1,COLUMN(),4))-1) -> Q | U2: =LEFT(ADDRESS(1,COLUMN(),4),LEN(ADDRESS(1,COLUMN(),4))-1) -> U | AB2: =LEFT(ADDRESS(1,COLUMN(),4),LEN(ADDRESS(1,COLUMN(),4))-1) -> AB | AF2: =LEFT(ADDRESS(1,COLUMN(),4),LEN(ADDRESS(1,COLUMN(),4))-1) -> AF | AI2: =LEFT(ADDRESS(1,COLUMN(),4),LEN(ADDRESS(1,COLUMN(),4))-1) -> AI | AM2: =LEFT(ADDRESS(1,COLUMN(),4),LEN(ADDRESS(1,COLUMN(),4))-1) -> AM | AQ2: =LEFT(ADDRESS(1,COLUMN(),4),LEN(ADDRESS(1,COLUMN(),4))-1) -> AQ | AU2: =LEFT(ADDRESS(1,COLUMN(),4),LEN(ADDRESS(1,COLUMN(),4))-1) -> AU | AY2: =LEFT(ADDRESS(1,COLUMN(),4),LEN(ADDRESS(1,COLUMN(),4))-1) -> AY | BC2: =LEFT(ADDRESS(1,COLUMN(),4),LEN(ADDRESS(1,COLUMN(),4))-1) -> BC | BG2: =LEFT(ADDRESS(1,COLUMN(),4),LEN(ADDRESS(1,COLUMN(),4))-1) -> BG | BS2: =LEFT(ADDRESS(1,COLUMN(),4),LEN(ADDRESS(1,COLUMN(),4))-1) -> BS | BW2: =LEFT(ADDRESS(1,COLUMN(),4),LEN(ADDRESS(1,COLUMN(),4))-1) -> BW | CA2: =LEFT(ADDRESS(1,COLUMN(),4),LEN(ADDRESS(1,COLUMN(),4))-1) -> CA | CE2: =LEFT(ADDRESS(1,COLUMN(),4),LEN(ADDRESS(1,COLUMN(),4))-1) -> CE | CI2: =LEFT(ADDRESS(1,COLUMN(),4),LEN(ADDRESS(1,COLUMN(),4))-1) -> CI | CM2: =LEFT(ADDRESS(1,COLUMN(),4),LEN(ADDRESS(1,COLUMN(),4))-1) -> CM | CQ2: =LEFT(ADDRESS(1,COLUMN(),4),LEN(ADDRESS(1,COLUMN(),4))-1) -> CQ | CU2: =LEFT(ADDRESS(1,COLUMN(),4),LEN(ADDRESS(1,COLUMN(),4))-1) -> CU | CY2: =LEFT(ADDRESS(1,COLUMN(),4),LEN(ADDRESS(1,COLUMN(),4))-1) -> CY
F11: =INDIRECT("START!I28") -> Lists | I11: =INDIRECT("START!K28") -> Выпадающие списки финансовой модели
AI12: =START!$I$32 -> Sbor | AY12: =START!$I$32 -> Sbor | BC12: =START!$I$32 -> Sbor | BS12: =START!$I$33 -> CapEx | BW12: =START!$I$33 -> CapEx | CA12: =START!$I$36 -> HR | CI12: =START!$I$36 -> HR | CM12: =START!$I$29 -> Macro | CQ12: =START!$I$29 -> Macro | CU12: =START!$I$54 -> Calc
I13: минимальный период расчетов | M13: ответ "да/нет" | Q13: период отчетности | U13: тип листа | AB13: тип прогрессии | AF13: кол-во дней в периоде | AI13: каналы привлечения клиентов | AM13: продукция | AQ13: дата старта | AU13: тип учета | AY13: натуральные факторы переменных расходов маркетинга | BC13: денежные факторы переменных расходов маркетинга | BG13: тип зависимости переменных расходов | BS13: Ввод в эксплуатацию | BW13: Налоги на внеоборотные активы | CA13: Типы и должности персонала | CE13: Типы оплаты | CI13: Потребность в р/месте | CM13: Система налогообложения | CQ13: Налоги и сборы | CU13: Метки расчетов | CY13: Коммуникация
D14: =INDIRECT("Cntrl!M17") -> 0 | E14: =SUM($F14:$PH14) -> 0 | F14: =IFERROR(_xlfn.SHEET($A$1)-SUMIFS(Cntrl!O$15:O$100000,Cntrl!I$15:I$100000,$F$11),1) -> 0 | I14: =IF(OR(I13=0,I13=""),1,IF(COUNTIF(13:13,I13)=1,0,1)) -> 0 | K14: =SUM(K$15:K$100000) -> 0 | M14: =IF(OR(M13=0,M13=""),1,IF(COUNTIF(13:13,M13)=1,0,1)) -> 0 | O14: =SUM(O$15:O$100000) -> 0 | Q14: =IF(OR(Q13=0,Q13=""),1,IF(COUNTIF(13:13,Q13)=1,0,1)) -> 0 | S14: =SUM(S$15:S$100000) -> 0 | U14: =IF(OR(U13=0,U13=""),1,IF(COUNTIF(13:13,U13)=1,0,1)) -> 0 | W14: =SUM(W$15:W$100000) -> 0 | AD14: =SUM(AD$15:AD$100000) -> 0 | AF14: =IF(OR(AF13=0,AF13=""),1,IF(COUNTIF(13:13,AF13)=1,0,1)) -> 0 | AI14: =IF(OR(AI13=0,AI13=""),1,IF(COUNTIF(13:13,AI13)=1,0,1)) -> 0 | AK14: =SUM(AK$15:AK$100000) -> 0 | AM14: =IF(OR(AM13=0,AM13=""),1,IF(COUNTIF(13:13,AM13)=1,0,1)) -> 0 | AO14: =SUM(AO$15:AO$100000) -> 0 | AQ14: =IF(OR(AQ13=0,AQ13=""),1,IF(COUNTIF(13:13,AQ13)=1,0,1)) -> 0 | AS14: =SUM(AS$15:AS$100000) -> 0 | AU14: =IF(OR(AU13=0,AU13=""),1,IF(COUNTIF(13:13,AU13)=1,0,1)) -> 0 | AW14: =SUM(AW$15:AW$100000) -> 0 | AY14: =IF(OR(AY13=0,AY13=""),1,IF(COUNTIF(13:13,AY13)=1,0,1)) -> 0 | BA14: =SUM(BA$15:BA$100000) -> 0 | BC14: =IF(OR(BC13=0,BC13=""),1,IF(COUNTIF(13:13,BC13)=1,0,1)) -> 0 | BE14: =SUM(BE$15:BE$100000) -> 0 | BG14: =IF(OR(BG13=0,BG13=""),1,IF(COUNTIF(13:13,BG13)=1,0,1)) -> 0 | BI14: =SUM(BI$15:BI$100000) -> 0 | BM14: =SUM(BM$15:BM$100000) -> 0 | BQ14: =SUM(BQ$15:BQ$100000) -> 0 | BS14: =IF(OR(BS13=0,BS13=""),1,IF(COUNTIF(13:13,BS13)=1,0,1)) -> 0 | BU14: =SUM(BU$15:BU$100000) -> 0 | BW14: =IF(OR(BW13=0,BW13=""),1,IF(COUNTIF(13:13,BW13)=1,0,1)) -> 0 | BY14: =SUM(BY$15:BY$100000) -> 0 | CA14: =IF(OR(CA13=0,CA13=""),1,IF(COUNTIF(13:13,CA13)=1,0,1)) -> 0 | CC14: =SUM(CC$15:CC$100000) -> 0 | CE14: =IF(OR(CE13=0,CE13=""),1,IF(COUNTIF(13:13,CE13)=1,0,1)) -> 0 | CG14: =SUM(CG$15:CG$100000) -> 0 | CI14: =IF(OR(CI13=0,CI13=""),1,IF(COUNTIF(13:13,CI13)=1,0,1)) -> 0 | CK14: =SUM(CK$15:CK$100000) -> 0 | CM14: =IF(OR(CM13=0,CM13=""),1,IF(COUNTIF(13:13,CM13)=1,0,1)) -> 0 | CO14: =SUM(CO$15:CO$100000) -> 0 | CQ14: =IF(OR(CQ13=0,CQ13=""),1,IF(COUNTIF(13:13,CQ13)=1,0,1)) -> 0 | CS14: =SUM(CS$15:CS$100000) -> 0 | CU14: =IF(OR(CU13=0,CU13=""),1,IF(COUNTIF(13:13,CU13)=1,0,1)) -> 0 | CW14: =SUM(CW$15:CW$100000) -> 0 | CY14: =IF(OR(CY13=0,CY13=""),1,IF(COUNTIF(13:13,CY13)=1,0,1)) -> 0 | DA14: =SUM(DA$15:DA$100000) -> 0
A15: =ROW() -> 15 | I15: =$F$11&"!"&I$2&$A16&":"&I$2&($A15+MAX(J$15:J$100000)) -> Lists!I16:I22 | M15: =$F$11&"!"&M$2&$A16&":"&M$2&($A15+MAX(N$15:N$100000)) -> Lists!M16:M17 | Q15: =$F$11&"!"&Q$2&$A16&":"&Q$2&($A15+MAX(R$15:R$100000)) -> Lists!Q16:Q18 | U15: =$F$11&"!"&U$2&$A16&":"&U$2&($A15+MAX(V$15:V$100000)) -> Lists!U16:U18 | AB15: =$F$11&"!"&AB$2&$A16&":"&AB$2&($A15+MAX(AC$15:AC$100000)) -> Lists!AB16:AB17 | AF15: =$F$11&"!"&AF$2&$A16&":"&AF$2&($A15+MAX(AG$15:AG$100000)) -> Lists!AF16:AF22 | AI15: =$F$11&"!"&AI$2&$A16&":"&AI$2&($A15+MAX(AJ$15:AJ$100000)) -> Lists!AI16:AI17 | AM15: =$F$11&"!"&AM$2&$A16&":"&AM$2&($A15+MAX(AN$15:AN$100000)) -> Lists!AM16:AM19 | AQ15: =$F$11&"!"&AQ$2&$A16&":"&AQ$2&($A15+MAX(AR$15:AR$100000)) -> Lists!AQ16:AQ195 | AU15: =$F$11&"!"&AU$2&$A16&":"&AU$2&($A15+MAX(AV$15:AV$100000)) -> Lists!AU16:AU20 | AY15: =$F$11&"!"&AY$2&$A16&":"&AY$2&($A15+MAX(AZ$15:AZ$100000)) -> Lists!AY16:AY18 | BC15: =$F$11&"!"&BC$2&$A16&":"&BC$2&($A15+MAX(BD$15:BD$100000)) -> Lists!BC16:BC16 | BG15: =$F$11&"!"&BG$2&$A16&":"&BG$2&($A15+MAX(BH$15:BH$100000)) -> Lists!BG16:BG17 | BS15: =$F$11&"!"&BS$2&$A16&":"&BS$2&($A15+MAX(BT$15:BT$100000)) -> Lists!BS16:BS18 | BW15: =$F$11&"!"&BW$2&$A16&":"&BW$2&($A15+MAX(BX$15:BX$100000)) -> Lists!BW16:BW18 | CA15: =$F$11&"!"&CA$2&$A16&":"&CA$2&($A15+MAX(CB$15:CB$100000)) -> Lists!CA16:CA25 | CE15: =$F$11&"!"&CE$2&$A16&":"&CE$2&($A15+MAX(CF$15:CF$100000)) -> Lists!CE16:CE18 | CI15: =$F$11&"!"&CI$2&$A16&":"&CI$2&($A15+MAX(CJ$15:CJ$100000)) -> Lists!CI16:CI17 | CM15: =$F$11&"!"&CM$2&$A16&":"&CM$2&($A15+MAX(CN$15:CN$100000)) -> Lists!CM16:CM19 | CQ15: =$F$11&"!"&CQ$2&$A16&":"&CQ$2&($A15+MAX(CR$15:CR$100000)) -> Lists!CQ16:CQ19 | CU15: =$F$11&"!"&CU$2&$A16&":"&CU$2&($A15+MAX(CV$15:CV$100000)) -> Lists!CU16:CU29 | CY15: =$F$11&"!"&CY$2&$A16&":"&CY$2&($A15+MAX(CZ$15:CZ$100000)) -> Lists!CY16:CY36
A16: =ROW() -> 16 | I16: день | J16: =MAX(J$15:J15)+1 -> 1 | K16: =IF(OR(I16=0,I16=""),0,IF(COUNTIF(I$15:I$100000,I16)=1,0,1)) -> 0 | M16: да | N16: =MAX(N$15:N15)+1 -> 1 | O16: =IF(OR(M16=0,M16=""),0,IF(COUNTIF(M$15:M$100000,M16)=1,0,1)) -> 0 | Q16: =IF(Periods!$Q$16=$I$16,$I17,IF(OR(Periods!$Q$16=$I$17,Periods!$Q$16=$I$18),$I19,IF(Periods!$Q$16=$I$19,$I20,IF(Periods!$Q$16=$I$20,$I21,IF(Periods!$Q$16=$I$21,$I22,""))))) -> квартал | R16: =IF(OR(Q16="",Q16=0),"",MAX(R$15:R15)+1) -> 1 | S16: =IF(OR(Q16=0,Q16=""),0,IF(COUNTIF(Q$15:Q$100000,Q16)=1,0,1)) -> 0 | U16: расчетный | V16: =MAX(V$15:V15)+1 -> 1 | W16: =IF(OR(U16=0,U16=""),0,IF(COUNTIF(U$15:U$100000,U16)=1,0,1)) -> 0 | AB16: линейная | AC16: =MAX(AC$15:AC15)+1 -> 1 | AD16: =IF(OR(AB16=0,AB16=""),0,IF(COUNTIF(AB$15:AB$100000,AB16)=1,0,1)) -> 0 | AF16: 1 | AG16: =MAX(AG$15:AG15)+1 -> 1 | AH16: =MAX(AH$15:AH15)+1 -> 1 | AI16: =IF(SUMIFS(Sbor!$A:$A,Sbor!$K:$K,AH16)=0,"",INDEX(Sbor!$L:$L,SUMIFS(Sbor!$A:$A,Sbor!$K:$K,AH16))) -> Производство вина | AJ16: =IF(OR(AI16="",AI16=0),"",MAX(AJ$15:AJ15)+1) -> 1 | AK16: =IF(OR(AI16=0,AI16=""),0,IF(COUNTIF(AI$15:AI$100000,AI16)=1,0,1)) -> 0 | AL16: * | AM16: Вино в собств.сеть | AN16: =MAX(AN$15:AN15)+1 -> 1 | AO16: =IF(OR(AM16=0,AM16=""),0,IF(COUNTIF(AM$15:AM$100000,AM16)=1,0,1)) -> 0 | AP16: =MAX(AP$15:AP15)+1 -> 1 | AQ16: =SUMIFS(Periods!$11:$11,Periods!$2:$2,AP16) -> 2021-09-01 | AR16: =IF(OR(AQ16="",AQ16=0),"",MAX(AR$15:AR15)+1) -> 1 | AS16: =IF(OR(AQ16=0,AQ16=""),0,IF(COUNTIF(AQ$15:AQ$100000,AQ16)=1,0,1)) -> 0 | AU16: начисление | AV16: =MAX(AV$15:AV15)+1 -> 1 | AW16: =IF(OR(AU16=0,AU16=""),0,IF(COUNTIF(AU$15:AU$100000,AU16)=1,0,1)) -> 0 | AY16: =Sbor!$H$19 -> Поток сбора винограда | AZ16: =MAX(AZ$15:AZ15)+1 -> 1 | BA16: =IF(OR(AY16=0,AY16=""),0,IF(COUNTIF(AY$15:AY$100000,AY16)=1,0,1)) -> 0 | BC16: =Sbor!$H$129 -> Общий оборот | BD16: =MAX(BD$15:BD15)+1 -> 1 | BE16: =IF(OR(BC16=0,BC16=""),0,IF(COUNTIF(BC$15:BC$100000,BC16)=1,0,1)) -> 0 | BG16: натуральные факторы | BH16: =MAX(BH$15:BH15)+1 -> 1 | BI16: =IF(OR(BG16=0,BG16=""),0,IF(COUNTIF(BG$15:BG$100000,BG16)=1,0,1)) -> 0 | BJ16: * | BL16: =MAX(BL$15:BL15)+1 -> 1 | BM16: =IF(OR(BK16=0,BK16=""),0,IF(COUNTIF(BK$15:BK$100000,BK16)=1,0,1)) -> 0 | BN16: * | BP16: =MAX(BP$15:BP15)+1 -> 1 | BQ16: =IF(OR(BO16=0,BO16=""),0,IF(COUNTIF(BO$15:BO$100000,BO16)=1,0,1)) -> 0 | BS16: в последний период всех капзатрат | BT16: =MAX(BT$15:BT15)+1 -> 1 | BU16: =IF(OR(BS16=0,BS16=""),0,IF(COUNTIF(BS$15:BS$100000,BS16)=1,0,1)) -> 0 | BW16: земельный налог | BX16: =MAX(BX$15:BX15)+1 -> 1 | BY16: =IF(OR(BW16=0,BW16=""),0,IF(COUNTIF(BW$15:BW$100000,BW16)=1,0,1)) -> 0 | CA16: Рабочие этапа сбора винограда | CB16: =MAX(CB$15:CB15)+1 -> 1 | CC16: =IF(OR(CA16=0,CA16=""),0,IF(COUNTIF(CA$15:CA$100000,CA16)=1,0,1)) -> 0 | CE16: аванс-доплата | CF16: =MAX(CF$15:CF15)+1 -> 1 | CG16: =IF(OR(CE16=0,CE16=""),0,IF(COUNTIF(CE$15:CE$100000,CE16)=1,0,1)) -> 0 | CI16: нужно обустр-во | CJ16: =MAX(CJ$15:CJ15)+1 -> 1 | CK16: =IF(OR(CI16=0,CI16=""),0,IF(COUNTIF(CI$15:CI$100000,CI16)=1,0,1)) -> 0 | CM16: ОСНО | CN16: =MAX(CN$15:CN15)+1 -> 1 | CO16: =IF(OR(CM16=0,CM16=""),0,IF(COUNTIF(CM$15:CM$100000,CM16)=1,0,1)) -> 0 | CQ16: НДС | CR16: =MAX(CR$15:CR15)+1 -> 1 | CS16: =IF(OR(CQ16=0,CQ16=""),0,IF(COUNTIF(CQ$15:CQ$100000,CQ16)=1,0,1)) -> 0 | CU16: ндс(+) | CV16: =MAX(CV$15:CV15)+1 -> 1 | CW16: =IF(OR(CU16=0,CU16=""),0,IF(COUNTIF(CU$15:CU$100000,CU16)=1,0,1)) -> 0 | CX16: * | CY16: Единое значение для всех периодов расчета | CZ16: =MAX(CZ$15:CZ15)+1 -> 1 | DA16: =IF(OR(CY16=0,CY16=""),0,IF(COUNTIF(CY$15:CY$100000,CY16)=1,0,1)) -> 0
A17: =ROW() -> 17 | I17: неделя | J17: =MAX(J$15:J16)+1 -> 2 | K17: =IF(OR(I17=0,I17=""),0,IF(COUNTIF(I$15:I$100000,I17)=1,0,1)) -> 0 | M17: нет | N17: =MAX(N$15:N16)+1 -> 2 | O17: =IF(OR(M17=0,M17=""),0,IF(COUNTIF(M$15:M$100000,M17)=1,0,1)) -> 0 | Q17: =IF(Periods!$Q$16=$I$16,$I18,IF(OR(Periods!$Q$16=$I$17,Periods!$Q$16=$I$18),$I20,IF(Periods!$Q$16=$I$19,$I21,IF(Periods!$Q$16=$I$20,$I22,IF(Periods!$Q$16=$I$21,$I23,""))))) -> год текущий | R17: =IF(OR(Q17="",Q17=0),"",MAX(R$15:R16)+1) -> 2 | S17: =IF(OR(Q17=0,Q17=""),0,IF(COUNTIF(Q$15:Q$100000,Q17)=1,0,1)) -> 0 | U17: отчетный | V17: =MAX(V$15:V16)+1 -> 2 | W17: =IF(OR(U17=0,U17=""),0,IF(COUNTIF(U$15:U$100000,U17)=1,0,1)) -> 0 | AB17: геометрическая | AC17: =MAX(AC$15:AC16)+1 -> 2 | AD17: =IF(OR(AB17=0,AB17=""),0,IF(COUNTIF(AB$15:AB$100000,AB17)=1,0,1)) -> 0 | AF17: 7 | AG17: =MAX(AG$15:AG16)+1 -> 2 | AH17: =MAX(AH$15:AH16)+1 -> 2 | AI17: =IF(SUMIFS(Sbor!$A:$A,Sbor!$K:$K,AH17)=0,"",INDEX(Sbor!$L:$L,SUMIFS(Sbor!$A:$A,Sbor!$K:$K,AH17))) -> Столовый виноград на продажу | AJ17: =IF(OR(AI17="",AI17=0),"",MAX(AJ$15:AJ16)+1) -> 2 | AK17: =IF(OR(AI17=0,AI17=""),0,IF(COUNTIF(AI$15:AI$100000,AI17)=1,0,1)) -> 0 | AL17: * | AM17: Вино в HoReCa, Retail | AN17: =MAX(AN$15:AN16)+1 -> 2 | AO17: =IF(OR(AM17=0,AM17=""),0,IF(COUNTIF(AM$15:AM$100000,AM17)=1,0,1)) -> 0 | AP17: =MAX(AP$15:AP16)+1 -> 2 | AQ17: =SUMIFS(Periods!$11:$11,Periods!$2:$2,AP17) -> 2021-10-01 | AR17: =IF(OR(AQ17="",AQ17=0),"",MAX(AR$15:AR16)+1) -> 2 | AS17: =IF(OR(AQ17=0,AQ17=""),0,IF(COUNTIF(AQ$15:AQ$100000,AQ17)=1,0,1)) -> 0 | AU17: учет | AV17: =MAX(AV$15:AV16)+1 -> 2 | AW17: =IF(OR(AU17=0,AU17=""),0,IF(COUNTIF(AU$15:AU$100000,AU17)=1,0,1)) -> 0 | AY17: =Sbor!$H$71 -> Производство виноматериала | AZ17: =MAX(AZ$15:AZ16)+1 -> 2 | BA17: =IF(OR(AY17=0,AY17=""),0,IF(COUNTIF(AY$15:AY$100000,AY17)=1,0,1)) -> 0 | BG17: денежные факторы | BH17: =MAX(BH$15:BH16)+1 -> 2 | BI17: =IF(OR(BG17=0,BG17=""),0,IF(COUNTIF(BG$15:BG$100000,BG17)=1,0,1)) -> 0 | BJ17: * | BL17: =MAX(BL$15:BL16)+1 -> 2 | BM17: =IF(OR(BK17=0,BK17=""),0,IF(COUNTIF(BK$15:BK$100000,BK17)=1,0,1)) -> 0 | BN17: * | BP17: =MAX(BP$15:BP16)+1 -> 2 | BQ17: =IF(OR(BO17=0,BO17=""),0,IF(COUNTIF(BO$15:BO$100000,BO17)=1,0,1)) -> 0 | BS17: в последний период данной статьи | BT17: =MAX(BT$15:BT16)+1 -> 2 | BU17: =IF(OR(BS17=0,BS17=""),0,IF(COUNTIF(BS$15:BS$100000,BS17)=1,0,1)) -> 0 | BW17: транспортный налог | BX17: =MAX(BX$15:BX16)+1 -> 2 | BY17: =IF(OR(BW17=0,BW17=""),0,IF(COUNTIF(BW$15:BW$100000,BW17)=1,0,1)) -> 0 | CA17: Сотрудники Sales&Mrkt этапа виноделия | CB17: =MAX(CB$15:CB16)+1 -> 2 | CC17: =IF(OR(CA17=0,CA17=""),0,IF(COUNTIF(CA$15:CA$100000,CA17)=1,0,1)) -> 0 | CE17: аванс-платеж | CF17: =MAX(CF$15:CF16)+1 -> 2 | CG17: =IF(OR(CE17=0,CE17=""),0,IF(COUNTIF(CE$15:CE$100000,CE17)=1,0,1)) -> 0 | CI17: не нужно обустр-во | CJ17: =MAX(CJ$15:CJ16)+1 -> 2 | CK17: =IF(OR(CI17=0,CI17=""),0,IF(COUNTIF(CI$15:CI$100000,CI17)=1,0,1)) -> 0 | CM17: УСН(6%) | CN17: =MAX(CN$15:CN16)+1 -> 2 | CO17: =IF(OR(CM17=0,CM17=""),0,IF(COUNTIF(CM$15:CM$100000,CM17)=1,0,1)) -> 0 | CQ17: Соцсборы | CR17: =MAX(CR$15:CR16)+1 -> 2 | CS17: =IF(OR(CQ17=0,CQ17=""),0,IF(COUNTIF(CQ$15:CQ$100000,CQ17)=1,0,1)) -> 0 | CU17: ндс(-) | CV17: =MAX(CV$15:CV16)+1 -> 2 | CW17: 0 | CX17: * | CY17: Максимальное значение | CZ17: =MAX(CZ$15:CZ16)+1 -> 2 | DA17: 0
A18: =ROW() -> 18 | I18: декада | J18: =MAX(J$15:J17)+1 -> 3 | K18: 0 | Q18: =IF(Periods!$Q$16=$I$16,$I19,IF(OR(Periods!$Q$16=$I$17,Periods!$Q$16=$I$18),$I21,IF(Periods!$Q$16=$I$19,$I22,IF(Periods!$Q$16=$I$20,$I23,IF(Periods!$Q$16=$I$21,$I24,""))))) -> год календ. | R18: =IF(OR(Q18="",Q18=0),"",MAX(R$15:R17)+1) -> 3 | S18: 0 | U18: технический | V18: =MAX(V$15:V17)+1 -> 3 | W18: =IF(OR(U18=0,U18=""),0,IF(COUNTIF(U$15:U$100000,U18)=1,0,1)) -> 0 | AF18: 10 | AG18: =MAX(AG$15:AG17)+1 -> 3 | AH18: =MAX(AH$15:AH17)+1 -> 3 | AI18: =IF(SUMIFS(Sbor!$A:$A,Sbor!$K:$K,AH18)=0,"",INDEX(Sbor!$L:$L,SUMIFS(Sbor!$A:$A,Sbor!$K:$K,AH18))) ->  | AJ18: =IF(OR(AI18="",AI18=0),"",MAX(AJ$15:AJ17)+1) ->  | AK18: 0 | AL18: * | AM18: Виноград в собств.сеть | AN18: =MAX(AN$15:AN17)+1 -> 3 | AO18: =IF(OR(AM18=0,AM18=""),0,IF(COUNTIF(AM$15:AM$100000,AM18)=1,0,1)) -> 0 | AP18: =MAX(AP$15:AP17)+1 -> 3 | AQ18: =SUMIFS(Periods!$11:$11,Periods!$2:$2,AP18) -> 2021-11-01 | AR18: =IF(OR(AQ18="",AQ18=0),"",MAX(AR$15:AR17)+1) -> 3 | AS18: 0 | AU18: оплата | AV18: =MAX(AV$15:AV17)+1 -> 3 | AW18: =IF(OR(AU18=0,AU18=""),0,IF(COUNTIF(AU$15:AU$100000,AU18)=1,0,1)) -> 0 | AY18: =Sbor!$H$119 -> Оборот вина в количестве бутылок | AZ18: =MAX(AZ$15:AZ17)+1 -> 3 | BA18: =IF(OR(AY18=0,AY18=""),0,IF(COUNTIF(AY$15:AY$100000,AY18)=1,0,1)) -> 0 | BJ18: * | BL18: =MAX(BL$15:BL17)+1 -> 3 | BM18: =IF(OR(BK18=0,BK18=""),0,IF(COUNTIF(BK$15:BK$100000,BK18)=1,0,1)) -> 0 | BN18: * | BP18: =MAX(BP$15:BP17)+1 -> 3 | BQ18: =IF(OR(BO18=0,BO18=""),0,IF(COUNTIF(BO$15:BO$100000,BO18)=1,0,1)) -> 0 | BS18: в каждый период начисления | BT18: =MAX(BT$15:BT17)+1 -> 3 | BU18: =IF(OR(BS18=0,BS18=""),0,IF(COUNTIF(BS$15:BS$100000,BS18)=1,0,1)) -> 0 | BW18: налог на имущество организаций | BX18: =MAX(BX$15:BX17)+1 -> 3 | BY18: =IF(OR(BW18=0,BW18=""),0,IF(COUNTIF(BW$15:BW$100000,BW18)=1,0,1)) -> 0 | CA18: Производство и продажи | CB18: =MAX(CB$15:CB17)+1 -> 3 | CC18: =IF(OR(CA18=0,CA18=""),0,IF(COUNTIF(CA$15:CA$100000,CA18)=1,0,1)) -> 0 | CE18: ретро-платеж | CF18: =MAX(CF$15:CF17)+1 -> 3 | CG18: =IF(OR(CE18=0,CE18=""),0,IF(COUNTIF(CE$15:CE$100000,CE18)=1,0,1)) -> 0 | CM18: УСН(15%) | CN18: =MAX(CN$15:CN17)+1 -> 3 | CO18: =IF(OR(CM18=0,CM18=""),0,IF(COUNTIF(CM$15:CM$100000,CM18)=1,0,1)) -> 0 | CQ18: Налог на прибыль | CR18: =MAX(CR$15:CR17)+1 -> 3 | CS18: =IF(OR(CQ18=0,CQ18=""),0,IF(COUNTIF(CQ$15:CQ$100000,CQ18)=1,0,1)) -> 0 | CU18: PL(+) | CV18: =MAX(CV$15:CV17)+1 -> 3 | CW18: 0 | CX18: * | CY18: Расчет формулой разности: 100%-сумму() | CZ18: =MAX(CZ$15:CZ17)+1 -> 3 | DA18: 0
A19: =ROW() -> 19 | I19: месяц | J19: =MAX(J$15:J18)+1 -> 4 | K19: 0 | Q19: =IF(Periods!$Q$16=$I$16,$I20,IF(OR(Periods!$Q$16=$I$17,Periods!$Q$16=$I$18),$I22,IF(Periods!$Q$16=$I$19,$I23,IF(Periods!$Q$16=$I$20,$I24,IF(Periods!$Q$16=$I$21,$I25,""))))) -> 0 | R19: =IF(OR(Q19="",Q19=0),"",MAX(R$15:R18)+1) ->  | S19: 0 | AF19: 30 | AG19: =MAX(AG$15:AG18)+1 -> 4 | AH19: =MAX(AH$15:AH18)+1 -> 4 | AI19: =IF(SUMIFS(Sbor!$A:$A,Sbor!$K:$K,AH19)=0,"",INDEX(Sbor!$L:$L,SUMIFS(Sbor!$A:$A,Sbor!$K:$K,AH19))) ->  | AJ19: =IF(OR(AI19="",AI19=0),"",MAX(AJ$15:AJ18)+1) ->  | AK19: 0 | AL19: * | AM19: Виноград в Retail | AN19: =MAX(AN$15:AN18)+1 -> 4 | AO19: =IF(OR(AM19=0,AM19=""),0,IF(COUNTIF(AM$15:AM$100000,AM19)=1,0,1)) -> 0 | AP19: =MAX(AP$15:AP18)+1 -> 4 | AQ19: =SUMIFS(Periods!$11:$11,Periods!$2:$2,AP19) -> 2021-12-01 | AR19: =IF(OR(AQ19="",AQ19=0),"",MAX(AR$15:AR18)+1) -> 4 | AS19: 0 | AU19: списание | AV19: =MAX(AV$15:AV18)+1 -> 4 | AW19: =IF(OR(AU19=0,AU19=""),0,IF(COUNTIF(AU$15:AU$100000,AU19)=1,0,1)) -> 0 | BZ19: * | CA19: Админ.персонал - Виноградники | CB19: =MAX(CB$15:CB18)+1 -> 4 | CC19: =IF(OR(CA19=0,CA19=""),0,IF(COUNTIF(CA$15:CA$100000,CA19)=1,0,1)) -> 0 | CM19: ТОСЭР | CN19: =MAX(CN$15:CN18)+1 -> 4 | CO19: =IF(OR(CM19=0,CM19=""),0,IF(COUNTIF(CM$15:CM$100000,CM19)=1,0,1)) -> 0 | CQ19: ТОСЭР | CR19: =MAX(CR$15:CR18)+1 -> 4 | CS19: =IF(OR(CQ19=0,CQ19=""),0,IF(COUNTIF(CQ$15:CQ$100000,CQ19)=1,0,1)) -> 0 | CU19: PL(-) | CV19: =MAX(CV$15:CV18)+1 -> 4 | CW19: 0 | CX19: * | CY19: Процент индексации/прироста | CZ19: =MAX(CZ$15:CZ18)+1 -> 4 | DA19: 0
A20: =ROW() -> 20 | I20: квартал | J20: =MAX(J$15:J19)+1 -> 5 | K20: 0 | Q20: =IF(Periods!$Q$16=$I$16,$I21,IF(OR(Periods!$Q$16=$I$17,Periods!$Q$16=$I$18),$I23,IF(Periods!$Q$16=$I$19,$I24,IF(Periods!$Q$16=$I$20,$I25,IF(Periods!$Q$16=$I$21,$I26,""))))) -> 0 | R20: =IF(OR(Q20="",Q20=0),"",MAX(R$15:R19)+1) ->  | S20: 0 | AF20: 90 | AG20: =MAX(AG$15:AG19)+1 -> 5 | AH20: =MAX(AH$15:AH19)+1 -> 5 | AI20: =IF(SUMIFS(Sbor!$A:$A,Sbor!$K:$K,AH20)=0,"",INDEX(Sbor!$L:$L,SUMIFS(Sbor!$A:$A,Sbor!$K:$K,AH20))) ->  | AJ20: =IF(OR(AI20="",AI20=0),"",MAX(AJ$15:AJ19)+1) ->  | AK20: 0 | AP20: =MAX(AP$15:AP19)+1 -> 5 | AQ20: =SUMIFS(Periods!$11:$11,Periods!$2:$2,AP20) -> 2022-01-01 | AR20: =IF(OR(AQ20="",AQ20=0),"",MAX(AR$15:AR19)+1) -> 5 | AS20: 0 | AU20: калькуляция | AV20: =MAX(AV$15:AV19)+1 -> 5 | AW20: =IF(OR(AU20=0,AU20=""),0,IF(COUNTIF(AU$15:AU$100000,AU20)=1,0,1)) -> 0 | BZ20: * | CA20: Админ.персонал - Виноделие | CB20: =MAX(CB$15:CB19)+1 -> 5 | CC20: 0 | CU20: PL | CV20: =MAX(CV$15:CV19)+1 -> 5 | CW20: 0 | CX20: * | CY20: Частота индексации | CZ20: =MAX(CZ$15:CZ19)+1 -> 5 | DA20: 0
A21: =ROW() -> 21 | I21: год текущий | J21: =MAX(J$15:J20)+1 -> 6 | K21: 0 | Q21: =IF(Periods!$Q$16=$I$16,$I22,IF(OR(Periods!$Q$16=$I$17,Periods!$Q$16=$I$18),$I24,IF(Periods!$Q$16=$I$19,$I25,IF(Periods!$Q$16=$I$20,$I26,IF(Periods!$Q$16=$I$21,$I27,""))))) -> 0 | R21: =IF(OR(Q21="",Q21=0),"",MAX(R$15:R20)+1) ->  | S21: 0 | AF21: 360 | AG21: =MAX(AG$15:AG20)+1 -> 6 | AH21: =MAX(AH$15:AH20)+1 -> 6 | AI21: =IF(SUMIFS(Sbor!$A:$A,Sbor!$K:$K,AH21)=0,"",INDEX(Sbor!$L:$L,SUMIFS(Sbor!$A:$A,Sbor!$K:$K,AH21))) ->  | AJ21: =IF(OR(AI21="",AI21=0),"",MAX(AJ$15:AJ20)+1) ->  | AK21: 0 | AP21: =MAX(AP$15:AP20)+1 -> 6 | AQ21: =SUMIFS(Periods!$11:$11,Periods!$2:$2,AP21) -> 2022-02-01 | AR21: =IF(OR(AQ21="",AQ21=0),"",MAX(AR$15:AR20)+1) -> 6 | AS21: 0 | BZ21: * | CA21: резерв-1 | CB21: =MAX(CB$15:CB20)+1 -> 6 | CC21: 0 | CU21: CF(+) | CV21: =MAX(CV$15:CV20)+1 -> 6 | CW21: 0 | CX21: * | CY21: Начальная дата начисления ФОТ | CZ21: =MAX(CZ$15:CZ20)+1 -> 6 | DA21: 0
A22: =ROW() -> 22 | I22: год календ. | J22: =MAX(J$15:J21)+1 -> 7 | K22: 0 | Q22: =IF(Periods!$Q$16=$I$16,$I23,IF(OR(Periods!$Q$16=$I$17,Periods!$Q$16=$I$18),$I25,IF(Periods!$Q$16=$I$19,$I26,IF(Periods!$Q$16=$I$20,$I27,IF(Periods!$Q$16=$I$21,$I28,""))))) -> 0 | R22: =IF(OR(Q22="",Q22=0),"",MAX(R$15:R21)+1) ->  | S22: 0 | AF22: 360 | AG22: =MAX(AG$15:AG21)+1 -> 7 | AH22: =MAX(AH$15:AH21)+1 -> 7 | AI22: =IF(SUMIFS(Sbor!$A:$A,Sbor!$K:$K,AH22)=0,"",INDEX(Sbor!$L:$L,SUMIFS(Sbor!$A:$A,Sbor!$K:$K,AH22))) ->  | AJ22: =IF(OR(AI22="",AI22=0),"",MAX(AJ$15:AJ21)+1) ->  | AK22: 0 | AP22: =MAX(AP$15:AP21)+1 -> 7 | AQ22: =SUMIFS(Periods!$11:$11,Periods!$2:$2,AP22) -> 2022-03-01 | AR22: =IF(OR(AQ22="",AQ22=0),"",MAX(AR$15:AR21)+1) -> 7 | AS22: 0 | BZ22: * | CA22: резерв-2 | CB22: =MAX(CB$15:CB21)+1 -> 7 | CC22: 0 | CU22: CF(-) | CV22: =MAX(CV$15:CV21)+1 -> 7 | CW22: 0 | CX22: * | CY22: Конечная дата начисления ФОТ | CZ22: =MAX(CZ$15:CZ21)+1 -> 7 | DA22: 0
A23: =ROW() -> 23 | AH23: =MAX(AH$15:AH22)+1 -> 8 | AI23: =IF(SUMIFS(Sbor!$A:$A,Sbor!$K:$K,AH23)=0,"",INDEX(Sbor!$L:$L,SUMIFS(Sbor!$A:$A,Sbor!$K:$K,AH23))) ->  | AJ23: =IF(OR(AI23="",AI23=0),"",MAX(AJ$15:AJ22)+1) ->  | AK23: =IF(OR(AI23=0,AI23=""),0,IF(COUNTIF(AI$15:AI$100000,AI23)=1,0,1)) -> 0 | AP23: =MAX(AP$15:AP22)+1 -> 8 | AQ23: =SUMIFS(Periods!$11:$11,Periods!$2:$2,AP23) -> 2022-04-01 | AR23: =IF(OR(AQ23="",AQ23=0),"",MAX(AR$15:AR22)+1) -> 8 | AS23: =IF(OR(AQ23=0,AQ23=""),0,IF(COUNTIF(AQ$15:AQ$100000,AQ23)=1,0,1)) -> 0 | BZ23: * | CA23: резерв-3 | CB23: =MAX(CB$15:CB22)+1 -> 8 | CC23: 0 | CU23: CF | CV23: =MAX(CV$15:CV22)+1 -> 8 | CW23: 0 | CX23: * | CY23: Ежегодная индексация ФОТ | CZ23: =MAX(CZ$15:CZ22)+1 -> 8 | DA23: 0
A24: =ROW() -> 24 | AH24: =MAX(AH$15:AH23)+1 -> 9 | AI24: =IF(SUMIFS(Sbor!$A:$A,Sbor!$K:$K,AH24)=0,"",INDEX(Sbor!$L:$L,SUMIFS(Sbor!$A:$A,Sbor!$K:$K,AH24))) ->  | AJ24: =IF(OR(AI24="",AI24=0),"",MAX(AJ$15:AJ23)+1) ->  | AK24: 0 | AP24: =MAX(AP$15:AP23)+1 -> 9 | AQ24: =SUMIFS(Periods!$11:$11,Periods!$2:$2,AP24) -> 2022-05-01 | AR24: =IF(OR(AQ24="",AQ24=0),"",MAX(AR$15:AR23)+1) -> 9 | AS24: 0 | BZ24: * | CA24: резерв-4 | CB24: =MAX(CB$15:CB23)+1 -> 9 | CC24: 0 | CU24: BS | CV24: =MAX(CV$15:CV23)+1 -> 9 | CW24: 0 | CX24: * | CY24: Начальная дата начисления расхода | CZ24: =MAX(CZ$15:CZ23)+1 -> 9 | DA24: 0
A25: =ROW() -> 25 | AH25: =MAX(AH$15:AH24)+1 -> 10 | AI25: =IF(SUMIFS(Sbor!$A:$A,Sbor!$K:$K,AH25)=0,"",INDEX(Sbor!$L:$L,SUMIFS(Sbor!$A:$A,Sbor!$K:$K,AH25))) ->  | AJ25: =IF(OR(AI25="",AI25=0),"",MAX(AJ$15:AJ24)+1) ->  | AK25: 0 | AP25: =MAX(AP$15:AP24)+1 -> 10 | AQ25: =SUMIFS(Periods!$11:$11,Periods!$2:$2,AP25) -> 2022-06-01 | AR25: =IF(OR(AQ25="",AQ25=0),"",MAX(AR$15:AR24)+1) -> 10 | AS25: 0 | BZ25: * | CA25: резерв-5 | CB25: =MAX(CB$15:CB24)+1 -> 10 | CC25: 0 | CU25: BS(+) | CV25: =MAX(CV$15:CV24)+1 -> 10 | CW25: 0 | CX25: * | CY25: Конечная дата начисления расхода | CZ25: =MAX(CZ$15:CZ24)+1 -> 10 | DA25: 0
A26: =ROW() -> 26 | AH26: =MAX(AH$15:AH25)+1 -> 11 | AI26: =IF(SUMIFS(Sbor!$A:$A,Sbor!$K:$K,AH26)=0,"",INDEX(Sbor!$L:$L,SUMIFS(Sbor!$A:$A,Sbor!$K:$K,AH26))) ->  | AJ26: =IF(OR(AI26="",AI26=0),"",MAX(AJ$15:AJ25)+1) ->  | AK26: 0 | AP26: =MAX(AP$15:AP25)+1 -> 11 | AQ26: =SUMIFS(Periods!$11:$11,Periods!$2:$2,AP26) -> 2022-07-01 | AR26: =IF(OR(AQ26="",AQ26=0),"",MAX(AR$15:AR25)+1) -> 11 | AS26: 0 | CU26: BS(-) | CV26: =MAX(CV$15:CV25)+1 -> 11 | CW26: 0 | CX26: * | CY26: кол-во часов | CZ26: =MAX(CZ$15:CZ25)+1 -> 11 | DA26: 0
A27: =ROW() -> 27 | AH27: =MAX(AH$15:AH26)+1 -> 12 | AI27: =IF(SUMIFS(Sbor!$A:$A,Sbor!$K:$K,AH27)=0,"",INDEX(Sbor!$L:$L,SUMIFS(Sbor!$A:$A,Sbor!$K:$K,AH27))) ->  | AJ27: =IF(OR(AI27="",AI27=0),"",MAX(AJ$15:AJ26)+1) ->  | AK27: 0 | AP27: =MAX(AP$15:AP26)+1 -> 12 | AQ27: =SUMIFS(Periods!$11:$11,Periods!$2:$2,AP27) -> 2022-08-01 | AR27: =IF(OR(AQ27="",AQ27=0),"",MAX(AR$15:AR26)+1) -> 12 | AS27: 0 | CU27: SF(+) | CV27: =MAX(CV$15:CV26)+1 -> 12 | CW27: 0 | CX27: * | CY27: кол-во минут // % | CZ27: =MAX(CZ$15:CZ26)+1 -> 12 | DA27: 0
A28: =ROW() -> 28 | AH28: =MAX(AH$15:AH27)+1 -> 13 | AI28: =IF(SUMIFS(Sbor!$A:$A,Sbor!$K:$K,AH28)=0,"",INDEX(Sbor!$L:$L,SUMIFS(Sbor!$A:$A,Sbor!$K:$K,AH28))) ->  | AJ28: =IF(OR(AI28="",AI28=0),"",MAX(AJ$15:AJ27)+1) ->  | AK28: 0 | AP28: =MAX(AP$15:AP27)+1 -> 13 | AQ28: =SUMIFS(Periods!$11:$11,Periods!$2:$2,AP28) -> 2022-09-01 | AR28: =IF(OR(AQ28="",AQ28=0),"",MAX(AR$15:AR27)+1) -> 13 | AS28: 0 | CU28: SF(-) | CV28: =MAX(CV$15:CV27)+1 -> 13 | CW28: 0 | CX28: * | CY28: кол-во сотр.*пер. | CZ28: =MAX(CZ$15:CZ27)+1 -> 13 | DA28: 0
A29: =ROW() -> 29 | AH29: =MAX(AH$15:AH28)+1 -> 14 | AI29: =IF(SUMIFS(Sbor!$A:$A,Sbor!$K:$K,AH29)=0,"",INDEX(Sbor!$L:$L,SUMIFS(Sbor!$A:$A,Sbor!$K:$K,AH29))) ->  | AJ29: =IF(OR(AI29="",AI29=0),"",MAX(AJ$15:AJ28)+1) ->  | AK29: =IF(OR(AI29=0,AI29=""),0,IF(COUNTIF(AI$15:AI$100000,AI29)=1,0,1)) -> 0 | AP29: =MAX(AP$15:AP28)+1 -> 14 | AQ29: =SUMIFS(Periods!$11:$11,Periods!$2:$2,AP29) -> 2022-10-01 | AR29: =IF(OR(AQ29="",AQ29=0),"",MAX(AR$15:AR28)+1) -> 14 | AS29: 0 | CU29: SF | CV29: =MAX(CV$15:CV28)+1 -> 14 | CW29: 0 | CX29: * | CY29: Стартовый период с запуска сбора | CZ29: =MAX(CZ$15:CZ28)+1 -> 14 | DA29: =IF(OR(CY29=0,CY29=""),0,IF(COUNTIF(CY$15:CY$100000,CY29)=1,0,1)) -> 0
A30: =ROW() -> 30 | AH30: =MAX(AH$15:AH29)+1 -> 15 | AI30: =IF(SUMIFS(Sbor!$A:$A,Sbor!$K:$K,AH30)=0,"",INDEX(Sbor!$L:$L,SUMIFS(Sbor!$A:$A,Sbor!$K:$K,AH30))) ->  | AJ30: =IF(OR(AI30="",AI30=0),"",MAX(AJ$15:AJ29)+1) ->  | AK30: =IF(OR(AI30=0,AI30=""),0,IF(COUNTIF(AI$15:AI$100000,AI30)=1,0,1)) -> 0 | AP30: =MAX(AP$15:AP29)+1 -> 15 | AQ30: =SUMIFS(Periods!$11:$11,Periods!$2:$2,AP30) -> 2022-11-01 | AR30: =IF(OR(AQ30="",AQ30=0),"",MAX(AR$15:AR29)+1) -> 15 | AS30: 0 | CX30: * | CY30: Финишный период с запуска сбора | CZ30: =MAX(CZ$15:CZ29)+1 -> 15 | DA30: 0
A31: =ROW() -> 31 | AP31: =MAX(AP$15:AP30)+1 -> 16 | AQ31: =SUMIFS(Periods!$11:$11,Periods!$2:$2,AP31) -> 2022-12-01 | AR31: =IF(OR(AQ31="",AQ31=0),"",MAX(AR$15:AR30)+1) -> 16 | AS31: =IF(OR(AQ31=0,AQ31=""),0,IF(COUNTIF(AQ$15:AQ$100000,AQ31)=1,0,1)) -> 0 | CX31: * | CY31: Вручную для каждого периода расчетов | CZ31: =MAX(CZ$15:CZ30)+1 -> 16 | DA31: 0
A32: =ROW() -> 32 | AP32: =MAX(AP$15:AP31)+1 -> 17 | AQ32: =SUMIFS(Periods!$11:$11,Periods!$2:$2,AP32) -> 2023-01-01 | AR32: =IF(OR(AQ32="",AQ32=0),"",MAX(AR$15:AR31)+1) -> 17 | AS32: 0 | CX32: * | CY32: Через прогрессию | CZ32: =MAX(CZ$15:CZ31)+1 -> 17 | DA32: 0
A33: =ROW() -> 33 | AP33: =MAX(AP$15:AP32)+1 -> 18 | AQ33: =SUMIFS(Periods!$11:$11,Periods!$2:$2,AP33) -> 2023-02-01 | AR33: =IF(OR(AQ33="",AQ33=0),"",MAX(AR$15:AR32)+1) -> 18 | AS33: 0 | CX33: * | CY33: Значение в стартовый период | CZ33: =MAX(CZ$15:CZ32)+1 -> 18 | DA33: 0
A34: =ROW() -> 34 | AP34: =MAX(AP$15:AP33)+1 -> 19 | AQ34: =SUMIFS(Periods!$11:$11,Periods!$2:$2,AP34) -> 2023-03-01 | AR34: =IF(OR(AQ34="",AQ34=0),"",MAX(AR$15:AR33)+1) -> 19 | AS34: 0 | CX34: * | CY34: Коэффициент прироста | CZ34: =MAX(CZ$15:CZ33)+1 -> 19 | DA34: 0
A35: =ROW() -> 35 | AP35: =MAX(AP$15:AP34)+1 -> 20 | AQ35: =SUMIFS(Periods!$11:$11,Periods!$2:$2,AP35) -> 2023-04-01 | AR35: =IF(OR(AQ35="",AQ35=0),"",MAX(AR$15:AR34)+1) -> 20 | AS35: 0 | CX35: * | CY35: Частота приростов | CZ35: =MAX(CZ$15:CZ34)+1 -> 20 | DA35: 0
A36: =ROW() -> 36 | AP36: =MAX(AP$15:AP35)+1 -> 21 | AQ36: =SUMIFS(Periods!$11:$11,Periods!$2:$2,AP36) -> 2023-05-01 | AR36: =IF(OR(AQ36="",AQ36=0),"",MAX(AR$15:AR35)+1) -> 21 | AS36: 0 | CX36: * | CY36: Процентное распределение объема произв-ва | CZ36: =MAX(CZ$15:CZ35)+1 -> 21 | DA36: =IF(OR(CY36=0,CY36=""),0,IF(COUNTIF(CY$15:CY$100000,CY36)=1,0,1)) -> 0
A37: =ROW() -> 37 | AP37: =MAX(AP$15:AP36)+1 -> 22 | AQ37: =SUMIFS(Periods!$11:$11,Periods!$2:$2,AP37) -> 2023-06-01 | AR37: =IF(OR(AQ37="",AQ37=0),"",MAX(AR$15:AR36)+1) -> 22 | AS37: 0
A38: =ROW() -> 38 | AP38: =MAX(AP$15:AP37)+1 -> 23 | AQ38: =SUMIFS(Periods!$11:$11,Periods!$2:$2,AP38) -> 2023-07-01 | AR38: =IF(OR(AQ38="",AQ38=0),"",MAX(AR$15:AR37)+1) -> 23 | AS38: 0
A39: =ROW() -> 39 | AP39: =MAX(AP$15:AP38)+1 -> 24 | AQ39: =SUMIFS(Periods!$11:$11,Periods!$2:$2,AP39) -> 2023-08-01 | AR39: =IF(OR(AQ39="",AQ39=0),"",MAX(AR$15:AR38)+1) -> 24 | AS39: 0
A40: =ROW() -> 40 | AP40: =MAX(AP$15:AP39)+1 -> 25 | AQ40: =SUMIFS(Periods!$11:$11,Periods!$2:$2,AP40) -> 2023-09-01 | AR40: =IF(OR(AQ40="",AQ40=0),"",MAX(AR$15:AR39)+1) -> 25 | AS40: 0
A41: =ROW() -> 41 | AP41: =MAX(AP$15:AP40)+1 -> 26 | AQ41: =SUMIFS(Periods!$11:$11,Periods!$2:$2,AP41) -> 2023-10-01 | AR41: =IF(OR(AQ41="",AQ41=0),"",MAX(AR$15:AR40)+1) -> 26 | AS41: 0
A42: =ROW() -> 42 | AP42: =MAX(AP$15:AP41)+1 -> 27 | AQ42: =SUMIFS(Periods!$11:$11,Periods!$2:$2,AP42) -> 2023-11-01 | AR42: =IF(OR(AQ42="",AQ42=0),"",MAX(AR$15:AR41)+1) -> 27 | AS42: 0
A43: =ROW() -> 43 | I43: разработка финмоделей: https://mngmnt.ru/ | AP43: =MAX(AP$15:AP42)+1 -> 28 | AQ43: =SUMIFS(Periods!$11:$11,Periods!$2:$2,AP43) -> 2023-12-01 | AR43: =IF(OR(AQ43="",AQ43=0),"",MAX(AR$15:AR42)+1) -> 28 | AS43: 0
A44: =ROW() -> 44 | AP44: =MAX(AP$15:AP43)+1 -> 29 | AQ44: =SUMIFS(Periods!$11:$11,Periods!$2:$2,AP44) -> 2024-01-01 | AR44: =IF(OR(AQ44="",AQ44=0),"",MAX(AR$15:AR43)+1) -> 29 | AS44: 0
A45: =ROW() -> 45 | AP45: =MAX(AP$15:AP44)+1 -> 30 | AQ45: =SUMIFS(Periods!$11:$11,Periods!$2:$2,AP45) -> 2024-02-01 | AR45: =IF(OR(AQ45="",AQ45=0),"",MAX(AR$15:AR44)+1) -> 30 | AS45: 0
A46: =ROW() -> 46 | AP46: =MAX(AP$15:AP45)+1 -> 31 | AQ46: =SUMIFS(Periods!$11:$11,Periods!$2:$2,AP46) -> 2024-03-01 | AR46: =IF(OR(AQ46="",AQ46=0),"",MAX(AR$15:AR45)+1) -> 31 | AS46: 0
A47: =ROW() -> 47 | AP47: =MAX(AP$15:AP46)+1 -> 32 | AQ47: =SUMIFS(Periods!$11:$11,Periods!$2:$2,AP47) -> 2024-04-01 | AR47: =IF(OR(AQ47="",AQ47=0),"",MAX(AR$15:AR46)+1) -> 32 | AS47: 0
A48: =ROW() -> 48 | AP48: =MAX(AP$15:AP47)+1 -> 33 | AQ48: =SUMIFS(Periods!$11:$11,Periods!$2:$2,AP48) -> 2024-05-01 | AR48: =IF(OR(AQ48="",AQ48=0),"",MAX(AR$15:AR47)+1) -> 33 | AS48: 0
A49: =ROW() -> 49 | AP49: =MAX(AP$15:AP48)+1 -> 34 | AQ49: =SUMIFS(Periods!$11:$11,Periods!$2:$2,AP49) -> 2024-06-01 | AR49: =IF(OR(AQ49="",AQ49=0),"",MAX(AR$15:AR48)+1) -> 34 | AS49: 0
A50: =ROW() -> 50 | AP50: =MAX(AP$15:AP49)+1 -> 35 | AQ50: =SUMIFS(Periods!$11:$11,Periods!$2:$2,AP50) -> 2024-07-01 | AR50: =IF(OR(AQ50="",AQ50=0),"",MAX(AR$15:AR49)+1) -> 35 | AS50: 0
A51: =ROW() -> 51 | AP51: =MAX(AP$15:AP50)+1 -> 36 | AQ51: =SUMIFS(Periods!$11:$11,Periods!$2:$2,AP51) -> 2024-08-01 | AR51: =IF(OR(AQ51="",AQ51=0),"",MAX(AR$15:AR50)+1) -> 36 | AS51: 0
A52: =ROW() -> 52 | AP52: =MAX(AP$15:AP51)+1 -> 37 | AQ52: =SUMIFS(Periods!$11:$11,Periods!$2:$2,AP52) -> 2024-09-01 | AR52: =IF(OR(AQ52="",AQ52=0),"",MAX(AR$15:AR51)+1) -> 37 | AS52: 0
A53: =ROW() -> 53 | AP53: =MAX(AP$15:AP52)+1 -> 38 | AQ53: =SUMIFS(Periods!$11:$11,Periods!$2:$2,AP53) -> 2024-10-01 | AR53: =IF(OR(AQ53="",AQ53=0),"",MAX(AR$15:AR52)+1) -> 38 | AS53: 0
A54: =ROW() -> 54 | AP54: =MAX(AP$15:AP53)+1 -> 39 | AQ54: =SUMIFS(Periods!$11:$11,Periods!$2:$2,AP54) -> 2024-11-01 | AR54: =IF(OR(AQ54="",AQ54=0),"",MAX(AR$15:AR53)+1) -> 39 | AS54: 0
A55: =ROW() -> 55 | AP55: =MAX(AP$15:AP54)+1 -> 40 | AQ55: =SUMIFS(Periods!$11:$11,Periods!$2:$2,AP55) -> 2024-12-01 | AR55: =IF(OR(AQ55="",AQ55=0),"",MAX(AR$15:AR54)+1) -> 40 | AS55: 0
A56: =ROW() -> 56 | AP56: =MAX(AP$15:AP55)+1 -> 41 | AQ56: =SUMIFS(Periods!$11:$11,Periods!$2:$2,AP56) -> 2025-01-01 | AR56: =IF(OR(AQ56="",AQ56=0),"",MAX(AR$15:AR55)+1) -> 41 | AS56: 0
A57: =ROW() -> 57 | AP57: =MAX(AP$15:AP56)+1 -> 42 | AQ57: =SUMIFS(Periods!$11:$11,Periods!$2:$2,AP57) -> 2025-02-01 | AR57: =IF(OR(AQ57="",AQ57=0),"",MAX(AR$15:AR56)+1) -> 42 | AS57: 0
A58: =ROW() -> 58 | AP58: =MAX(AP$15:AP57)+1 -> 43 | AQ58: =SUMIFS(Periods!$11:$11,Periods!$2:$2,AP58) -> 2025-03-01 | AR58: =IF(OR(AQ58="",AQ58=0),"",MAX(AR$15:AR57)+1) -> 43 | AS58: 0
A59: =ROW() -> 59 | AP59: =MAX(AP$15:AP58)+1 -> 44 | AQ59: =SUMIFS(Periods!$11:$11,Periods!$2:$2,AP59) -> 2025-04-01 | AR59: =IF(OR(AQ59="",AQ59=0),"",MAX(AR$15:AR58)+1) -> 44 | AS59: 0
A60: =ROW() -> 60 | AP60: =MAX(AP$15:AP59)+1 -> 45 | AQ60: =SUMIFS(Periods!$11:$11,Periods!$2:$2,AP60) -> 2025-05-01 | AR60: =IF(OR(AQ60="",AQ60=0),"",MAX(AR$15:AR59)+1) -> 45 | AS60: 0
A61: =ROW() -> 61 | AP61: =MAX(AP$15:AP60)+1 -> 46 | AQ61: =SUMIFS(Periods!$11:$11,Periods!$2:$2,AP61) -> 2025-06-01 | AR61: =IF(OR(AQ61="",AQ61=0),"",MAX(AR$15:AR60)+1) -> 46 | AS61: 0
A62: =ROW() -> 62 | AP62: =MAX(AP$15:AP61)+1 -> 47 | AQ62: =SUMIFS(Periods!$11:$11,Periods!$2:$2,AP62) -> 2025-07-01 | AR62: =IF(OR(AQ62="",AQ62=0),"",MAX(AR$15:AR61)+1) -> 47 | AS62: 0
A63: =ROW() -> 63 | AP63: =MAX(AP$15:AP62)+1 -> 48 | AQ63: =SUMIFS(Periods!$11:$11,Periods!$2:$2,AP63) -> 2025-08-01 | AR63: =IF(OR(AQ63="",AQ63=0),"",MAX(AR$15:AR62)+1) -> 48 | AS63: 0
A64: =ROW() -> 64 | AP64: =MAX(AP$15:AP63)+1 -> 49 | AQ64: =SUMIFS(Periods!$11:$11,Periods!$2:$2,AP64) -> 2025-09-01 | AR64: =IF(OR(AQ64="",AQ64=0),"",MAX(AR$15:AR63)+1) -> 49 | AS64: 0
A65: =ROW() -> 65 | AP65: =MAX(AP$15:AP64)+1 -> 50 | AQ65: =SUMIFS(Periods!$11:$11,Periods!$2:$2,AP65) -> 2025-10-01 | AR65: =IF(OR(AQ65="",AQ65=0),"",MAX(AR$15:AR64)+1) -> 50 | AS65: 0
A66: =ROW() -> 66 | AP66: =MAX(AP$15:AP65)+1 -> 51 | AQ66: =SUMIFS(Periods!$11:$11,Periods!$2:$2,AP66) -> 2025-11-01 | AR66: =IF(OR(AQ66="",AQ66=0),"",MAX(AR$15:AR65)+1) -> 51 | AS66: 0
A67: =ROW() -> 67 | AP67: =MAX(AP$15:AP66)+1 -> 52 | AQ67: =SUMIFS(Periods!$11:$11,Periods!$2:$2,AP67) -> 2025-12-01 | AR67: =IF(OR(AQ67="",AQ67=0),"",MAX(AR$15:AR66)+1) -> 52 | AS67: 0
A68: =ROW() -> 68 | AP68: =MAX(AP$15:AP67)+1 -> 53 | AQ68: =SUMIFS(Periods!$11:$11,Periods!$2:$2,AP68) -> 2026-01-01 | AR68: =IF(OR(AQ68="",AQ68=0),"",MAX(AR$15:AR67)+1) -> 53 | AS68: 0
A69: =ROW() -> 69 | AP69: =MAX(AP$15:AP68)+1 -> 54 | AQ69: =SUMIFS(Periods!$11:$11,Periods!$2:$2,AP69) -> 2026-02-01 | AR69: =IF(OR(AQ69="",AQ69=0),"",MAX(AR$15:AR68)+1) -> 54 | AS69: 0
A70: =ROW() -> 70 | AP70: =MAX(AP$15:AP69)+1 -> 55 | AQ70: =SUMIFS(Periods!$11:$11,Periods!$2:$2,AP70) -> 2026-03-01 | AR70: =IF(OR(AQ70="",AQ70=0),"",MAX(AR$15:AR69)+1) -> 55 | AS70: 0
AP71: =MAX(AP$15:AP70)+1 -> 56 | AQ71: =SUMIFS(Periods!$11:$11,Periods!$2:$2,AP71) -> 2026-04-01 | AR71: =IF(OR(AQ71="",AQ71=0),"",MAX(AR$15:AR70)+1) -> 56 | AS71: 0
AP72: =MAX(AP$15:AP71)+1 -> 57 | AQ72: =SUMIFS(Periods!$11:$11,Periods!$2:$2,AP72) -> 2026-05-01 | AR72: =IF(OR(AQ72="",AQ72=0),"",MAX(AR$15:AR71)+1) -> 57 | AS72: 0
AP73: =MAX(AP$15:AP72)+1 -> 58 | AQ73: =SUMIFS(Periods!$11:$11,Periods!$2:$2,AP73) -> 2026-06-01 | AR73: =IF(OR(AQ73="",AQ73=0),"",MAX(AR$15:AR72)+1) -> 58 | AS73: 0
AP74: =MAX(AP$15:AP73)+1 -> 59 | AQ74: =SUMIFS(Periods!$11:$11,Periods!$2:$2,AP74) -> 2026-07-01 | AR74: =IF(OR(AQ74="",AQ74=0),"",MAX(AR$15:AR73)+1) -> 59 | AS74: 0
AP75: =MAX(AP$15:AP74)+1 -> 60 | AQ75: =SUMIFS(Periods!$11:$11,Periods!$2:$2,AP75) -> 2026-08-01 | AR75: =IF(OR(AQ75="",AQ75=0),"",MAX(AR$15:AR74)+1) -> 60 | AS75: 0
AP76: =MAX(AP$15:AP75)+1 -> 61 | AQ76: =SUMIFS(Periods!$11:$11,Periods!$2:$2,AP76) -> 2026-09-01 | AR76: =IF(OR(AQ76="",AQ76=0),"",MAX(AR$15:AR75)+1) -> 61 | AS76: 0
AP77: =MAX(AP$15:AP76)+1 -> 62 | AQ77: =SUMIFS(Periods!$11:$11,Periods!$2:$2,AP77) -> 2026-10-01 | AR77: =IF(OR(AQ77="",AQ77=0),"",MAX(AR$15:AR76)+1) -> 62 | AS77: 0
AP78: =MAX(AP$15:AP77)+1 -> 63 | AQ78: =SUMIFS(Periods!$11:$11,Periods!$2:$2,AP78) -> 2026-11-01 | AR78: =IF(OR(AQ78="",AQ78=0),"",MAX(AR$15:AR77)+1) -> 63 | AS78: 0
AP79: =MAX(AP$15:AP78)+1 -> 64 | AQ79: =SUMIFS(Periods!$11:$11,Periods!$2:$2,AP79) -> 2026-12-01 | AR79: =IF(OR(AQ79="",AQ79=0),"",MAX(AR$15:AR78)+1) -> 64 | AS79: 0
AP80: =MAX(AP$15:AP79)+1 -> 65 | AQ80: =SUMIFS(Periods!$11:$11,Periods!$2:$2,AP80) -> 2027-01-01 | AR80: =IF(OR(AQ80="",AQ80=0),"",MAX(AR$15:AR79)+1) -> 65 | AS80: 0
AP81: =MAX(AP$15:AP80)+1 -> 66 | AQ81: =SUMIFS(Periods!$11:$11,Periods!$2:$2,AP81) -> 2027-02-01 | AR81: =IF(OR(AQ81="",AQ81=0),"",MAX(AR$15:AR80)+1) -> 66 | AS81: 0
AP82: =MAX(AP$15:AP81)+1 -> 67 | AQ82: =SUMIFS(Periods!$11:$11,Periods!$2:$2,AP82) -> 2027-03-01 | AR82: =IF(OR(AQ82="",AQ82=0),"",MAX(AR$15:AR81)+1) -> 67 | AS82: 0
AP83: =MAX(AP$15:AP82)+1 -> 68 | AQ83: =SUMIFS(Periods!$11:$11,Periods!$2:$2,AP83) -> 2027-04-01 | AR83: =IF(OR(AQ83="",AQ83=0),"",MAX(AR$15:AR82)+1) -> 68 | AS83: 0
AP84: =MAX(AP$15:AP83)+1 -> 69 | AQ84: =SUMIFS(Periods!$11:$11,Periods!$2:$2,AP84) -> 2027-05-01 | AR84: =IF(OR(AQ84="",AQ84=0),"",MAX(AR$15:AR83)+1) -> 69 | AS84: 0
AP85: =MAX(AP$15:AP84)+1 -> 70 | AQ85: =SUMIFS(Periods!$11:$11,Periods!$2:$2,AP85) -> 2027-06-01 | AR85: =IF(OR(AQ85="",AQ85=0),"",MAX(AR$15:AR84)+1) -> 70 | AS85: 0
AP86: =MAX(AP$15:AP85)+1 -> 71 | AQ86: =SUMIFS(Periods!$11:$11,Periods!$2:$2,AP86) -> 2027-07-01 | AR86: =IF(OR(AQ86="",AQ86=0),"",MAX(AR$15:AR85)+1) -> 71 | AS86: 0
AP87: =MAX(AP$15:AP86)+1 -> 72 | AQ87: =SUMIFS(Periods!$11:$11,Periods!$2:$2,AP87) -> 2027-08-01 | AR87: =IF(OR(AQ87="",AQ87=0),"",MAX(AR$15:AR86)+1) -> 72 | AS87: 0
AP88: =MAX(AP$15:AP87)+1 -> 73 | AQ88: =SUMIFS(Periods!$11:$11,Periods!$2:$2,AP88) -> 2027-09-01 | AR88: =IF(OR(AQ88="",AQ88=0),"",MAX(AR$15:AR87)+1) -> 73 | AS88: 0
AP89: =MAX(AP$15:AP88)+1 -> 74 | AQ89: =SUMIFS(Periods!$11:$11,Periods!$2:$2,AP89) -> 2027-10-01 | AR89: =IF(OR(AQ89="",AQ89=0),"",MAX(AR$15:AR88)+1) -> 74 | AS89: 0
AP90: =MAX(AP$15:AP89)+1 -> 75 | AQ90: =SUMIFS(Periods!$11:$11,Periods!$2:$2,AP90) -> 2027-11-01 | AR90: =IF(OR(AQ90="",AQ90=0),"",MAX(AR$15:AR89)+1) -> 75 | AS90: 0
AP91: =MAX(AP$15:AP90)+1 -> 76 | AQ91: =SUMIFS(Periods!$11:$11,Periods!$2:$2,AP91) -> 2027-12-01 | AR91: =IF(OR(AQ91="",AQ91=0),"",MAX(AR$15:AR90)+1) -> 76 | AS91: 0
AP92: =MAX(AP$15:AP91)+1 -> 77 | AQ92: =SUMIFS(Periods!$11:$11,Periods!$2:$2,AP92) -> 2028-01-01 | AR92: =IF(OR(AQ92="",AQ92=0),"",MAX(AR$15:AR91)+1) -> 77 | AS92: 0
AP93: =MAX(AP$15:AP92)+1 -> 78 | AQ93: =SUMIFS(Periods!$11:$11,Periods!$2:$2,AP93) -> 2028-02-01 | AR93: =IF(OR(AQ93="",AQ93=0),"",MAX(AR$15:AR92)+1) -> 78 | AS93: 0
AP94: =MAX(AP$15:AP93)+1 -> 79 | AQ94: =SUMIFS(Periods!$11:$11,Periods!$2:$2,AP94) -> 2028-03-01 | AR94: =IF(OR(AQ94="",AQ94=0),"",MAX(AR$15:AR93)+1) -> 79 | AS94: 0
AP95: =MAX(AP$15:AP94)+1 -> 80 | AQ95: =SUMIFS(Periods!$11:$11,Periods!$2:$2,AP95) -> 2028-04-01 | AR95: =IF(OR(AQ95="",AQ95=0),"",MAX(AR$15:AR94)+1) -> 80 | AS95: =IF(OR(AQ95=0,AQ95=""),0,IF(COUNTIF(AQ$15:AQ$100000,AQ95)=1,0,1)) -> 0
AP96: =MAX(AP$15:AP95)+1 -> 81 | AQ96: =SUMIFS(Periods!$11:$11,Periods!$2:$2,AP96) -> 2028-05-01 | AR96: =IF(OR(AQ96="",AQ96=0),"",MAX(AR$15:AR95)+1) -> 81 | AS96: 0
AP97: =MAX(AP$15:AP96)+1 -> 82 | AQ97: =SUMIFS(Periods!$11:$11,Periods!$2:$2,AP97) -> 2028-06-01 | AR97: =IF(OR(AQ97="",AQ97=0),"",MAX(AR$15:AR96)+1) -> 82 | AS97: 0
AP98: =MAX(AP$15:AP97)+1 -> 83 | AQ98: =SUMIFS(Periods!$11:$11,Periods!$2:$2,AP98) -> 2028-07-01 | AR98: =IF(OR(AQ98="",AQ98=0),"",MAX(AR$15:AR97)+1) -> 83 | AS98: 0
AP99: =MAX(AP$15:AP98)+1 -> 84 | AQ99: =SUMIFS(Periods!$11:$11,Periods!$2:$2,AP99) -> 2028-08-01 | AR99: =IF(OR(AQ99="",AQ99=0),"",MAX(AR$15:AR98)+1) -> 84 | AS99: 0
AP100: =MAX(AP$15:AP99)+1 -> 85 | AQ100: =SUMIFS(Periods!$11:$11,Periods!$2:$2,AP100) -> 2028-09-01 | AR100: =IF(OR(AQ100="",AQ100=0),"",MAX(AR$15:AR99)+1) -> 85 | AS100: 0
AP101: =MAX(AP$15:AP100)+1 -> 86 | AQ101: =SUMIFS(Periods!$11:$11,Periods!$2:$2,AP101) -> 2028-10-01 | AR101: =IF(OR(AQ101="",AQ101=0),"",MAX(AR$15:AR100)+1) -> 86 | AS101: 0
AP102: =MAX(AP$15:AP101)+1 -> 87 | AQ102: =SUMIFS(Periods!$11:$11,Periods!$2:$2,AP102) -> 2028-11-01 | AR102: =IF(OR(AQ102="",AQ102=0),"",MAX(AR$15:AR101)+1) -> 87 | AS102: 0
AP103: =MAX(AP$15:AP102)+1 -> 88 | AQ103: =SUMIFS(Periods!$11:$11,Periods!$2:$2,AP103) -> 2028-12-01 | AR103: =IF(OR(AQ103="",AQ103=0),"",MAX(AR$15:AR102)+1) -> 88 | AS103: 0
AP104: =MAX(AP$15:AP103)+1 -> 89 | AQ104: =SUMIFS(Periods!$11:$11,Periods!$2:$2,AP104) -> 2029-01-01 | AR104: =IF(OR(AQ104="",AQ104=0),"",MAX(AR$15:AR103)+1) -> 89 | AS104: 0
AP105: =MAX(AP$15:AP104)+1 -> 90 | AQ105: =SUMIFS(Periods!$11:$11,Periods!$2:$2,AP105) -> 2029-02-01 | AR105: =IF(OR(AQ105="",AQ105=0),"",MAX(AR$15:AR104)+1) -> 90 | AS105: 0
AP106: =MAX(AP$15:AP105)+1 -> 91 | AQ106: =SUMIFS(Periods!$11:$11,Periods!$2:$2,AP106) -> 2029-03-01 | AR106: =IF(OR(AQ106="",AQ106=0),"",MAX(AR$15:AR105)+1) -> 91 | AS106: 0
AP107: =MAX(AP$15:AP106)+1 -> 92 | AQ107: =SUMIFS(Periods!$11:$11,Periods!$2:$2,AP107) -> 2029-04-01 | AR107: =IF(OR(AQ107="",AQ107=0),"",MAX(AR$15:AR106)+1) -> 92 | AS107: 0
AP108: =MAX(AP$15:AP107)+1 -> 93 | AQ108: =SUMIFS(Periods!$11:$11,Periods!$2:$2,AP108) -> 2029-05-01 | AR108: =IF(OR(AQ108="",AQ108=0),"",MAX(AR$15:AR107)+1) -> 93 | AS108: 0
AP109: =MAX(AP$15:AP108)+1 -> 94 | AQ109: =SUMIFS(Periods!$11:$11,Periods!$2:$2,AP109) -> 2029-06-01 | AR109: =IF(OR(AQ109="",AQ109=0),"",MAX(AR$15:AR108)+1) -> 94 | AS109: 0
AP110: =MAX(AP$15:AP109)+1 -> 95 | AQ110: =SUMIFS(Periods!$11:$11,Periods!$2:$2,AP110) -> 2029-07-01 | AR110: =IF(OR(AQ110="",AQ110=0),"",MAX(AR$15:AR109)+1) -> 95 | AS110: 0
AP111: =MAX(AP$15:AP110)+1 -> 96 | AQ111: =SUMIFS(Periods!$11:$11,Periods!$2:$2,AP111) -> 2029-08-01 | AR111: =IF(OR(AQ111="",AQ111=0),"",MAX(AR$15:AR110)+1) -> 96 | AS111: 0
AP112: =MAX(AP$15:AP111)+1 -> 97 | AQ112: =SUMIFS(Periods!$11:$11,Periods!$2:$2,AP112) -> 2029-09-01 | AR112: =IF(OR(AQ112="",AQ112=0),"",MAX(AR$15:AR111)+1) -> 97 | AS112: 0
AP113: =MAX(AP$15:AP112)+1 -> 98 | AQ113: =SUMIFS(Periods!$11:$11,Periods!$2:$2,AP113) -> 2029-10-01 | AR113: =IF(OR(AQ113="",AQ113=0),"",MAX(AR$15:AR112)+1) -> 98 | AS113: 0
AP114: =MAX(AP$15:AP113)+1 -> 99 | AQ114: =SUMIFS(Periods!$11:$11,Periods!$2:$2,AP114) -> 2029-11-01 | AR114: =IF(OR(AQ114="",AQ114=0),"",MAX(AR$15:AR113)+1) -> 99 | AS114: 0
AP115: =MAX(AP$15:AP114)+1 -> 100 | AQ115: =SUMIFS(Periods!$11:$11,Periods!$2:$2,AP115) -> 2029-12-01 | AR115: =IF(OR(AQ115="",AQ115=0),"",MAX(AR$15:AR114)+1) -> 100 | AS115: 0
AP116: =MAX(AP$15:AP115)+1 -> 101 | AQ116: =SUMIFS(Periods!$11:$11,Periods!$2:$2,AP116) -> 2030-01-01 | AR116: =IF(OR(AQ116="",AQ116=0),"",MAX(AR$15:AR115)+1) -> 101 | AS116: 0
AP117: =MAX(AP$15:AP116)+1 -> 102 | AQ117: =SUMIFS(Periods!$11:$11,Periods!$2:$2,AP117) -> 2030-02-01 | AR117: =IF(OR(AQ117="",AQ117=0),"",MAX(AR$15:AR116)+1) -> 102 | AS117: 0
AP118: =MAX(AP$15:AP117)+1 -> 103 | AQ118: =SUMIFS(Periods!$11:$11,Periods!$2:$2,AP118) -> 2030-03-01 | AR118: =IF(OR(AQ118="",AQ118=0),"",MAX(AR$15:AR117)+1) -> 103 | AS118: 0
AP119: =MAX(AP$15:AP118)+1 -> 104 | AQ119: =SUMIFS(Periods!$11:$11,Periods!$2:$2,AP119) -> 2030-04-01 | AR119: =IF(OR(AQ119="",AQ119=0),"",MAX(AR$15:AR118)+1) -> 104 | AS119: 0
AP120: =MAX(AP$15:AP119)+1 -> 105 | AQ120: =SUMIFS(Periods!$11:$11,Periods!$2:$2,AP120) -> 2030-05-01 | AR120: =IF(OR(AQ120="",AQ120=0),"",MAX(AR$15:AR119)+1) -> 105 | AS120: 0
AP121: =MAX(AP$15:AP120)+1 -> 106 | AQ121: =SUMIFS(Periods!$11:$11,Periods!$2:$2,AP121) -> 2030-06-01 | AR121: =IF(OR(AQ121="",AQ121=0),"",MAX(AR$15:AR120)+1) -> 106 | AS121: 0
AP122: =MAX(AP$15:AP121)+1 -> 107 | AQ122: =SUMIFS(Periods!$11:$11,Periods!$2:$2,AP122) -> 2030-07-01 | AR122: =IF(OR(AQ122="",AQ122=0),"",MAX(AR$15:AR121)+1) -> 107 | AS122: 0
AP123: =MAX(AP$15:AP122)+1 -> 108 | AQ123: =SUMIFS(Periods!$11:$11,Periods!$2:$2,AP123) -> 2030-08-01 | AR123: =IF(OR(AQ123="",AQ123=0),"",MAX(AR$15:AR122)+1) -> 108 | AS123: 0
AP124: =MAX(AP$15:AP123)+1 -> 109 | AQ124: =SUMIFS(Periods!$11:$11,Periods!$2:$2,AP124) -> 2030-09-01 | AR124: =IF(OR(AQ124="",AQ124=0),"",MAX(AR$15:AR123)+1) -> 109 | AS124: 0
AP125: =MAX(AP$15:AP124)+1 -> 110 | AQ125: =SUMIFS(Periods!$11:$11,Periods!$2:$2,AP125) -> 2030-10-01 | AR125: =IF(OR(AQ125="",AQ125=0),"",MAX(AR$15:AR124)+1) -> 110 | AS125: 0
AP126: =MAX(AP$15:AP125)+1 -> 111 | AQ126: =SUMIFS(Periods!$11:$11,Periods!$2:$2,AP126) -> 2030-11-01 | AR126: =IF(OR(AQ126="",AQ126=0),"",MAX(AR$15:AR125)+1) -> 111 | AS126: 0
AP127: =MAX(AP$15:AP126)+1 -> 112 | AQ127: =SUMIFS(Periods!$11:$11,Periods!$2:$2,AP127) -> 2030-12-01 | AR127: =IF(OR(AQ127="",AQ127=0),"",MAX(AR$15:AR126)+1) -> 112 | AS127: 0
AP128: =MAX(AP$15:AP127)+1 -> 113 | AQ128: =SUMIFS(Periods!$11:$11,Periods!$2:$2,AP128) -> 2031-01-01 | AR128: =IF(OR(AQ128="",AQ128=0),"",MAX(AR$15:AR127)+1) -> 113 | AS128: 0
AP129: =MAX(AP$15:AP128)+1 -> 114 | AQ129: =SUMIFS(Periods!$11:$11,Periods!$2:$2,AP129) -> 2031-02-01 | AR129: =IF(OR(AQ129="",AQ129=0),"",MAX(AR$15:AR128)+1) -> 114 | AS129: 0
AP130: =MAX(AP$15:AP129)+1 -> 115 | AQ130: =SUMIFS(Periods!$11:$11,Periods!$2:$2,AP130) -> 2031-03-01 | AR130: =IF(OR(AQ130="",AQ130=0),"",MAX(AR$15:AR129)+1) -> 115 | AS130: 0
AP131: =MAX(AP$15:AP130)+1 -> 116 | AQ131: =SUMIFS(Periods!$11:$11,Periods!$2:$2,AP131) -> 2031-04-01 | AR131: =IF(OR(AQ131="",AQ131=0),"",MAX(AR$15:AR130)+1) -> 116 | AS131: 0
AP132: =MAX(AP$15:AP131)+1 -> 117 | AQ132: =SUMIFS(Periods!$11:$11,Periods!$2:$2,AP132) -> 2031-05-01 | AR132: =IF(OR(AQ132="",AQ132=0),"",MAX(AR$15:AR131)+1) -> 117 | AS132: 0
AP133: =MAX(AP$15:AP132)+1 -> 118 | AQ133: =SUMIFS(Periods!$11:$11,Periods!$2:$2,AP133) -> 2031-06-01 | AR133: =IF(OR(AQ133="",AQ133=0),"",MAX(AR$15:AR132)+1) -> 118 | AS133: 0
AP134: =MAX(AP$15:AP133)+1 -> 119 | AQ134: =SUMIFS(Periods!$11:$11,Periods!$2:$2,AP134) -> 2031-07-01 | AR134: =IF(OR(AQ134="",AQ134=0),"",MAX(AR$15:AR133)+1) -> 119 | AS134: 0
AP135: =MAX(AP$15:AP134)+1 -> 120 | AQ135: =SUMIFS(Periods!$11:$11,Periods!$2:$2,AP135) -> 2031-08-01 | AR135: =IF(OR(AQ135="",AQ135=0),"",MAX(AR$15:AR134)+1) -> 120 | AS135: 0
AP136: =MAX(AP$15:AP135)+1 -> 121 | AQ136: =SUMIFS(Periods!$11:$11,Periods!$2:$2,AP136) -> 2031-09-01 | AR136: =IF(OR(AQ136="",AQ136=0),"",MAX(AR$15:AR135)+1) -> 121 | AS136: 0
AP137: =MAX(AP$15:AP136)+1 -> 122 | AQ137: =SUMIFS(Periods!$11:$11,Periods!$2:$2,AP137) -> 2031-10-01 | AR137: =IF(OR(AQ137="",AQ137=0),"",MAX(AR$15:AR136)+1) -> 122 | AS137: 0
AP138: =MAX(AP$15:AP137)+1 -> 123 | AQ138: =SUMIFS(Periods!$11:$11,Periods!$2:$2,AP138) -> 2031-11-01 | AR138: =IF(OR(AQ138="",AQ138=0),"",MAX(AR$15:AR137)+1) -> 123 | AS138: 0
AP139: =MAX(AP$15:AP138)+1 -> 124 | AQ139: =SUMIFS(Periods!$11:$11,Periods!$2:$2,AP139) -> 2031-12-01 | AR139: =IF(OR(AQ139="",AQ139=0),"",MAX(AR$15:AR138)+1) -> 124 | AS139: 0
AP140: =MAX(AP$15:AP139)+1 -> 125 | AQ140: =SUMIFS(Periods!$11:$11,Periods!$2:$2,AP140) -> 2032-01-01 | AR140: =IF(OR(AQ140="",AQ140=0),"",MAX(AR$15:AR139)+1) -> 125 | AS140: 0
AP141: =MAX(AP$15:AP140)+1 -> 126 | AQ141: =SUMIFS(Periods!$11:$11,Periods!$2:$2,AP141) -> 2032-02-01 | AR141: =IF(OR(AQ141="",AQ141=0),"",MAX(AR$15:AR140)+1) -> 126 | AS141: 0
AP142: =MAX(AP$15:AP141)+1 -> 127 | AQ142: =SUMIFS(Periods!$11:$11,Periods!$2:$2,AP142) -> 2032-03-01 | AR142: =IF(OR(AQ142="",AQ142=0),"",MAX(AR$15:AR141)+1) -> 127 | AS142: 0
AP143: =MAX(AP$15:AP142)+1 -> 128 | AQ143: =SUMIFS(Periods!$11:$11,Periods!$2:$2,AP143) -> 2032-04-01 | AR143: =IF(OR(AQ143="",AQ143=0),"",MAX(AR$15:AR142)+1) -> 128 | AS143: 0
AP144: =MAX(AP$15:AP143)+1 -> 129 | AQ144: =SUMIFS(Periods!$11:$11,Periods!$2:$2,AP144) -> 2032-05-01 | AR144: =IF(OR(AQ144="",AQ144=0),"",MAX(AR$15:AR143)+1) -> 129 | AS144: 0
AP145: =MAX(AP$15:AP144)+1 -> 130 | AQ145: =SUMIFS(Periods!$11:$11,Periods!$2:$2,AP145) -> 2032-06-01 | AR145: =IF(OR(AQ145="",AQ145=0),"",MAX(AR$15:AR144)+1) -> 130 | AS145: 0
AP146: =MAX(AP$15:AP145)+1 -> 131 | AQ146: =SUMIFS(Periods!$11:$11,Periods!$2:$2,AP146) -> 2032-07-01 | AR146: =IF(OR(AQ146="",AQ146=0),"",MAX(AR$15:AR145)+1) -> 131 | AS146: 0
AP147: =MAX(AP$15:AP146)+1 -> 132 | AQ147: =SUMIFS(Periods!$11:$11,Periods!$2:$2,AP147) -> 2032-08-01 | AR147: =IF(OR(AQ147="",AQ147=0),"",MAX(AR$15:AR146)+1) -> 132 | AS147: 0
AP148: =MAX(AP$15:AP147)+1 -> 133 | AQ148: =SUMIFS(Periods!$11:$11,Periods!$2:$2,AP148) -> 2032-09-01 | AR148: =IF(OR(AQ148="",AQ148=0),"",MAX(AR$15:AR147)+1) -> 133 | AS148: 0
AP149: =MAX(AP$15:AP148)+1 -> 134 | AQ149: =SUMIFS(Periods!$11:$11,Periods!$2:$2,AP149) -> 2032-10-01 | AR149: =IF(OR(AQ149="",AQ149=0),"",MAX(AR$15:AR148)+1) -> 134 | AS149: 0
AP150: =MAX(AP$15:AP149)+1 -> 135 | AQ150: =SUMIFS(Periods!$11:$11,Periods!$2:$2,AP150) -> 2032-11-01 | AR150: =IF(OR(AQ150="",AQ150=0),"",MAX(AR$15:AR149)+1) -> 135 | AS150: 0
AP151: =MAX(AP$15:AP150)+1 -> 136 | AQ151: =SUMIFS(Periods!$11:$11,Periods!$2:$2,AP151) -> 2032-12-01 | AR151: =IF(OR(AQ151="",AQ151=0),"",MAX(AR$15:AR150)+1) -> 136 | AS151: 0
AP152: =MAX(AP$15:AP151)+1 -> 137 | AQ152: =SUMIFS(Periods!$11:$11,Periods!$2:$2,AP152) -> 2033-01-01 | AR152: =IF(OR(AQ152="",AQ152=0),"",MAX(AR$15:AR151)+1) -> 137 | AS152: 0
AP153: =MAX(AP$15:AP152)+1 -> 138 | AQ153: =SUMIFS(Periods!$11:$11,Periods!$2:$2,AP153) -> 2033-02-01 | AR153: =IF(OR(AQ153="",AQ153=0),"",MAX(AR$15:AR152)+1) -> 138 | AS153: 0
AP154: =MAX(AP$15:AP153)+1 -> 139 | AQ154: =SUMIFS(Periods!$11:$11,Periods!$2:$2,AP154) -> 2033-03-01 | AR154: =IF(OR(AQ154="",AQ154=0),"",MAX(AR$15:AR153)+1) -> 139 | AS154: 0
AP155: =MAX(AP$15:AP154)+1 -> 140 | AQ155: =SUMIFS(Periods!$11:$11,Periods!$2:$2,AP155) -> 2033-04-01 | AR155: =IF(OR(AQ155="",AQ155=0),"",MAX(AR$15:AR154)+1) -> 140 | AS155: 0
AP156: =MAX(AP$15:AP155)+1 -> 141 | AQ156: =SUMIFS(Periods!$11:$11,Periods!$2:$2,AP156) -> 2033-05-01 | AR156: =IF(OR(AQ156="",AQ156=0),"",MAX(AR$15:AR155)+1) -> 141 | AS156: 0
AP157: =MAX(AP$15:AP156)+1 -> 142 | AQ157: =SUMIFS(Periods!$11:$11,Periods!$2:$2,AP157) -> 2033-06-01 | AR157: =IF(OR(AQ157="",AQ157=0),"",MAX(AR$15:AR156)+1) -> 142 | AS157: 0
AP158: =MAX(AP$15:AP157)+1 -> 143 | AQ158: =SUMIFS(Periods!$11:$11,Periods!$2:$2,AP158) -> 2033-07-01 | AR158: =IF(OR(AQ158="",AQ158=0),"",MAX(AR$15:AR157)+1) -> 143 | AS158: 0
AP159: =MAX(AP$15:AP158)+1 -> 144 | AQ159: =SUMIFS(Periods!$11:$11,Periods!$2:$2,AP159) -> 2033-08-01 | AR159: =IF(OR(AQ159="",AQ159=0),"",MAX(AR$15:AR158)+1) -> 144 | AS159: =IF(OR(AQ159=0,AQ159=""),0,IF(COUNTIF(AQ$15:AQ$100000,AQ159)=1,0,1)) -> 0
AP160: =MAX(AP$15:AP159)+1 -> 145 | AQ160: =SUMIFS(Periods!$11:$11,Periods!$2:$2,AP160) -> 2033-09-01 | AR160: =IF(OR(AQ160="",AQ160=0),"",MAX(AR$15:AR159)+1) -> 145 | AS160: 0
AP161: =MAX(AP$15:AP160)+1 -> 146 | AQ161: =SUMIFS(Periods!$11:$11,Periods!$2:$2,AP161) -> 2033-10-01 | AR161: =IF(OR(AQ161="",AQ161=0),"",MAX(AR$15:AR160)+1) -> 146 | AS161: 0
AP162: =MAX(AP$15:AP161)+1 -> 147 | AQ162: =SUMIFS(Periods!$11:$11,Periods!$2:$2,AP162) -> 2033-11-01 | AR162: =IF(OR(AQ162="",AQ162=0),"",MAX(AR$15:AR161)+1) -> 147 | AS162: 0
AP163: =MAX(AP$15:AP162)+1 -> 148 | AQ163: =SUMIFS(Periods!$11:$11,Periods!$2:$2,AP163) -> 2033-12-01 | AR163: =IF(OR(AQ163="",AQ163=0),"",MAX(AR$15:AR162)+1) -> 148 | AS163: 0
AP164: =MAX(AP$15:AP163)+1 -> 149 | AQ164: =SUMIFS(Periods!$11:$11,Periods!$2:$2,AP164) -> 2034-01-01 | AR164: =IF(OR(AQ164="",AQ164=0),"",MAX(AR$15:AR163)+1) -> 149 | AS164: 0
AP165: =MAX(AP$15:AP164)+1 -> 150 | AQ165: =SUMIFS(Periods!$11:$11,Periods!$2:$2,AP165) -> 2034-02-01 | AR165: =IF(OR(AQ165="",AQ165=0),"",MAX(AR$15:AR164)+1) -> 150 | AS165: 0
AP166: =MAX(AP$15:AP165)+1 -> 151 | AQ166: =SUMIFS(Periods!$11:$11,Periods!$2:$2,AP166) -> 2034-03-01 | AR166: =IF(OR(AQ166="",AQ166=0),"",MAX(AR$15:AR165)+1) -> 151 | AS166: 0
AP167: =MAX(AP$15:AP166)+1 -> 152 | AQ167: =SUMIFS(Periods!$11:$11,Periods!$2:$2,AP167) -> 2034-04-01 | AR167: =IF(OR(AQ167="",AQ167=0),"",MAX(AR$15:AR166)+1) -> 152 | AS167: 0
AP168: =MAX(AP$15:AP167)+1 -> 153 | AQ168: =SUMIFS(Periods!$11:$11,Periods!$2:$2,AP168) -> 2034-05-01 | AR168: =IF(OR(AQ168="",AQ168=0),"",MAX(AR$15:AR167)+1) -> 153 | AS168: 0
AP169: =MAX(AP$15:AP168)+1 -> 154 | AQ169: =SUMIFS(Periods!$11:$11,Periods!$2:$2,AP169) -> 2034-06-01 | AR169: =IF(OR(AQ169="",AQ169=0),"",MAX(AR$15:AR168)+1) -> 154 | AS169: 0
AP170: =MAX(AP$15:AP169)+1 -> 155 | AQ170: =SUMIFS(Periods!$11:$11,Periods!$2:$2,AP170) -> 2034-07-01 | AR170: =IF(OR(AQ170="",AQ170=0),"",MAX(AR$15:AR169)+1) -> 155 | AS170: 0
AP171: =MAX(AP$15:AP170)+1 -> 156 | AQ171: =SUMIFS(Periods!$11:$11,Periods!$2:$2,AP171) -> 2034-08-01 | AR171: =IF(OR(AQ171="",AQ171=0),"",MAX(AR$15:AR170)+1) -> 156 | AS171: 0
AP172: =MAX(AP$15:AP171)+1 -> 157 | AQ172: =SUMIFS(Periods!$11:$11,Periods!$2:$2,AP172) -> 2034-09-01 | AR172: =IF(OR(AQ172="",AQ172=0),"",MAX(AR$15:AR171)+1) -> 157 | AS172: 0
AP173: =MAX(AP$15:AP172)+1 -> 158 | AQ173: =SUMIFS(Periods!$11:$11,Periods!$2:$2,AP173) -> 2034-10-01 | AR173: =IF(OR(AQ173="",AQ173=0),"",MAX(AR$15:AR172)+1) -> 158 | AS173: 0
AP174: =MAX(AP$15:AP173)+1 -> 159 | AQ174: =SUMIFS(Periods!$11:$11,Periods!$2:$2,AP174) -> 2034-11-01 | AR174: =IF(OR(AQ174="",AQ174=0),"",MAX(AR$15:AR173)+1) -> 159 | AS174: 0
AP175: =MAX(AP$15:AP174)+1 -> 160 | AQ175: =SUMIFS(Periods!$11:$11,Periods!$2:$2,AP175) -> 2034-12-01 | AR175: =IF(OR(AQ175="",AQ175=0),"",MAX(AR$15:AR174)+1) -> 160 | AS175: 0
AP176: =MAX(AP$15:AP175)+1 -> 161 | AQ176: =SUMIFS(Periods!$11:$11,Periods!$2:$2,AP176) -> 2035-01-01 | AR176: =IF(OR(AQ176="",AQ176=0),"",MAX(AR$15:AR175)+1) -> 161 | AS176: 0
AP177: =MAX(AP$15:AP176)+1 -> 162 | AQ177: =SUMIFS(Periods!$11:$11,Periods!$2:$2,AP177) -> 2035-02-01 | AR177: =IF(OR(AQ177="",AQ177=0),"",MAX(AR$15:AR176)+1) -> 162 | AS177: 0
AP178: =MAX(AP$15:AP177)+1 -> 163 | AQ178: =SUMIFS(Periods!$11:$11,Periods!$2:$2,AP178) -> 2035-03-01 | AR178: =IF(OR(AQ178="",AQ178=0),"",MAX(AR$15:AR177)+1) -> 163 | AS178: 0
AP179: =MAX(AP$15:AP178)+1 -> 164 | AQ179: =SUMIFS(Periods!$11:$11,Periods!$2:$2,AP179) -> 2035-04-01 | AR179: =IF(OR(AQ179="",AQ179=0),"",MAX(AR$15:AR178)+1) -> 164 | AS179: 0
AP180: =MAX(AP$15:AP179)+1 -> 165 | AQ180: =SUMIFS(Periods!$11:$11,Periods!$2:$2,AP180) -> 2035-05-01 | AR180: =IF(OR(AQ180="",AQ180=0),"",MAX(AR$15:AR179)+1) -> 165 | AS180: 0
AP181: =MAX(AP$15:AP180)+1 -> 166 | AQ181: =SUMIFS(Periods!$11:$11,Periods!$2:$2,AP181) -> 2035-06-01 | AR181: =IF(OR(AQ181="",AQ181=0),"",MAX(AR$15:AR180)+1) -> 166 | AS181: 0
AP182: =MAX(AP$15:AP181)+1 -> 167 | AQ182: =SUMIFS(Periods!$11:$11,Periods!$2:$2,AP182) -> 2035-07-01 | AR182: =IF(OR(AQ182="",AQ182=0),"",MAX(AR$15:AR181)+1) -> 167 | AS182: 0
AP183: =MAX(AP$15:AP182)+1 -> 168 | AQ183: =SUMIFS(Periods!$11:$11,Periods!$2:$2,AP183) -> 2035-08-01 | AR183: =IF(OR(AQ183="",AQ183=0),"",MAX(AR$15:AR182)+1) -> 168 | AS183: 0
AP184: =MAX(AP$15:AP183)+1 -> 169 | AQ184: =SUMIFS(Periods!$11:$11,Periods!$2:$2,AP184) -> 2035-09-01 | AR184: =IF(OR(AQ184="",AQ184=0),"",MAX(AR$15:AR183)+1) -> 169 | AS184: 0
AP185: =MAX(AP$15:AP184)+1 -> 170 | AQ185: =SUMIFS(Periods!$11:$11,Periods!$2:$2,AP185) -> 2035-10-01 | AR185: =IF(OR(AQ185="",AQ185=0),"",MAX(AR$15:AR184)+1) -> 170 | AS185: 0
AP186: =MAX(AP$15:AP185)+1 -> 171 | AQ186: =SUMIFS(Periods!$11:$11,Periods!$2:$2,AP186) -> 2035-11-01 | AR186: =IF(OR(AQ186="",AQ186=0),"",MAX(AR$15:AR185)+1) -> 171 | AS186: 0
AP187: =MAX(AP$15:AP186)+1 -> 172 | AQ187: =SUMIFS(Periods!$11:$11,Periods!$2:$2,AP187) -> 2035-12-01 | AR187: =IF(OR(AQ187="",AQ187=0),"",MAX(AR$15:AR186)+1) -> 172 | AS187: 0
AP188: =MAX(AP$15:AP187)+1 -> 173 | AQ188: =SUMIFS(Periods!$11:$11,Periods!$2:$2,AP188) -> 2036-01-01 | AR188: =IF(OR(AQ188="",AQ188=0),"",MAX(AR$15:AR187)+1) -> 173 | AS188: 0
AP189: =MAX(AP$15:AP188)+1 -> 174 | AQ189: =SUMIFS(Periods!$11:$11,Periods!$2:$2,AP189) -> 2036-02-01 | AR189: =IF(OR(AQ189="",AQ189=0),"",MAX(AR$15:AR188)+1) -> 174 | AS189: 0
AP190: =MAX(AP$15:AP189)+1 -> 175 | AQ190: =SUMIFS(Periods!$11:$11,Periods!$2:$2,AP190) -> 2036-03-01 | AR190: =IF(OR(AQ190="",AQ190=0),"",MAX(AR$15:AR189)+1) -> 175 | AS190: 0
AP191: =MAX(AP$15:AP190)+1 -> 176 | AQ191: =SUMIFS(Periods!$11:$11,Periods!$2:$2,AP191) -> 2036-04-01 | AR191: =IF(OR(AQ191="",AQ191=0),"",MAX(AR$15:AR190)+1) -> 176 | AS191: 0
AP192: =MAX(AP$15:AP191)+1 -> 177 | AQ192: =SUMIFS(Periods!$11:$11,Periods!$2:$2,AP192) -> 2036-05-01 | AR192: =IF(OR(AQ192="",AQ192=0),"",MAX(AR$15:AR191)+1) -> 177 | AS192: 0
AP193: =MAX(AP$15:AP192)+1 -> 178 | AQ193: =SUMIFS(Periods!$11:$11,Periods!$2:$2,AP193) -> 2036-06-01 | AR193: =IF(OR(AQ193="",AQ193=0),"",MAX(AR$15:AR192)+1) -> 178 | AS193: 0
AP194: =MAX(AP$15:AP193)+1 -> 179 | AQ194: =SUMIFS(Periods!$11:$11,Periods!$2:$2,AP194) -> 2036-07-01 | AR194: =IF(OR(AQ194="",AQ194=0),"",MAX(AR$15:AR193)+1) -> 179 | AS194: 0
AP195: =MAX(AP$15:AP194)+1 -> 180 | AQ195: =SUMIFS(Periods!$11:$11,Periods!$2:$2,AP195) -> 2036-08-01 | AR195: =IF(OR(AQ195="",AQ195=0),"",MAX(AR$15:AR194)+1) -> 180 | AS195: 0
AP196: =MAX(AP$15:AP195)+1 -> 181 | AQ196: =SUMIFS(Periods!$11:$11,Periods!$2:$2,AP196) -> 00:00:00 | AR196: =IF(OR(AQ196="",AQ196=0),"",MAX(AR$15:AR195)+1) ->  | AS196: 0
AP197: =MAX(AP$15:AP196)+1 -> 182 | AQ197: =SUMIFS(Periods!$11:$11,Periods!$2:$2,AP197) -> 00:00:00 | AR197: =IF(OR(AQ197="",AQ197=0),"",MAX(AR$15:AR196)+1) ->  | AS197: 0
AP198: =MAX(AP$15:AP197)+1 -> 183 | AQ198: =SUMIFS(Periods!$11:$11,Periods!$2:$2,AP198) -> 00:00:00 | AR198: =IF(OR(AQ198="",AQ198=0),"",MAX(AR$15:AR197)+1) ->  | AS198: 0
AP199: =MAX(AP$15:AP198)+1 -> 184 | AQ199: =SUMIFS(Periods!$11:$11,Periods!$2:$2,AP199) -> 00:00:00 | AR199: =IF(OR(AQ199="",AQ199=0),"",MAX(AR$15:AR198)+1) ->  | AS199: 0
AP200: =MAX(AP$15:AP199)+1 -> 185 | AQ200: =SUMIFS(Periods!$11:$11,Periods!$2:$2,AP200) -> 00:00:00 | AR200: =IF(OR(AQ200="",AQ200=0),"",MAX(AR$15:AR199)+1) ->  | AS200: 0
AP201: =MAX(AP$15:AP200)+1 -> 186 | AQ201: =SUMIFS(Periods!$11:$11,Periods!$2:$2,AP201) -> 00:00:00 | AR201: =IF(OR(AQ201="",AQ201=0),"",MAX(AR$15:AR200)+1) ->  | AS201: 0
AP202: =MAX(AP$15:AP201)+1 -> 187 | AQ202: =SUMIFS(Periods!$11:$11,Periods!$2:$2,AP202) -> 00:00:00 | AR202: =IF(OR(AQ202="",AQ202=0),"",MAX(AR$15:AR201)+1) ->  | AS202: 0
AP203: =MAX(AP$15:AP202)+1 -> 188 | AQ203: =SUMIFS(Periods!$11:$11,Periods!$2:$2,AP203) -> 00:00:00 | AR203: =IF(OR(AQ203="",AQ203=0),"",MAX(AR$15:AR202)+1) ->  | AS203: 0
AP204: =MAX(AP$15:AP203)+1 -> 189 | AQ204: =SUMIFS(Periods!$11:$11,Periods!$2:$2,AP204) -> 00:00:00 | AR204: =IF(OR(AQ204="",AQ204=0),"",MAX(AR$15:AR203)+1) ->  | AS204: 0
AP205: =MAX(AP$15:AP204)+1 -> 190 | AQ205: =SUMIFS(Periods!$11:$11,Periods!$2:$2,AP205) -> 00:00:00 | AR205: =IF(OR(AQ205="",AQ205=0),"",MAX(AR$15:AR204)+1) ->  | AS205: 0
AP206: =MAX(AP$15:AP205)+1 -> 191 | AQ206: =SUMIFS(Periods!$11:$11,Periods!$2:$2,AP206) -> 00:00:00 | AR206: =IF(OR(AQ206="",AQ206=0),"",MAX(AR$15:AR205)+1) ->  | AS206: 0
AP207: =MAX(AP$15:AP206)+1 -> 192 | AQ207: =SUMIFS(Periods!$11:$11,Periods!$2:$2,AP207) -> 00:00:00 | AR207: =IF(OR(AQ207="",AQ207=0),"",MAX(AR$15:AR206)+1) ->  | AS207: 0
AP208: =MAX(AP$15:AP207)+1 -> 193 | AQ208: =SUMIFS(Periods!$11:$11,Periods!$2:$2,AP208) -> 00:00:00 | AR208: =IF(OR(AQ208="",AQ208=0),"",MAX(AR$15:AR207)+1) ->  | AS208: 0
... 207 more rows

Sheet Macro
Y1: номер столбца: | AA1: 27 | AB1: 28 | AC1: 29 | AD1: 30 | AE1: 31 | AF1: 32 | AG1: 33 | AH1: 34 | AI1: 35 | AJ1: 36 | AK1: 37 | AL1: 38 | AM1: 39 | AN1: 40 | AO1: 41 | AP1: 42 | AQ1: 43 | AR1: 44 | AS1: 45 | AT1: 46 | AU1: 47 | AV1: 48 | AW1: 49 | AX1: 50 | AY1: 51 | AZ1: 52 | BA1: 53 | BB1: 54 | BC1: 55 | BD1: 56 | BE1: 57 | BF1: 58 | BG1: 59 | BH1: 60 | BI1: 61 | BJ1: 62 | BK1: 63 | BL1: 64 | BM1: 65 | BN1: 66 | BO1: 67 | BP1: 68 | BQ1: 69 | BR1: 70 | BS1: 71 | BT1: 72 | BU1: 73 | BV1: 74 | BW1: 75 | BX1: 76 | BY1: 77 | BZ1: 78 | CA1: 79 | CB1: 80 | CC1: 81 | CD1: 82 | CE1: 83 | CF1: 84 | CG1: 85 | CH1: 86 | CI1: 87 | CJ1: 88 | CK1: 89 | CL1: 90 | CM1: 91 | CN1: 92 | CO1: 93 | CP1: 94 | CQ1: 95 | CR1: 96 | CS1: 97 | CT1: 98 | CU1: 99 | CV1: 100 | CW1: 101 | CX1: 102 | CY1: 103 | CZ1: 104 | DA1: 105 | DB1: 106 | DC1: 107 | DD1: 108 | DE1: 109 | DF1: 110 | DG1: 111 | DH1: 112 | DI1: 113 | DJ1: 114 | DK1: 115 | DL1: 116 | DM1: 117 | DN1: 118 | DO1: 119 | DP1: 120 | DQ1: 121 | DR1: 122 | DS1: 123 | DT1: 124 | DU1: 125 | DV1: 126 | DW1: 127 | DX1: 128 | DY1: 129 | DZ1: 130 | EA1: 131 | EB1: 132 | EC1: 133 | ED1: 134 | EE1: 135 | EF1: 136 | EG1: 137 | EH1: 138 | EI1: 139 | EJ1: 140 | EK1: 141 | EL1: 142 | EM1: 143 | EN1: 144 | EO1: 145 | EP1: 146 | EQ1: 147 | ER1: 148 | ES1: 149 | ET1: 150 | EU1: 151 | EV1: 152 | EW1: 153 | EX1: 154 | EY1: 155 | EZ1: 156 | FA1: 157 | FB1: 158 | FC1: 159 | FD1: 160 | FE1: 161 | FF1: 162 | FG1: 163 | FH1: 164 | FI1: 165 | FJ1: 166 | FK1: 167 | FL1: 168 | FM1: 169 | FN1: 170 | FO1: 171 | FP1: 172 | FQ1: 173 | FR1: 174 | FS1: 175 | FT1: 176 | FU1: 177 | FV1: 178 | FW1: 179 | FX1: 180 | FY1: 181 | FZ1: 182 | GA1: 183 | GB1: 184 | GC1: 185 | GD1: 186 | GE1: 187 | GF1: 188 | GG1: 189 | GH1: 190 | GI1: 191 | GJ1: 192 | GK1: 193 | GL1: 194 | GM1: 195 | GN1: 196 | GO1: 197 | GP1: 198 | GQ1: 199 | GR1: 200 | GS1: 201 | GT1: 202 | GU1: 203 | GV1: 204 | GW1: 205 | GX1: 206 | GY1: 207 | GZ1: 208 | HA1: 209 | HB1: 210 | HC1: 211 | HD1: 212 | HE1: 213 | HF1: 214 | HG1: 215 | HH1: 216 | HI1: 217 | HJ1: 218 | HK1: 219
Y2: номер периода модели: | AA2: 1 | AB2: 2 | AC2: 3 | AD2: 4 | AE2: 5 | AF2: 6 | AG2: 7 | AH2: 8 | AI2: 9 | AJ2: 10 | AK2: 11 | AL2: 12 | AM2: 13 | AN2: 14 | AO2: 15 | AP2: 16 | AQ2: 17 | AR2: 18 | AS2: 19 | AT2: 20 | AU2: 21 | AV2: 22 | AW2: 23 | AX2: 24 | AY2: 25 | AZ2: 26 | BA2: 27 | BB2: 28 | BC2: 29 | BD2: 30 | BE2: 31 | BF2: 32 | BG2: 33 | BH2: 34 | BI2: 35 | BJ2: 36 | BK2: 37 | BL2: 38 | BM2: 39 | BN2: 40 | BO2: 41 | BP2: 42 | BQ2: 43 | BR2: 44 | BS2: 45 | BT2: 46 | BU2: 47 | BV2: 48 | BW2: 49 | BX2: 50 | BY2: 51 | BZ2: 52 | CA2: 53 | CB2: 54 | CC2: 55 | CD2: 56 | CE2: 57 | CF2: 58 | CG2: 59 | CH2: 60 | CI2: 61 | CJ2: 62 | CK2: 63 | CL2: 64 | CM2: 65 | CN2: 66 | CO2: 67 | CP2: 68 | CQ2: 69 | CR2: 70 | CS2: 71 | CT2: 72 | CU2: 73 | CV2: 74 | CW2: 75 | CX2: 76 | CY2: 77 | CZ2: 78 | DA2: 79 | DB2: 80 | DC2: 81 | DD2: 82 | DE2: 83 | DF2: 84 | DG2: 85 | DH2: 86 | DI2: 87 | DJ2: 88 | DK2: 89 | DL2: 90 | DM2: 91 | DN2: 92 | DO2: 93 | DP2: 94 | DQ2: 95 | DR2: 96 | DS2: 97 | DT2: 98 | DU2: 99 | DV2: 100 | DW2: 101 | DX2: 102 | DY2: 103 | DZ2: 104 | EA2: 105 | EB2: 106 | EC2: 107 | ED2: 108 | EE2: 109 | EF2: 110 | EG2: 111 | EH2: 112 | EI2: 113 | EJ2: 114 | EK2: 115 | EL2: 116 | EM2: 117 | EN2: 118 | EO2: 119 | EP2: 120 | EQ2: 121 | ER2: 122 | ES2: 123 | ET2: 124 | EU2: 125 | EV2: 126 | EW2: 127 | EX2: 128 | EY2: 129 | EZ2: 130 | FA2: 131 | FB2: 132 | FC2: 133 | FD2: 134 | FE2: 135 | FF2: 136 | FG2: 137 | FH2: 138 | FI2: 139 | FJ2: 140 | FK2: 141 | FL2: 142 | FM2: 143 | FN2: 144 | FO2: 145 | FP2: 146 | FQ2: 147 | FR2: 148 | FS2: 149 | FT2: 150 | FU2: 151 | FV2: 152 | FW2: 153 | FX2: 154 | FY2: 155 | FZ2: 156 | GA2: 157 | GB2: 158 | GC2: 159 | GD2: 160 | GE2: 161 | GF2: 162 | GG2: 163 | GH2: 164 | GI2: 165 | GJ2: 166 | GK2: 167 | GL2: 168 | GM2: 169 | GN2: 170 | GO2: 171 | GP2: 172 | GQ2: 173 | GR2: 174 | GS2: 175 | GT2: 176 | GU2: 177 | GV2: 178 | GW2: 179 | GX2: 180 | GY2: 181 | GZ2: 182 | HA2: 183 | HB2: 184 | HC2: 185 | HD2: 186 | HE2: 187 | HF2: 188 | HG2: 189 | HH2: 190 | HI2: 191 | HJ2: 192 | HK2: 193
Y3: номер факт-периода:
Y4: номер план-периода: | AA4: 1 | AB4: 2 | AC4: 3 | AD4: 4 | AE4: 5 | AF4: 6 | AG4: 7 | AH4: 8 | AI4: 9 | AJ4: 10 | AK4: 11 | AL4: 12 | AM4: 13 | AN4: 14 | AO4: 15 | AP4: 16 | AQ4: 17 | AR4: 18 | AS4: 19 | AT4: 20 | AU4: 21 | AV4: 22 | AW4: 23 | AX4: 24 | AY4: 25 | AZ4: 26 | BA4: 27 | BB4: 28 | BC4: 29 | BD4: 30 | BE4: 31 | BF4: 32 | BG4: 33 | BH4: 34 | BI4: 35 | BJ4: 36 | BK4: 37 | BL4: 38 | BM4: 39 | BN4: 40 | BO4: 41 | BP4: 42 | BQ4: 43 | BR4: 44 | BS4: 45 | BT4: 46 | BU4: 47 | BV4: 48 | BW4: 49 | BX4: 50 | BY4: 51 | BZ4: 52 | CA4: 53 | CB4: 54 | CC4: 55 | CD4: 56 | CE4: 57 | CF4: 58 | CG4: 59 | CH4: 60 | CI4: 61 | CJ4: 62 | CK4: 63 | CL4: 64 | CM4: 65 | CN4: 66 | CO4: 67 | CP4: 68 | CQ4: 69 | CR4: 70 | CS4: 71 | CT4: 72 | CU4: 73 | CV4: 74 | CW4: 75 | CX4: 76 | CY4: 77 | CZ4: 78 | DA4: 79 | DB4: 80 | DC4: 81 | DD4: 82 | DE4: 83 | DF4: 84 | DG4: 85 | DH4: 86 | DI4: 87 | DJ4: 88 | DK4: 89 | DL4: 90 | DM4: 91 | DN4: 92 | DO4: 93 | DP4: 94 | DQ4: 95 | DR4: 96 | DS4: 97 | DT4: 98 | DU4: 99 | DV4: 100 | DW4: 101 | DX4: 102 | DY4: 103 | DZ4: 104 | EA4: 105 | EB4: 106 | EC4: 107 | ED4: 108 | EE4: 109 | EF4: 110 | EG4: 111 | EH4: 112 | EI4: 113 | EJ4: 114 | EK4: 115 | EL4: 116 | EM4: 117 | EN4: 118 | EO4: 119 | EP4: 120 | EQ4: 121 | ER4: 122 | ES4: 123 | ET4: 124 | EU4: 125 | EV4: 126 | EW4: 127 | EX4: 128 | EY4: 129 | EZ4: 130 | FA4: 131 | FB4: 132 | FC4: 133 | FD4: 134 | FE4: 135 | FF4: 136 | FG4: 137 | FH4: 138 | FI4: 139 | FJ4: 140 | FK4: 141 | FL4: 142 | FM4: 143 | FN4: 144 | FO4: 145 | FP4: 146 | FQ4: 147 | FR4: 148 | FS4: 149 | FT4: 150 | FU4: 151 | FV4: 152 | FW4: 153 | FX4: 154 | FY4: 155 | FZ4: 156 | GA4: 157 | GB4: 158 | GC4: 159 | GD4: 160 | GE4: 161 | GF4: 162 | GG4: 163 | GH4: 164 | GI4: 165 | GJ4: 166 | GK4: 167 | GL4: 168 | GM4: 169 | GN4: 170 | GO4: 171 | GP4: 172 | GQ4: 173 | GR4: 174 | GS4: 175 | GT4: 176 | GU4: 177 | GV4: 178 | GW4: 179 | GX4: 180
Y5: число даты начала: | AA5: 1 | AB5: 1 | AC5: 1 | AD5: 1 | AE5: 1 | AF5: 1 | AG5: 1 | AH5: 1 | AI5: 1 | AJ5: 1 | AK5: 1 | AL5: 1 | AM5: 1 | AN5: 1 | AO5: 1 | AP5: 1 | AQ5: 1 | AR5: 1 | AS5: 1 | AT5: 1 | AU5: 1 | AV5: 1 | AW5: 1 | AX5: 1 | AY5: 1 | AZ5: 1 | BA5: 1 | BB5: 1 | BC5: 1 | BD5: 1 | BE5: 1 | BF5: 1 | BG5: 1 | BH5: 1 | BI5: 1 | BJ5: 1 | BK5: 1 | BL5: 1 | BM5: 1 | BN5: 1 | BO5: 1 | BP5: 1 | BQ5: 1 | BR5: 1 | BS5: 1 | BT5: 1 | BU5: 1 | BV5: 1 | BW5: 1 | BX5: 1 | BY5: 1 | BZ5: 1 | CA5: 1 | CB5: 1 | CC5: 1 | CD5: 1 | CE5: 1 | CF5: 1 | CG5: 1 | CH5: 1 | CI5: 1 | CJ5: 1 | CK5: 1 | CL5: 1 | CM5: 1 | CN5: 1 | CO5: 1 | CP5: 1 | CQ5: 1 | CR5: 1 | CS5: 1 | CT5: 1 | CU5: 1 | CV5: 1 | CW5: 1 | CX5: 1 | CY5: 1 | CZ5: 1 | DA5: 1 | DB5: 1 | DC5: 1 | DD5: 1 | DE5: 1 | DF5: 1 | DG5: 1 | DH5: 1 | DI5: 1 | DJ5: 1 | DK5: 1 | DL5: 1 | DM5: 1 | DN5: 1 | DO5: 1 | DP5: 1 | DQ5: 1 | DR5: 1 | DS5: 1 | DT5: 1 | DU5: 1 | DV5: 1 | DW5: 1 | DX5: 1 | DY5: 1 | DZ5: 1 | EA5: 1 | EB5: 1 | EC5: 1 | ED5: 1 | EE5: 1 | EF5: 1 | EG5: 1 | EH5: 1 | EI5: 1 | EJ5: 1 | EK5: 1 | EL5: 1 | EM5: 1 | EN5: 1 | EO5: 1 | EP5: 1 | EQ5: 1 | ER5: 1 | ES5: 1 | ET5: 1 | EU5: 1 | EV5: 1 | EW5: 1 | EX5: 1 | EY5: 1 | EZ5: 1 | FA5: 1 | FB5: 1 | FC5: 1 | FD5: 1 | FE5: 1 | FF5: 1 | FG5: 1 | FH5: 1 | FI5: 1 | FJ5: 1 | FK5: 1 | FL5: 1 | FM5: 1 | FN5: 1 | FO5: 1 | FP5: 1 | FQ5: 1 | FR5: 1 | FS5: 1 | FT5: 1 | FU5: 1 | FV5: 1 | FW5: 1 | FX5: 1 | FY5: 1 | FZ5: 1 | GA5: 1 | GB5: 1 | GC5: 1 | GD5: 1 | GE5: 1 | GF5: 1 | GG5: 1 | GH5: 1 | GI5: 1 | GJ5: 1 | GK5: 1 | GL5: 1 | GM5: 1 | GN5: 1 | GO5: 1 | GP5: 1 | GQ5: 1 | GR5: 1 | GS5: 1 | GT5: 1 | GU5: 1 | GV5: 1 | GW5: 1 | GX5: 1
Y6: номер месяца даты начала: | AA6: 9 | AB6: 10 | AC6: 11 | AD6: 12 | AE6: 1 | AF6: 2 | AG6: 3 | AH6: 4 | AI6: 5 | AJ6: 6 | AK6: 7 | AL6: 8 | AM6: 9 | AN6: 10 | AO6: 11 | AP6: 12 | AQ6: 1 | AR6: 2 | AS6: 3 | AT6: 4 | AU6: 5 | AV6: 6 | AW6: 7 | AX6: 8 | AY6: 9 | AZ6: 10 | BA6: 11 | BB6: 12 | BC6: 1 | BD6: 2 | BE6: 3 | BF6: 4 | BG6: 5 | BH6: 6 | BI6: 7 | BJ6: 8 | BK6: 9 | BL6: 10 | BM6: 11 | BN6: 12 | BO6: 1 | BP6: 2 | BQ6: 3 | BR6: 4 | BS6: 5 | BT6: 6 | BU6: 7 | BV6: 8 | BW6: 9 | BX6: 10 | BY6: 11 | BZ6: 12 | CA6: 1 | CB6: 2 | CC6: 3 | CD6: 4 | CE6: 5 | CF6: 6 | CG6: 7 | CH6: 8 | CI6: 9 | CJ6: 10 | CK6: 11 | CL6: 12 | CM6: 1 | CN6: 2 | CO6: 3 | CP6: 4 | CQ6: 5 | CR6: 6 | CS6: 7 | CT6: 8 | CU6: 9 | CV6: 10 | CW6: 11 | CX6: 12 | CY6: 1 | CZ6: 2 | DA6: 3 | DB6: 4 | DC6: 5 | DD6: 6 | DE6: 7 | DF6: 8 | DG6: 9 | DH6: 10 | DI6: 11 | DJ6: 12 | DK6: 1 | DL6: 2 | DM6: 3 | DN6: 4 | DO6: 5 | DP6: 6 | DQ6: 7 | DR6: 8 | DS6: 9 | DT6: 10 | DU6: 11 | DV6: 12 | DW6: 1 | DX6: 2 | DY6: 3 | DZ6: 4 | EA6: 5 | EB6: 6 | EC6: 7 | ED6: 8 | EE6: 9 | EF6: 10 | EG6: 11 | EH6: 12 | EI6: 1 | EJ6: 2 | EK6: 3 | EL6: 4 | EM6: 5 | EN6: 6 | EO6: 7 | EP6: 8 | EQ6: 9 | ER6: 10 | ES6: 11 | ET6: 12 | EU6: 1 | EV6: 2 | EW6: 3 | EX6: 4 | EY6: 5 | EZ6: 6 | FA6: 7 | FB6: 8 | FC6: 9 | FD6: 10 | FE6: 11 | FF6: 12 | FG6: 1 | FH6: 2 | FI6: 3 | FJ6: 4 | FK6: 5 | FL6: 6 | FM6: 7 | FN6: 8 | FO6: 9 | FP6: 10 | FQ6: 11 | FR6: 12 | FS6: 1 | FT6: 2 | FU6: 3 | FV6: 4 | FW6: 5 | FX6: 6 | FY6: 7 | FZ6: 8 | GA6: 9 | GB6: 10 | GC6: 11 | GD6: 12 | GE6: 1 | GF6: 2 | GG6: 3 | GH6: 4 | GI6: 5 | GJ6: 6 | GK6: 7 | GL6: 8 | GM6: 9 | GN6: 10 | GO6: 11 | GP6: 12 | GQ6: 1 | GR6: 2 | GS6: 3 | GT6: 4 | GU6: 5 | GV6: 6 | GW6: 7 | GX6: 8
Y7: год даты начала: | AA7: 21 | AB7: 21 | AC7: 21 | AD7: 21 | AE7: 22 | AF7: 22 | AG7: 22 | AH7: 22 | AI7: 22 | AJ7: 22 | AK7: 22 | AL7: 22 | AM7: 22 | AN7: 22 | AO7: 22 | AP7: 22 | AQ7: 23 | AR7: 23 | AS7: 23 | AT7: 23 | AU7: 23 | AV7: 23 | AW7: 23 | AX7: 23 | AY7: 23 | AZ7: 23 | BA7: 23 | BB7: 23 | BC7: 24 | BD7: 24 | BE7: 24 | BF7: 24 | BG7: 24 | BH7: 24 | BI7: 24 | BJ7: 24 | BK7: 24 | BL7: 24 | BM7: 24 | BN7: 24 | BO7: 25 | BP7: 25 | BQ7: 25 | BR7: 25 | BS7: 25 | BT7: 25 | BU7: 25 | BV7: 25 | BW7: 25 | BX7: 25 | BY7: 25 | BZ7: 25 | CA7: 26 | CB7: 26 | CC7: 26 | CD7: 26 | CE7: 26 | CF7: 26 | CG7: 26 | CH7: 26 | CI7: 26 | CJ7: 26 | CK7: 26 | CL7: 26 | CM7: 27 | CN7: 27 | CO7: 27 | CP7: 27 | CQ7: 27 | CR7: 27 | CS7: 27 | CT7: 27 | CU7: 27 | CV7: 27 | CW7: 27 | CX7: 27 | CY7: 28 | CZ7: 28 | DA7: 28 | DB7: 28 | DC7: 28 | DD7: 28 | DE7: 28 | DF7: 28 | DG7: 28 | DH7: 28 | DI7: 28 | DJ7: 28 | DK7: 29 | DL7: 29 | DM7: 29 | DN7: 29 | DO7: 29 | DP7: 29 | DQ7: 29 | DR7: 29 | DS7: 29 | DT7: 29 | DU7: 29 | DV7: 29 | DW7: 30 | DX7: 30 | DY7: 30 | DZ7: 30 | EA7: 30 | EB7: 30 | EC7: 30 | ED7: 30 | EE7: 30 | EF7: 30 | EG7: 30 | EH7: 30 | EI7: 31 | EJ7: 31 | EK7: 31 | EL7: 31 | EM7: 31 | EN7: 31 | EO7: 31 | EP7: 31 | EQ7: 31 | ER7: 31 | ES7: 31 | ET7: 31 | EU7: 32 | EV7: 32 | EW7: 32 | EX7: 32 | EY7: 32 | EZ7: 32 | FA7: 32 | FB7: 32 | FC7: 32 | FD7: 32 | FE7: 32 | FF7: 32 | FG7: 33 | FH7: 33 | FI7: 33 | FJ7: 33 | FK7: 33 | FL7: 33 | FM7: 33 | FN7: 33 | FO7: 33 | FP7: 33 | FQ7: 33 | FR7: 33 | FS7: 34 | FT7: 34 | FU7: 34 | FV7: 34 | FW7: 34 | FX7: 34 | FY7: 34 | FZ7: 34 | GA7: 34 | GB7: 34 | GC7: 34 | GD7: 34 | GE7: 35 | GF7: 35 | GG7: 35 | GH7: 35 | GI7: 35 | GJ7: 35 | GK7: 35 | GL7: 35 | GM7: 35 | GN7: 35 | GO7: 35 | GP7: 35 | GQ7: 36 | GR7: 36 | GS7: 36 | GT7: 36 | GU7: 36 | GV7: 36 | GW7: 36 | GX7: 36
Y8: число даты окончания: | AA8: 30 | AB8: 31 | AC8: 30 | AD8: 31 | AE8: 31 | AF8: 28 | AG8: 31 | AH8: 30 | AI8: 31 | AJ8: 30 | AK8: 31 | AL8: 31 | AM8: 30 | AN8: 31 | AO8: 30 | AP8: 31 | AQ8: 31 | AR8: 28 | AS8: 31 | AT8: 30 | AU8: 31 | AV8: 30 | AW8: 31 | AX8: 31 | AY8: 30 | AZ8: 31 | BA8: 30 | BB8: 31 | BC8: 31 | BD8: 29 | BE8: 31 | BF8: 30 | BG8: 31 | BH8: 30 | BI8: 31 | BJ8: 31 | BK8: 30 | BL8: 31 | BM8: 30 | BN8: 31 | BO8: 31 | BP8: 28 | BQ8: 31 | BR8: 30 | BS8: 31 | BT8: 30 | BU8: 31 | BV8: 31 | BW8: 30 | BX8: 31 | BY8: 30 | BZ8: 31 | CA8: 31 | CB8: 28 | CC8: 31 | CD8: 30 | CE8: 31 | CF8: 30 | CG8: 31 | CH8: 31 | CI8: 30 | CJ8: 31 | CK8: 30 | CL8: 31 | CM8: 31 | CN8: 28 | CO8: 31 | CP8: 30 | CQ8: 31 | CR8: 30 | CS8: 31 | CT8: 31 | CU8: 30 | CV8: 31 | CW8: 30 | CX8: 31 | CY8: 31 | CZ8: 29 | DA8: 31 | DB8: 30 | DC8: 31 | DD8: 30 | DE8: 31 | DF8: 31 | DG8: 30 | DH8: 31 | DI8: 30 | DJ8: 31 | DK8: 31 | DL8: 28 | DM8: 31 | DN8: 30 | DO8: 31 | DP8: 30 | DQ8: 31 | DR8: 31 | DS8: 30 | DT8: 31 | DU8: 30 | DV8: 31 | DW8: 31 | DX8: 28 | DY8: 31 | DZ8: 30 | EA8: 31 | EB8: 30 | EC8: 31 | ED8: 31 | EE8: 30 | EF8: 31 | EG8: 30 | EH8: 31 | EI8: 31 | EJ8: 28 | EK8: 31 | EL8: 30 | EM8: 31 | EN8: 30 | EO8: 31 | EP8: 31 | EQ8: 30 | ER8: 31 | ES8: 30 | ET8: 31 | EU8: 31 | EV8: 29 | EW8: 31 | EX8: 30 | EY8: 31 | EZ8: 30 | FA8: 31 | FB8: 31 | FC8: 30 | FD8: 31 | FE8: 30 | FF8: 31 | FG8: 31 | FH8: 28 | FI8: 31 | FJ8: 30 | FK8: 31 | FL8: 30 | FM8: 31 | FN8: 31 | FO8: 30 | FP8: 31 | FQ8: 30 | FR8: 31 | FS8: 31 | FT8: 28 | FU8: 31 | FV8: 30 | FW8: 31 | FX8: 30 | FY8: 31 | FZ8: 31 | GA8: 30 | GB8: 31 | GC8: 30 | GD8: 31 | GE8: 31 | GF8: 28 | GG8: 31 | GH8: 30 | GI8: 31 | GJ8: 30 | GK8: 31 | GL8: 31 | GM8: 30 | GN8: 31 | GO8: 30 | GP8: 31 | GQ8: 31 | GR8: 29 | GS8: 31 | GT8: 30 | GU8: 31 | GV8: 30 | GW8: 31 | GX8: 31
Y9: номер месяца даты окончания: | AA9: 9 | AB9: 10 | AC9: 11 | AD9: 12 | AE9: 1 | AF9: 2 | AG9: 3 | AH9: 4 | AI9: 5 | AJ9: 6 | AK9: 7 | AL9: 8 | AM9: 9 | AN9: 10 | AO9: 11 | AP9: 12 | AQ9: 1 | AR9: 2 | AS9: 3 | AT9: 4 | AU9: 5 | AV9: 6 | AW9: 7 | AX9: 8 | AY9: 9 | AZ9: 10 | BA9: 11 | BB9: 12 | BC9: 1 | BD9: 2 | BE9: 3 | BF9: 4 | BG9: 5 | BH9: 6 | BI9: 7 | BJ9: 8 | BK9: 9 | BL9: 10 | BM9: 11 | BN9: 12 | BO9: 1 | BP9: 2 | BQ9: 3 | BR9: 4 | BS9: 5 | BT9: 6 | BU9: 7 | BV9: 8 | BW9: 9 | BX9: 10 | BY9: 11 | BZ9: 12 | CA9: 1 | CB9: 2 | CC9: 3 | CD9: 4 | CE9: 5 | CF9: 6 | CG9: 7 | CH9: 8 | CI9: 9 | CJ9: 10 | CK9: 11 | CL9: 12 | CM9: 1 | CN9: 2 | CO9: 3 | CP9: 4 | CQ9: 5 | CR9: 6 | CS9: 7 | CT9: 8 | CU9: 9 | CV9: 10 | CW9: 11 | CX9: 12 | CY9: 1 | CZ9: 2 | DA9: 3 | DB9: 4 | DC9: 5 | DD9: 6 | DE9: 7 | DF9: 8 | DG9: 9 | DH9: 10 | DI9: 11 | DJ9: 12 | DK9: 1 | DL9: 2 | DM9: 3 | DN9: 4 | DO9: 5 | DP9: 6 | DQ9: 7 | DR9: 8 | DS9: 9 | DT9: 10 | DU9: 11 | DV9: 12 | DW9: 1 | DX9: 2 | DY9: 3 | DZ9: 4 | EA9: 5 | EB9: 6 | EC9: 7 | ED9: 8 | EE9: 9 | EF9: 10 | EG9: 11 | EH9: 12 | EI9: 1 | EJ9: 2 | EK9: 3 | EL9: 4 | EM9: 5 | EN9: 6 | EO9: 7 | EP9: 8 | EQ9: 9 | ER9: 10 | ES9: 11 | ET9: 12 | EU9: 1 | EV9: 2 | EW9: 3 | EX9: 4 | EY9: 5 | EZ9: 6 | FA9: 7 | FB9: 8 | FC9: 9 | FD9: 10 | FE9: 11 | FF9: 12 | FG9: 1 | FH9: 2 | FI9: 3 | FJ9: 4 | FK9: 5 | FL9: 6 | FM9: 7 | FN9: 8 | FO9: 9 | FP9: 10 | FQ9: 11 | FR9: 12 | FS9: 1 | FT9: 2 | FU9: 3 | FV9: 4 | FW9: 5 | FX9: 6 | FY9: 7 | FZ9: 8 | GA9: 9 | GB9: 10 | GC9: 11 | GD9: 12 | GE9: 1 | GF9: 2 | GG9: 3 | GH9: 4 | GI9: 5 | GJ9: 6 | GK9: 7 | GL9: 8 | GM9: 9 | GN9: 10 | GO9: 11 | GP9: 12 | GQ9: 1 | GR9: 2 | GS9: 3 | GT9: 4 | GU9: 5 | GV9: 6 | GW9: 7 | GX9: 8
Y10: год даты окончания: | AA10: 21 | AB10: 21 | AC10: 21 | AD10: 21 | AE10: 22 | AF10: 22 | AG10: 22 | AH10: 22 | AI10: 22 | AJ10: 22 | AK10: 22 | AL10: 22 | AM10: 22 | AN10: 22 | AO10: 22 | AP10: 22 | AQ10: 23 | AR10: 23 | AS10: 23 | AT10: 23 | AU10: 23 | AV10: 23 | AW10: 23 | AX10: 23 | AY10: 23 | AZ10: 23 | BA10: 23 | BB10: 23 | BC10: 24 | BD10: 24 | BE10: 24 | BF10: 24 | BG10: 24 | BH10: 24 | BI10: 24 | BJ10: 24 | BK10: 24 | BL10: 24 | BM10: 24 | BN10: 24 | BO10: 25 | BP10: 25 | BQ10: 25 | BR10: 25 | BS10: 25 | BT10: 25 | BU10: 25 | BV10: 25 | BW10: 25 | BX10: 25 | BY10: 25 | BZ10: 25 | CA10: 26 | CB10: 26 | CC10: 26 | CD10: 26 | CE10: 26 | CF10: 26 | CG10: 26 | CH10: 26 | CI10: 26 | CJ10: 26 | CK10: 26 | CL10: 26 | CM10: 27 | CN10: 27 | CO10: 27 | CP10: 27 | CQ10: 27 | CR10: 27 | CS10: 27 | CT10: 27 | CU10: 27 | CV10: 27 | CW10: 27 | CX10: 27 | CY10: 28 | CZ10: 28 | DA10: 28 | DB10: 28 | DC10: 28 | DD10: 28 | DE10: 28 | DF10: 28 | DG10: 28 | DH10: 28 | DI10: 28 | DJ10: 28 | DK10: 29 | DL10: 29 | DM10: 29 | DN10: 29 | DO10: 29 | DP10: 29 | DQ10: 29 | DR10: 29 | DS10: 29 | DT10: 29 | DU10: 29 | DV10: 29 | DW10: 30 | DX10: 30 | DY10: 30 | DZ10: 30 | EA10: 30 | EB10: 30 | EC10: 30 | ED10: 30 | EE10: 30 | EF10: 30 | EG10: 30 | EH10: 30 | EI10: 31 | EJ10: 31 | EK10: 31 | EL10: 31 | EM10: 31 | EN10: 31 | EO10: 31 | EP10: 31 | EQ10: 31 | ER10: 31 | ES10: 31 | ET10: 31 | EU10: 32 | EV10: 32 | EW10: 32 | EX10: 32 | EY10: 32 | EZ10: 32 | FA10: 32 | FB10: 32 | FC10: 32 | FD10: 32 | FE10: 32 | FF10: 32 | FG10: 33 | FH10: 33 | FI10: 33 | FJ10: 33 | FK10: 33 | FL10: 33 | FM10: 33 | FN10: 33 | FO10: 33 | FP10: 33 | FQ10: 33 | FR10: 33 | FS10: 34 | FT10: 34 | FU10: 34 | FV10: 34 | FW10: 34 | FX10: 34 | FY10: 34 | FZ10: 34 | GA10: 34 | GB10: 34 | GC10: 34 | GD10: 34 | GE10: 35 | GF10: 35 | GG10: 35 | GH10: 35 | GI10: 35 | GJ10: 35 | GK10: 35 | GL10: 35 | GM10: 35 | GN10: 35 | GO10: 35 | GP10: 35 | GQ10: 36 | GR10: 36 | GS10: 36 | GT10: 36 | GU10: 36 | GV10: 36 | GW10: 36 | GX10: 36
F11: Macro | I11: Макропоказатели внешней среды | X11: 2021-09-01 | AA11: 2021-09-01 | AB11: 2021-10-01 | AC11: 2021-11-01 | AD11: 2021-12-01 | AE11: 2022-01-01 | AF11: 2022-02-01 | AG11: 2022-03-01 | AH11: 2022-04-01 | AI11: 2022-05-01 | AJ11: 2022-06-01 | AK11: 2022-07-01 | AL11: 2022-08-01 | AM11: 2022-09-01 | AN11: 2022-10-01 | AO11: 2022-11-01 | AP11: 2022-12-01 | AQ11: 2023-01-01 | AR11: 2023-02-01 | AS11: 2023-03-01 | AT11: 2023-04-01 | AU11: 2023-05-01 | AV11: 2023-06-01 | AW11: 2023-07-01 | AX11: 2023-08-01 | AY11: 2023-09-01 | AZ11: 2023-10-01 | BA11: 2023-11-01 | BB11: 2023-12-01 | BC11: 2024-01-01 | BD11: 2024-02-01 | BE11: 2024-03-01 | BF11: 2024-04-01 | BG11: 2024-05-01 | BH11: 2024-06-01 | BI11: 2024-07-01 | BJ11: 2024-08-01 | BK11: 2024-09-01 | BL11: 2024-10-01 | BM11: 2024-11-01 | BN11: 2024-12-01 | BO11: 2025-01-01 | BP11: 2025-02-01 | BQ11: 2025-03-01 | BR11: 2025-04-01 | BS11: 2025-05-01 | BT11: 2025-06-01 | BU11: 2025-07-01 | BV11: 2025-08-01 | BW11: 2025-09-01 | BX11: 2025-10-01 | BY11: 2025-11-01 | BZ11: 2025-12-01 | CA11: 2026-01-01 | CB11: 2026-02-01 | CC11: 2026-03-01 | CD11: 2026-04-01 | CE11: 2026-05-01 | CF11: 2026-06-01 | CG11: 2026-07-01 | CH11: 2026-08-01 | CI11: 2026-09-01 | CJ11: 2026-10-01 | CK11: 2026-11-01 | CL11: 2026-12-01 | CM11: 2027-01-01 | CN11: 2027-02-01 | CO11: 2027-03-01 | CP11: 2027-04-01 | CQ11: 2027-05-01 | CR11: 2027-06-01 | CS11: 2027-07-01 | CT11: 2027-08-01 | CU11: 2027-09-01 | CV11: 2027-10-01 | CW11: 2027-11-01 | CX11: 2027-12-01 | CY11: 2028-01-01 | CZ11: 2028-02-01 | DA11: 2028-03-01 | DB11: 2028-04-01 | DC11: 2028-05-01 | DD11: 2028-06-01 | DE11: 2028-07-01 | DF11: 2028-08-01 | DG11: 2028-09-01 | DH11: 2028-10-01 | DI11: 2028-11-01 | DJ11: 2028-12-01 | DK11: 2029-01-01 | DL11: 2029-02-01 | DM11: 2029-03-01 | DN11: 2029-04-01 | DO11: 2029-05-01 | DP11: 2029-06-01 | DQ11: 2029-07-01 | DR11: 2029-08-01 | DS11: 2029-09-01 | DT11: 2029-10-01 | DU11: 2029-11-01 | DV11: 2029-12-01 | DW11: 2030-01-01 | DX11: 2030-02-01 | DY11: 2030-03-01 | DZ11: 2030-04-01 | EA11: 2030-05-01 | EB11: 2030-06-01 | EC11: 2030-07-01 | ED11: 2030-08-01 | EE11: 2030-09-01 | EF11: 2030-10-01 | EG11: 2030-11-01 | EH11: 2030-12-01 | EI11: 2031-01-01 | EJ11: 2031-02-01 | EK11: 2031-03-01 | EL11: 2031-04-01 | EM11: 2031-05-01 | EN11: 2031-06-01 | EO11: 2031-07-01 | EP11: 2031-08-01 | EQ11: 2031-09-01 | ER11: 2031-10-01 | ES11: 2031-11-01 | ET11: 2031-12-01 | EU11: 2032-01-01 | EV11: 2032-02-01 | EW11: 2032-03-01 | EX11: 2032-04-01 | EY11: 2032-05-01 | EZ11: 2032-06-01 | FA11: 2032-07-01 | FB11: 2032-08-01 | FC11: 2032-09-01 | FD11: 2032-10-01 | FE11: 2032-11-01 | FF11: 2032-12-01 | FG11: 2033-01-01 | FH11: 2033-02-01 | FI11: 2033-03-01 | FJ11: 2033-04-01 | FK11: 2033-05-01 | FL11: 2033-06-01 | FM11: 2033-07-01 | FN11: 2033-08-01 | FO11: 2033-09-01 | FP11: 2033-10-01 | FQ11: 2033-11-01 | FR11: 2033-12-01 | FS11: 2034-01-01 | FT11: 2034-02-01 | FU11: 2034-03-01 | FV11: 2034-04-01 | FW11: 2034-05-01 | FX11: 2034-06-01 | FY11: 2034-07-01 | FZ11: 2034-08-01 | GA11: 2034-09-01 | GB11: 2034-10-01 | GC11: 2034-11-01 | GD11: 2034-12-01 | GE11: 2035-01-01 | GF11: 2035-02-01 | GG11: 2035-03-01 | GH11: 2035-04-01 | GI11: 2035-05-01 | GJ11: 2035-06-01 | GK11: 2035-07-01 | GL11: 2035-08-01 | GM11: 2035-09-01 | GN11: 2035-10-01 | GO11: 2035-11-01 | GP11: 2035-12-01 | GQ11: 2036-01-01 | GR11: 2036-02-01 | GS11: 2036-03-01 | GT11: 2036-04-01 | GU11: 2036-05-01 | GV11: 2036-06-01 | GW11: 2036-07-01 | GX11: 2036-08-01
H12: тип листа | Q12: расчетный | X12: 2036-08-31 | AA12: 2021-09-30 | AB12: 2021-10-31 | AC12: 2021-11-30 | AD12: 2021-12-31 | AE12: 2022-01-31 | AF12: 2022-02-28 | AG12: 2022-03-31 | AH12: 2022-04-30 | AI12: 2022-05-31 | AJ12: 2022-06-30 | AK12: 2022-07-31 | AL12: 2022-08-31 | AM12: 2022-09-30 | AN12: 2022-10-31 | AO12: 2022-11-30 | AP12: 2022-12-31 | AQ12: 2023-01-31 | AR12: 2023-02-28 | AS12: 2023-03-31 | AT12: 2023-04-30 | AU12: 2023-05-31 | AV12: 2023-06-30 | AW12: 2023-07-31 | AX12: 2023-08-31 | AY12: 2023-09-30 | AZ12: 2023-10-31 | BA12: 2023-11-30 | BB12: 2023-12-31 | BC12: 2024-01-31 | BD12: 2024-02-29 | BE12: 2024-03-31 | BF12: 2024-04-30 | BG12: 2024-05-31 | BH12: 2024-06-30 | BI12: 2024-07-31 | BJ12: 2024-08-31 | BK12: 2024-09-30 | BL12: 2024-10-31 | BM12: 2024-11-30 | BN12: 2024-12-31 | BO12: 2025-01-31 | BP12: 2025-02-28 | BQ12: 2025-03-31 | BR12: 2025-04-30 | BS12: 2025-05-31 | BT12: 2025-06-30 | BU12: 2025-07-31 | BV12: 2025-08-31 | BW12: 2025-09-30 | BX12: 2025-10-31 | BY12: 2025-11-30 | BZ12: 2025-12-31 | CA12: 2026-01-31 | CB12: 2026-02-28 | CC12: 2026-03-31 | CD12: 2026-04-30 | CE12: 2026-05-31 | CF12: 2026-06-30 | CG12: 2026-07-31 | CH12: 2026-08-31 | CI12: 2026-09-30 | CJ12: 2026-10-31 | CK12: 2026-11-30 | CL12: 2026-12-31 | CM12: 2027-01-31 | CN12: 2027-02-28 | CO12: 2027-03-31 | CP12: 2027-04-30 | CQ12: 2027-05-31 | CR12: 2027-06-30 | CS12: 2027-07-31 | CT12: 2027-08-31 | CU12: 2027-09-30 | CV12: 2027-10-31 | CW12: 2027-11-30 | CX12: 2027-12-31 | CY12: 2028-01-31 | CZ12: 2028-02-29 | DA12: 2028-03-31 | DB12: 2028-04-30 | DC12: 2028-05-31 | DD12: 2028-06-30 | DE12: 2028-07-31 | DF12: 2028-08-31 | DG12: 2028-09-30 | DH12: 2028-10-31 | DI12: 2028-11-30 | DJ12: 2028-12-31 | DK12: 2029-01-31 | DL12: 2029-02-28 | DM12: 2029-03-31 | DN12: 2029-04-30 | DO12: 2029-05-31 | DP12: 2029-06-30 | DQ12: 2029-07-31 | DR12: 2029-08-31 | DS12: 2029-09-30 | DT12: 2029-10-31 | DU12: 2029-11-30 | DV12: 2029-12-31 | DW12: 2030-01-31 | DX12: 2030-02-28 | DY12: 2030-03-31 | DZ12: 2030-04-30 | EA12: 2030-05-31 | EB12: 2030-06-30 | EC12: 2030-07-31 | ED12: 2030-08-31 | EE12: 2030-09-30 | EF12: 2030-10-31 | EG12: 2030-11-30 | EH12: 2030-12-31 | EI12: 2031-01-31 | EJ12: 2031-02-28 | EK12: 2031-03-31 | EL12: 2031-04-30 | EM12: 2031-05-31 | EN12: 2031-06-30 | EO12: 2031-07-31 | EP12: 2031-08-31 | EQ12: 2031-09-30 | ER12: 2031-10-31 | ES12: 2031-11-30 | ET12: 2031-12-31 | EU12: 2032-01-31 | EV12: 2032-02-29 | EW12: 2032-03-31 | EX12: 2032-04-30 | EY12: 2032-05-31 | EZ12: 2032-06-30 | FA12: 2032-07-31 | FB12: 2032-08-31 | FC12: 2032-09-30 | FD12: 2032-10-31 | FE12: 2032-11-30 | FF12: 2032-12-31 | FG12: 2033-01-31 | FH12: 2033-02-28 | FI12: 2033-03-31 | FJ12: 2033-04-30 | FK12: 2033-05-31 | FL12: 2033-06-30 | FM12: 2033-07-31 | FN12: 2033-08-31 | FO12: 2033-09-30 | FP12: 2033-10-31 | FQ12: 2033-11-30 | FR12: 2033-12-31 | FS12: 2034-01-31 | FT12: 2034-02-28 | FU12: 2034-03-31 | FV12: 2034-04-30 | FW12: 2034-05-31 | FX12: 2034-06-30 | FY12: 2034-07-31 | FZ12: 2034-08-31 | GA12: 2034-09-30 | GB12: 2034-10-31 | GC12: 2034-11-30 | GD12: 2034-12-31 | GE12: 2035-01-31 | GF12: 2035-02-28 | GG12: 2035-03-31 | GH12: 2035-04-30 | GI12: 2035-05-31 | GJ12: 2035-06-30 | GK12: 2035-07-31 | GL12: 2035-08-31 | GM12: 2035-09-30 | GN12: 2035-10-31 | GO12: 2035-11-30 | GP12: 2035-12-31 | GQ12: 2036-01-31 | GR12: 2036-02-29 | GS12: 2036-03-31 | GT12: 2036-04-30 | GU12: 2036-05-31 | GV12: 2036-06-30 | GW12: 2036-07-31 | GX12: 2036-08-31
H13: показатель | M13: ед.изм. | Q13: значение | X13: итого | AA13: 2021-09-01 | AB13: 2021-10-01 | AC13: 2021-11-01 | AD13: 2021-12-01 | AE13: 2022-01-01 | AF13: 2022-02-01 | AG13: 2022-03-01 | AH13: 2022-04-01 | AI13: 2022-05-01 | AJ13: 2022-06-01 | AK13: 2022-07-01 | AL13: 2022-08-01 | AM13: 2022-09-01 | AN13: 2022-10-01 | AO13: 2022-11-01 | AP13: 2022-12-01 | AQ13: 2023-01-01 | AR13: 2023-02-01 | AS13: 2023-03-01 | AT13: 2023-04-01 | AU13: 2023-05-01 | AV13: 2023-06-01 | AW13: 2023-07-01 | AX13: 2023-08-01 | AY13: 2023-09-01 | AZ13: 2023-10-01 | BA13: 2023-11-01 | BB13: 2023-12-01 | BC13: 2024-01-01 | BD13: 2024-02-01 | BE13: 2024-03-01 | BF13: 2024-04-01 | BG13: 2024-05-01 | BH13: 2024-06-01 | BI13: 2024-07-01 | BJ13: 2024-08-01 | BK13: 2024-09-01 | BL13: 2024-10-01 | BM13: 2024-11-01 | BN13: 2024-12-01 | BO13: 2025-01-01 | BP13: 2025-02-01 | BQ13: 2025-03-01 | BR13: 2025-04-01 | BS13: 2025-05-01 | BT13: 2025-06-01 | BU13: 2025-07-01 | BV13: 2025-08-01 | BW13: 2025-09-01 | BX13: 2025-10-01 | BY13: 2025-11-01 | BZ13: 2025-12-01 | CA13: 2026-01-01 | CB13: 2026-02-01 | CC13: 2026-03-01 | CD13: 2026-04-01 | CE13: 2026-05-01 | CF13: 2026-06-01 | CG13: 2026-07-01 | CH13: 2026-08-01 | CI13: 2026-09-01 | CJ13: 2026-10-01 | CK13: 2026-11-01 | CL13: 2026-12-01 | CM13: 2027-01-01 | CN13: 2027-02-01 | CO13: 2027-03-01 | CP13: 2027-04-01 | CQ13: 2027-05-01 | CR13: 2027-06-01 | CS13: 2027-07-01 | CT13: 2027-08-01 | CU13: 2027-09-01 | CV13: 2027-10-01 | CW13: 2027-11-01 | CX13: 2027-12-01 | CY13: 2028-01-01 | CZ13: 2028-02-01 | DA13: 2028-03-01 | DB13: 2028-04-01 | DC13: 2028-05-01 | DD13: 2028-06-01 | DE13: 2028-07-01 | DF13: 2028-08-01 | DG13: 2028-09-01 | DH13: 2028-10-01 | DI13: 2028-11-01 | DJ13: 2028-12-01 | DK13: 2029-01-01 | DL13: 2029-02-01 | DM13: 2029-03-01 | DN13: 2029-04-01 | DO13: 2029-05-01 | DP13: 2029-06-01 | DQ13: 2029-07-01 | DR13: 2029-08-01 | DS13: 2029-09-01 | DT13: 2029-10-01 | DU13: 2029-11-01 | DV13: 2029-12-01 | DW13: 2030-01-01 | DX13: 2030-02-01 | DY13: 2030-03-01 | DZ13: 2030-04-01 | EA13: 2030-05-01 | EB13: 2030-06-01 | EC13: 2030-07-01 | ED13: 2030-08-01 | EE13: 2030-09-01 | EF13: 2030-10-01 | EG13: 2030-11-01 | EH13: 2030-12-01 | EI13: 2031-01-01 | EJ13: 2031-02-01 | EK13: 2031-03-01 | EL13: 2031-04-01 | EM13: 2031-05-01 | EN13: 2031-06-01 | EO13: 2031-07-01 | EP13: 2031-08-01 | EQ13: 2031-09-01 | ER13: 2031-10-01 | ES13: 2031-11-01 | ET13: 2031-12-01 | EU13: 2032-01-01 | EV13: 2032-02-01 | EW13: 2032-03-01 | EX13: 2032-04-01 | EY13: 2032-05-01 | EZ13: 2032-06-01 | FA13: 2032-07-01 | FB13: 2032-08-01 | FC13: 2032-09-01 | FD13: 2032-10-01 | FE13: 2032-11-01 | FF13: 2032-12-01 | FG13: 2033-01-01 | FH13: 2033-02-01 | FI13: 2033-03-01 | FJ13: 2033-04-01 | FK13: 2033-05-01 | FL13: 2033-06-01 | FM13: 2033-07-01 | FN13: 2033-08-01 | FO13: 2033-09-01 | FP13: 2033-10-01 | FQ13: 2033-11-01 | FR13: 2033-12-01 | FS13: 2034-01-01 | FT13: 2034-02-01 | FU13: 2034-03-01 | FV13: 2034-04-01 | FW13: 2034-05-01 | FX13: 2034-06-01 | FY13: 2034-07-01 | FZ13: 2034-08-01 | GA13: 2034-09-01 | GB13: 2034-10-01 | GC13: 2034-11-01 | GD13: 2034-12-01 | GE13: 2035-01-01 | GF13: 2035-02-01 | GG13: 2035-03-01 | GH13: 2035-04-01 | GI13: 2035-05-01 | GJ13: 2035-06-01 | GK13: 2035-07-01 | GL13: 2035-08-01 | GM13: 2035-09-01 | GN13: 2035-10-01 | GO13: 2035-11-01 | GP13: 2035-12-01 | GQ13: 2036-01-01 | GR13: 2036-02-01 | GS13: 2036-03-01 | GT13: 2036-04-01 | GU13: 2036-05-01 | GV13: 2036-06-01 | GW13: 2036-07-01 | GX13: 2036-08-01
D14: 0 | E14: 0 | F14: 0 | G14: 0 | S14: 0 | T14: 0
A15: 15 | H15: разработка финмоделей: https://mngmnt.ru/
A16: 16 | G16: 0 | H16: Параметры рабочего дня сотрудника
A17: 17 | G17: 0 | H17: Параметры рабочего дня сотрудника | I17: Время одной смены рабочего дня | M17: кол-во часов | P17: * | Q17: 8 | S17: 0
A18: 18 | G18: 0 | H18: Параметры рабочего дня сотрудника | I18: Количество рабочих дней в месяце | M18: р.дней/мес. | P18: * | Q18: 20 | S18: 0
A19: 19 | G19: 0 | H19: Параметры рабочего дня сотрудника | I19: Количество рабочих дней в расчетном периоде | M19: р.дней/расч.пер. | Q19: 20 | S19: 0
A20: 20 | G20: 0 | H20: Параметры рабочего дня сотрудника | I20: Количество рабочих часов в расчетном периоде | M20: р.часов/расч.пер. | Q20: 160 | S20: 0
A21: 21
A22: 22 | G22: 0 | H22: Система налогообложения | AA22: ОСНО | AB22: ОСНО | AC22: ОСНО | AD22: ОСНО | AE22: ОСНО | AF22: ОСНО | AG22: ОСНО | AH22: ОСНО | AI22: ОСНО | AJ22: ОСНО | AK22: ОСНО | AL22: ОСНО | AM22: ОСНО | AN22: ОСНО | AO22: ОСНО | AP22: ОСНО | AQ22: ОСНО | AR22: ОСНО | AS22: ОСНО | AT22: ОСНО | AU22: ОСНО | AV22: ОСНО | AW22: ОСНО | AX22: ОСНО | AY22: ОСНО | AZ22: ОСНО | BA22: ОСНО | BB22: ОСНО | BC22: ОСНО | BD22: ОСНО | BE22: ОСНО | BF22: ОСНО | BG22: ОСНО | BH22: ОСНО | BI22: ОСНО | BJ22: ОСНО | BK22: ОСНО | BL22: ОСНО | BM22: ОСНО | BN22: ОСНО | BO22: ОСНО | BP22: ОСНО | BQ22: ОСНО | BR22: ОСНО | BS22: ОСНО | BT22: ОСНО | BU22: ОСНО | BV22: ОСНО | BW22: ОСНО | BX22: ОСНО | BY22: ОСНО | BZ22: ОСНО | CA22: ОСНО | CB22: ОСНО | CC22: ОСНО | CD22: ОСНО | CE22: ОСНО | CF22: ОСНО | CG22: ОСНО | CH22: ОСНО | CI22: ОСНО | CJ22: ОСНО | CK22: ОСНО | CL22: ОСНО | CM22: ОСНО | CN22: ОСНО | CO22: ОСНО | CP22: ОСНО | CQ22: ОСНО | CR22: ОСНО | CS22: ОСНО | CT22: ОСНО | CU22: ОСНО | CV22: ОСНО | CW22: ОСНО | CX22: ОСНО | CY22: ОСНО | CZ22: ОСНО | DA22: ОСНО | DB22: ОСНО | DC22: ОСНО | DD22: ОСНО | DE22: ОСНО | DF22: ОСНО | DG22: ОСНО | DH22: ОСНО | DI22: ОСНО | DJ22: ОСНО | DK22: ОСНО | DL22: ОСНО | DM22: ОСНО | DN22: ОСНО | DO22: ОСНО | DP22: ОСНО | DQ22: ОСНО | DR22: ОСНО | DS22: ОСНО | DT22: ОСНО | DU22: ОСНО | DV22: ОСНО | DW22: ОСНО | DX22: ОСНО | DY22: ОСНО | DZ22: ОСНО | EA22: ОСНО | EB22: ОСНО | EC22: ОСНО | ED22: ОСНО | EE22: ОСНО | EF22: ОСНО | EG22: ОСНО | EH22: ОСНО | EI22: ОСНО | EJ22: ОСНО | EK22: ОСНО | EL22: ОСНО | EM22: ОСНО | EN22: ОСНО | EO22: ОСНО | EP22: ОСНО | EQ22: ОСНО | ER22: ОСНО | ES22: ОСНО | ET22: ОСНО | EU22: ОСНО | EV22: ОСНО | EW22: ОСНО | EX22: ОСНО | EY22: ОСНО | EZ22: ОСНО | FA22: ОСНО | FB22: ОСНО | FC22: ОСНО | FD22: ОСНО | FE22: ОСНО | FF22: ОСНО | FG22: ОСНО | FH22: ОСНО | FI22: ОСНО | FJ22: ОСНО | FK22: ОСНО | FL22: ОСНО | FM22: ОСНО | FN22: ОСНО | FO22: ОСНО | FP22: ОСНО | FQ22: ОСНО | FR22: ОСНО | FS22: ОСНО | FT22: ОСНО | FU22: ОСНО | FV22: ОСНО | FW22: ОСНО | FX22: ОСНО | FY22: ОСНО | FZ22: ОСНО | GA22: ОСНО | GB22: ОСНО | GC22: ОСНО | GD22: ОСНО | GE22: ОСНО | GF22: ОСНО | GG22: ОСНО | GH22: ОСНО | GI22: ОСНО | GJ22: ОСНО | GK22: ОСНО | GL22: ОСНО | GM22: ОСНО | GN22: ОСНО | GO22: ОСНО | GP22: ОСНО | GQ22: ОСНО | GR22: ОСНО | GS22: ОСНО | GT22: ОСНО | GU22: ОСНО | GV22: ОСНО | GW22: ОСНО | GX22: ОСНО
A23: 23 | G23: 0 | H23: Система налогообложения | I23: Единое значение для всех периодов расчета | M23: вып.список | P23: * | Q23: ОСНО | R23: ^ | S23: 0
A24: 24 | G24: 0 | H24: Система налогообложения | I24: Вручную для каждого периода расчетов | M24: вып.список | Y24: *
A25: 25 | G25: 0 | H25: Система налогообложения | I25: г | J25: 2021 | M25: вып.список | P25: * | R25: ^ | S25: 0
A26: 26 | G26: 0 | H26: Система налогообложения | I26: г | J26: 2022 | M26: вып.список | P26: * | R26: ^ | S26: 0
A27: 27 | G27: 0 | H27: Система налогообложения | I27: г | J27: 2023 | M27: вып.список | P27: * | R27: ^ | S27: 0
A28: 28 | G28: 0 | H28: Система налогообложения | I28: г | J28: 2024 | M28: вып.список | P28: * | R28: ^ | S28: 0
A29: 29 | L29: пустая строка
A30: 30
A31: 31 | G31: 0 | H31: Ставки налога на прибыль
A32: 32 | G32: 0 | H32: Ставки налога на прибыль | I32: ОСНО | M32: % | P32: * | Q32: 20.0% | S32: 0
A33: 33 | G33: 0 | H33: Ставки налога на прибыль | I33: УСН(6%) | M33: % | P33: * | Q33: 6.0% | S33: 0
A34: 34 | G34: 0 | H34: Ставки налога на прибыль | I34: УСН(6%) | J34: ограничения суммы НП на вычет соцсборов | M34: % | P34: * | Q34: 50.0% | S34: 0
A35: 35 | G35: 0 | H35: Ставки налога на прибыль | I35: УСН(15%) | M35: % | P35: * | Q35: 15.0% | S35: 0
A36: 36 | G36: 0 | H36: Ставки налога на прибыль | I36: УСН(15%) | J36: минимальный процент от дохода | M36: % | P36: * | Q36: 1.0% | S36: 0
A37: 37 | G37: 0 | H37: Ставки налога на прибыль | I37: ТОСЭР | M37: %
A38: 38 | G38: 0 | H38: Ставки налога на прибыль | I38: г | J38: 5 | M38: % | P38: * | Q38: 0.0% | S38: 0
A39: 39 | G39: 0 | H39: Ставки налога на прибыль | I39: г | J39: 10 | M39: % | P39: * | Q39: 12.0% | S39: 0
A40: 40 | L40: пустая строка
A41: 41
A42: 42 | G42: 0 | H42: Ставки НДС
A43: 43 | G43: 0 | H43: Ставки НДС | I43: ОСНО | M43: % | P43: * | Q43: 20.0% | S43: 0
A44: 44 | G44: 0 | H44: Ставки НДС | I44: УСН(6%) | M44: % | P44: * | Q44: 0.0% | S44: 0
A45: 45 | G45: 0 | H45: Ставки НДС | I45: УСН(15%) | M45: % | P45: * | Q45: 0.0% | S45: 0
A46: 46 | G46: 0 | H46: Ставки НДС | I46: ТОСЭР | M46: %
A47: 47 | G47: 0 | H47: Ставки НДС | I47: г | J47: 5 | M47: % | P47: * | Q47: 20.0% | S47: 0
A48: 48 | G48: 0 | H48: Ставки НДС | I48: г | J48: 10 | M48: % | P48: * | Q48: 20.0% | S48: 0
A49: 49 | L49: пустая строка
A50: 50
A51: 51 | G51: 0 | H51: Ставки соцсборов
A52: 52 | G52: 0 | H52: Ставки соцсборов | I52: ОСНО | M52: % | P52: * | Q52: 30.0% | S52: 0
A53: 53 | G53: 0 | H53: Ставки соцсборов | I53: УСН(6%) | M53: % | P53: * | Q53: 30.0% | S53: 0
A54: 54 | G54: 0 | H54: Ставки соцсборов | I54: УСН(15%) | M54: % | P54: * | Q54: 30.0% | S54: 0
A55: 55 | G55: 0 | H55: Ставки соцсборов | I55: ТОСЭР | M55: %
A56: 56 | G56: 0 | H56: Ставки соцсборов | I56: г | J56: 5 | M56: % | P56: * | Q56: 7.6% | S56: 0
A57: 57 | G57: 0 | H57: Ставки соцсборов | I57: г | J57: 10 | M57: % | P57: * | Q57: 7.6% | S57: 0
A58: 58 | L58: пустая строка
A59: 59
A60: 60 | G60: 0 | H60: Ставки земельного налога | AA60: 1.5% | AB60: 1.5% | AC60: 1.5% | AD60: 1.5% | AE60: 1.5% | AF60: 1.5% | AG60: 1.5% | AH60: 1.5% | AI60: 1.5% | AJ60: 1.5% | AK60: 1.5% | AL60: 1.5% | AM60: 1.5% | AN60: 1.5% | AO60: 1.5% | AP60: 1.5% | AQ60: 1.5% | AR60: 1.5% | AS60: 1.5% | AT60: 1.5% | AU60: 1.5% | AV60: 1.5% | AW60: 1.5% | AX60: 1.5% | AY60: 1.5% | AZ60: 1.5% | BA60: 1.5% | BB60: 1.5% | BC60: 1.5% | BD60: 1.5% | BE60: 1.5% | BF60: 1.5% | BG60: 1.5% | BH60: 1.5% | BI60: 1.5% | BJ60: 1.5% | BK60: 1.5% | BL60: 1.5% | BM60: 1.5% | BN60: 1.5% | BO60: 1.5% | BP60: 1.5% | BQ60: 1.5% | BR60: 1.5% | BS60: 1.5% | BT60: 1.5% | BU60: 1.5% | BV60: 1.5% | BW60: 1.5% | BX60: 1.5% | BY60: 1.5% | BZ60: 1.5% | CA60: 1.5% | CB60: 1.5% | CC60: 1.5% | CD60: 1.5% | CE60: 1.5% | CF60: 1.5% | CG60: 1.5% | CH60: 1.5% | CI60: 1.5% | CJ60: 1.5% | CK60: 1.5% | CL60: 1.5% | CM60: 1.5% | CN60: 1.5% | CO60: 1.5% | CP60: 1.5% | CQ60: 1.5% | CR60: 1.5% | CS60: 1.5% | CT60: 1.5% | CU60: 1.5% | CV60: 1.5% | CW60: 1.5% | CX60: 1.5% | CY60: 1.5% | CZ60: 1.5% | DA60: 1.5% | DB60: 1.5% | DC60: 1.5% | DD60: 1.5% | DE60: 1.5% | DF60: 1.5% | DG60: 1.5% | DH60: 1.5% | DI60: 1.5% | DJ60: 1.5% | DK60: 1.5% | DL60: 1.5% | DM60: 1.5% | DN60: 1.5% | DO60: 1.5% | DP60: 1.5% | DQ60: 1.5% | DR60: 1.5% | DS60: 1.5% | DT60: 1.5% | DU60: 1.5% | DV60: 1.5% | DW60: 1.5% | DX60: 1.5% | DY60: 1.5% | DZ60: 1.5% | EA60: 1.5% | EB60: 1.5% | EC60: 1.5% | ED60: 1.5% | EE60: 1.5% | EF60: 1.5% | EG60: 1.5% | EH60: 1.5% | EI60: 1.5% | EJ60: 1.5% | EK60: 1.5% | EL60: 1.5% | EM60: 1.5% | EN60: 1.5% | EO60: 1.5% | EP60: 1.5% | EQ60: 1.5% | ER60: 1.5% | ES60: 1.5% | ET60: 1.5% | EU60: 1.5% | EV60: 1.5% | EW60: 1.5% | EX60: 1.5% | EY60: 1.5% | EZ60: 1.5% | FA60: 1.5% | FB60: 1.5% | FC60: 1.5% | FD60: 1.5% | FE60: 1.5% | FF60: 1.5% | FG60: 1.5% | FH60: 1.5% | FI60: 1.5% | FJ60: 1.5% | FK60: 1.5% | FL60: 1.5% | FM60: 1.5% | FN60: 1.5% | FO60: 1.5% | FP60: 1.5% | FQ60: 1.5% | FR60: 1.5% | FS60: 1.5% | FT60: 1.5% | FU60: 1.5% | FV60: 1.5% | FW60: 1.5% | FX60: 1.5% | FY60: 1.5% | FZ60: 1.5% | GA60: 1.5% | GB60: 1.5% | GC60: 1.5% | GD60: 1.5% | GE60: 1.5% | GF60: 1.5% | GG60: 1.5% | GH60: 1.5% | GI60: 1.5% | GJ60: 1.5% | GK60: 1.5% | GL60: 1.5% | GM60: 1.5% | GN60: 1.5% | GO60: 1.5% | GP60: 1.5% | GQ60: 1.5% | GR60: 1.5% | GS60: 1.5% | GT60: 1.5% | GU60: 1.5% | GV60: 1.5% | GW60: 1.5% | GX60: 1.5% | GY60: 1.5% | GZ60: 1.5% | HA60: 1.5% | HB60: 1.5% | HC60: 1.5% | HD60: 1.5% | HE60: 1.5% | HF60: 1.5% | HG60: 1.5% | HH60: 1.5% | HI60: 1.5% | HJ60: 1.5% | HK60: 1.5%
A61: 61 | G61: 0 | H61: Ставки земельного налога | I61: ОСНО | M61: % | P61: * | Q61: 1.5% | S61: 0
A62: 62 | G62: 0 | H62: Ставки земельного налога | I62: УСН(6%) | M62: % | P62: * | Q62: 1.5% | S62: 0
A63: 63 | G63: 0 | H63: Ставки земельного налога | I63: УСН(15%) | M63: % | P63: * | Q63: 1.5% | S63: 0
A64: 64 | G64: 0 | H64: Ставки земельного налога | I64: ТОСЭР | M64: %
A65: 65 | G65: 0 | H65: Ставки земельного налога | I65: г | J65: 5 | M65: % | P65: * | Q65: 0.0% | S65: 0
A66: 66 | G66: 0 | H66: Ставки земельного налога | I66: г | J66: 20 | M66: % | P66: * | Q66: 0.0% | S66: 0
A67: 67 | L67: пустая строка
A68: 68
A69: 69 | G69: 0 | H69: Ставки налога на имущество | AA69: 1.5% | AB69: 1.5% | AC69: 1.5% | AD69: 1.5% | AE69: 1.5% | AF69: 1.5% | AG69: 1.5% | AH69: 1.5% | AI69: 1.5% | AJ69: 1.5% | AK69: 1.5% | AL69: 1.5% | AM69: 1.5% | AN69: 1.5% | AO69: 1.5% | AP69: 1.5% | AQ69: 1.5% | AR69: 1.5% | AS69: 1.5% | AT69: 1.5% | AU69: 1.5% | AV69: 1.5% | AW69: 1.5% | AX69: 1.5% | AY69: 1.5% | AZ69: 1.5% | BA69: 1.5% | BB69: 1.5% | BC69: 1.5% | BD69: 1.5% | BE69: 1.5% | BF69: 1.5% | BG69: 1.5% | BH69: 1.5% | BI69: 1.5% | BJ69: 1.5% | BK69: 1.5% | BL69: 1.5% | BM69: 1.5% | BN69: 1.5% | BO69: 1.5% | BP69: 1.5% | BQ69: 1.5% | BR69: 1.5% | BS69: 1.5% | BT69: 1.5% | BU69: 1.5% | BV69: 1.5% | BW69: 1.5% | BX69: 1.5% | BY69: 1.5% | BZ69: 1.5% | CA69: 1.5% | CB69: 1.5% | CC69: 1.5% | CD69: 1.5% | CE69: 1.5% | CF69: 1.5% | CG69: 1.5% | CH69: 1.5% | CI69: 1.5% | CJ69: 1.5% | CK69: 1.5% | CL69: 1.5% | CM69: 1.5% | CN69: 1.5% | CO69: 1.5% | CP69: 1.5% | CQ69: 1.5% | CR69: 1.5% | CS69: 1.5% | CT69: 1.5% | CU69: 1.5% | CV69: 1.5% | CW69: 1.5% | CX69: 1.5% | CY69: 1.5% | CZ69: 1.5% | DA69: 1.5% | DB69: 1.5% | DC69: 1.5% | DD69: 1.5% | DE69: 1.5% | DF69: 1.5% | DG69: 1.5% | DH69: 1.5% | DI69: 1.5% | DJ69: 1.5% | DK69: 1.5% | DL69: 1.5% | DM69: 1.5% | DN69: 1.5% | DO69: 1.5% | DP69: 1.5% | DQ69: 1.5% | DR69: 1.5% | DS69: 1.5% | DT69: 1.5% | DU69: 1.5% | DV69: 1.5% | DW69: 1.5% | DX69: 1.5% | DY69: 1.5% | DZ69: 1.5% | EA69: 1.5% | EB69: 1.5% | EC69: 1.5% | ED69: 1.5% | EE69: 1.5% | EF69: 1.5% | EG69: 1.5% | EH69: 1.5% | EI69: 1.5% | EJ69: 1.5% | EK69: 1.5% | EL69: 1.5% | EM69: 1.5% | EN69: 1.5% | EO69: 1.5% | EP69: 1.5% | EQ69: 1.5% | ER69: 1.5% | ES69: 1.5% | ET69: 1.5% | EU69: 1.5% | EV69: 1.5% | EW69: 1.5% | EX69: 1.5% | EY69: 1.5% | EZ69: 1.5% | FA69: 1.5% | FB69: 1.5% | FC69: 1.5% | FD69: 1.5% | FE69: 1.5% | FF69: 1.5% | FG69: 1.5% | FH69: 1.5% | FI69: 1.5% | FJ69: 1.5% | FK69: 1.5% | FL69: 1.5% | FM69: 1.5% | FN69: 1.5% | FO69: 1.5% | FP69: 1.5% | FQ69: 1.5% | FR69: 1.5% | FS69: 1.5% | FT69: 1.5% | FU69: 1.5% | FV69: 1.5% | FW69: 1.5% | FX69: 1.5% | FY69: 1.5% | FZ69: 1.5% | GA69: 1.5% | GB69: 1.5% | GC69: 1.5% | GD69: 1.5% | GE69: 1.5% | GF69: 1.5% | GG69: 1.5% | GH69: 1.5% | GI69: 1.5% | GJ69: 1.5% | GK69: 1.5% | GL69: 1.5% | GM69: 1.5% | GN69: 1.5% | GO69: 1.5% | GP69: 1.5% | GQ69: 1.5% | GR69: 1.5% | GS69: 1.5% | GT69: 1.5% | GU69: 1.5% | GV69: 1.5% | GW69: 1.5% | GX69: 1.5% | GY69: 1.5% | GZ69: 1.5% | HA69: 1.5% | HB69: 1.5% | HC69: 1.5% | HD69: 1.5% | HE69: 1.5% | HF69: 1.5% | HG69: 1.5% | HH69: 1.5% | HI69: 1.5% | HJ69: 1.5% | HK69: 1.5%
A70: 70 | G70: 0 | H70: Ставки налога на имущество | I70: ОСНО | M70: % | P70: * | Q70: 1.5% | S70: 0
A71: 71 | G71: 0 | H71: Ставки налога на имущество | I71: УСН(6%) | M71: % | P71: * | Q71: 1.5% | S71: 0
A72: 72 | G72: 0 | H72: Ставки налога на имущество | I72: УСН(15%) | M72: % | P72: * | Q72: 1.5% | S72: 0
A73: 73 | G73: 0 | H73: Ставки налога на имущество | I73: ТОСЭР | M73: %
A74: 74 | G74: 0 | H74: Ставки налога на имущество | I74: г | J74: 5 | M74: % | P74: * | Q74: 0.0% | S74: 0
A75: 75 | G75: 0 | H75: Ставки налога на имущество | I75: г | J75: 20 | M75: % | P75: * | Q75: 0.0% | S75: 0
A76: 76 | L76: пустая строка
A77: 77
A78: 78 | G78: 0 | H78: Ставки транспортного налога | AA78: 0.5% | AB78: 0.5% | AC78: 0.5% | AD78: 0.5% | AE78: 0.5% | AF78: 0.5% | AG78: 0.5% | AH78: 0.5% | AI78: 0.5% | AJ78: 0.5% | AK78: 0.5% | AL78: 0.5% | AM78: 0.5% | AN78: 0.5% | AO78: 0.5% | AP78: 0.5% | AQ78: 0.5% | AR78: 0.5% | AS78: 0.5% | AT78: 0.5% | AU78: 0.5% | AV78: 0.5% | AW78: 0.5% | AX78: 0.5% | AY78: 0.5% | AZ78: 0.5% | BA78: 0.5% | BB78: 0.5% | BC78: 0.5% | BD78: 0.5% | BE78: 0.5% | BF78: 0.5% | BG78: 0.5% | BH78: 0.5% | BI78: 0.5% | BJ78: 0.5% | BK78: 0.5% | BL78: 0.5% | BM78: 0.5% | BN78: 0.5% | BO78: 0.5% | BP78: 0.5% | BQ78: 0.5% | BR78: 0.5% | BS78: 0.5% | BT78: 0.5% | BU78: 0.5% | BV78: 0.5% | BW78: 0.5% | BX78: 0.5% | BY78: 0.5% | BZ78: 0.5% | CA78: 0.5% | CB78: 0.5% | CC78: 0.5% | CD78: 0.5% | CE78: 0.5% | CF78: 0.5% | CG78: 0.5% | CH78: 0.5% | CI78: 0.5% | CJ78: 0.5% | CK78: 0.5% | CL78: 0.5% | CM78: 0.5% | CN78: 0.5% | CO78: 0.5% | CP78: 0.5% | CQ78: 0.5% | CR78: 0.5% | CS78: 0.5% | CT78: 0.5% | CU78: 0.5% | CV78: 0.5% | CW78: 0.5% | CX78: 0.5% | CY78: 0.5% | CZ78: 0.5% | DA78: 0.5% | DB78: 0.5% | DC78: 0.5% | DD78: 0.5% | DE78: 0.5% | DF78: 0.5% | DG78: 0.5% | DH78: 0.5% | DI78: 0.5% | DJ78: 0.5% | DK78: 0.5% | DL78: 0.5% | DM78: 0.5% | DN78: 0.5% | DO78: 0.5% | DP78: 0.5% | DQ78: 0.5% | DR78: 0.5% | DS78: 0.5% | DT78: 0.5% | DU78: 0.5% | DV78: 0.5% | DW78: 0.5% | DX78: 0.5% | DY78: 0.5% | DZ78: 0.5% | EA78: 0.5% | EB78: 0.5% | EC78: 0.5% | ED78: 0.5% | EE78: 0.5% | EF78: 0.5% | EG78: 0.5% | EH78: 0.5% | EI78: 0.5% | EJ78: 0.5% | EK78: 0.5% | EL78: 0.5% | EM78: 0.5% | EN78: 0.5% | EO78: 0.5% | EP78: 0.5% | EQ78: 0.5% | ER78: 0.5% | ES78: 0.5% | ET78: 0.5% | EU78: 0.5% | EV78: 0.5% | EW78: 0.5% | EX78: 0.5% | EY78: 0.5% | EZ78: 0.5% | FA78: 0.5% | FB78: 0.5% | FC78: 0.5% | FD78: 0.5% | FE78: 0.5% | FF78: 0.5% | FG78: 0.5% | FH78: 0.5% | FI78: 0.5% | FJ78: 0.5% | FK78: 0.5% | FL78: 0.5% | FM78: 0.5% | FN78: 0.5% | FO78: 0.5% | FP78: 0.5% | FQ78: 0.5% | FR78: 0.5% | FS78: 0.5% | FT78: 0.5% | FU78: 0.5% | FV78: 0.5% | FW78: 0.5% | FX78: 0.5% | FY78: 0.5% | FZ78: 0.5% | GA78: 0.5% | GB78: 0.5% | GC78: 0.5% | GD78: 0.5% | GE78: 0.5% | GF78: 0.5% | GG78: 0.5% | GH78: 0.5% | GI78: 0.5% | GJ78: 0.5% | GK78: 0.5% | GL78: 0.5% | GM78: 0.5% | GN78: 0.5% | GO78: 0.5% | GP78: 0.5% | GQ78: 0.5% | GR78: 0.5% | GS78: 0.5% | GT78: 0.5% | GU78: 0.5% | GV78: 0.5% | GW78: 0.5% | GX78: 0.5% | GY78: 0.5% | GZ78: 0.5% | HA78: 0.5% | HB78: 0.5% | HC78: 0.5% | HD78: 0.5% | HE78: 0.5% | HF78: 0.5% | HG78: 0.5% | HH78: 0.5% | HI78: 0.5% | HJ78: 0.5% | HK78: 0.5%
A79: 79 | G79: 0 | H79: Ставки транспортного налога | I79: ОСНО | M79: % | P79: * | Q79: 0.5% | S79: 0
A80: 80 | G80: 0 | H80: Ставки транспортного налога | I80: УСН(6%) | M80: % | P80: * | Q80: 0.5% | S80: 0
A81: 81 | G81: 0 | H81: Ставки транспортного налога | I81: УСН(15%) | M81: % | P81: * | Q81: 0.5% | S81: 0
A82: 82 | G82: 0 | H82: Ставки транспортного налога | I82: ТОСЭР | M82: %
A83: 83 | G83: 0 | H83: Ставки транспортного налога | I83: г | J83: 5 | M83: % | P83: * | Q83: 0.0% | S83: 0
A84: 84 | G84: 0 | H84: Ставки транспортного налога | I84: г | J84: 20 | M84: % | P84: * | Q84: 0.0% | S84: 0
A85: 85 | L85: пустая строка
A86: 86
A87: 87 | G87: 0 | H87: Ставки НДПИ | AA87: 8.0% | AB87: 8.0% | AC87: 8.0% | AD87: 8.0% | AE87: 8.0% | AF87: 8.0% | AG87: 8.0% | AH87: 8.0% | AI87: 8.0% | AJ87: 8.0% | AK87: 8.0% | AL87: 8.0% | AM87: 8.0% | AN87: 8.0% | AO87: 8.0% | AP87: 8.0% | AQ87: 8.0% | AR87: 8.0% | AS87: 8.0% | AT87: 8.0% | AU87: 8.0% | AV87: 8.0% | AW87: 8.0% | AX87: 8.0% | AY87: 8.0% | AZ87: 8.0% | BA87: 8.0% | BB87: 8.0% | BC87: 8.0% | BD87: 8.0% | BE87: 8.0% | BF87: 8.0% | BG87: 8.0% | BH87: 8.0% | BI87: 8.0% | BJ87: 8.0% | BK87: 8.0% | BL87: 8.0% | BM87: 8.0% | BN87: 8.0% | BO87: 8.0% | BP87: 8.0% | BQ87: 8.0% | BR87: 8.0% | BS87: 8.0% | BT87: 8.0% | BU87: 8.0% | BV87: 8.0% | BW87: 8.0% | BX87: 8.0% | BY87: 8.0% | BZ87: 8.0% | CA87: 8.0% | CB87: 8.0% | CC87: 8.0% | CD87: 8.0% | CE87: 8.0% | CF87: 8.0% | CG87: 8.0% | CH87: 8.0% | CI87: 8.0% | CJ87: 8.0% | CK87: 8.0% | CL87: 8.0% | CM87: 8.0% | CN87: 8.0% | CO87: 8.0% | CP87: 8.0% | CQ87: 8.0% | CR87: 8.0% | CS87: 8.0% | CT87: 8.0% | CU87: 8.0% | CV87: 8.0% | CW87: 8.0% | CX87: 8.0% | CY87: 8.0% | CZ87: 8.0% | DA87: 8.0% | DB87: 8.0% | DC87: 8.0% | DD87: 8.0% | DE87: 8.0% | DF87: 8.0% | DG87: 8.0% | DH87: 8.0% | DI87: 8.0% | DJ87: 8.0% | DK87: 8.0% | DL87: 8.0% | DM87: 8.0% | DN87: 8.0% | DO87: 8.0% | DP87: 8.0% | DQ87: 8.0% | DR87: 8.0% | DS87: 8.0% | DT87: 8.0% | DU87: 8.0% | DV87: 8.0% | DW87: 8.0% | DX87: 8.0% | DY87: 8.0% | DZ87: 8.0% | EA87: 8.0% | EB87: 8.0% | EC87: 8.0% | ED87: 8.0% | EE87: 8.0% | EF87: 8.0% | EG87: 8.0% | EH87: 8.0% | EI87: 8.0% | EJ87: 8.0% | EK87: 8.0% | EL87: 8.0% | EM87: 8.0% | EN87: 8.0% | EO87: 8.0% | EP87: 8.0% | EQ87: 8.0% | ER87: 8.0% | ES87: 8.0% | ET87: 8.0% | EU87: 8.0% | EV87: 8.0% | EW87: 8.0% | EX87: 8.0% | EY87: 8.0% | EZ87: 8.0% | FA87: 8.0% | FB87: 8.0% | FC87: 8.0% | FD87: 8.0% | FE87: 8.0% | FF87: 8.0% | FG87: 8.0% | FH87: 8.0% | FI87: 8.0% | FJ87: 8.0% | FK87: 8.0% | FL87: 8.0% | FM87: 8.0% | FN87: 8.0% | FO87: 8.0% | FP87: 8.0% | FQ87: 8.0% | FR87: 8.0% | FS87: 8.0% | FT87: 8.0% | FU87: 8.0% | FV87: 8.0% | FW87: 8.0% | FX87: 8.0% | FY87: 8.0% | FZ87: 8.0% | GA87: 8.0% | GB87: 8.0% | GC87: 8.0% | GD87: 8.0% | GE87: 8.0% | GF87: 8.0% | GG87: 8.0% | GH87: 8.0% | GI87: 8.0% | GJ87: 8.0% | GK87: 8.0% | GL87: 8.0% | GM87: 8.0% | GN87: 8.0% | GO87: 8.0% | GP87: 8.0% | GQ87: 8.0% | GR87: 8.0% | GS87: 8.0% | GT87: 8.0% | GU87: 8.0% | GV87: 8.0% | GW87: 8.0% | GX87: 8.0% | GY87: 8.0% | GZ87: 8.0% | HA87: 8.0% | HB87: 8.0% | HC87: 8.0% | HD87: 8.0% | HE87: 8.0% | HF87: 8.0% | HG87: 8.0% | HH87: 8.0% | HI87: 8.0% | HJ87: 8.0% | HK87: 8.0%
A88: 88 | G88: 0 | H88: Ставки НДПИ | I88: ОСНО | M88: % | P88: * | Q88: 8.0% | S88: 0
A89: 89 | G89: 0 | H89: Ставки НДПИ | I89: УСН(6%) | M89: % | P89: * | Q89: 8.0% | S89: 0
A90: 90 | G90: 0 | H90: Ставки НДПИ | I90: УСН(15%) | M90: % | P90: * | Q90: 8.0% | S90: 0
A91: 91 | G91: 0 | H91: Ставки НДПИ | I91: ТОСЭР | M91: %
A92: 92 | G92: 0 | H92: Ставки НДПИ | I92: г | J92: 5 | M92: % | P92: * | Q92: 8.0% | S92: 0
A93: 93 | G93: 0 | H93: Ставки НДПИ | I93: г | J93: 20 | M93: % | P93: * | Q93: 8.0% | S93: 0
A94: 94 | L94: пустая строка
A95: 95
A96: 96 | G96: 0 | H96: НДС к возмещению по капзатратам
A97: 97 | G97: 0 | H97: НДС к возмещению по капзатратам | I97: кол-во месяцев на возмещение НДС | M97: кол-во мес. | P97: * | Q97: 12 | S97: 0
F100: Macro | I100: Макропоказатели внешней среды | AA100: 2021-09-01 | AB100: 2022-09-01 | AC100: 2023-09-01 | AD100: 2024-09-01 | AE100: 2025-09-01 | AF100: 2026-09-01 | AG100: 2027-09-01 | AH100: 2028-09-01 | AI100: 2029-09-01 | AJ100: 2030-09-01 | AK100: 2031-09-01 | AL100: 2032-09-01 | AM100: 2033-09-01 | AN100: 2034-09-01 | AO100: 2035-09-01
Q101: отчетный | AA101: 2022-08-31 | AB101: 2023-08-31 | AC101: 2024-08-31 | AD101: 2025-08-31 | AE101: 2026-08-31 | AF101: 2027-08-31 | AG101: 2028-08-31 | AH101: 2029-08-31 | AI101: 2030-08-31 | AJ101: 2031-08-31 | AK101: 2032-08-31 | AL101: 2033-08-31 | AM101: 2034-08-31 | AN101: 2035-08-31 | AO101: 2036-08-31
A103: 103 | H103: Курс евро | Y103: * | AA103: 90.00 | AB103: 90.00 | AC103: 90.00 | AD103: 90.00 | AE103: 90.00 | AF103: 90.00 | AG103: 90.00 | AH103: 90.00 | AI103: 90.00 | AJ103: 90.00 | AK103: 90.00 | AL103: 90.00 | AM103: 90.00 | AN103: 90.00 | AO103: 90.00
A104: 104 | H104: Инфляция ЦБ | Y104: * | AA104: 5.0% | AB104: 5.0% | AC104: 5.0% | AD104: 5.0% | AE104: 5.0% | AF104: 5.0% | AG104: 5.0% | AH104: 5.0% | AI104: 5.0% | AJ104: 5.0% | AK104: 5.0% | AL104: 5.0% | AM104: 5.0% | AN104: 5.0% | AO104: 5.0%
A105: 105 | H105: Учетная (безрисковая) ставка ЦБ | Y105: * | AA105: 5.0% | AB105: 5.0% | AC105: 5.0% | AD105: 5.0% | AE105: 5.0% | AF105: 5.0% | AG105: 5.0% | AH105: 5.0% | AI105: 5.0% | AJ105: 5.0% | AK105: 5.0% | AL105: 5.0% | AM105: 5.0% | AN105: 5.0% | AO105: 5.0%
A106: 106 | H106: Ставка риска (отрасль+регион) | Y106: * | AA106: 2.0% | AB106: 2.0% | AC106: 2.0% | AD106: 2.0% | AE106: 2.0% | AF106: 2.0% | AG106: 2.0% | AH106: 2.0% | AI106: 2.0% | AJ106: 2.0% | AK106: 2.0% | AL106: 2.0% | AM106: 2.0% | AN106: 2.0% | AO106: 2.0%
A107: 107 | H107: Ставка дисконтирования | AA107: 12.0% | AB107: 12.0% | AC107: 12.0% | AD107: 12.0% | AE107: 12.0% | AF107: 12.0% | AG107: 12.0% | AH107: 12.0% | AI107: 12.0% | AJ107: 12.0% | AK107: 12.0% | AL107: 12.0% | AM107: 12.0% | AN107: 12.0% | AO107: 12.0%
A108: 108 | H108: Инфляция цен на доходы | Y108: * | AA108: 5.0% | AB108: 5.0% | AC108: 5.0% | AD108: 5.0% | AE108: 5.0% | AF108: 5.0% | AG108: 5.0% | AH108: 5.0% | AI108: 5.0% | AJ108: 5.0% | AK108: 5.0% | AL108: 5.0% | AM108: 5.0% | AN108: 5.0% | AO108: 5.0%
A109: 109 | H109: Инфляция цен на расходы | Y109: * | AA109: 5.0% | AB109: 5.0% | AC109: 5.0% | AD109: 5.0% | AE109: 5.0% | AF109: 5.0% | AG109: 5.0% | AH109: 5.0% | AI109: 5.0% | AJ109: 5.0% | AK109: 5.0% | AL109: 5.0% | AM109: 5.0% | AN109: 5.0% | AO109: 5.0%
A110: 110 | H110: Коэф.индексации накопит. цен на доходы | Y110: * | AB110: 105.0% | AC110: 110.3% | AD110: 115.8% | AE110: 121.6% | AF110: 127.6% | AG110: 134.0% | AH110: 140.7% | AI110: 147.7% | AJ110: 155.1% | AK110: 162.9% | AL110: 171.0% | AM110: 179.6% | AN110: 188.6% | AO110: 198.0%
A111: 111 | H111: Коэф.индексации накопит. цен на расходы | Y111: * | AB111: 105.0% | AC111: 110.3% | AD111: 115.8% | AE111: 121.6% | AF111: 127.6% | AG111: 134.0% | AH111: 140.7% | AI111: 147.7% | AJ111: 155.1% | AK111: 162.9% | AL111: 171.0% | AM111: 179.6% | AN111: 188.6% | AO111: 198.0%

Sheet Items
I1: =COLUMN() -> 9 | M1: =COLUMN() -> 13 | Q1: =COLUMN() -> 17 | AD1: =COLUMN() -> 30 | AH1: =COLUMN() -> 34 | AL1: =COLUMN() -> 38 | AN1: =COLUMN() -> 40 | AQ1: =COLUMN() -> 43 | AU1: =COLUMN() -> 47 | AY1: =COLUMN() -> 51 | BC1: =COLUMN() -> 55 | BG1: =COLUMN() -> 59 | BK1: =COLUMN() -> 63 | BO1: =COLUMN() -> 67 | BS1: =COLUMN() -> 71
I2: =LEFT(ADDRESS(1,COLUMN(),4),LEN(ADDRESS(1,COLUMN(),4))-1) -> I | M2: =LEFT(ADDRESS(1,COLUMN(),4),LEN(ADDRESS(1,COLUMN(),4))-1) -> M | Q2: =LEFT(ADDRESS(1,COLUMN(),4),LEN(ADDRESS(1,COLUMN(),4))-1) -> Q | AD2: =LEFT(ADDRESS(1,COLUMN(),4),LEN(ADDRESS(1,COLUMN(),4))-1) -> AD | AH2: =LEFT(ADDRESS(1,COLUMN(),4),LEN(ADDRESS(1,COLUMN(),4))-1) -> AH | AL2: =LEFT(ADDRESS(1,COLUMN(),4),LEN(ADDRESS(1,COLUMN(),4))-1) -> AL | AN2: =LEFT(ADDRESS(1,COLUMN(),4),LEN(ADDRESS(1,COLUMN(),4))-1) -> AN | AQ2: =LEFT(ADDRESS(1,COLUMN(),4),LEN(ADDRESS(1,COLUMN(),4))-1) -> AQ | AU2: =LEFT(ADDRESS(1,COLUMN(),4),LEN(ADDRESS(1,COLUMN(),4))-1) -> AU | AY2: =LEFT(ADDRESS(1,COLUMN(),4),LEN(ADDRESS(1,COLUMN(),4))-1) -> AY | BC2: =LEFT(ADDRESS(1,COLUMN(),4),LEN(ADDRESS(1,COLUMN(),4))-1) -> BC | BG2: =LEFT(ADDRESS(1,COLUMN(),4),LEN(ADDRESS(1,COLUMN(),4))-1) -> BG | BK2: =LEFT(ADDRESS(1,COLUMN(),4),LEN(ADDRESS(1,COLUMN(),4))-1) -> BK | BO2: =LEFT(ADDRESS(1,COLUMN(),4),LEN(ADDRESS(1,COLUMN(),4))-1) -> BO | BS2: =LEFT(ADDRESS(1,COLUMN(),4),LEN(ADDRESS(1,COLUMN(),4))-1) -> BS
F11: =INDIRECT("START!I30") -> Items | I11: =INDIRECT("START!K30") -> Справочники статей доходов и расходов и т.д.
I12: =START!$I$32 -> Sbor | M12: =START!$I$32 -> Sbor | Q12: =START!$I$32 -> Sbor | AD12: =START!$I$34 -> Vinodel | AH12: =START!$I$34 -> Vinodel | AL12: =START!$I$35 -> Prdction | AN12: =START!$I$35 -> Prdction | AQ12: =START!$I$35 -> Prdction | AU12: =START!$I$33 -> CapEx | AY12: =START!$I$33 -> CapEx | BC12: =START!$I$37 -> Exp | BG12: =START!$I$36 -> HR | BK12: =START!$I$54 -> Calc | BO12: =START!$I$54 -> Calc | BS12: =START!$I$54 -> Calc
I13: Прямые затраты этапа выращивания винограда | M13: Прямые переменные расходы этапа выращивания винограда | Q13: Прямые постоянные расходы этапа выращивания винограда | AD13: Прямые переменные расходы этапа виноделия | AH13: Прямые постоянные расходы этапа виноделия | AL13: Прямые производственные расходы | AN13: ед.изм. | AQ13: Постоянные производственные расходы | AU13: Капзатраты этапа выращивания винограда | AY13: Капзатраты этапа виноделия | BC13: Постоянные расходы | BG13: Расходы на персонал | BK13: Статьи Баланса | BO13: Статьи отчета о прибылях и убытках | BS13: Статьи отчета о ДДС
D14: =INDIRECT("Cntrl!M17") -> 0 | E14: =SUM($F14:$PM14) -> 0 | F14: =IFERROR(_xlfn.SHEET($A$1)-SUMIFS(Cntrl!O$15:O$100000,Cntrl!I$15:I$100000,$F$11),1) -> 0 | I14: =IF(OR(I13=0,I13=""),1,IF(COUNTIF(13:13,I13)=1,0,1)) -> 0 | K14: =SUM(K$15:K$100000) -> 0 | M14: =IF(OR(M13=0,M13=""),1,IF(COUNTIF(13:13,M13)=1,0,1)) -> 0 | O14: =SUM(O$15:O$100000) -> 0 | Q14: =IF(OR(Q13=0,Q13=""),1,IF(COUNTIF(13:13,Q13)=1,0,1)) -> 0 | S14: =SUM(S$15:S$100000) -> 0 | AD14: =IF(OR(AD13=0,AD13=""),1,IF(COUNTIF(13:13,AD13)=1,0,1)) -> 0 | AF14: =SUM(AF$15:AF$100000) -> 0 | AH14: =IF(OR(AH13=0,AH13=""),1,IF(COUNTIF(13:13,AH13)=1,0,1)) -> 0 | AJ14: =SUM(AJ$15:AJ$100000) -> 0 | AL14: =IF(OR(AL13=0,AL13=""),1,IF(COUNTIF(13:13,AL13)=1,0,1)) -> 0 | AN14: =IF(OR(AN13=0,AN13=""),1,IF(COUNTIF(13:13,AN13)=1,0,1)) -> 0 | AO14: =SUM(AO$15:AO$100000) -> 0 | AQ14: =IF(OR(AQ13=0,AQ13=""),1,IF(COUNTIF(13:13,AQ13)=1,0,1)) -> 0 | AS14: =SUM(AS$15:AS$100000) -> 0 | AU14: =IF(OR(AU13=0,AU13=""),1,IF(COUNTIF(13:13,AU13)=1,0,1)) -> 0 | AW14: =SUM(AW$15:AW$100000) -> 0 | AY14: =IF(OR(AY13=0,AY13=""),1,IF(COUNTIF(13:13,AY13)=1,0,1)) -> 0 | BA14: =SUM(BA$15:BA$100000) -> 0 | BC14: =IF(OR(BC13=0,BC13=""),1,IF(COUNTIF(13:13,BC13)=1,0,1)) -> 0 | BE14: =SUM(BE$15:BE$100000) -> 0 | BG14: =IF(OR(BG13=0,BG13=""),1,IF(COUNTIF(13:13,BG13)=1,0,1)) -> 0 | BI14: =SUM(BI$15:BI$100000) -> 0 | BK14: =IF(OR(BK13=0,BK13=""),1,IF(COUNTIF(13:13,BK13)=1,0,1)) -> 0 | BM14: =SUM(BM$15:BM$100000) -> 0 | BO14: =IF(OR(BO13=0,BO13=""),1,IF(COUNTIF(13:13,BO13)=1,0,1)) -> 0 | BQ14: =SUM(BQ$15:BQ$100000) -> 0 | BS14: =IF(OR(BS13=0,BS13=""),1,IF(COUNTIF(13:13,BS13)=1,0,1)) -> 0 | BU14: =SUM(BU$15:BU$100000) -> 0
A15: =ROW() -> 15 | I15: =$F$11&"!"&I$2&$A16&":"&I$2&($A15+MAX(J$15:J$100000)) -> Items!I16:I19 | M15: =$F$11&"!"&M$2&$A16&":"&M$2&($A15+MAX(N$15:N$100000)) -> Items!M16:M18 | Q15: =$F$11&"!"&Q$2&$A16&":"&Q$2&($A15+MAX(R$15:R$100000)) -> Items!Q16:Q17 | AD15: =$F$11&"!"&AD$2&$A16&":"&AD$2&($A15+MAX(AE$15:AE$100000)) -> Items!AD16:AD18 | AH15: =$F$11&"!"&AH$2&$A16&":"&AH$2&($A15+MAX(AI$15:AI$100000)) -> Items!AH16:AH17 | AL15: =$F$11&"!"&AL$2&$A16&":"&AL$2&($A15+MAX(AM$15:AM$100000)) -> Items!AL16:AL18 | AN15: =$F$11&"!"&AN$2&$A16&":"&AN$2&($A15+MAX(AO$15:AO$100000)) -> Items!AN16:AN15 | AQ15: =$F$11&"!"&AQ$2&$A16&":"&AQ$2&($A15+MAX(AR$15:AR$100000)) -> Items!AQ16:AQ17 | AU15: =$F$11&"!"&AU$2&$A16&":"&AU$2&($A15+MAX(AV$15:AV$100000)) -> Items!AU16:AU19 | AY15: =$F$11&"!"&AY$2&$A16&":"&AY$2&($A15+MAX(AZ$15:AZ$100000)) -> Items!AY16:AY19 | BC15: =$F$11&"!"&BC$2&$A16&":"&BC$2&($A15+MAX(BD$15:BD$100000)) -> Items!BC16:BC22 | BG15: =$F$11&"!"&BG$2&$A16&":"&BG$2&($A15+MAX(BH$15:BH$100000)) -> Items!BG16:BG20 | BK15: =$F$11&"!"&BK$2&$A16&":"&BK$2&($A15+MAX(BL$15:BL$100000)) -> Items!BK16:BK46 | BO15: =$F$11&"!"&BO$2&$A16&":"&BO$2&($A15+MAX(BP$15:BP$100000)) -> Items!BO16:BO35 | BS15: =$F$11&"!"&BS$2&$A16&":"&BS$2&($A15+MAX(BT$15:BT$100000)) -> Items!BS16:BS42
A16: =ROW() -> 16 | H16: * | I16: Аренда, специализированная техника | J16: =MAX(J$15:J15)+1 -> 1 | K16: =IF(OR(I16=0,I16=""),0,IF(COUNTIF(I$15:I$100000,I16)=1,0,1)) -> 0 | L16: * | M16: Коммунальные расходы | N16: =MAX(N$15:N15)+1 -> 1 | O16: =IF(OR(M16=0,M16=""),0,IF(COUNTIF(M$15:M$100000,M16)=1,0,1)) -> 0 | Q16: ФОТ этапа выращивания винограда | R16: =MAX(R$15:R15)+1 -> 1 | S16: =IF(OR(Q16=0,Q16=""),0,IF(COUNTIF(Q$15:Q$100000,Q16)=1,0,1)) -> 0 | AC16: * | AD16: Коммунальные расходы | AE16: =MAX(AE$15:AE15)+1 -> 1 | AF16: =IF(OR(AD16=0,AD16=""),0,IF(COUNTIF(AD$15:AD$100000,AD16)=1,0,1)) -> 0 | AH16: ФОТ этапа виноделия - Sales & Marketing | AI16: =MAX(AI$15:AI15)+1 -> 1 | AJ16: =IF(OR(AH16=0,AH16=""),0,IF(COUNTIF(AH$15:AH$100000,AH16)=1,0,1)) -> 0 | AK16: * | AL16: Технологические материалы: экология | AM16: =MAX(AM$15:AM15)+1 -> 1 | AN16: у.е. | AO16: =IF(OR(AL16=0,AL16=""),0,IF(COUNTIF(AL$15:AL$100000,AL16)=1,0,1)) -> 0 | AQ16: ФОТ производственных рабочих | AR16: =MAX(AR$15:AR15)+1 -> 1 | AS16: =IF(OR(AQ16=0,AQ16=""),0,IF(COUNTIF(AQ$15:AQ$100000,AQ16)=1,0,1)) -> 0 | AT16: * | AU16: Исследования и консалтинг - виноградники | AV16: =MAX(AV$15:AV15)+1 -> 1 | AW16: =IF(OR(AU16=0,AU16=""),0,IF(COUNTIF(AU$15:AU$100000,AU16)=1,0,1)) -> 0 | AX16: * | AY16: Sales & Marketing - винодельня | AZ16: =MAX(AZ$15:AZ15)+1 -> 1 | BA16: =IF(OR(AY16=0,AY16=""),0,IF(COUNTIF(AY$15:AY$100000,AY16)=1,0,1)) -> 0 | BB16: * | BC16: Офисные расходы | BD16: =MAX(BD$15:BD15)+1 -> 1 | BE16: =IF(OR(BC16=0,BC16=""),0,IF(COUNTIF(BC$15:BC$100000,BC16)=1,0,1)) -> 0 | BF16: * | BG16: Обустройство жилой зоны | BH16: =MAX(BH$15:BH15)+1 -> 1 | BI16: =IF(OR(BG16=0,BG16=""),0,IF(COUNTIF(BG$15:BG$100000,BG16)=1,0,1)) -> 0 | BJ16: * | BK16: Дебиторская задолженность | BL16: =MAX(BL$15:BL15)+1 -> 1 | BM16: =IF(OR(BK16=0,BK16=""),0,IF(COUNTIF(BK$15:BK$100000,BK16)=1,0,1)) -> 0 | BN16: * | BO16: Выручка | BP16: =MAX(BP$15:BP15)+1 -> 1 | BQ16: =IF(OR(BO16=0,BO16=""),0,IF(COUNTIF(BO$15:BO$100000,BO16)=1,0,1)) -> 0 | BR16: * | BS16: Финпоток проекта без финансирования (CF) | BT16: =MAX(BT$15:BT15)+1 -> 1 | BU16: =IF(OR(BS16=0,BS16=""),0,IF(COUNTIF(BS$15:BS$100000,BS16)=1,0,1)) -> 0
A17: =ROW() -> 17 | H17: * | I17: Услуги, компании и организации | J17: =MAX(J$15:J16)+1 -> 2 | K17: =IF(OR(I17=0,I17=""),0,IF(COUNTIF(I$15:I$100000,I17)=1,0,1)) -> 0 | L17: * | M17: Cервис, ТО, хоз склад | N17: =MAX(N$15:N16)+1 -> 2 | O17: =IF(OR(M17=0,M17=""),0,IF(COUNTIF(M$15:M$100000,M17)=1,0,1)) -> 0 | P17: * | Q17: Прочие расходы этапа выращивания винограда | R17: =MAX(R$15:R16)+1 -> 2 | S17: =IF(OR(Q17=0,Q17=""),0,IF(COUNTIF(Q$15:Q$100000,Q17)=1,0,1)) -> 0 | AC17: * | AD17: ГСМ, ТО, хоз склад | AE17: =MAX(AE$15:AE16)+1 -> 2 | AF17: =IF(OR(AD17=0,AD17=""),0,IF(COUNTIF(AD$15:AD$100000,AD17)=1,0,1)) -> 0 | AG17: * | AH17: Прочие расходы этапа виноделия | AI17: =MAX(AI$15:AI16)+1 -> 2 | AJ17: =IF(OR(AH17=0,AH17=""),0,IF(COUNTIF(AH$15:AH$100000,AH17)=1,0,1)) -> 0 | AK17: * | AL17: Комплектующие: розлив и оформление | AM17: =MAX(AM$15:AM16)+1 -> 2 | AN17: у.е. | AO17: =IF(OR(AL17=0,AL17=""),0,IF(COUNTIF(AL$15:AL$100000,AL17)=1,0,1)) -> 0 | AP17: * | AQ17: Прочие производственные расходы | AR17: =MAX(AR$15:AR16)+1 -> 2 | AS17: =IF(OR(AQ17=0,AQ17=""),0,IF(COUNTIF(AQ$15:AQ$100000,AQ17)=1,0,1)) -> 0 | AT17: * | AU17: Капзатраты - виноградники | AV17: =MAX(AV$15:AV16)+1 -> 2 | AW17: =IF(OR(AU17=0,AU17=""),0,IF(COUNTIF(AU$15:AU$100000,AU17)=1,0,1)) -> 0 | AX17: * | AY17: Капзатраты - винодельня | AZ17: =MAX(AZ$15:AZ16)+1 -> 2 | BA17: =IF(OR(AY17=0,AY17=""),0,IF(COUNTIF(AY$15:AY$100000,AY17)=1,0,1)) -> 0 | BB17: * | BC17: Представительские расходы | BD17: =MAX(BD$15:BD16)+1 -> 2 | BE17: 0 | BF17: * | BG17: Расходы на организацию рабочего места | BH17: =MAX(BH$15:BH16)+1 -> 2 | BI17: =IF(OR(BG17=0,BG17=""),0,IF(COUNTIF(BG$15:BG$100000,BG17)=1,0,1)) -> 0 | BJ17: * | BK17: Авансы полученные | BL17: =MAX(BL$15:BL16)+1 -> 2 | BM17: 0 | BN17: * | BO17: Себестоимость | BP17: =MAX(BP$15:BP16)+1 -> 2 | BQ17: 0 | BR17: * | BS17: Финпоток проекта нарастающим итогом | BT17: =MAX(BT$15:BT16)+1 -> 2 | BU17: 0
A18: =ROW() -> 18 | H18: * | I18: Защита растений | J18: =MAX(J$15:J17)+1 -> 3 | K18: =IF(OR(I18=0,I18=""),0,IF(COUNTIF(I$15:I$100000,I18)=1,0,1)) -> 0 | L18: * | M18: ГСМ | N18: =MAX(N$15:N17)+1 -> 3 | O18: =IF(OR(M18=0,M18=""),0,IF(COUNTIF(M$15:M$100000,M18)=1,0,1)) -> 0 | AC18: * | AD18: Обслуживание оборудования | AE18: =MAX(AE$15:AE17)+1 -> 3 | AF18: =IF(OR(AD18=0,AD18=""),0,IF(COUNTIF(AD$15:AD$100000,AD18)=1,0,1)) -> 0 | AK18: * | AL18: Непредвиденные расходы (5%) | AM18: =MAX(AM$15:AM17)+1 -> 3 | AN18: у.е. | AO18: =IF(OR(AL18=0,AL18=""),0,IF(COUNTIF(AL$15:AL$100000,AL18)=1,0,1)) -> 0 | AT18: * | AU18: ОС - Виноградники | AV18: =MAX(AV$15:AV17)+1 -> 3 | AW18: =IF(OR(AU18=0,AU18=""),0,IF(COUNTIF(AU$15:AU$100000,AU18)=1,0,1)) -> 0 | AX18: * | AY18: ОС - винодельня | AZ18: =MAX(AZ$15:AZ17)+1 -> 3 | BA18: =IF(OR(AY18=0,AY18=""),0,IF(COUNTIF(AY$15:AY$100000,AY18)=1,0,1)) -> 0 | BB18: * | BC18: Админ расходы | BD18: =MAX(BD$15:BD17)+1 -> 3 | BE18: 0 | BF18: * | BG18: Расходы на оргтехнику | BH18: =MAX(BH$15:BH17)+1 -> 3 | BI18: =IF(OR(BG18=0,BG18=""),0,IF(COUNTIF(BG$15:BG$100000,BG18)=1,0,1)) -> 0 | BJ18: * | BK18: Поступление запасов | BL18: =MAX(BL$15:BL17)+1 -> 3 | BM18: 0 | BN18: * | BO18: Валовая прибыль | BP18: =MAX(BP$15:BP17)+1 -> 3 | BQ18: 0 | BR18: * | BS18: Свободный положительный финпоток проекта | BT18: =MAX(BT$15:BT17)+1 -> 3 | BU18: 0
A19: =ROW() -> 19 | H19: * | I19: резервная статья | J19: =MAX(J$15:J18)+1 -> 4 | K19: =IF(OR(I19=0,I19=""),0,IF(COUNTIF(I$15:I$100000,I19)=1,0,1)) -> 0 | AT19: * | AU19: резервная статья | AV19: =MAX(AV$15:AV18)+1 -> 4 | AW19: =IF(OR(AU19=0,AU19=""),0,IF(COUNTIF(AU$15:AU$100000,AU19)=1,0,1)) -> 0 | AX19: * | AY19: резервная статья | AZ19: =MAX(AZ$15:AZ18)+1 -> 4 | BA19: =IF(OR(AY19=0,AY19=""),0,IF(COUNTIF(AY$15:AY$100000,AY19)=1,0,1)) -> 0 | BB19: * | BC19: Выплаты и расходы | BD19: =MAX(BD$15:BD18)+1 -> 4 | BE19: 0 | BF19: * | BG19: Расходы на спецодежду | BH19: =MAX(BH$15:BH18)+1 -> 4 | BI19: =IF(OR(BG19=0,BG19=""),0,IF(COUNTIF(BG$15:BG$100000,BG19)=1,0,1)) -> 0 | BJ19: * | BK19: Списание запасов на незавершенное пр-во | BL19: =MAX(BL$15:BL18)+1 -> 4 | BM19: 0 | BN19: * | BO19: НДС начисленный | BP19: =MAX(BP$15:BP18)+1 -> 4 | BQ19: 0 | BR19: * | BS19: Свободный отрицательный финпоток проекта | BT19: =MAX(BT$15:BT18)+1 -> 4 | BU19: 0
A20: =ROW() -> 20 | BB20: * | BC20: Непредвиденные затраты (5%) | BD20: =MAX(BD$15:BD19)+1 -> 5 | BE20: 0 | BF20: * | BG20: Прочие расходы на персонал | BH20: =MAX(BH$15:BH19)+1 -> 5 | BI20: =IF(OR(BG20=0,BG20=""),0,IF(COUNTIF(BG$15:BG$100000,BG20)=1,0,1)) -> 0 | BJ20: * | BK20: Запасы | BL20: =MAX(BL$15:BL19)+1 -> 5 | BM20: 0 | BN20: * | BO20: НДС к возмещению | BP20: =MAX(BP$15:BP19)+1 -> 5 | BQ20: 0 | BR20: * | BS20: Свободный финпоток (FCF) | BT20: =MAX(BT$15:BT19)+1 -> 5 | BU20: 0
A21: =ROW() -> 21 | BB21: * | BC21: Расходы на организацию финансирования | BD21: =MAX(BD$15:BD20)+1 -> 6 | BE21: 0 | BJ21: * | BK21: Незавершенное производство | BL21: =MAX(BL$15:BL20)+1 -> 6 | BM21: 0 | BN21: * | BO21: Прямые расходы | BP21: =MAX(BP$15:BP20)+1 -> 6 | BQ21: 0 | BR21: * | BS21: Кассовый разрыв | BT21: =MAX(BT$15:BT20)+1 -> 6 | BU21: 0
A22: =ROW() -> 22 | BB22: * | BC22: резерв-2 | BD22: =MAX(BD$15:BD21)+1 -> 7 | BE22: 0 | BJ22: * | BK22: Авансы выданные | BL22: =MAX(BL$15:BL21)+1 -> 7 | BM22: 0 | BN22: * | BO22: Маржинальная прибыль | BP22: =MAX(BP$15:BP21)+1 -> 7 | BQ22: 0 | BR22: * | BS22: Поступление финансирования от Учредителей | BT22: =MAX(BT$15:BT21)+1 -> 7 | BU22: 0
A23: =ROW() -> 23 | BJ23: * | BK23: Кредиторская задолженность | BL23: =MAX(BL$15:BL22)+1 -> 8 | BM23: 0 | BN23: * | BO23: Управленческие расходы | BP23: =MAX(BP$15:BP22)+1 -> 8 | BQ23: 0 | BR23: * | BS23: Финпоток проекта для кредиторов | BT23: =MAX(BT$15:BT22)+1 -> 8 | BU23: 0
A24: =ROW() -> 24 | BJ24: * | BK24: Задолженность перед персоналом | BL24: =MAX(BL$15:BL23)+1 -> 9 | BM24: 0 | BN24: * | BO24: ФОТ управленческого персонала | BP24: =MAX(BP$15:BP23)+1 -> 9 | BQ24: 0 | BR24: * | BS24: Финпоток проекта для кредиторов нараст. итогом | BT24: =MAX(BT$15:BT23)+1 -> 9 | BU24: 0
A25: =ROW() -> 25 | BJ25: * | BK25: Задолженность по соцсборам | BL25: =MAX(BL$15:BL24)+1 -> 10 | BM25: 0 | BN25: * | BO25: EBITDA | BP25: =MAX(BP$15:BP24)+1 -> 10 | BQ25: 0 | BR25: * | BS25: Свободный полож. финпоток для кредиторов | BT25: =MAX(BT$15:BT24)+1 -> 10 | BU25: 0
A26: =ROW() -> 26 | BJ26: * | BK26: АКТИВЫ | BL26: =MAX(BL$15:BL25)+1 -> 11 | BM26: =IF(OR(BK26=0,BK26=""),0,IF(COUNTIF(BK$15:BK$100000,BK26)=1,0,1)) -> 0 | BN26: * | BO26: Капзатраты | BP26: =MAX(BP$15:BP25)+1 -> 11 | BQ26: =IF(OR(BO26=0,BO26=""),0,IF(COUNTIF(BO$15:BO$100000,BO26)=1,0,1)) -> 0 | BR26: * | BS26: Свободный отриц. финпоток для кредиторов | BT26: =MAX(BT$15:BT25)+1 -> 11 | BU26: 0
A27: =ROW() -> 27 | BJ27: * | BK27: ПАССИВЫ | BL27: =MAX(BL$15:BL26)+1 -> 12 | BM27: 0 | BN27: * | BO27: НДС к возмещению по капзатратам | BP27: =MAX(BP$15:BP26)+1 -> 12 | BQ27: 0 | BR27: * | BS27: Свободный финпоток для кредиторов | BT27: =MAX(BT$15:BT26)+1 -> 12 | BU27: 0
A28: =ROW() -> 28 | BJ28: * | BK28: Денежные средства | BL28: =MAX(BL$15:BL27)+1 -> 13 | BM28: 0 | BN28: * | BO28: Амортизация | BP28: =MAX(BP$15:BP27)+1 -> 13 | BQ28: 0 | BR28: * | BS28: Кассовый разрыв проекта для кредиторов | BT28: =MAX(BT$15:BT27)+1 -> 13 | BU28: 0
A29: =ROW() -> 29 | BJ29: * | BK29: Собственный капитал | BL29: =MAX(BL$15:BL28)+1 -> 14 | BM29: 0 | BN29: * | BO29: EBIT | BP29: =MAX(BP$15:BP28)+1 -> 14 | BQ29: 0 | BR29: * | BS29: Поступление облигац.займа | BT29: =MAX(BT$15:BT28)+1 -> 14 | BU29: 0
A30: =ROW() -> 30 | BJ30: * | BK30: Промежуточный баланс-контроль | BL30: =MAX(BL$15:BL29)+1 -> 15 | BM30: 0 | BN30: * | BO30: Прочие доходы | BP30: =MAX(BP$15:BP29)+1 -> 15 | BQ30: 0 | BR30: * | BS30: Возврат облигац.займа | BT30: =MAX(BT$15:BT29)+1 -> 15 | BU30: 0
A31: =ROW() -> 31 | BJ31: * | BK31: Задолженность по прямым расходам | BL31: =MAX(BL$15:BL30)+1 -> 16 | BM31: 0 | BN31: * | BO31: Проценты начисленные | BP31: =MAX(BP$15:BP30)+1 -> 16 | BQ31: 0 | BR31: * | BS31: Оплата процентов по облигациям | BT31: =MAX(BT$15:BT30)+1 -> 16 | BU31: 0
A32: =ROW() -> 32 | BJ32: * | BK32: Задолженность по управленческим расходам | BL32: =MAX(BL$15:BL31)+1 -> 17 | BM32: =IF(OR(BK32=0,BK32=""),0,IF(COUNTIF(BK$15:BK$100000,BK32)=1,0,1)) -> 0 | BN32: * | BO32: Прибыль до налога на прибыль | BP32: =MAX(BP$15:BP31)+1 -> 17 | BQ32: 0 | BR32: * | BS32: Финпоток проекта с учетом финансирования | BT32: =MAX(BT$15:BT31)+1 -> 17 | BU32: 0
A33: =ROW() -> 33 | BJ33: * | BK33: Задолженность по капзатратам | BL33: =MAX(BL$15:BL32)+1 -> 18 | BM33: 0 | BN33: * | BO33: Налог на прибыль | BP33: =MAX(BP$15:BP32)+1 -> 18 | BQ33: 0 | BR33: * | BS33: Финпоток проекта с уч. финансир. нараст. итогом | BT33: =MAX(BT$15:BT32)+1 -> 18 | BU33: 0
A34: =ROW() -> 34 | BJ34: * | BK34: Внеоборотные активы | BL34: =MAX(BL$15:BL33)+1 -> 19 | BM34: 0 | BN34: * | BO34: Чистая прибыль | BP34: =MAX(BP$15:BP33)+1 -> 19 | BQ34: 0 | BR34: * | BS34: Осаточный кассовый разрыв | BT34: =MAX(BT$15:BT33)+1 -> 19 | BU34: 0
A35: =ROW() -> 35 | BJ35: * | BK35: ДЗ по возмещению НДС с капзатрат | BL35: =MAX(BL$15:BL34)+1 -> 20 | BM35: 0 | BN35: * | BO35: Проценты начисленные по облигациям | BP35: =MAX(BP$15:BP34)+1 -> 20 | BQ35: 0 | BR35: * | BS35: Итоговый финпоток | BT35: =MAX(BT$15:BT34)+1 -> 20 | BU35: =IF(OR(BS35=0,BS35=""),0,IF(COUNTIF(BS$15:BS$100000,BS35)=1,0,1)) -> 0
A36: =ROW() -> 36 | BJ36: * | BK36: Задолженность по налогам | BL36: =MAX(BL$15:BL35)+1 -> 21 | BM36: 0 | BR36: * | BS36: Итоговый финпоток нараст. итогом | BT36: =MAX(BT$15:BT35)+1 -> 21 | BU36: 0
A37: =ROW() -> 37 | BJ37: * | BK37: Задолженность по НДС | BL37: =MAX(BL$15:BL36)+1 -> 22 | BM37: 0 | BR37: * | BS37: Итоговый кассовый разрыв | BT37: =MAX(BT$15:BT36)+1 -> 22 | BU37: 0
A38: =ROW() -> 38 | BJ38: * | BK38: Задолженность по НП | BL38: =MAX(BL$15:BL37)+1 -> 23 | BM38: 0 | BR38: * | BS38: Финпоток по операционной деятельности | BT38: =MAX(BT$15:BT37)+1 -> 23 | BU38: 0
A39: =ROW() -> 39 | BJ39: * | BK39: Остаток долга по кредиту | BL39: =MAX(BL$15:BL38)+1 -> 24 | BM39: 0 | BR39: * | BS39: Финпоток по основной деятельности | BT39: =MAX(BT$15:BT38)+1 -> 24 | BU39: 0
A40: =ROW() -> 40 | BJ40: * | BK40: Задолженность по выплате %% по облигациям | BL40: =MAX(BL$15:BL39)+1 -> 25 | BM40: 0 | BR40: * | BS40: Финпоток по финансовой деятельности | BT40: =MAX(BT$15:BT39)+1 -> 25 | BU40: 0
A41: =ROW() -> 41 | BJ41: * | BK41: Вложения Акционеров в капитал | BL41: =MAX(BL$15:BL40)+1 -> 26 | BM41: 0 | BR41: * | BS41: Поступление ДС | BT41: =MAX(BT$15:BT40)+1 -> 26 | BU41: 0
A42: =ROW() -> 42 | BJ42: * | BK42: БАЛАНС | BL42: =MAX(BL$15:BL41)+1 -> 27 | BM42: 0 | BR42: * | BS42: Итоговый свободный финпоток (Total FCF) | BT42: =MAX(BT$15:BT41)+1 -> 27 | BU42: 0
A43: =ROW() -> 43 | BJ43: * | BL43: =MAX(BL$15:BL42)+1 -> 28 | BM43: 0
A44: =ROW() -> 44 | BJ44: * | BL44: =MAX(BL$15:BL43)+1 -> 29 | BM44: 0
A45: =ROW() -> 45 | BJ45: * | BL45: =MAX(BL$15:BL44)+1 -> 30 | BM45: 0
A46: =ROW() -> 46 | BJ46: * | BL46: =MAX(BL$15:BL45)+1 -> 31 | BM46: 0
A47: =ROW() -> 47
A48: =ROW() -> 48
A49: =ROW() -> 49
A50: =ROW() -> 50
A51: =ROW() -> 51
A52: =ROW() -> 52
A53: =ROW() -> 53
A54: =ROW() -> 54
A55: =ROW() -> 55
A56: =ROW() -> 56
A57: =ROW() -> 57
A58: =ROW() -> 58
A59: =ROW() -> 59
A60: =ROW() -> 60
A61: =ROW() -> 61
A62: =ROW() -> 62
A63: =ROW() -> 63
A64: =ROW() -> 64
A65: =ROW() -> 65
A66: =ROW() -> 66
A67: =ROW() -> 67
A68: =ROW() -> 68
A69: =ROW() -> 69
A70: =ROW() -> 70

Sheet KPI
I1: =COLUMN() -> 9
I2: =LEFT(ADDRESS(1,COLUMN(),4),LEN(ADDRESS(1,COLUMN(),4))-1) -> I
F11: =INDIRECT("START!I31") -> KPI | I11: =INDIRECT("START!K31") -> Справочники ключевых показателей эффективности
I13: Список показателей эффективности | Q13: Формулы расчета показателей
D14: =INDIRECT("Cntrl!M17") -> 0 | E14: =SUM($F14:$ML14) -> 0 | F14: =IFERROR(_xlfn.SHEET($A$1)-SUMIFS(Cntrl!O$15:O$100000,Cntrl!I$15:I$100000,$F$11),1) -> 0 | I14: =IF(OR(I13=0,I13=""),1,IF(COUNTIF(13:13,I13)=1,0,1)) -> 0 | K14: =SUM(K$15:K$100000) -> 0
A15: =ROW() -> 15 | I15: =$F$11&"!"&I$2&$A16&":"&I$2&($A15+MAX(J$15:J$100000)) -> KPI!I16:I92
A16: =ROW() -> 16 | I16: Срок окупаемости по чистой прибыли | J16: =MAX(J$15:J15)+1 -> 1 | K16: =IF(OR(I16=0,I16=""),0,IF(COUNTIF(I$15:I$100000,I16)=1,0,1)) -> 0
A17: =ROW() -> 17 | I17: Точка безубыточности по чистой прибыли | J17: =MAX(J$15:J16)+1 -> 2 | K17: =IF(OR(I17=0,I17=""),0,IF(COUNTIF(I$15:I$100000,I17)=1,0,1)) -> 0
A18: =ROW() -> 18 | I18: Срок окупаемости по финпотоку (PBP) | J18: =MAX(J$15:J17)+1 -> 3 | K18: 0
A19: =ROW() -> 19 | I19: Точка безубыточности по финпотоку | J19: =MAX(J$15:J18)+1 -> 4 | K19: 0
A20: =ROW() -> 20 | I20: IRR проекта | J20: =MAX(J$15:J19)+1 -> 5 | K20: 0
A21: =ROW() -> 21 | I21: NPV(Акционеров) | J21: =MAX(J$15:J20)+1 -> 6 | K21: 0
A22: =ROW() -> 22 | I22: IRR для кредиторов | J22: =MAX(J$15:J21)+1 -> 7 | K22: 0
A23: =ROW() -> 23 | I23: NPV(Кредиторов) | J23: =MAX(J$15:J22)+1 -> 8 | K23: =IF(OR(I23=0,I23=""),0,IF(COUNTIF(I$15:I$100000,I23)=1,0,1)) -> 0
A24: =ROW() -> 24 | I24: Рентабельность | J24: =MAX(J$15:J23)+1 -> 9 | K24: 0
A25: =ROW() -> 25 | I25: WACC | J25: =MAX(J$15:J24)+1 -> 10 | K25: 0
A26: =ROW() -> 26 | I26: NPV(WACC) | J26: =MAX(J$15:J25)+1 -> 11 | K26: 0
A27: =ROW() -> 27 | I27: ROI | J27: =MAX(J$15:J26)+1 -> 12 | K27: 0
A28: =ROW() -> 28 | I28: Дисконтированный срок окупаемости (DPBP) | J28: =MAX(J$15:J27)+1 -> 13 | K28: 0
A29: =ROW() -> 29 | I29: Коэффициент текущей ликвидности (L1) | J29: =MAX(J$15:J28)+1 -> 14 | K29: 0 | Q29: Отношение оборотных активов к краткосрочным обязательствам
A30: =ROW() -> 30 | I30: Коэффициент промежуточного покрытия (L2) | J30: =MAX(J$15:J29)+1 -> 15 | K30: 0 | Q30: Отношение суммы активов А1 и А2 к краткосрочным обязательствам
A31: =ROW() -> 31 | I31: Коэффициент абсолютной ликвидности (L3) | J31: =MAX(J$15:J30)+1 -> 16 | K31: =IF(OR(I31=0,I31=""),0,IF(COUNTIF(I$15:I$100000,I31)=1,0,1)) -> 0 | Q31: Отношение суммы активов А1 к краткосрочным обязательствам
A32: =ROW() -> 32 | I32: Коэффициент общей платежеспособности (L4) | J32: =MAX(J$15:J31)+1 -> 17 | K32: 0 | Q32: Отношение всех активов ко всем обязательствам
A33: =ROW() -> 33 | I33: Коэфф. платежеспособности по тек. обяз. (L5) | J33: =MAX(J$15:J32)+1 -> 18 | K33: 0 | Q33: Отношение среднемесячной выручки к краткосрочным обязательствам
A34: =ROW() -> 34 | J34: =MAX(J$15:J33)+1 -> 19 | K34: 0
A35: =ROW() -> 35 | I35: Оценка стоимости бизнеса/компании | J35: =MAX(J$15:J34)+1 -> 20 | K35: 0
A36: =ROW() -> 36 | J36: =MAX(J$15:J35)+1 -> 21 | K36: 0
A37: =ROW() -> 37 | J37: =MAX(J$15:J36)+1 -> 22 | K37: 0
A38: =ROW() -> 38 | J38: =MAX(J$15:J37)+1 -> 23 | K38: 0
A39: =ROW() -> 39 | I39: Терминальная стоимость (TV) | J39: =MAX(J$15:J38)+1 -> 24 | K39: 0
A40: =ROW() -> 40 | I40: NPV(TV) | J40: =MAX(J$15:J39)+1 -> 25 | K40: =IF(OR(I40=0,I40=""),0,IF(COUNTIF(I$15:I$100000,I40)=1,0,1)) -> 0
A41: =ROW() -> 41 | I41: CFADS | J41: =MAX(J$15:J40)+1 -> 26 | K41: 0
A42: =ROW() -> 42 | I42: Выплаты долга [Debt (Principals+Interests)] | J42: =MAX(J$15:J41)+1 -> 27 | K42: 0
A43: =ROW() -> 43 | I43: Выплаты тела кредитов (Principals) | J43: =MAX(J$15:J42)+1 -> 28 | K43: 0
A44: =ROW() -> 44 | I44: Выплаты %% (Interests) | J44: =MAX(J$15:J43)+1 -> 29 | K44: 0
A45: =ROW() -> 45 | I45: Коэф. покрытия выплат долга (DSCR) | J45: =MAX(J$15:J44)+1 -> 30 | K45: 0
A46: =ROW() -> 46 | I46: Коэф. покрытия процентов (ICR) | J46: =MAX(J$15:J45)+1 -> 31 | K46: =IF(OR(I46=0,I46=""),0,IF(COUNTIF(I$15:I$100000,I46)=1,0,1)) -> 0
A47: =ROW() -> 47 | I47: CF(EBIT) | J47: =MAX(J$15:J46)+1 -> 32 | K47: 0
A48: =ROW() -> 48 | I48: Наиболее ликвидные активы (А1) | J48: =MAX(J$15:J47)+1 -> 33 | K48: 0
A49: =ROW() -> 49 | I49: Денежные средства | J49: =MAX(J$15:J48)+1 -> 34 | K49: 0
A50: =ROW() -> 50 | I50: Финансовые вложения | J50: =MAX(J$15:J49)+1 -> 35 | K50: 0
A51: =ROW() -> 51 | I51: Быстро реализуемые активы (А2) | J51: =MAX(J$15:J50)+1 -> 36 | K51: 0
A52: =ROW() -> 52 | I52: Незавершенное производство | J52: =MAX(J$15:J51)+1 -> 37 | K52: 0
A53: =ROW() -> 53 | I53: Дебиторская задолженность | J53: =MAX(J$15:J52)+1 -> 38 | K53: =IF(OR(I53=0,I53=""),0,IF(COUNTIF(I$15:I$100000,I53)=1,0,1)) -> 0
A54: =ROW() -> 54 | I54: Авансы выданные | J54: =MAX(J$15:J53)+1 -> 39 | K54: 0
A55: =ROW() -> 55 | I55: Медленно реализуемые активы (А3) | J55: =MAX(J$15:J54)+1 -> 40 | K55: 0
A56: =ROW() -> 56 | I56: Запасы | J56: =MAX(J$15:J55)+1 -> 41 | K56: 0
A57: =ROW() -> 57 | I57: Трудно реализуемые активы (А4) | J57: =MAX(J$15:J56)+1 -> 42 | K57: 0
A58: =ROW() -> 58 | I58: Внеоборотные активы | J58: =MAX(J$15:J57)+1 -> 43 | K58: 0
A59: =ROW() -> 59 | I59: Наиболее срочные обязательства (П1) | J59: =MAX(J$15:J58)+1 -> 44 | K59: 0
A60: =ROW() -> 60 | I60: Овердрафт | J60: =MAX(J$15:J59)+1 -> 45 | K60: 0
A61: =ROW() -> 61 | I61: Кредиторская задолженность | J61: =MAX(J$15:J60)+1 -> 46 | K61: 0
A62: =ROW() -> 62 | I62: Краткосрочные обязательства (П2) | J62: =MAX(J$15:J61)+1 -> 47 | K62: 0
A63: =ROW() -> 63 | I63: Прочие краткосрочные обязательства | J63: =MAX(J$15:J62)+1 -> 48 | K63: 0
A64: =ROW() -> 64 | I64: Долгосрочные обязательства (П3) | J64: =MAX(J$15:J63)+1 -> 49 | K64: 0
A65: =ROW() -> 65 | I65: Долгосрочные кредиты | J65: =MAX(J$15:J64)+1 -> 50 | K65: 0
A66: =ROW() -> 66 | I66: Постоянные пассивы (П4) | J66: =MAX(J$15:J65)+1 -> 51 | K66: 0
A67: =ROW() -> 67 | I67: Собственный капитал | J67: =MAX(J$15:J66)+1 -> 52 | K67: =IF(OR(I67=0,I67=""),0,IF(COUNTIF(I$15:I$100000,I67)=1,0,1)) -> 0
A68: =ROW() -> 68 | I68: Собственные оборотные средства (СОС) | J68: =MAX(J$15:J67)+1 -> 53 | K68: 0 | Q68: Разность собственного капитала и внеоборотных активов
A69: =ROW() -> 69 | I69: Коэффициент финансовой устойчивости (S1) | J69: =MAX(J$15:J68)+1 -> 54 | K69: 0 | Q69: Отношение суммы собственного капитала и долгосрочных обязательств к активам
A70: =ROW() -> 70 | I70: Коэффициент автономии (независимости) (S2) | J70: =MAX(J$15:J69)+1 -> 55 | K70: 0 | Q70: Отношение собственного капитала к активам
I71: Коэфф. обеспеч-ти собств. об. средствами (S3) | J71: =MAX(J$15:J70)+1 -> 56 | K71: 0 | Q71: Отношение объема СОС к оборотным активам
I72: Коэффициент финансового рычага (S4) | J72: =MAX(J$15:J71)+1 -> 57 | K72: 0 | Q72: Отношение собственного капитала к заемному капиталу
I73: Рентабельность продаж (Return On Sales) (R1) | J73: =MAX(J$15:J72)+1 -> 58 | K73: 0 | Q73: Отношение валовой прибыли к выручке
I74: Рентабельность активов (Return On Assets) (R2) | J74: =MAX(J$15:J73)+1 -> 59 | K74: 0 | Q74: Отношение среднемесячной чистой прибыли за период к уровню активов на конец периода
I75: Рентаб-сть собств. капитала (Return On Equity) (R3) | J75: =MAX(J$15:J74)+1 -> 60 | K75: 0 | Q75: Отношение среднемесячной чистой прибыли за период к уровню собственного капитала на конец периода
I76: Рент. инвестиций (Return On Invested Capital) (R4) | J76: =MAX(J$15:J75)+1 -> 61 | K76: 0 | Q76: Отношение среднемес. EBITDA за период к уровню инвестиций (собств.+долгосроч.) на конец периода
I77: Рент. об. капитала (Return On Working Capital) (R5) | J77: =MAX(J$15:J76)+1 -> 62 | K77: 0 | Q77: Отношение среднемес. марж. прибыли за период к уровню оборотного капитала на конец периода
I78: Оборачиваемость запасов и незавершенки | J78: =MAX(J$15:J77)+1 -> 63 | K78: 0
I79: Период оборач-сти запасов и незавершенки (P1) | J79: =MAX(J$15:J78)+1 -> 64 | K79: =IF(OR(I79=0,I79=""),0,IF(COUNTIF(I$15:I$100000,I79)=1,0,1)) -> 0
I80: Оборачиваемость дебиторской задолженности | J80: =MAX(J$15:J79)+1 -> 65 | K80: =IF(OR(I80=0,I80=""),0,IF(COUNTIF(I$15:I$100000,I80)=1,0,1)) -> 0
I81: Период оборач-ти дебит. задолженности (P2) | J81: =MAX(J$15:J80)+1 -> 66 | K81: =IF(OR(I81=0,I81=""),0,IF(COUNTIF(I$15:I$100000,I81)=1,0,1)) -> 0
I82: Оборачиваемость кредиторской задолженности | J82: =MAX(J$15:J81)+1 -> 67 | K82: =IF(OR(I82=0,I82=""),0,IF(COUNTIF(I$15:I$100000,I82)=1,0,1)) -> 0
I83: Период оборач-ти кредит. задолженности (P3) | J83: =MAX(J$15:J82)+1 -> 68 | K83: =IF(OR(I83=0,I83=""),0,IF(COUNTIF(I$15:I$100000,I83)=1,0,1)) -> 0
I84: Финансовый цикл (P4) | J84: =MAX(J$15:J83)+1 -> 69 | K84: =IF(OR(I84=0,I84=""),0,IF(COUNTIF(I$15:I$100000,I84)=1,0,1)) -> 0
I85: ТЕМПЫ РОСТА АКТИВОВ [T(A)] | J85: =MAX(J$15:J84)+1 -> 70 | K85: 0
I86: ТЕМПЫ РОСТА ВЫРУЧКИ [T(R)] | J86: =MAX(J$15:J85)+1 -> 71 | K86: 0
I87: ТЕМПЫ РОСТА ЧИСТОЙ ПРИБЫЛИ [T(E)] | J87: =MAX(J$15:J86)+1 -> 72 | K87: 0
J88: =MAX(J$15:J87)+1 -> 73 | K88: 0
J89: =MAX(J$15:J88)+1 -> 74 | K89: 0
J90: =MAX(J$15:J89)+1 -> 75 | K90: 0
J91: =MAX(J$15:J90)+1 -> 76 | K91: 0
J92: =MAX(J$15:J91)+1 -> 77 | K92: 0

Sheet Sbor
Y1: номер столбца: | AA1: 27 | AB1: 28 | AC1: 29 | AD1: 30 | AE1: 31 | AF1: 32 | AG1: 33 | AH1: 34 | AI1: 35 | AJ1: 36 | AK1: 37 | AL1: 38 | AM1: 39 | AN1: 40 | AO1: 41 | AP1: 42 | AQ1: 43 | AR1: 44 | AS1: 45 | AT1: 46 | AU1: 47 | AV1: 48 | AW1: 49 | AX1: 50 | AY1: 51 | AZ1: 52 | BA1: 53 | BB1: 54 | BC1: 55 | BD1: 56 | BE1: 57 | BF1: 58 | BG1: 59 | BH1: 60 | BI1: 61 | BJ1: 62 | BK1: 63 | BL1: 64 | BM1: 65 | BN1: 66 | BO1: 67 | BP1: 68 | BQ1: 69 | BR1: 70 | BS1: 71 | BT1: 72 | BU1: 73 | BV1: 74 | BW1: 75 | BX1: 76 | BY1: 77 | BZ1: 78 | CA1: 79 | CB1: 80 | CC1: 81 | CD1: 82 | CE1: 83 | CF1: 84 | CG1: 85 | CH1: 86 | CI1: 87 | CJ1: 88 | CK1: 89 | CL1: 90 | CM1: 91 | CN1: 92 | CO1: 93 | CP1: 94 | CQ1: 95 | CR1: 96 | CS1: 97 | CT1: 98 | CU1: 99 | CV1: 100 | CW1: 101 | CX1: 102 | CY1: 103 | CZ1: 104 | DA1: 105 | DB1: 106 | DC1: 107 | DD1: 108 | DE1: 109 | DF1: 110 | DG1: 111 | DH1: 112 | DI1: 113 | DJ1: 114 | DK1: 115 | DL1: 116 | DM1: 117 | DN1: 118 | DO1: 119 | DP1: 120 | DQ1: 121 | DR1: 122 | DS1: 123 | DT1: 124 | DU1: 125 | DV1: 126 | DW1: 127 | DX1: 128 | DY1: 129 | DZ1: 130 | EA1: 131 | EB1: 132 | EC1: 133 | ED1: 134 | EE1: 135 | EF1: 136 | EG1: 137 | EH1: 138 | EI1: 139 | EJ1: 140 | EK1: 141 | EL1: 142 | EM1: 143 | EN1: 144 | EO1: 145 | EP1: 146 | EQ1: 147 | ER1: 148 | ES1: 149 | ET1: 150 | EU1: 151 | EV1: 152 | EW1: 153 | EX1: 154 | EY1: 155 | EZ1: 156 | FA1: 157 | FB1: 158 | FC1: 159 | FD1: 160 | FE1: 161 | FF1: 162 | FG1: 163 | FH1: 164 | FI1: 165 | FJ1: 166 | FK1: 167 | FL1: 168 | FM1: 169 | FN1: 170 | FO1: 171 | FP1: 172 | FQ1: 173 | FR1: 174 | FS1: 175 | FT1: 176 | FU1: 177 | FV1: 178 | FW1: 179 | FX1: 180 | FY1: 181 | FZ1: 182 | GA1: 183 | GB1: 184 | GC1: 185 | GD1: 186 | GE1: 187 | GF1: 188 | GG1: 189 | GH1: 190 | GI1: 191 | GJ1: 192 | GK1: 193 | GL1: 194 | GM1: 195 | GN1: 196 | GO1: 197 | GP1: 198 | GQ1: 199 | GR1: 200 | GS1: 201 | GT1: 202 | GU1: 203 | GV1: 204 | GW1: 205 | GX1: 206 | GY1: 207 | GZ1: 208 | HA1: 209 | HB1: 210 | HC1: 211 | HD1: 212 | HE1: 213 | HF1: 214 | HG1: 215 | HH1: 216 | HI1: 217 | HJ1: 218 | HK1: 219
Y2: номер периода модели: | AA2: 1 | AB2: 2 | AC2: 3 | AD2: 4 | AE2: 5 | AF2: 6 | AG2: 7 | AH2: 8 | AI2: 9 | AJ2: 10 | AK2: 11 | AL2: 12 | AM2: 13 | AN2: 14 | AO2: 15 | AP2: 16 | AQ2: 17 | AR2: 18 | AS2: 19 | AT2: 20 | AU2: 21 | AV2: 22 | AW2: 23 | AX2: 24 | AY2: 25 | AZ2: 26 | BA2: 27 | BB2: 28 | BC2: 29 | BD2: 30 | BE2: 31 | BF2: 32 | BG2: 33 | BH2: 34 | BI2: 35 | BJ2: 36 | BK2: 37 | BL2: 38 | BM2: 39 | BN2: 40 | BO2: 41 | BP2: 42 | BQ2: 43 | BR2: 44 | BS2: 45 | BT2: 46 | BU2: 47 | BV2: 48 | BW2: 49 | BX2: 50 | BY2: 51 | BZ2: 52 | CA2: 53 | CB2: 54 | CC2: 55 | CD2: 56 | CE2: 57 | CF2: 58 | CG2: 59 | CH2: 60 | CI2: 61 | CJ2: 62 | CK2: 63 | CL2: 64 | CM2: 65 | CN2: 66 | CO2: 67 | CP2: 68 | CQ2: 69 | CR2: 70 | CS2: 71 | CT2: 72 | CU2: 73 | CV2: 74 | CW2: 75 | CX2: 76 | CY2: 77 | CZ2: 78 | DA2: 79 | DB2: 80 | DC2: 81 | DD2: 82 | DE2: 83 | DF2: 84 | DG2: 85 | DH2: 86 | DI2: 87 | DJ2: 88 | DK2: 89 | DL2: 90 | DM2: 91 | DN2: 92 | DO2: 93 | DP2: 94 | DQ2: 95 | DR2: 96 | DS2: 97 | DT2: 98 | DU2: 99 | DV2: 100 | DW2: 101 | DX2: 102 | DY2: 103 | DZ2: 104 | EA2: 105 | EB2: 106 | EC2: 107 | ED2: 108 | EE2: 109 | EF2: 110 | EG2: 111 | EH2: 112 | EI2: 113 | EJ2: 114 | EK2: 115 | EL2: 116 | EM2: 117 | EN2: 118 | EO2: 119 | EP2: 120 | EQ2: 121 | ER2: 122 | ES2: 123 | ET2: 124 | EU2: 125 | EV2: 126 | EW2: 127 | EX2: 128 | EY2: 129 | EZ2: 130 | FA2: 131 | FB2: 132 | FC2: 133 | FD2: 134 | FE2: 135 | FF2: 136 | FG2: 137 | FH2: 138 | FI2: 139 | FJ2: 140 | FK2: 141 | FL2: 142 | FM2: 143 | FN2: 144 | FO2: 145 | FP2: 146 | FQ2: 147 | FR2: 148 | FS2: 149 | FT2: 150 | FU2: 151 | FV2: 152 | FW2: 153 | FX2: 154 | FY2: 155 | FZ2: 156 | GA2: 157 | GB2: 158 | GC2: 159 | GD2: 160 | GE2: 161 | GF2: 162 | GG2: 163 | GH2: 164 | GI2: 165 | GJ2: 166 | GK2: 167 | GL2: 168 | GM2: 169 | GN2: 170 | GO2: 171 | GP2: 172 | GQ2: 173 | GR2: 174 | GS2: 175 | GT2: 176 | GU2: 177 | GV2: 178 | GW2: 179 | GX2: 180 | GY2: 181 | GZ2: 182 | HA2: 183 | HB2: 184 | HC2: 185 | HD2: 186 | HE2: 187 | HF2: 188 | HG2: 189 | HH2: 190 | HI2: 191 | HJ2: 192 | HK2: 193
Y3: номер факт-периода:
Y4: номер план-периода: | AA4: 1 | AB4: 2 | AC4: 3 | AD4: 4 | AE4: 5 | AF4: 6 | AG4: 7 | AH4: 8 | AI4: 9 | AJ4: 10 | AK4: 11 | AL4: 12 | AM4: 13 | AN4: 14 | AO4: 15 | AP4: 16 | AQ4: 17 | AR4: 18 | AS4: 19 | AT4: 20 | AU4: 21 | AV4: 22 | AW4: 23 | AX4: 24 | AY4: 25 | AZ4: 26 | BA4: 27 | BB4: 28 | BC4: 29 | BD4: 30 | BE4: 31 | BF4: 32 | BG4: 33 | BH4: 34 | BI4: 35 | BJ4: 36 | BK4: 37 | BL4: 38 | BM4: 39 | BN4: 40 | BO4: 41 | BP4: 42 | BQ4: 43 | BR4: 44 | BS4: 45 | BT4: 46 | BU4: 47 | BV4: 48 | BW4: 49 | BX4: 50 | BY4: 51 | BZ4: 52 | CA4: 53 | CB4: 54 | CC4: 55 | CD4: 56 | CE4: 57 | CF4: 58 | CG4: 59 | CH4: 60 | CI4: 61 | CJ4: 62 | CK4: 63 | CL4: 64 | CM4: 65 | CN4: 66 | CO4: 67 | CP4: 68 | CQ4: 69 | CR4: 70 | CS4: 71 | CT4: 72 | CU4: 73 | CV4: 74 | CW4: 75 | CX4: 76 | CY4: 77 | CZ4: 78 | DA4: 79 | DB4: 80 | DC4: 81 | DD4: 82 | DE4: 83 | DF4: 84 | DG4: 85 | DH4: 86 | DI4: 87 | DJ4: 88 | DK4: 89 | DL4: 90 | DM4: 91 | DN4: 92 | DO4: 93 | DP4: 94 | DQ4: 95 | DR4: 96 | DS4: 97 | DT4: 98 | DU4: 99 | DV4: 100 | DW4: 101 | DX4: 102 | DY4: 103 | DZ4: 104 | EA4: 105 | EB4: 106 | EC4: 107 | ED4: 108 | EE4: 109 | EF4: 110 | EG4: 111 | EH4: 112 | EI4: 113 | EJ4: 114 | EK4: 115 | EL4: 116 | EM4: 117 | EN4: 118 | EO4: 119 | EP4: 120 | EQ4: 121 | ER4: 122 | ES4: 123 | ET4: 124 | EU4: 125 | EV4: 126 | EW4: 127 | EX4: 128 | EY4: 129 | EZ4: 130 | FA4: 131 | FB4: 132 | FC4: 133 | FD4: 134 | FE4: 135 | FF4: 136 | FG4: 137 | FH4: 138 | FI4: 139 | FJ4: 140 | FK4: 141 | FL4: 142 | FM4: 143 | FN4: 144 | FO4: 145 | FP4: 146 | FQ4: 147 | FR4: 148 | FS4: 149 | FT4: 150 | FU4: 151 | FV4: 152 | FW4: 153 | FX4: 154 | FY4: 155 | FZ4: 156 | GA4: 157 | GB4: 158 | GC4: 159 | GD4: 160 | GE4: 161 | GF4: 162 | GG4: 163 | GH4: 164 | GI4: 165 | GJ4: 166 | GK4: 167 | GL4: 168 | GM4: 169 | GN4: 170 | GO4: 171 | GP4: 172 | GQ4: 173 | GR4: 174 | GS4: 175 | GT4: 176 | GU4: 177 | GV4: 178 | GW4: 179 | GX4: 180
Y5: число даты начала: | AA5: 1 | AB5: 1 | AC5: 1 | AD5: 1 | AE5: 1 | AF5: 1 | AG5: 1 | AH5: 1 | AI5: 1 | AJ5: 1 | AK5: 1 | AL5: 1 | AM5: 1 | AN5: 1 | AO5: 1 | AP5: 1 | AQ5: 1 | AR5: 1 | AS5: 1 | AT5: 1 | AU5: 1 | AV5: 1 | AW5: 1 | AX5: 1 | AY5: 1 | AZ5: 1 | BA5: 1 | BB5: 1 | BC5: 1 | BD5: 1 | BE5: 1 | BF5: 1 | BG5: 1 | BH5: 1 | BI5: 1 | BJ5: 1 | BK5: 1 | BL5: 1 | BM5: 1 | BN5: 1 | BO5: 1 | BP5: 1 | BQ5: 1 | BR5: 1 | BS5: 1 | BT5: 1 | BU5: 1 | BV5: 1 | BW5: 1 | BX5: 1 | BY5: 1 | BZ5: 1 | CA5: 1 | CB5: 1 | CC5: 1 | CD5: 1 | CE5: 1 | CF5: 1 | CG5: 1 | CH5: 1 | CI5: 1 | CJ5: 1 | CK5: 1 | CL5: 1 | CM5: 1 | CN5: 1 | CO5: 1 | CP5: 1 | CQ5: 1 | CR5: 1 | CS5: 1 | CT5: 1 | CU5: 1 | CV5: 1 | CW5: 1 | CX5: 1 | CY5: 1 | CZ5: 1 | DA5: 1 | DB5: 1 | DC5: 1 | DD5: 1 | DE5: 1 | DF5: 1 | DG5: 1 | DH5: 1 | DI5: 1 | DJ5: 1 | DK5: 1 | DL5: 1 | DM5: 1 | DN5: 1 | DO5: 1 | DP5: 1 | DQ5: 1 | DR5: 1 | DS5: 1 | DT5: 1 | DU5: 1 | DV5: 1 | DW5: 1 | DX5: 1 | DY5: 1 | DZ5: 1 | EA5: 1 | EB5: 1 | EC5: 1 | ED5: 1 | EE5: 1 | EF5: 1 | EG5: 1 | EH5: 1 | EI5: 1 | EJ5: 1 | EK5: 1 | EL5: 1 | EM5: 1 | EN5: 1 | EO5: 1 | EP5: 1 | EQ5: 1 | ER5: 1 | ES5: 1 | ET5: 1 | EU5: 1 | EV5: 1 | EW5: 1 | EX5: 1 | EY5: 1 | EZ5: 1 | FA5: 1 | FB5: 1 | FC5: 1 | FD5: 1 | FE5: 1 | FF5: 1 | FG5: 1 | FH5: 1 | FI5: 1 | FJ5: 1 | FK5: 1 | FL5: 1 | FM5: 1 | FN5: 1 | FO5: 1 | FP5: 1 | FQ5: 1 | FR5: 1 | FS5: 1 | FT5: 1 | FU5: 1 | FV5: 1 | FW5: 1 | FX5: 1 | FY5: 1 | FZ5: 1 | GA5: 1 | GB5: 1 | GC5: 1 | GD5: 1 | GE5: 1 | GF5: 1 | GG5: 1 | GH5: 1 | GI5: 1 | GJ5: 1 | GK5: 1 | GL5: 1 | GM5: 1 | GN5: 1 | GO5: 1 | GP5: 1 | GQ5: 1 | GR5: 1 | GS5: 1 | GT5: 1 | GU5: 1 | GV5: 1 | GW5: 1 | GX5: 1
Y6: номер месяца даты начала: | AA6: 9 | AB6: 10 | AC6: 11 | AD6: 12 | AE6: 1 | AF6: 2 | AG6: 3 | AH6: 4 | AI6: 5 | AJ6: 6 | AK6: 7 | AL6: 8 | AM6: 9 | AN6: 10 | AO6: 11 | AP6: 12 | AQ6: 1 | AR6: 2 | AS6: 3 | AT6: 4 | AU6: 5 | AV6: 6 | AW6: 7 | AX6: 8 | AY6: 9 | AZ6: 10 | BA6: 11 | BB6: 12 | BC6: 1 | BD6: 2 | BE6: 3 | BF6: 4 | BG6: 5 | BH6: 6 | BI6: 7 | BJ6: 8 | BK6: 9 | BL6: 10 | BM6: 11 | BN6: 12 | BO6: 1 | BP6: 2 | BQ6: 3 | BR6: 4 | BS6: 5 | BT6: 6 | BU6: 7 | BV6: 8 | BW6: 9 | BX6: 10 | BY6: 11 | BZ6: 12 | CA6: 1 | CB6: 2 | CC6: 3 | CD6: 4 | CE6: 5 | CF6: 6 | CG6: 7 | CH6: 8 | CI6: 9 | CJ6: 10 | CK6: 11 | CL6: 12 | CM6: 1 | CN6: 2 | CO6: 3 | CP6: 4 | CQ6: 5 | CR6: 6 | CS6: 7 | CT6: 8 | CU6: 9 | CV6: 10 | CW6: 11 | CX6: 12 | CY6: 1 | CZ6: 2 | DA6: 3 | DB6: 4 | DC6: 5 | DD6: 6 | DE6: 7 | DF6: 8 | DG6: 9 | DH6: 10 | DI6: 11 | DJ6: 12 | DK6: 1 | DL6: 2 | DM6: 3 | DN6: 4 | DO6: 5 | DP6: 6 | DQ6: 7 | DR6: 8 | DS6: 9 | DT6: 10 | DU6: 11 | DV6: 12 | DW6: 1 | DX6: 2 | DY6: 3 | DZ6: 4 | EA6: 5 | EB6: 6 | EC6: 7 | ED6: 8 | EE6: 9 | EF6: 10 | EG6: 11 | EH6: 12 | EI6: 1 | EJ6: 2 | EK6: 3 | EL6: 4 | EM6: 5 | EN6: 6 | EO6: 7 | EP6: 8 | EQ6: 9 | ER6: 10 | ES6: 11 | ET6: 12 | EU6: 1 | EV6: 2 | EW6: 3 | EX6: 4 | EY6: 5 | EZ6: 6 | FA6: 7 | FB6: 8 | FC6: 9 | FD6: 10 | FE6: 11 | FF6: 12 | FG6: 1 | FH6: 2 | FI6: 3 | FJ6: 4 | FK6: 5 | FL6: 6 | FM6: 7 | FN6: 8 | FO6: 9 | FP6: 10 | FQ6: 11 | FR6: 12 | FS6: 1 | FT6: 2 | FU6: 3 | FV6: 4 | FW6: 5 | FX6: 6 | FY6: 7 | FZ6: 8 | GA6: 9 | GB6: 10 | GC6: 11 | GD6: 12 | GE6: 1 | GF6: 2 | GG6: 3 | GH6: 4 | GI6: 5 | GJ6: 6 | GK6: 7 | GL6: 8 | GM6: 9 | GN6: 10 | GO6: 11 | GP6: 12 | GQ6: 1 | GR6: 2 | GS6: 3 | GT6: 4 | GU6: 5 | GV6: 6 | GW6: 7 | GX6: 8
Y7: год даты начала: | AA7: 21 | AB7: 21 | AC7: 21 | AD7: 21 | AE7: 22 | AF7: 22 | AG7: 22 | AH7: 22 | AI7: 22 | AJ7: 22 | AK7: 22 | AL7: 22 | AM7: 22 | AN7: 22 | AO7: 22 | AP7: 22 | AQ7: 23 | AR7: 23 | AS7: 23 | AT7: 23 | AU7: 23 | AV7: 23 | AW7: 23 | AX7: 23 | AY7: 23 | AZ7: 23 | BA7: 23 | BB7: 23 | BC7: 24 | BD7: 24 | BE7: 24 | BF7: 24 | BG7: 24 | BH7: 24 | BI7: 24 | BJ7: 24 | BK7: 24 | BL7: 24 | BM7: 24 | BN7: 24 | BO7: 25 | BP7: 25 | BQ7: 25 | BR7: 25 | BS7: 25 | BT7: 25 | BU7: 25 | BV7: 25 | BW7: 25 | BX7: 25 | BY7: 25 | BZ7: 25 | CA7: 26 | CB7: 26 | CC7: 26 | CD7: 26 | CE7: 26 | CF7: 26 | CG7: 26 | CH7: 26 | CI7: 26 | CJ7: 26 | CK7: 26 | CL7: 26 | CM7: 27 | CN7: 27 | CO7: 27 | CP7: 27 | CQ7: 27 | CR7: 27 | CS7: 27 | CT7: 27 | CU7: 27 | CV7: 27 | CW7: 27 | CX7: 27 | CY7: 28 | CZ7: 28 | DA7: 28 | DB7: 28 | DC7: 28 | DD7: 28 | DE7: 28 | DF7: 28 | DG7: 28 | DH7: 28 | DI7: 28 | DJ7: 28 | DK7: 29 | DL7: 29 | DM7: 29 | DN7: 29 | DO7: 29 | DP7: 29 | DQ7: 29 | DR7: 29 | DS7: 29 | DT7: 29 | DU7: 29 | DV7: 29 | DW7: 30 | DX7: 30 | DY7: 30 | DZ7: 30 | EA7: 30 | EB7: 30 | EC7: 30 | ED7: 30 | EE7: 30 | EF7: 30 | EG7: 30 | EH7: 30 | EI7: 31 | EJ7: 31 | EK7: 31 | EL7: 31 | EM7: 31 | EN7: 31 | EO7: 31 | EP7: 31 | EQ7: 31 | ER7: 31 | ES7: 31 | ET7: 31 | EU7: 32 | EV7: 32 | EW7: 32 | EX7: 32 | EY7: 32 | EZ7: 32 | FA7: 32 | FB7: 32 | FC7: 32 | FD7: 32 | FE7: 32 | FF7: 32 | FG7: 33 | FH7: 33 | FI7: 33 | FJ7: 33 | FK7: 33 | FL7: 33 | FM7: 33 | FN7: 33 | FO7: 33 | FP7: 33 | FQ7: 33 | FR7: 33 | FS7: 34 | FT7: 34 | FU7: 34 | FV7: 34 | FW7: 34 | FX7: 34 | FY7: 34 | FZ7: 34 | GA7: 34 | GB7: 34 | GC7: 34 | GD7: 34 | GE7: 35 | GF7: 35 | GG7: 35 | GH7: 35 | GI7: 35 | GJ7: 35 | GK7: 35 | GL7: 35 | GM7: 35 | GN7: 35 | GO7: 35 | GP7: 35 | GQ7: 36 | GR7: 36 | GS7: 36 | GT7: 36 | GU7: 36 | GV7: 36 | GW7: 36 | GX7: 36
Y8: число даты окончания: | AA8: 30 | AB8: 31 | AC8: 30 | AD8: 31 | AE8: 31 | AF8: 28 | AG8: 31 | AH8: 30 | AI8: 31 | AJ8: 30 | AK8: 31 | AL8: 31 | AM8: 30 | AN8: 31 | AO8: 30 | AP8: 31 | AQ8: 31 | AR8: 28 | AS8: 31 | AT8: 30 | AU8: 31 | AV8: 30 | AW8: 31 | AX8: 31 | AY8: 30 | AZ8: 31 | BA8: 30 | BB8: 31 | BC8: 31 | BD8: 29 | BE8: 31 | BF8: 30 | BG8: 31 | BH8: 30 | BI8: 31 | BJ8: 31 | BK8: 30 | BL8: 31 | BM8: 30 | BN8: 31 | BO8: 31 | BP8: 28 | BQ8: 31 | BR8: 30 | BS8: 31 | BT8: 30 | BU8: 31 | BV8: 31 | BW8: 30 | BX8: 31 | BY8: 30 | BZ8: 31 | CA8: 31 | CB8: 28 | CC8: 31 | CD8: 30 | CE8: 31 | CF8: 30 | CG8: 31 | CH8: 31 | CI8: 30 | CJ8: 31 | CK8: 30 | CL8: 31 | CM8: 31 | CN8: 28 | CO8: 31 | CP8: 30 | CQ8: 31 | CR8: 30 | CS8: 31 | CT8: 31 | CU8: 30 | CV8: 31 | CW8: 30 | CX8: 31 | CY8: 31 | CZ8: 29 | DA8: 31 | DB8: 30 | DC8: 31 | DD8: 30 | DE8: 31 | DF8: 31 | DG8: 30 | DH8: 31 | DI8: 30 | DJ8: 31 | DK8: 31 | DL8: 28 | DM8: 31 | DN8: 30 | DO8: 31 | DP8: 30 | DQ8: 31 | DR8: 31 | DS8: 30 | DT8: 31 | DU8: 30 | DV8: 31 | DW8: 31 | DX8: 28 | DY8: 31 | DZ8: 30 | EA8: 31 | EB8: 30 | EC8: 31 | ED8: 31 | EE8: 30 | EF8: 31 | EG8: 30 | EH8: 31 | EI8: 31 | EJ8: 28 | EK8: 31 | EL8: 30 | EM8: 31 | EN8: 30 | EO8: 31 | EP8: 31 | EQ8: 30 | ER8: 31 | ES8: 30 | ET8: 31 | EU8: 31 | EV8: 29 | EW8: 31 | EX8: 30 | EY8: 31 | EZ8: 30 | FA8: 31 | FB8: 31 | FC8: 30 | FD8: 31 | FE8: 30 | FF8: 31 | FG8: 31 | FH8: 28 | FI8: 31 | FJ8: 30 | FK8: 31 | FL8: 30 | FM8: 31 | FN8: 31 | FO8: 30 | FP8: 31 | FQ8: 30 | FR8: 31 | FS8: 31 | FT8: 28 | FU8: 31 | FV8: 30 | FW8: 31 | FX8: 30 | FY8: 31 | FZ8: 31 | GA8: 30 | GB8: 31 | GC8: 30 | GD8: 31 | GE8: 31 | GF8: 28 | GG8: 31 | GH8: 30 | GI8: 31 | GJ8: 30 | GK8: 31 | GL8: 31 | GM8: 30 | GN8: 31 | GO8: 30 | GP8: 31 | GQ8: 31 | GR8: 29 | GS8: 31 | GT8: 30 | GU8: 31 | GV8: 30 | GW8: 31 | GX8: 31
Y9: номер месяца даты окончания: | AA9: 9 | AB9: 10 | AC9: 11 | AD9: 12 | AE9: 1 | AF9: 2 | AG9: 3 | AH9: 4 | AI9: 5 | AJ9: 6 | AK9: 7 | AL9: 8 | AM9: 9 | AN9: 10 | AO9: 11 | AP9: 12 | AQ9: 1 | AR9: 2 | AS9: 3 | AT9: 4 | AU9: 5 | AV9: 6 | AW9: 7 | AX9: 8 | AY9: 9 | AZ9: 10 | BA9: 11 | BB9: 12 | BC9: 1 | BD9: 2 | BE9: 3 | BF9: 4 | BG9: 5 | BH9: 6 | BI9: 7 | BJ9: 8 | BK9: 9 | BL9: 10 | BM9: 11 | BN9: 12 | BO9: 1 | BP9: 2 | BQ9: 3 | BR9: 4 | BS9: 5 | BT9: 6 | BU9: 7 | BV9: 8 | BW9: 9 | BX9: 10 | BY9: 11 | BZ9: 12 | CA9: 1 | CB9: 2 | CC9: 3 | CD9: 4 | CE9: 5 | CF9: 6 | CG9: 7 | CH9: 8 | CI9: 9 | CJ9: 10 | CK9: 11 | CL9: 12 | CM9: 1 | CN9: 2 | CO9: 3 | CP9: 4 | CQ9: 5 | CR9: 6 | CS9: 7 | CT9: 8 | CU9: 9 | CV9: 10 | CW9: 11 | CX9: 12 | CY9: 1 | CZ9: 2 | DA9: 3 | DB9: 4 | DC9: 5 | DD9: 6 | DE9: 7 | DF9: 8 | DG9: 9 | DH9: 10 | DI9: 11 | DJ9: 12 | DK9: 1 | DL9: 2 | DM9: 3 | DN9: 4 | DO9: 5 | DP9: 6 | DQ9: 7 | DR9: 8 | DS9: 9 | DT9: 10 | DU9: 11 | DV9: 12 | DW9: 1 | DX9: 2 | DY9: 3 | DZ9: 4 | EA9: 5 | EB9: 6 | EC9: 7 | ED9: 8 | EE9: 9 | EF9: 10 | EG9: 11 | EH9: 12 | EI9: 1 | EJ9: 2 | EK9: 3 | EL9: 4 | EM9: 5 | EN9: 6 | EO9: 7 | EP9: 8 | EQ9: 9 | ER9: 10 | ES9: 11 | ET9: 12 | EU9: 1 | EV9: 2 | EW9: 3 | EX9: 4 | EY9: 5 | EZ9: 6 | FA9: 7 | FB9: 8 | FC9: 9 | FD9: 10 | FE9: 11 | FF9: 12 | FG9: 1 | FH9: 2 | FI9: 3 | FJ9: 4 | FK9: 5 | FL9: 6 | FM9: 7 | FN9: 8 | FO9: 9 | FP9: 10 | FQ9: 11 | FR9: 12 | FS9: 1 | FT9: 2 | FU9: 3 | FV9: 4 | FW9: 5 | FX9: 6 | FY9: 7 | FZ9: 8 | GA9: 9 | GB9: 10 | GC9: 11 | GD9: 12 | GE9: 1 | GF9: 2 | GG9: 3 | GH9: 4 | GI9: 5 | GJ9: 6 | GK9: 7 | GL9: 8 | GM9: 9 | GN9: 10 | GO9: 11 | GP9: 12 | GQ9: 1 | GR9: 2 | GS9: 3 | GT9: 4 | GU9: 5 | GV9: 6 | GW9: 7 | GX9: 8
Y10: год даты окончания: | AA10: 21 | AB10: 21 | AC10: 21 | AD10: 21 | AE10: 22 | AF10: 22 | AG10: 22 | AH10: 22 | AI10: 22 | AJ10: 22 | AK10: 22 | AL10: 22 | AM10: 22 | AN10: 22 | AO10: 22 | AP10: 22 | AQ10: 23 | AR10: 23 | AS10: 23 | AT10: 23 | AU10: 23 | AV10: 23 | AW10: 23 | AX10: 23 | AY10: 23 | AZ10: 23 | BA10: 23 | BB10: 23 | BC10: 24 | BD10: 24 | BE10: 24 | BF10: 24 | BG10: 24 | BH10: 24 | BI10: 24 | BJ10: 24 | BK10: 24 | BL10: 24 | BM10: 24 | BN10: 24 | BO10: 25 | BP10: 25 | BQ10: 25 | BR10: 25 | BS10: 25 | BT10: 25 | BU10: 25 | BV10: 25 | BW10: 25 | BX10: 25 | BY10: 25 | BZ10: 25 | CA10: 26 | CB10: 26 | CC10: 26 | CD10: 26 | CE10: 26 | CF10: 26 | CG10: 26 | CH10: 26 | CI10: 26 | CJ10: 26 | CK10: 26 | CL10: 26 | CM10: 27 | CN10: 27 | CO10: 27 | CP10: 27 | CQ10: 27 | CR10: 27 | CS10: 27 | CT10: 27 | CU10: 27 | CV10: 27 | CW10: 27 | CX10: 27 | CY10: 28 | CZ10: 28 | DA10: 28 | DB10: 28 | DC10: 28 | DD10: 28 | DE10: 28 | DF10: 28 | DG10: 28 | DH10: 28 | DI10: 28 | DJ10: 28 | DK10: 29 | DL10: 29 | DM10: 29 | DN10: 29 | DO10: 29 | DP10: 29 | DQ10: 29 | DR10: 29 | DS10: 29 | DT10: 29 | DU10: 29 | DV10: 29 | DW10: 30 | DX10: 30 | DY10: 30 | DZ10: 30 | EA10: 30 | EB10: 30 | EC10: 30 | ED10: 30 | EE10: 30 | EF10: 30 | EG10: 30 | EH10: 30 | EI10: 31 | EJ10: 31 | EK10: 31 | EL10: 31 | EM10: 31 | EN10: 31 | EO10: 31 | EP10: 31 | EQ10: 31 | ER10: 31 | ES10: 31 | ET10: 31 | EU10: 32 | EV10: 32 | EW10: 32 | EX10: 32 | EY10: 32 | EZ10: 32 | FA10: 32 | FB10: 32 | FC10: 32 | FD10: 32 | FE10: 32 | FF10: 32 | FG10: 33 | FH10: 33 | FI10: 33 | FJ10: 33 | FK10: 33 | FL10: 33 | FM10: 33 | FN10: 33 | FO10: 33 | FP10: 33 | FQ10: 33 | FR10: 33 | FS10: 34 | FT10: 34 | FU10: 34 | FV10: 34 | FW10: 34 | FX10: 34 | FY10: 34 | FZ10: 34 | GA10: 34 | GB10: 34 | GC10: 34 | GD10: 34 | GE10: 35 | GF10: 35 | GG10: 35 | GH10: 35 | GI10: 35 | GJ10: 35 | GK10: 35 | GL10: 35 | GM10: 35 | GN10: 35 | GO10: 35 | GP10: 35 | GQ10: 36 | GR10: 36 | GS10: 36 | GT10: 36 | GU10: 36 | GV10: 36 | GW10: 36 | GX10: 36
F11: Sbor | I11: Параметры этапа сбора винограда | Q11: все включает НДС | X11: 2021-09-01 | AA11: 2021-09-01 | AB11: 2021-10-01 | AC11: 2021-11-01 | AD11: 2021-12-01 | AE11: 2022-01-01 | AF11: 2022-02-01 | AG11: 2022-03-01 | AH11: 2022-04-01 | AI11: 2022-05-01 | AJ11: 2022-06-01 | AK11: 2022-07-01 | AL11: 2022-08-01 | AM11: 2022-09-01 | AN11: 2022-10-01 | AO11: 2022-11-01 | AP11: 2022-12-01 | AQ11: 2023-01-01 | AR11: 2023-02-01 | AS11: 2023-03-01 | AT11: 2023-04-01 | AU11: 2023-05-01 | AV11: 2023-06-01 | AW11: 2023-07-01 | AX11: 2023-08-01 | AY11: 2023-09-01 | AZ11: 2023-10-01 | BA11: 2023-11-01 | BB11: 2023-12-01 | BC11: 2024-01-01 | BD11: 2024-02-01 | BE11: 2024-03-01 | BF11: 2024-04-01 | BG11: 2024-05-01 | BH11: 2024-06-01 | BI11: 2024-07-01 | BJ11: 2024-08-01 | BK11: 2024-09-01 | BL11: 2024-10-01 | BM11: 2024-11-01 | BN11: 2024-12-01 | BO11: 2025-01-01 | BP11: 2025-02-01 | BQ11: 2025-03-01 | BR11: 2025-04-01 | BS11: 2025-05-01 | BT11: 2025-06-01 | BU11: 2025-07-01 | BV11: 2025-08-01 | BW11: 2025-09-01 | BX11: 2025-10-01 | BY11: 2025-11-01 | BZ11: 2025-12-01 | CA11: 2026-01-01 | CB11: 2026-02-01 | CC11: 2026-03-01 | CD11: 2026-04-01 | CE11: 2026-05-01 | CF11: 2026-06-01 | CG11: 2026-07-01 | CH11: 2026-08-01 | CI11: 2026-09-01 | CJ11: 2026-10-01 | CK11: 2026-11-01 | CL11: 2026-12-01 | CM11: 2027-01-01 | CN11: 2027-02-01 | CO11: 2027-03-01 | CP11: 2027-04-01 | CQ11: 2027-05-01 | CR11: 2027-06-01 | CS11: 2027-07-01 | CT11: 2027-08-01 | CU11: 2027-09-01 | CV11: 2027-10-01 | CW11: 2027-11-01 | CX11: 2027-12-01 | CY11: 2028-01-01 | CZ11: 2028-02-01 | DA11: 2028-03-01 | DB11: 2028-04-01 | DC11: 2028-05-01 | DD11: 2028-06-01 | DE11: 2028-07-01 | DF11: 2028-08-01 | DG11: 2028-09-01 | DH11: 2028-10-01 | DI11: 2028-11-01 | DJ11: 2028-12-01 | DK11: 2029-01-01 | DL11: 2029-02-01 | DM11: 2029-03-01 | DN11: 2029-04-01 | DO11: 2029-05-01 | DP11: 2029-06-01 | DQ11: 2029-07-01 | DR11: 2029-08-01 | DS11: 2029-09-01 | DT11: 2029-10-01 | DU11: 2029-11-01 | DV11: 2029-12-01 | DW11: 2030-01-01 | DX11: 2030-02-01 | DY11: 2030-03-01 | DZ11: 2030-04-01 | EA11: 2030-05-01 | EB11: 2030-06-01 | EC11: 2030-07-01 | ED11: 2030-08-01 | EE11: 2030-09-01 | EF11: 2030-10-01 | EG11: 2030-11-01 | EH11: 2030-12-01 | EI11: 2031-01-01 | EJ11: 2031-02-01 | EK11: 2031-03-01 | EL11: 2031-04-01 | EM11: 2031-05-01 | EN11: 2031-06-01 | EO11: 2031-07-01 | EP11: 2031-08-01 | EQ11: 2031-09-01 | ER11: 2031-10-01 | ES11: 2031-11-01 | ET11: 2031-12-01 | EU11: 2032-01-01 | EV11: 2032-02-01 | EW11: 2032-03-01 | EX11: 2032-04-01 | EY11: 2032-05-01 | EZ11: 2032-06-01 | FA11: 2032-07-01 | FB11: 2032-08-01 | FC11: 2032-09-01 | FD11: 2032-10-01 | FE11: 2032-11-01 | FF11: 2032-12-01 | FG11: 2033-01-01 | FH11: 2033-02-01 | FI11: 2033-03-01 | FJ11: 2033-04-01 | FK11: 2033-05-01 | FL11: 2033-06-01 | FM11: 2033-07-01 | FN11: 2033-08-01 | FO11: 2033-09-01 | FP11: 2033-10-01 | FQ11: 2033-11-01 | FR11: 2033-12-01 | FS11: 2034-01-01 | FT11: 2034-02-01 | FU11: 2034-03-01 | FV11: 2034-04-01 | FW11: 2034-05-01 | FX11: 2034-06-01 | FY11: 2034-07-01 | FZ11: 2034-08-01 | GA11: 2034-09-01 | GB11: 2034-10-01 | GC11: 2034-11-01 | GD11: 2034-12-01 | GE11: 2035-01-01 | GF11: 2035-02-01 | GG11: 2035-03-01 | GH11: 2035-04-01 | GI11: 2035-05-01 | GJ11: 2035-06-01 | GK11: 2035-07-01 | GL11: 2035-08-01 | GM11: 2035-09-01 | GN11: 2035-10-01 | GO11: 2035-11-01 | GP11: 2035-12-01 | GQ11: 2036-01-01 | GR11: 2036-02-01 | GS11: 2036-03-01 | GT11: 2036-04-01 | GU11: 2036-05-01 | GV11: 2036-06-01 | GW11: 2036-07-01 | GX11: 2036-08-01
H12: тип листа | Q12: расчетный | X12: 2036-08-31 | AA12: 2021-09-30 | AB12: 2021-10-31 | AC12: 2021-11-30 | AD12: 2021-12-31 | AE12: 2022-01-31 | AF12: 2022-02-28 | AG12: 2022-03-31 | AH12: 2022-04-30 | AI12: 2022-05-31 | AJ12: 2022-06-30 | AK12: 2022-07-31 | AL12: 2022-08-31 | AM12: 2022-09-30 | AN12: 2022-10-31 | AO12: 2022-11-30 | AP12: 2022-12-31 | AQ12: 2023-01-31 | AR12: 2023-02-28 | AS12: 2023-03-31 | AT12: 2023-04-30 | AU12: 2023-05-31 | AV12: 2023-06-30 | AW12: 2023-07-31 | AX12: 2023-08-31 | AY12: 2023-09-30 | AZ12: 2023-10-31 | BA12: 2023-11-30 | BB12: 2023-12-31 | BC12: 2024-01-31 | BD12: 2024-02-29 | BE12: 2024-03-31 | BF12: 2024-04-30 | BG12: 2024-05-31 | BH12: 2024-06-30 | BI12: 2024-07-31 | BJ12: 2024-08-31 | BK12: 2024-09-30 | BL12: 2024-10-31 | BM12: 2024-11-30 | BN12: 2024-12-31 | BO12: 2025-01-31 | BP12: 2025-02-28 | BQ12: 2025-03-31 | BR12: 2025-04-30 | BS12: 2025-05-31 | BT12: 2025-06-30 | BU12: 2025-07-31 | BV12: 2025-08-31 | BW12: 2025-09-30 | BX12: 2025-10-31 | BY12: 2025-11-30 | BZ12: 2025-12-31 | CA12: 2026-01-31 | CB12: 2026-02-28 | CC12: 2026-03-31 | CD12: 2026-04-30 | CE12: 2026-05-31 | CF12: 2026-06-30 | CG12: 2026-07-31 | CH12: 2026-08-31 | CI12: 2026-09-30 | CJ12: 2026-10-31 | CK12: 2026-11-30 | CL12: 2026-12-31 | CM12: 2027-01-31 | CN12: 2027-02-28 | CO12: 2027-03-31 | CP12: 2027-04-30 | CQ12: 2027-05-31 | CR12: 2027-06-30 | CS12: 2027-07-31 | CT12: 2027-08-31 | CU12: 2027-09-30 | CV12: 2027-10-31 | CW12: 2027-11-30 | CX12: 2027-12-31 | CY12: 2028-01-31 | CZ12: 2028-02-29 | DA12: 2028-03-31 | DB12: 2028-04-30 | DC12: 2028-05-31 | DD12: 2028-06-30 | DE12: 2028-07-31 | DF12: 2028-08-31 | DG12: 2028-09-30 | DH12: 2028-10-31 | DI12: 2028-11-30 | DJ12: 2028-12-31 | DK12: 2029-01-31 | DL12: 2029-02-28 | DM12: 2029-03-31 | DN12: 2029-04-30 | DO12: 2029-05-31 | DP12: 2029-06-30 | DQ12: 2029-07-31 | DR12: 2029-08-31 | DS12: 2029-09-30 | DT12: 2029-10-31 | DU12: 2029-11-30 | DV12: 2029-12-31 | DW12: 2030-01-31 | DX12: 2030-02-28 | DY12: 2030-03-31 | DZ12: 2030-04-30 | EA12: 2030-05-31 | EB12: 2030-06-30 | EC12: 2030-07-31 | ED12: 2030-08-31 | EE12: 2030-09-30 | EF12: 2030-10-31 | EG12: 2030-11-30 | EH12: 2030-12-31 | EI12: 2031-01-31 | EJ12: 2031-02-28 | EK12: 2031-03-31 | EL12: 2031-04-30 | EM12: 2031-05-31 | EN12: 2031-06-30 | EO12: 2031-07-31 | EP12: 2031-08-31 | EQ12: 2031-09-30 | ER12: 2031-10-31 | ES12: 2031-11-30 | ET12: 2031-12-31 | EU12: 2032-01-31 | EV12: 2032-02-29 | EW12: 2032-03-31 | EX12: 2032-04-30 | EY12: 2032-05-31 | EZ12: 2032-06-30 | FA12: 2032-07-31 | FB12: 2032-08-31 | FC12: 2032-09-30 | FD12: 2032-10-31 | FE12: 2032-11-30 | FF12: 2032-12-31 | FG12: 2033-01-31 | FH12: 2033-02-28 | FI12: 2033-03-31 | FJ12: 2033-04-30 | FK12: 2033-05-31 | FL12: 2033-06-30 | FM12: 2033-07-31 | FN12: 2033-08-31 | FO12: 2033-09-30 | FP12: 2033-10-31 | FQ12: 2033-11-30 | FR12: 2033-12-31 | FS12: 2034-01-31 | FT12: 2034-02-28 | FU12: 2034-03-31 | FV12: 2034-04-30 | FW12: 2034-05-31 | FX12: 2034-06-30 | FY12: 2034-07-31 | FZ12: 2034-08-31 | GA12: 2034-09-30 | GB12: 2034-10-31 | GC12: 2034-11-30 | GD12: 2034-12-31 | GE12: 2035-01-31 | GF12: 2035-02-28 | GG12: 2035-03-31 | GH12: 2035-04-30 | GI12: 2035-05-31 | GJ12: 2035-06-30 | GK12: 2035-07-31 | GL12: 2035-08-31 | GM12: 2035-09-30 | GN12: 2035-10-31 | GO12: 2035-11-30 | GP12: 2035-12-31 | GQ12: 2036-01-31 | GR12: 2036-02-29 | GS12: 2036-03-31 | GT12: 2036-04-30 | GU12: 2036-05-31 | GV12: 2036-06-30 | GW12: 2036-07-31 | GX12: 2036-08-31
H13: показатель | M13: ед.изм. | Q13: значение | X13: итого | AA13: 2021-09-01 | AB13: 2021-10-01 | AC13: 2021-11-01 | AD13: 2021-12-01 | AE13: 2022-01-01 | AF13: 2022-02-01 | AG13: 2022-03-01 | AH13: 2022-04-01 | AI13: 2022-05-01 | AJ13: 2022-06-01 | AK13: 2022-07-01 | AL13: 2022-08-01 | AM13: 2022-09-01 | AN13: 2022-10-01 | AO13: 2022-11-01 | AP13: 2022-12-01 | AQ13: 2023-01-01 | AR13: 2023-02-01 | AS13: 2023-03-01 | AT13: 2023-04-01 | AU13: 2023-05-01 | AV13: 2023-06-01 | AW13: 2023-07-01 | AX13: 2023-08-01 | AY13: 2023-09-01 | AZ13: 2023-10-01 | BA13: 2023-11-01 | BB13: 2023-12-01 | BC13: 2024-01-01 | BD13: 2024-02-01 | BE13: 2024-03-01 | BF13: 2024-04-01 | BG13: 2024-05-01 | BH13: 2024-06-01 | BI13: 2024-07-01 | BJ13: 2024-08-01 | BK13: 2024-09-01 | BL13: 2024-10-01 | BM13: 2024-11-01 | BN13: 2024-12-01 | BO13: 2025-01-01 | BP13: 2025-02-01 | BQ13: 2025-03-01 | BR13: 2025-04-01 | BS13: 2025-05-01 | BT13: 2025-06-01 | BU13: 2025-07-01 | BV13: 2025-08-01 | BW13: 2025-09-01 | BX13: 2025-10-01 | BY13: 2025-11-01 | BZ13: 2025-12-01 | CA13: 2026-01-01 | CB13: 2026-02-01 | CC13: 2026-03-01 | CD13: 2026-04-01 | CE13: 2026-05-01 | CF13: 2026-06-01 | CG13: 2026-07-01 | CH13: 2026-08-01 | CI13: 2026-09-01 | CJ13: 2026-10-01 | CK13: 2026-11-01 | CL13: 2026-12-01 | CM13: 2027-01-01 | CN13: 2027-02-01 | CO13: 2027-03-01 | CP13: 2027-04-01 | CQ13: 2027-05-01 | CR13: 2027-06-01 | CS13: 2027-07-01 | CT13: 2027-08-01 | CU13: 2027-09-01 | CV13: 2027-10-01 | CW13: 2027-11-01 | CX13: 2027-12-01 | CY13: 2028-01-01 | CZ13: 2028-02-01 | DA13: 2028-03-01 | DB13: 2028-04-01 | DC13: 2028-05-01 | DD13: 2028-06-01 | DE13: 2028-07-01 | DF13: 2028-08-01 | DG13: 2028-09-01 | DH13: 2028-10-01 | DI13: 2028-11-01 | DJ13: 2028-12-01 | DK13: 2029-01-01 | DL13: 2029-02-01 | DM13: 2029-03-01 | DN13: 2029-04-01 | DO13: 2029-05-01 | DP13: 2029-06-01 | DQ13: 2029-07-01 | DR13: 2029-08-01 | DS13: 2029-09-01 | DT13: 2029-10-01 | DU13: 2029-11-01 | DV13: 2029-12-01 | DW13: 2030-01-01 | DX13: 2030-02-01 | DY13: 2030-03-01 | DZ13: 2030-04-01 | EA13: 2030-05-01 | EB13: 2030-06-01 | EC13: 2030-07-01 | ED13: 2030-08-01 | EE13: 2030-09-01 | EF13: 2030-10-01 | EG13: 2030-11-01 | EH13: 2030-12-01 | EI13: 2031-01-01 | EJ13: 2031-02-01 | EK13: 2031-03-01 | EL13: 2031-04-01 | EM13: 2031-05-01 | EN13: 2031-06-01 | EO13: 2031-07-01 | EP13: 2031-08-01 | EQ13: 2031-09-01 | ER13: 2031-10-01 | ES13: 2031-11-01 | ET13: 2031-12-01 | EU13: 2032-01-01 | EV13: 2032-02-01 | EW13: 2032-03-01 | EX13: 2032-04-01 | EY13: 2032-05-01 | EZ13: 2032-06-01 | FA13: 2032-07-01 | FB13: 2032-08-01 | FC13: 2032-09-01 | FD13: 2032-10-01 | FE13: 2032-11-01 | FF13: 2032-12-01 | FG13: 2033-01-01 | FH13: 2033-02-01 | FI13: 2033-03-01 | FJ13: 2033-04-01 | FK13: 2033-05-01 | FL13: 2033-06-01 | FM13: 2033-07-01 | FN13: 2033-08-01 | FO13: 2033-09-01 | FP13: 2033-10-01 | FQ13: 2033-11-01 | FR13: 2033-12-01 | FS13: 2034-01-01 | FT13: 2034-02-01 | FU13: 2034-03-01 | FV13: 2034-04-01 | FW13: 2034-05-01 | FX13: 2034-06-01 | FY13: 2034-07-01 | FZ13: 2034-08-01 | GA13: 2034-09-01 | GB13: 2034-10-01 | GC13: 2034-11-01 | GD13: 2034-12-01 | GE13: 2035-01-01 | GF13: 2035-02-01 | GG13: 2035-03-01 | GH13: 2035-04-01 | GI13: 2035-05-01 | GJ13: 2035-06-01 | GK13: 2035-07-01 | GL13: 2035-08-01 | GM13: 2035-09-01 | GN13: 2035-10-01 | GO13: 2035-11-01 | GP13: 2035-12-01 | GQ13: 2036-01-01 | GR13: 2036-02-01 | GS13: 2036-03-01 | GT13: 2036-04-01 | GU13: 2036-05-01 | GV13: 2036-06-01 | GW13: 2036-07-01 | GX13: 2036-08-01
D14: 0 | E14: 0 | F14: 0 | G14: 0 | S14: 0 | T14: 0
A15: 15 | H15: разработка финмоделей: https://mngmnt.ru/ | Y15: обратный порядок периодизации | AA15: 193 | AB15: 192 | AC15: 191 | AD15: 190 | AE15: 189 | AF15: 188 | AG15: 187 | AH15: 186 | AI15: 185 | AJ15: 184 | AK15: 183 | AL15: 182 | AM15: 181 | AN15: 180 | AO15: 179 | AP15: 178 | AQ15: 177 | AR15: 176 | AS15: 175 | AT15: 174 | AU15: 173 | AV15: 172 | AW15: 171 | AX15: 170 | AY15: 169 | AZ15: 168 | BA15: 167 | BB15: 166 | BC15: 165 | BD15: 164 | BE15: 163 | BF15: 162 | BG15: 161 | BH15: 160 | BI15: 159 | BJ15: 158 | BK15: 157 | BL15: 156 | BM15: 155 | BN15: 154 | BO15: 153 | BP15: 152 | BQ15: 151 | BR15: 150 | BS15: 149 | BT15: 148 | BU15: 147 | BV15: 146 | BW15: 145 | BX15: 144 | BY15: 143 | BZ15: 142 | CA15: 141 | CB15: 140 | CC15: 139 | CD15: 138 | CE15: 137 | CF15: 136 | CG15: 135 | CH15: 134 | CI15: 133 | CJ15: 132 | CK15: 131 | CL15: 130 | CM15: 129 | CN15: 128 | CO15: 127 | CP15: 126 | CQ15: 125 | CR15: 124 | CS15: 123 | CT15: 122 | CU15: 121 | CV15: 120 | CW15: 119 | CX15: 118 | CY15: 117 | CZ15: 116 | DA15: 115 | DB15: 114 | DC15: 113 | DD15: 112 | DE15: 111 | DF15: 110 | DG15: 109 | DH15: 108 | DI15: 107 | DJ15: 106 | DK15: 105 | DL15: 104 | DM15: 103 | DN15: 102 | DO15: 101 | DP15: 100 | DQ15: 99 | DR15: 98 | DS15: 97 | DT15: 96 | DU15: 95 | DV15: 94 | DW15: 93 | DX15: 92 | DY15: 91 | DZ15: 90 | EA15: 89 | EB15: 88 | EC15: 87 | ED15: 86 | EE15: 85 | EF15: 84 | EG15: 83 | EH15: 82 | EI15: 81 | EJ15: 80 | EK15: 79 | EL15: 78 | EM15: 77 | EN15: 76 | EO15: 75 | EP15: 74 | EQ15: 73 | ER15: 72 | ES15: 71 | ET15: 70 | EU15: 69 | EV15: 68 | EW15: 67 | EX15: 66 | EY15: 65 | EZ15: 64 | FA15: 63 | FB15: 62 | FC15: 61 | FD15: 60 | FE15: 59 | FF15: 58 | FG15: 57 | FH15: 56 | FI15: 55 | FJ15: 54 | FK15: 53 | FL15: 52 | FM15: 51 | FN15: 50 | FO15: 49 | FP15: 48 | FQ15: 47 | FR15: 46 | FS15: 45 | FT15: 44 | FU15: 43 | FV15: 42 | FW15: 41 | FX15: 40 | FY15: 39 | FZ15: 38 | GA15: 37 | GB15: 36 | GC15: 35 | GD15: 34 | GE15: 33 | GF15: 32 | GG15: 31 | GH15: 30 | GI15: 29 | GJ15: 28 | GK15: 27 | GL15: 26 | GM15: 25 | GN15: 24 | GO15: 23 | GP15: 22 | GQ15: 21 | GR15: 20 | GS15: 19 | GT15: 18 | GU15: 17 | GV15: 16 | GW15: 15 | GX15: 14 | GY15: 13 | GZ15: 12 | HA15: 11 | HB15: 10 | HC15: 9 | HD15: 8 | HE15: 7 | HF15: 6 | HG15: 5 | HH15: 4 | HI15: 3 | HJ15: 2 | HK15: 1
A16: 16 | G16: 0 | H16: Метод расчета потока винограда-вина | K16: 1 | L16: Производство вина
A17: 17 | G17: 0 | H17: Метод расчета потока винограда-вина | I17: Сбор винограда - поток винограда и вина | L17: начало 1 блока виноградоделия
A18: 18
A19: 19 | G19: 0 | H19: Поток сбора винограда | L19: 1 | M19: кг | Q19: запуски процесса | X19: 10,539,000 | AA19: 0 | AB19: 0 | AC19: 0 | AD19: 0 | AE19: 0 | AF19: 0 | AG19: 0 | AH19: 0 | AI19: 0 | AJ19: 0 | AK19: 0 | AL19: 0 | AM19: 0 | AN19: 0 | AO19: 0 | AP19: 0 | AQ19: 0 | AR19: 0 | AS19: 0 | AT19: 0 | AU19: 0 | AV19: 0 | AW19: 0 | AX19: 0 | AY19: 0 | AZ19: 0 | BA19: 0 | BB19: 0 | BC19: 0 | BD19: 0 | BE19: 0 | BF19: 0 | BG19: 0 | BH19: 0 | BI19: 0 | BJ19: 30,000 | BK19: 30,000 | BL19: 30,000 | BM19: 0 | BN19: 0 | BO19: 0 | BP19: 0 | BQ19: 0 | BR19: 0 | BS19: 0 | BT19: 0 | BU19: 0 | BV19: 86,000 | BW19: 86,000 | BX19: 86,000 | BY19: 0 | BZ19: 0 | CA19: 0 | CB19: 0 | CC19: 0 | CD19: 0 | CE19: 0 | CF19: 0 | CG19: 0 | CH19: 166,000 | CI19: 166,000 | CJ19: 166,000 | CK19: 0 | CL19: 0 | CM19: 0 | CN19: 0 | CO19: 0 | CP19: 0 | CQ19: 0 | CR19: 0 | CS19: 0 | CT19: 232,000 | CU19: 232,000 | CV19: 232,000 | CW19: 0 | CX19: 0 | CY19: 0 | CZ19: 0 | DA19: 0 | DB19: 0 | DC19: 0 | DD19: 0 | DE19: 0 | DF19: 296,000 | DG19: 296,000 | DH19: 296,000 | DI19: 0 | DJ19: 0 | DK19: 0 | DL19: 0 | DM19: 0 | DN19: 0 | DO19: 0 | DP19: 0 | DQ19: 0 | DR19: 345,000 | DS19: 345,000 | DT19: 345,000 | DU19: 0 | DV19: 0 | DW19: 0 | DX19: 0 | DY19: 0 | DZ19: 0 | EA19: 0 | EB19: 0 | EC19: 0 | ED19: 378,000 | EE19: 378,000 | EF19: 378,000 | EG19: 0 | EH19: 0 | EI19: 0 | EJ19: 0 | EK19: 0 | EL19: 0 | EM19: 0 | EN19: 0 | EO19: 0 | EP19: 392,000 | EQ19: 392,000 | ER19: 392,000 | ES19: 0 | ET19: 0 | EU19: 0 | EV19: 0 | EW19: 0 | EX19: 0 | EY19: 0 | EZ19: 0 | FA19: 0 | FB19: 397,000 | FC19: 397,000 | FD19: 397,000 | FE19: 0 | FF19: 0 | FG19: 0 | FH19: 0 | FI19: 0 | FJ19: 0 | FK19: 0 | FL19: 0 | FM19: 0 | FN19: 397,000 | FO19: 397,000 | FP19: 397,000 | FQ19: 0 | FR19: 0 | FS19: 0 | FT19: 0 | FU19: 0 | FV19: 0 | FW19: 0 | FX19: 0 | FY19: 0 | FZ19: 397,000 | GA19: 397,000 | GB19: 397,000 | GC19: 0 | GD19: 0 | GE19: 0 | GF19: 0 | GG19: 0 | GH19: 0 | GI19: 0 | GJ19: 0 | GK19: 0 | GL19: 397,000 | GM19: 397,000 | GN19: 397,000 | GO19: 0 | GP19: 0 | GQ19: 0 | GR19: 0 | GS19: 0 | GT19: 0 | GU19: 0 | GV19: 0 | GW19: 0 | GX19: 0 | GY19: 0 | GZ19: 0 | HA19: 0 | HB19: 0 | HC19: 0 | HD19: 0 | HE19: 0 | HF19: 0 | HG19: 0 | HH19: 0 | HI19: 0 | HJ19: 0 | HK19: 0
A20: 20 | G20: 0 | H20: дата старта | I20: Начальная дата старта сбора винограда | M20: дата из списка | P20: M | Q20: 2024-01-01 | R20: ^ | S20: 0 | Y20: идентификаторы запуска | AA20: 0 | AB20: 0 | AC20: 0 | AD20: 0 | AE20: 0 | AF20: 0 | AG20: 0 | AH20: 0 | AI20: 0 | AJ20: 0 | AK20: 0 | AL20: 0 | AM20: 0 | AN20: 0 | AO20: 0 | AP20: 0 | AQ20: 0 | AR20: 0 | AS20: 0 | AT20: 0 | AU20: 0 | AV20: 0 | AW20: 0 | AX20: 0 | AY20: 0 | AZ20: 0 | BA20: 0 | BB20: 0 | BC20: 1 | BD20: 0 | BE20: 0 | BF20: 0 | BG20: 0 | BH20: 0 | BI20: 0 | BJ20: 0 | BK20: 0 | BL20: 0 | BM20: 0 | BN20: 0 | BO20: 0 | BP20: 0 | BQ20: 0 | BR20: 0 | BS20: 0 | BT20: 0 | BU20: 0 | BV20: 0 | BW20: 0 | BX20: 0 | BY20: 0 | BZ20: 0 | CA20: 0 | CB20: 0 | CC20: 0 | CD20: 0 | CE20: 0 | CF20: 0 | CG20: 0 | CH20: 0 | CI20: 0 | CJ20: 0 | CK20: 0 | CL20: 0 | CM20: 0 | CN20: 0 | CO20: 0 | CP20: 0 | CQ20: 0 | CR20: 0 | CS20: 0 | CT20: 0 | CU20: 0 | CV20: 0 | CW20: 0 | CX20: 0 | CY20: 0 | CZ20: 0 | DA20: 0 | DB20: 0 | DC20: 0 | DD20: 0 | DE20: 0 | DF20: 0 | DG20: 0 | DH20: 0 | DI20: 0 | DJ20: 0 | DK20: 0 | DL20: 0 | DM20: 0 | DN20: 0 | DO20: 0 | DP20: 0 | DQ20: 0 | DR20: 0 | DS20: 0 | DT20: 0 | DU20: 0 | DV20: 0 | DW20: 0 | DX20: 0 | DY20: 0 | DZ20: 0 | EA20: 0 | EB20: 0 | EC20: 0 | ED20: 0 | EE20: 0 | EF20: 0 | EG20: 0 | EH20: 0 | EI20: 0 | EJ20: 0 | EK20: 0 | EL20: 0 | EM20: 0 | EN20: 0 | EO20: 0 | EP20: 0 | EQ20: 0 | ER20: 0 | ES20: 0 | ET20: 0 | EU20: 0 | EV20: 0 | EW20: 0 | EX20: 0 | EY20: 0 | EZ20: 0 | FA20: 0 | FB20: 0 | FC20: 0 | FD20: 0 | FE20: 0 | FF20: 0 | FG20: 0 | FH20: 0 | FI20: 0 | FJ20: 0 | FK20: 0 | FL20: 0 | FM20: 0 | FN20: 0 | FO20: 0 | FP20: 0 | FQ20: 0 | FR20: 0 | FS20: 0 | FT20: 0 | FU20: 0 | FV20: 0 | FW20: 0 | FX20: 0 | FY20: 0 | FZ20: 0 | GA20: 0 | GB20: 0 | GC20: 0 | GD20: 0 | GE20: 0 | GF20: 0 | GG20: 0 | GH20: 0 | GI20: 0 | GJ20: 0 | GK20: 0 | GL20: 0 | GM20: 0 | GN20: 0 | GO20: 0 | GP20: 0 | GQ20: 0 | GR20: 0 | GS20: 0 | GT20: 0 | GU20: 0 | GV20: 0 | GW20: 0 | GX20: 0 | GY20: 0 | GZ20: 0 | HA20: 0 | HB20: 0 | HC20: 0 | HD20: 0 | HE20: 0 | HF20: 0 | HG20: 0 | HH20: 0 | HI20: 0 | HJ20: 0 | HK20: 0
A21: 21 | G21: 0 | H21: Поток сбора винограда | I21: номер соответствующего периода расчетов | M21: номер периода | Q21: 29 | S21: 0 | T21: 0
A22: 22 | G22: 0 | H22: дата старта | I22: Конечная дата активности по сбору винограда | M22: дата из списка | P22: * | R22: ^ | S22: 0
A23: 23 | G23: 0 | H23: Поток сбора винограда | I23: номер соответствующего периода расчетов | M23: номер периода | Q23: 180 | S23: 0 | T23: 0
A24: 24 | G24: 0 | H24: Поток сбора винограда | I24: Задание потока сбора винограда вручную | M24: кг | X24: 10,539,000 | Y24: O | AA24: 0 | AB24: 0 | AC24: 0 | AD24: 0 | AE24: 0 | AF24: 0 | AG24: 0 | AH24: 0 | AI24: 0 | AJ24: 0 | AK24: 0 | AL24: 0 | AM24: 0 | AN24: 0 | AO24: 0 | AP24: 0 | AQ24: 0 | AR24: 0 | AS24: 0 | AT24: 0 | AU24: 0 | AV24: 0 | AW24: 0 | AX24: 0 | AY24: 0 | AZ24: 0 | BA24: 0 | BB24: 0 | BC24: 0 | BD24: 0 | BE24: 0 | BF24: 0 | BG24: 0 | BH24: 0 | BI24: 0 | BJ24: 30,000 | BK24: 30,000 | BL24: 30,000 | BM24: 0 | BN24: 0 | BO24: 0 | BP24: 0 | BQ24: 0 | BR24: 0 | BS24: 0 | BT24: 0 | BU24: 0 | BV24: 86,000 | BW24: 86,000 | BX24: 86,000 | BY24: 0 | BZ24: 0 | CA24: 0 | CB24: 0 | CC24: 0 | CD24: 0 | CE24: 0 | CF24: 0 | CG24: 0 | CH24: 166,000 | CI24: 166,000 | CJ24: 166,000 | CK24: 0 | CL24: 0 | CM24: 0 | CN24: 0 | CO24: 0 | CP24: 0 | CQ24: 0 | CR24: 0 | CS24: 0 | CT24: 232,000 | CU24: 232,000 | CV24: 232,000 | CW24: 0 | CX24: 0 | CY24: 0 | CZ24: 0 | DA24: 0 | DB24: 0 | DC24: 0 | DD24: 0 | DE24: 0 | DF24: 296,000 | DG24: 296,000 | DH24: 296,000 | DI24: 0 | DJ24: 0 | DK24: 0 | DL24: 0 | DM24: 0 | DN24: 0 | DO24: 0 | DP24: 0 | DQ24: 0 | DR24: 345,000 | DS24: 345,000 | DT24: 345,000 | DU24: 0 | DV24: 0 | DW24: 0 | DX24: 0 | DY24: 0 | DZ24: 0 | EA24: 0 | EB24: 0 | EC24: 0 | ED24: 378,000 | EE24: 378,000 | EF24: 378,000 | EG24: 0 | EH24: 0 | EI24: 0 | EJ24: 0 | EK24: 0 | EL24: 0 | EM24: 0 | EN24: 0 | EO24: 0 | EP24: 392,000 | EQ24: 392,000 | ER24: 392,000 | ES24: 0 | ET24: 0 | EU24: 0 | EV24: 0 | EW24: 0 | EX24: 0 | EY24: 0 | EZ24: 0 | FA24: 0 | FB24: 397,000 | FC24: 397,000 | FD24: 397,000 | FE24: 0 | FF24: 0 | FG24: 0 | FH24: 0 | FI24: 0 | FJ24: 0 | FK24: 0 | FL24: 0 | FM24: 0 | FN24: 397,000 | FO24: 397,000 | FP24: 397,000 | FQ24: 0 | FR24: 0 | FS24: 0 | FT24: 0 | FU24: 0 | FV24: 0 | FW24: 0 | FX24: 0 | FY24: 0 | FZ24: 397,000 | GA24: 397,000 | GB24: 397,000 | GC24: 0 | GD24: 0 | GE24: 0 | GF24: 0 | GG24: 0 | GH24: 0 | GI24: 0 | GJ24: 0 | GK24: 0 | GL24: 397,000 | GM24: 397,000 | GN24: 397,000 | GO24: 0 | GP24: 0 | GQ24: 0 | GR24: 0 | GS24: 0 | GT24: 0 | GU24: 0 | GV24: 0 | GW24: 0 | GX24: 0 | GY24: 0 | GZ24: 0 | HA24: 0 | HB24: 0 | HC24: 0 | HD24: 0 | HE24: 0 | HF24: 0 | HG24: 0 | HH24: 0 | HI24: 0 | HJ24: 0 | HK24: 0
A25: 25 | G25: 0 | H25: Поток сбора винограда | I25: Задание потока сбора винограда через прогрессии
A26: 26 | G26: 0 | H26: Поток сбора винограда | I26: Задание потока сбора винограда через прогрессии | J26: Начальная частота сбора винограда | M26: кол-во периодов | P26: * | S26: 0
A27: 27 | G27: 0 | H27: Поток сбора винограда | I27: Задание потока сбора винограда через прогрессии | J27: Лин. коэфф. изменения частоты сбора | M27: кол-во периодов | P27: * | S27: 0
A28: 28 | G28: 0 | H28: дата старта | I28: Задание потока сбора винограда через прогрессии | J28: Вес собранного винограда в 1-ый период | M28: кг | P28: * | S28: 0
A29: 29 | G29: 0 | H29: Поток сбора винограда | I29: Задание потока сбора винограда через прогрессии | J29: Лин. коэфф. изменения веса сбора винограда | M29: кг | P29: * | S29: 0
A30: 30 | G30: 0 | H30: дата старта | I30: Задание потока сбора винограда через прогрессии | J30: Максимальное кол-во сбора за период | M30: кг | P30: * | S30: 0
A31: 31
A32: 32 | H32: Соответствующий поток виноматериала | M32: л. | Q32: запуски процесса | T32: 0 | X32: 7,845,799 | Y32: O | AA32: 0 | AB32: 0 | AC32: 0 | AD32: 0 | AE32: 0 | AF32: 0 | AG32: 0 | AH32: 0 | AI32: 0 | AJ32: 0 | AK32: 0 | AL32: 0 | AM32: 0 | AN32: 0 | AO32: 0 | AP32: 0 | AQ32: 0 | AR32: 0 | AS32: 0 | AT32: 0 | AU32: 0 | AV32: 0 | AW32: 0 | AX32: 0 | AY32: 0 | AZ32: 0 | BA32: 0 | BB32: 0 | BC32: 0 | BD32: 0 | BE32: 0 | BF32: 0 | BG32: 0 | BH32: 0 | BI32: 0 | BJ32: 22,183 | BK32: 22,183 | BL32: 22,183 | BM32: 0 | BN32: 0 | BO32: 0 | BP32: 0 | BQ32: 0 | BR32: 0 | BS32: 0 | BT32: 0 | BU32: 0 | BV32: 63,657 | BW32: 63,657 | BX32: 63,657 | BY32: 0 | BZ32: 0 | CA32: 0 | CB32: 0 | CC32: 0 | CD32: 0 | CE32: 0 | CF32: 0 | CG32: 0 | CH32: 123,085 | CI32: 123,085 | CJ32: 123,085 | CK32: 0 | CL32: 0 | CM32: 0 | CN32: 0 | CO32: 0 | CP32: 0 | CQ32: 0 | CR32: 0 | CS32: 0 | CT32: 172,231 | CU32: 172,231 | CV32: 172,231 | CW32: 0 | CX32: 0 | CY32: 0 | CZ32: 0 | DA32: 0 | DB32: 0 | DC32: 0 | DD32: 0 | DE32: 0 | DF32: 219,947 | DG32: 219,947 | DH32: 219,947 | DI32: 0 | DJ32: 0 | DK32: 0 | DL32: 0 | DM32: 0 | DN32: 0 | DO32: 0 | DP32: 0 | DQ32: 0 | DR32: 256,651 | DS32: 256,651 | DT32: 256,651 | DU32: 0 | DV32: 0 | DW32: 0 | DX32: 0 | DY32: 0 | DZ32: 0 | EA32: 0 | EB32: 0 | EC32: 0 | ED32: 281,523 | EE32: 281,523 | EF32: 281,523 | EG32: 0 | EH32: 0 | EI32: 0 | EJ32: 0 | EK32: 0 | EL32: 0 | EM32: 0 | EN32: 0 | EO32: 0 | EP32: 292,121 | EQ32: 292,121 | ER32: 292,121 | ES32: 0 | ET32: 0 | EU32: 0 | EV32: 0 | EW32: 0 | EX32: 0 | EY32: 0 | EZ32: 0 | FA32: 0 | FB32: 295,967 | FC32: 295,967 | FD32: 295,967 | FE32: 0 | FF32: 0 | FG32: 0 | FH32: 0 | FI32: 0 | FJ32: 0 | FK32: 0 | FL32: 0 | FM32: 0 | FN32: 295,967 | FO32: 295,967 | FP32: 295,967 | FQ32: 0 | FR32: 0 | FS32: 0 | FT32: 0 | FU32: 0 | FV32: 0 | FW32: 0 | FX32: 0 | FY32: 0 | FZ32: 295,967 | GA32: 295,967 | GB32: 295,967 | GC32: 0 | GD32: 0 | GE32: 0 | GF32: 0 | GG32: 0 | GH32: 0 | GI32: 0 | GJ32: 0 | GK32: 0 | GL32: 295,967 | GM32: 295,967 | GN32: 295,967 | GO32: 0 | GP32: 0 | GQ32: 0 | GR32: 0 | GS32: 0 | GT32: 0 | GU32: 0 | GV32: 0 | GW32: 0 | GX32: 0 | GY32: 0 | GZ32: 0 | HA32: 0 | HB32: 0 | HC32: 0 | HD32: 0 | HE32: 0 | HF32: 0 | HG32: 0 | HH32: 0 | HI32: 0 | HJ32: 0 | HK32: 0
A33: 33 | H33: Соответствующий поток виноматериала | I33: Premium Plus | M33: л. | X33: 156,000 | Y33: O | AA33: 0 | AB33: 0 | AC33: 0 | AD33: 0 | AE33: 0 | AF33: 0 | AG33: 0 | AH33: 0 | AI33: 0 | AJ33: 0 | AK33: 0 | AL33: 0 | AM33: 0 | AN33: 0 | AO33: 0 | AP33: 0 | AQ33: 0 | AR33: 0 | AS33: 0 | AT33: 0 | AU33: 0 | AV33: 0 | AW33: 0 | AX33: 0 | AY33: 0 | AZ33: 0 | BA33: 0 | BB33: 0 | BC33: 0 | BD33: 0 | BE33: 0 | BF33: 0 | BG33: 0 | BH33: 0 | BI33: 0 | BJ33: 2,000 | BK33: 2,000 | BL33: 2,000 | BM33: 0 | BN33: 0 | BO33: 0 | BP33: 0 | BQ33: 0 | BR33: 0 | BS33: 0 | BT33: 0 | BU33: 0 | BV33: 3,333 | BW33: 3,333 | BX33: 3,333 | BY33: 0 | BZ33: 0 | CA33: 0 | CB33: 0 | CC33: 0 | CD33: 0 | CE33: 0 | CF33: 0 | CG33: 0 | CH33: 4,667 | CI33: 4,667 | CJ33: 4,667 | CK33: 0 | CL33: 0 | CM33: 0 | CN33: 0 | CO33: 0 | CP33: 0 | CQ33: 0 | CR33: 0 | CS33: 0 | CT33: 4,667 | CU33: 4,667 | CV33: 4,667 | CW33: 0 | CX33: 0 | CY33: 0 | CZ33: 0 | DA33: 0 | DB33: 0 | DC33: 0 | DD33: 0 | DE33: 0 | DF33: 4,667 | DG33: 4,667 | DH33: 4,667 | DI33: 0 | DJ33: 0 | DK33: 0 | DL33: 0 | DM33: 0 | DN33: 0 | DO33: 0 | DP33: 0 | DQ33: 0 | DR33: 4,667 | DS33: 4,667 | DT33: 4,667 | DU33: 0 | DV33: 0 | DW33: 0 | DX33: 0 | DY33: 0 | DZ33: 0 | EA33: 0 | EB33: 0 | EC33: 0 | ED33: 4,667 | EE33: 4,667 | EF33: 4,667 | EG33: 0 | EH33: 0 | EI33: 0 | EJ33: 0 | EK33: 0 | EL33: 0 | EM33: 0 | EN33: 0 | EO33: 0 | EP33: 4,667 | EQ33: 4,667 | ER33: 4,667 | ES33: 0 | ET33: 0 | EU33: 0 | EV33: 0 | EW33: 0 | EX33: 0 | EY33: 0 | EZ33: 0 | FA33: 0 | FB33: 4,667 | FC33: 4,667 | FD33: 4,667 | FE33: 0 | FF33: 0 | FG33: 0 | FH33: 0 | FI33: 0 | FJ33: 0 | FK33: 0 | FL33: 0 | FM33: 0 | FN33: 4,667 | FO33: 4,667 | FP33: 4,667 | FQ33: 0 | FR33: 0 | FS33: 0 | FT33: 0 | FU33: 0 | FV33: 0 | FW33: 0 | FX33: 0 | FY33: 0 | FZ33: 4,667 | GA33: 4,667 | GB33: 4,667 | GC33: 0 | GD33: 0 | GE33: 0 | GF33: 0 | GG33: 0 | GH33: 0 | GI33: 0 | GJ33: 0 | GK33: 0 | GL33: 4,667 | GM33: 4,667 | GN33: 4,667 | GO33: 0 | GP33: 0 | GQ33: 0 | GR33: 0 | GS33: 0 | GT33: 0 | GU33: 0 | GV33: 0 | GW33: 0 | GX33: 0 | GY33: 0 | GZ33: 0 | HA33: 0 | HB33: 0 | HC33: 0 | HD33: 0 | HE33: 0 | HF33: 0 | HG33: 0 | HH33: 0 | HI33: 0 | HJ33: 0 | HK33: 0
A34: 34 | H34: Соответствующий поток виноматериала | I34: Premium | M34: л. | X34: 912,857 | Y34: O | AA34: 0 | AB34: 0 | AC34: 0 | AD34: 0 | AE34: 0 | AF34: 0 | AG34: 0 | AH34: 0 | AI34: 0 | AJ34: 0 | AK34: 0 | AL34: 0 | AM34: 0 | AN34: 0 | AO34: 0 | AP34: 0 | AQ34: 0 | AR34: 0 | AS34: 0 | AT34: 0 | AU34: 0 | AV34: 0 | AW34: 0 | AX34: 0 | AY34: 0 | AZ34: 0 | BA34: 0 | BB34: 0 | BC34: 0 | BD34: 0 | BE34: 0 | BF34: 0 | BG34: 0 | BH34: 0 | BI34: 0 | BJ34: 2,143 | BK34: 2,143 | BL34: 2,143 | BM34: 0 | BN34: 0 | BO34: 0 | BP34: 0 | BQ34: 0 | BR34: 0 | BS34: 0 | BT34: 0 | BU34: 0 | BV34: 7,857 | BW34: 7,857 | BX34: 7,857 | BY34: 0 | BZ34: 0 | CA34: 0 | CB34: 0 | CC34: 0 | CD34: 0 | CE34: 0 | CF34: 0 | CG34: 0 | CH34: 16,429 | CI34: 16,429 | CJ34: 16,429 | CK34: 0 | CL34: 0 | CM34: 0 | CN34: 0 | CO34: 0 | CP34: 0 | CQ34: 0 | CR34: 0 | CS34: 0 | CT34: 23,571 | CU34: 23,571 | CV34: 23,571 | CW34: 0 | CX34: 0 | CY34: 0 | CZ34: 0 | DA34: 0 | DB34: 0 | DC34: 0 | DD34: 0 | DE34: 0 | DF34: 29,286 | DG34: 29,286 | DH34: 29,286 | DI34: 0 | DJ34: 0 | DK34: 0 | DL34: 0 | DM34: 0 | DN34: 0 | DO34: 0 | DP34: 0 | DQ34: 0 | DR34: 32,143 | DS34: 32,143 | DT34: 32,143 | DU34: 0 | DV34: 0 | DW34: 0 | DX34: 0 | DY34: 0 | DZ34: 0 | EA34: 0 | EB34: 0 | EC34: 0 | ED34: 32,143 | EE34: 32,143 | EF34: 32,143 | EG34: 0 | EH34: 0 | EI34: 0 | EJ34: 0 | EK34: 0 | EL34: 0 | EM34: 0 | EN34: 0 | EO34: 0 | EP34: 32,143 | EQ34: 32,143 | ER34: 32,143 | ES34: 0 | ET34: 0 | EU34: 0 | EV34: 0 | EW34: 0 | EX34: 0 | EY34: 0 | EZ34: 0 | FA34: 0 | FB34: 32,143 | FC34: 32,143 | FD34: 32,143 | FE34: 0 | FF34: 0 | FG34: 0 | FH34: 0 | FI34: 0 | FJ34: 0 | FK34: 0 | FL34: 0 | FM34: 0 | FN34: 32,143 | FO34: 32,143 | FP34: 32,143 | FQ34: 0 | FR34: 0 | FS34: 0 | FT34: 0 | FU34: 0 | FV34: 0 | FW34: 0 | FX34: 0 | FY34: 0 | FZ34: 32,143 | GA34: 32,143 | GB34: 32,143 | GC34: 0 | GD34: 0 | GE34: 0 | GF34: 0 | GG34: 0 | GH34: 0 | GI34: 0 | GJ34: 0 | GK34: 0 | GL34: 32,143 | GM34: 32,143 | GN34: 32,143 | GO34: 0 | GP34: 0 | GQ34: 0 | GR34: 0 | GS34: 0 | GT34: 0 | GU34: 0 | GV34: 0 | GW34: 0 | GX34: 0 | GY34: 0 | GZ34: 0 | HA34: 0 | HB34: 0 | HC34: 0 | HD34: 0 | HE34: 0 | HF34: 0 | HG34: 0 | HH34: 0 | HI34: 0 | HJ34: 0 | HK34: 0
A35: 35 | H35: Соответствующий поток виноматериала | I35: Premium Sparkling | M35: л. | X35: 426,429 | Y35: O | AA35: 0 | AB35: 0 | AC35: 0 | AD35: 0 | AE35: 0 | AF35: 0 | AG35: 0 | AH35: 0 | AI35: 0 | AJ35: 0 | AK35: 0 | AL35: 0 | AM35: 0 | AN35: 0 | AO35: 0 | AP35: 0 | AQ35: 0 | AR35: 0 | AS35: 0 | AT35: 0 | AU35: 0 | AV35: 0 | AW35: 0 | AX35: 0 | AY35: 0 | AZ35: 0 | BA35: 0 | BB35: 0 | BC35: 0 | BD35: 0 | BE35: 0 | BF35: 0 | BG35: 0 | BH35: 0 | BI35: 0 | BJ35: 2,143 | BK35: 2,143 | BL35: 2,143 | BM35: 0 | BN35: 0 | BO35: 0 | BP35: 0 | BQ35: 0 | BR35: 0 | BS35: 0 | BT35: 0 | BU35: 0 | BV35: 5,714 | BW35: 5,714 | BX35: 5,714 | BY35: 0 | BZ35: 0 | CA35: 0 | CB35: 0 | CC35: 0 | CD35: 0 | CE35: 0 | CF35: 0 | CG35: 0 | CH35: 8,571 | CI35: 8,571 | CJ35: 8,571 | CK35: 0 | CL35: 0 | CM35: 0 | CN35: 0 | CO35: 0 | CP35: 0 | CQ35: 0 | CR35: 0 | CS35: 0 | CT35: 11,429 | CU35: 11,429 | CV35: 11,429 | CW35: 0 | CX35: 0 | CY35: 0 | CZ35: 0 | DA35: 0 | DB35: 0 | DC35: 0 | DD35: 0 | DE35: 0 | DF35: 14,286 | DG35: 14,286 | DH35: 14,286 | DI35: 0 | DJ35: 0 | DK35: 0 | DL35: 0 | DM35: 0 | DN35: 0 | DO35: 0 | DP35: 0 | DQ35: 0 | DR35: 14,286 | DS35: 14,286 | DT35: 14,286 | DU35: 0 | DV35: 0 | DW35: 0 | DX35: 0 | DY35: 0 | DZ35: 0 | EA35: 0 | EB35: 0 | EC35: 0 | ED35: 14,286 | EE35: 14,286 | EF35: 14,286 | EG35: 0 | EH35: 0 | EI35: 0 | EJ35: 0 | EK35: 0 | EL35: 0 | EM35: 0 | EN35: 0 | EO35: 0 | EP35: 14,286 | EQ35: 14,286 | ER35: 14,286 | ES35: 0 | ET35: 0 | EU35: 0 | EV35: 0 | EW35: 0 | EX35: 0 | EY35: 0 | EZ35: 0 | FA35: 0 | FB35: 14,286 | FC35: 14,286 | FD35: 14,286 | FE35: 0 | FF35: 0 | FG35: 0 | FH35: 0 | FI35: 0 | FJ35: 0 | FK35: 0 | FL35: 0 | FM35: 0 | FN35: 14,286 | FO35: 14,286 | FP35: 14,286 | FQ35: 0 | FR35: 0 | FS35: 0 | FT35: 0 | FU35: 0 | FV35: 0 | FW35: 0 | FX35: 0 | FY35: 0 | FZ35: 14,286 | GA35: 14,286 | GB35: 14,286 | GC35: 0 | GD35: 0 | GE35: 0 | GF35: 0 | GG35: 0 | GH35: 0 | GI35: 0 | GJ35: 0 | GK35: 0 | GL35: 14,286 | GM35: 14,286 | GN35: 14,286 | GO35: 0 | GP35: 0 | GQ35: 0 | GR35: 0 | GS35: 0 | GT35: 0 | GU35: 0 | GV35: 0 | GW35: 0 | GX35: 0 | GY35: 0 | GZ35: 0 | HA35: 0 | HB35: 0 | HC35: 0 | HD35: 0 | HE35: 0 | HF35: 0 | HG35: 0 | HH35: 0 | HI35: 0 | HJ35: 0 | HK35: 0
A36: 36 | H36: Соответствующий поток виноматериала | I36: Other | M36: л. | X36: 6,350,513 | Y36: O | AA36: 0 | AB36: 0 | AC36: 0 | AD36: 0 | AE36: 0 | AF36: 0 | AG36: 0 | AH36: 0 | AI36: 0 | AJ36: 0 | AK36: 0 | AL36: 0 | AM36: 0 | AN36: 0 | AO36: 0 | AP36: 0 | AQ36: 0 | AR36: 0 | AS36: 0 | AT36: 0 | AU36: 0 | AV36: 0 | AW36: 0 | AX36: 0 | AY36: 0 | AZ36: 0 | BA36: 0 | BB36: 0 | BC36: 0 | BD36: 0 | BE36: 0 | BF36: 0 | BG36: 0 | BH36: 0 | BI36: 0 | BJ36: 15,897 | BK36: 15,897 | BL36: 15,897 | BM36: 0 | BN36: 0 | BO36: 0 | BP36: 0 | BQ36: 0 | BR36: 0 | BS36: 0 | BT36: 0 | BU36: 0 | BV36: 46,752 | BW36: 46,752 | BX36: 46,752 | BY36: 0 | BZ36: 0 | CA36: 0 | CB36: 0 | CC36: 0 | CD36: 0 | CE36: 0 | CF36: 0 | CG36: 0 | CH36: 93,419 | CI36: 93,419 | CJ36: 93,419 | CK36: 0 | CL36: 0 | CM36: 0 | CN36: 0 | CO36: 0 | CP36: 0 | CQ36: 0 | CR36: 0 | CS36: 0 | CT36: 132,564 | CU36: 132,564 | CV36: 132,564 | CW36: 0 | CX36: 0 | CY36: 0 | CZ36: 0 | DA36: 0 | DB36: 0 | DC36: 0 | DD36: 0 | DE36: 0 | DF36: 171,709 | DG36: 171,709 | DH36: 171,709 | DI36: 0 | DJ36: 0 | DK36: 0 | DL36: 0 | DM36: 0 | DN36: 0 | DO36: 0 | DP36: 0 | DQ36: 0 | DR36: 205,556 | DS36: 205,556 | DT36: 205,556 | DU36: 0 | DV36: 0 | DW36: 0 | DX36: 0 | DY36: 0 | DZ36: 0 | EA36: 0 | EB36: 0 | EC36: 0 | ED36: 230,427 | EE36: 230,427 | EF36: 230,427 | EG36: 0 | EH36: 0 | EI36: 0 | EJ36: 0 | EK36: 0 | EL36: 0 | EM36: 0 | EN36: 0 | EO36: 0 | EP36: 241,026 | EQ36: 241,026 | ER36: 241,026 | ES36: 0 | ET36: 0 | EU36: 0 | EV36: 0 | EW36: 0 | EX36: 0 | EY36: 0 | EZ36: 0 | FA36: 0 | FB36: 244,872 | FC36: 244,872 | FD36: 244,872 | FE36: 0 | FF36: 0 | FG36: 0 | FH36: 0 | FI36: 0 | FJ36: 0 | FK36: 0 | FL36: 0 | FM36: 0 | FN36: 244,872 | FO36: 244,872 | FP36: 244,872 | FQ36: 0 | FR36: 0 | FS36: 0 | FT36: 0 | FU36: 0 | FV36: 0 | FW36: 0 | FX36: 0 | FY36: 0 | FZ36: 244,872 | GA36: 244,872 | GB36: 244,872 | GC36: 0 | GD36: 0 | GE36: 0 | GF36: 0 | GG36: 0 | GH36: 0 | GI36: 0 | GJ36: 0 | GK36: 0 | GL36: 244,872 | GM36: 244,872 | GN36: 244,872 | GO36: 0 | GP36: 0 | GQ36: 0 | GR36: 0 | GS36: 0 | GT36: 0 | GU36: 0 | GV36: 0 | GW36: 0 | GX36: 0 | GY36: 0 | GZ36: 0 | HA36: 0 | HB36: 0 | HC36: 0 | HD36: 0 | HE36: 0 | HF36: 0 | HG36: 0 | HH36: 0 | HI36: 0 | HJ36: 0 | HK36: 0
A37: 37
A38: 38 | H38: Соответствующий поток выдержки и розлива | M38: бут. | Q38: запуски процесса | T38: 0 | X38: 10,461,065 | AA38: 0 | AB38: 0 | AC38: 0 | AD38: 0 | AE38: 0 | AF38: 0 | AG38: 0 | AH38: 0 | AI38: 0 | AJ38: 0 | AK38: 0 | AL38: 0 | AM38: 0 | AN38: 0 | AO38: 0 | AP38: 0 | AQ38: 0 | AR38: 0 | AS38: 0 | AT38: 0 | AU38: 0 | AV38: 0 | AW38: 0 | AX38: 0 | AY38: 0 | AZ38: 0 | BA38: 0 | BB38: 0 | BC38: 0 | BD38: 0 | BE38: 0 | BF38: 0 | BG38: 0 | BH38: 0 | BI38: 0 | BJ38: 29,578 | BK38: 29,578 | BL38: 29,578 | BM38: 0 | BN38: 0 | BO38: 0 | BP38: 0 | BQ38: 0 | BR38: 0 | BS38: 0 | BT38: 0 | BU38: 0 | BV38: 84,876 | BW38: 84,876 | BX38: 84,876 | BY38: 0 | BZ38: 0 | CA38: 0 | CB38: 0 | CC38: 0 | CD38: 0 | CE38: 0 | CF38: 0 | CG38: 0 | CH38: 164,114 | CI38: 164,114 | CJ38: 164,114 | CK38: 0 | CL38: 0 | CM38: 0 | CN38: 0 | CO38: 0 | CP38: 0 | CQ38: 0 | CR38: 0 | CS38: 0 | CT38: 229,641 | CU38: 229,641 | CV38: 229,641 | CW38: 0 | CX38: 0 | CY38: 0 | CZ38: 0 | DA38: 0 | DB38: 0 | DC38: 0 | DD38: 0 | DE38: 0 | DF38: 293,263 | DG38: 293,263 | DH38: 293,263 | DI38: 0 | DJ38: 0 | DK38: 0 | DL38: 0 | DM38: 0 | DN38: 0 | DO38: 0 | DP38: 0 | DQ38: 0 | DR38: 342,201 | DS38: 342,201 | DT38: 342,201 | DU38: 0 | DV38: 0 | DW38: 0 | DX38: 0 | DY38: 0 | DZ38: 0 | EA38: 0 | EB38: 0 | EC38: 0 | ED38: 375,363 | EE38: 375,363 | EF38: 375,363 | EG38: 0 | EH38: 0 | EI38: 0 | EJ38: 0 | EK38: 0 | EL38: 0 | EM38: 0 | EN38: 0 | EO38: 0 | EP38: 389,495 | EQ38: 389,495 | ER38: 389,495 | ES38: 0 | ET38: 0 | EU38: 0 | EV38: 0 | EW38: 0 | EX38: 0 | EY38: 0 | EZ38: 0 | FA38: 0 | FB38: 394,623 | FC38: 394,623 | FD38: 394,623 | FE38: 0 | FF38: 0 | FG38: 0 | FH38: 0 | FI38: 0 | FJ38: 0 | FK38: 0 | FL38: 0 | FM38: 0 | FN38: 394,623 | FO38: 394,623 | FP38: 394,623 | FQ38: 0 | FR38: 0 | FS38: 0 | FT38: 0 | FU38: 0 | FV38: 0 | FW38: 0 | FX38: 0 | FY38: 0 | FZ38: 394,623 | GA38: 394,623 | GB38: 394,623 | GC38: 0 | GD38: 0 | GE38: 0 | GF38: 0 | GG38: 0 | GH38: 0 | GI38: 0 | GJ38: 0 | GK38: 0 | GL38: 394,623 | GM38: 394,623 | GN38: 394,623 | GO38: 0 | GP38: 0 | GQ38: 0 | GR38: 0 | GS38: 0 | GT38: 0 | GU38: 0 | GV38: 0 | GW38: 0 | GX38: 0 | GY38: 0 | GZ38: 0 | HA38: 0 | HB38: 0 | HC38: 0 | HD38: 0 | HE38: 0 | HF38: 0 | HG38: 0 | HH38: 0 | HI38: 0 | HJ38: 0 | HK38: 0
A39: 39 | H39: Соответствующий поток выдержки и розлива | I39: Premium Plus | M39: бут. | X39: 208,000 | Y39: O | AA39: 0 | AB39: 0 | AC39: 0 | AD39: 0 | AE39: 0 | AF39: 0 | AG39: 0 | AH39: 0 | AI39: 0 | AJ39: 0 | AK39: 0 | AL39: 0 | AM39: 0 | AN39: 0 | AO39: 0 | AP39: 0 | AQ39: 0 | AR39: 0 | AS39: 0 | AT39: 0 | AU39: 0 | AV39: 0 | AW39: 0 | AX39: 0 | AY39: 0 | AZ39: 0 | BA39: 0 | BB39: 0 | BC39: 0 | BD39: 0 | BE39: 0 | BF39: 0 | BG39: 0 | BH39: 0 | BI39: 0 | BJ39: 2,667 | BK39: 2,667 | BL39: 2,667 | BM39: 0 | BN39: 0 | BO39: 0 | BP39: 0 | BQ39: 0 | BR39: 0 | BS39: 0 | BT39: 0 | BU39: 0 | BV39: 4,444 | BW39: 4,444 | BX39: 4,444 | BY39: 0 | BZ39: 0 | CA39: 0 | CB39: 0 | CC39: 0 | CD39: 0 | CE39: 0 | CF39: 0 | CG39: 0 | CH39: 6,222 | CI39: 6,222 | CJ39: 6,222 | CK39: 0 | CL39: 0 | CM39: 0 | CN39: 0 | CO39: 0 | CP39: 0 | CQ39: 0 | CR39: 0 | CS39: 0 | CT39: 6,222 | CU39: 6,222 | CV39: 6,222 | CW39: 0 | CX39: 0 | CY39: 0 | CZ39: 0 | DA39: 0 | DB39: 0 | DC39: 0 | DD39: 0 | DE39: 0 | DF39: 6,222 | DG39: 6,222 | DH39: 6,222 | DI39: 0 | DJ39: 0 | DK39: 0 | DL39: 0 | DM39: 0 | DN39: 0 | DO39: 0 | DP39: 0 | DQ39: 0 | DR39: 6,222 | DS39: 6,222 | DT39: 6,222 | DU39: 0 | DV39: 0 | DW39: 0 | DX39: 0 | DY39: 0 | DZ39: 0 | EA39: 0 | EB39: 0 | EC39: 0 | ED39: 6,222 | EE39: 6,222 | EF39: 6,222 | EG39: 0 | EH39: 0 | EI39: 0 | EJ39: 0 | EK39: 0 | EL39: 0 | EM39: 0 | EN39: 0 | EO39: 0 | EP39: 6,222 | EQ39: 6,222 | ER39: 6,222 | ES39: 0 | ET39: 0 | EU39: 0 | EV39: 0 | EW39: 0 | EX39: 0 | EY39: 0 | EZ39: 0 | FA39: 0 | FB39: 6,222 | FC39: 6,222 | FD39: 6,222 | FE39: 0 | FF39: 0 | FG39: 0 | FH39: 0 | FI39: 0 | FJ39: 0 | FK39: 0 | FL39: 0 | FM39: 0 | FN39: 6,222 | FO39: 6,222 | FP39: 6,222 | FQ39: 0 | FR39: 0 | FS39: 0 | FT39: 0 | FU39: 0 | FV39: 0 | FW39: 0 | FX39: 0 | FY39: 0 | FZ39: 6,222 | GA39: 6,222 | GB39: 6,222 | GC39: 0 | GD39: 0 | GE39: 0 | GF39: 0 | GG39: 0 | GH39: 0 | GI39: 0 | GJ39: 0 | GK39: 0 | GL39: 6,222 | GM39: 6,222 | GN39: 6,222 | GO39: 0 | GP39: 0 | GQ39: 0 | GR39: 0 | GS39: 0 | GT39: 0 | GU39: 0 | GV39: 0 | GW39: 0 | GX39: 0 | GY39: 0 | GZ39: 0 | HA39: 0 | HB39: 0 | HC39: 0 | HD39: 0 | HE39: 0 | HF39: 0 | HG39: 0 | HH39: 0 | HI39: 0 | HJ39: 0 | HK39: 0
A40: 40 | H40: Соответствующий поток выдержки и розлива | I40: Premium | M40: бут. | X40: 1,217,143 | Y40: O | AA40: 0 | AB40: 0 | AC40: 0 | AD40: 0 | AE40: 0 | AF40: 0 | AG40: 0 | AH40: 0 | AI40: 0 | AJ40: 0 | AK40: 0 | AL40: 0 | AM40: 0 | AN40: 0 | AO40: 0 | AP40: 0 | AQ40: 0 | AR40: 0 | AS40: 0 | AT40: 0 | AU40: 0 | AV40: 0 | AW40: 0 | AX40: 0 | AY40: 0 | AZ40: 0 | BA40: 0 | BB40: 0 | BC40: 0 | BD40: 0 | BE40: 0 | BF40: 0 | BG40: 0 | BH40: 0 | BI40: 0 | BJ40: 2,857 | BK40: 2,857 | BL40: 2,857 | BM40: 0 | BN40: 0 | BO40: 0 | BP40: 0 | BQ40: 0 | BR40: 0 | BS40: 0 | BT40: 0 | BU40: 0 | BV40: 10,476 | BW40: 10,476 | BX40: 10,476 | BY40: 0 | BZ40: 0 | CA40: 0 | CB40: 0 | CC40: 0 | CD40: 0 | CE40: 0 | CF40: 0 | CG40: 0 | CH40: 21,905 | CI40: 21,905 | CJ40: 21,905 | CK40: 0 | CL40: 0 | CM40: 0 | CN40: 0 | CO40: 0 | CP40: 0 | CQ40: 0 | CR40: 0 | CS40: 0 | CT40: 31,429 | CU40: 31,429 | CV40: 31,429 | CW40: 0 | CX40: 0 | CY40: 0 | CZ40: 0 | DA40: 0 | DB40: 0 | DC40: 0 | DD40: 0 | DE40: 0 | DF40: 39,048 | DG40: 39,048 | DH40: 39,048 | DI40: 0 | DJ40: 0 | DK40: 0 | DL40: 0 | DM40: 0 | DN40: 0 | DO40: 0 | DP40: 0 | DQ40: 0 | DR40: 42,857 | DS40: 42,857 | DT40: 42,857 | DU40: 0 | DV40: 0 | DW40: 0 | DX40: 0 | DY40: 0 | DZ40: 0 | EA40: 0 | EB40: 0 | EC40: 0 | ED40: 42,857 | EE40: 42,857 | EF40: 42,857 | EG40: 0 | EH40: 0 | EI40: 0 | EJ40: 0 | EK40: 0 | EL40: 0 | EM40: 0 | EN40: 0 | EO40: 0 | EP40: 42,857 | EQ40: 42,857 | ER40: 42,857 | ES40: 0 | ET40: 0 | EU40: 0 | EV40: 0 | EW40: 0 | EX40: 0 | EY40: 0 | EZ40: 0 | FA40: 0 | FB40: 42,857 | FC40: 42,857 | FD40: 42,857 | FE40: 0 | FF40: 0 | FG40: 0 | FH40: 0 | FI40: 0 | FJ40: 0 | FK40: 0 | FL40: 0 | FM40: 0 | FN40: 42,857 | FO40: 42,857 | FP40: 42,857 | FQ40: 0 | FR40: 0 | FS40: 0 | FT40: 0 | FU40: 0 | FV40: 0 | FW40: 0 | FX40: 0 | FY40: 0 | FZ40: 42,857 | GA40: 42,857 | GB40: 42,857 | GC40: 0 | GD40: 0 | GE40: 0 | GF40: 0 | GG40: 0 | GH40: 0 | GI40: 0 | GJ40: 0 | GK40: 0 | GL40: 42,857 | GM40: 42,857 | GN40: 42,857 | GO40: 0 | GP40: 0 | GQ40: 0 | GR40: 0 | GS40: 0 | GT40: 0 | GU40: 0 | GV40: 0 | GW40: 0 | GX40: 0 | GY40: 0 | GZ40: 0 | HA40: 0 | HB40: 0 | HC40: 0 | HD40: 0 | HE40: 0 | HF40: 0 | HG40: 0 | HH40: 0 | HI40: 0 | HJ40: 0 | HK40: 0
A41: 41 | H41: Соответствующий поток выдержки и розлива | I41: Premium Sparkling | M41: бут. | X41: 568,571 | Y41: O | AA41: 0 | AB41: 0 | AC41: 0 | AD41: 0 | AE41: 0 | AF41: 0 | AG41: 0 | AH41: 0 | AI41: 0 | AJ41: 0 | AK41: 0 | AL41: 0 | AM41: 0 | AN41: 0 | AO41: 0 | AP41: 0 | AQ41: 0 | AR41: 0 | AS41: 0 | AT41: 0 | AU41: 0 | AV41: 0 | AW41: 0 | AX41: 0 | AY41: 0 | AZ41: 0 | BA41: 0 | BB41: 0 | BC41: 0 | BD41: 0 | BE41: 0 | BF41: 0 | BG41: 0 | BH41: 0 | BI41: 0 | BJ41: 2,857 | BK41: 2,857 | BL41: 2,857 | BM41: 0 | BN41: 0 | BO41: 0 | BP41: 0 | BQ41: 0 | BR41: 0 | BS41: 0 | BT41: 0 | BU41: 0 | BV41: 7,619 | BW41: 7,619 | BX41: 7,619 | BY41: 0 | BZ41: 0 | CA41: 0 | CB41: 0 | CC41: 0 | CD41: 0 | CE41: 0 | CF41: 0 | CG41: 0 | CH41: 11,429 | CI41: 11,429 | CJ41: 11,429 | CK41: 0 | CL41: 0 | CM41: 0 | CN41: 0 | CO41: 0 | CP41: 0 | CQ41: 0 | CR41: 0 | CS41: 0 | CT41: 15,238 | CU41: 15,238 | CV41: 15,238 | CW41: 0 | CX41: 0 | CY41: 0 | CZ41: 0 | DA41: 0 | DB41: 0 | DC41: 0 | DD41: 0 | DE41: 0 | DF41: 19,048 | DG41: 19,048 | DH41: 19,048 | DI41: 0 | DJ41: 0 | DK41: 0 | DL41: 0 | DM41: 0 | DN41: 0 | DO41: 0 | DP41: 0 | DQ41: 0 | DR41: 19,048 | DS41: 19,048 | DT41: 19,048 | DU41: 0 | DV41: 0 | DW41: 0 | DX41: 0 | DY41: 0 | DZ41: 0 | EA41: 0 | EB41: 0 | EC41: 0 | ED41: 19,048 | EE41: 19,048 | EF41: 19,048 | EG41: 0 | EH41: 0 | EI41: 0 | EJ41: 0 | EK41: 0 | EL41: 0 | EM41: 0 | EN41: 0 | EO41: 0 | EP41: 19,048 | EQ41: 19,048 | ER41: 19,048 | ES41: 0 | ET41: 0 | EU41: 0 | EV41: 0 | EW41: 0 | EX41: 0 | EY41: 0 | EZ41: 0 | FA41: 0 | FB41: 19,048 | FC41: 19,048 | FD41: 19,048 | FE41: 0 | FF41: 0 | FG41: 0 | FH41: 0 | FI41: 0 | FJ41: 0 | FK41: 0 | FL41: 0 | FM41: 0 | FN41: 19,048 | FO41: 19,048 | FP41: 19,048 | FQ41: 0 | FR41: 0 | FS41: 0 | FT41: 0 | FU41: 0 | FV41: 0 | FW41: 0 | FX41: 0 | FY41: 0 | FZ41: 19,048 | GA41: 19,048 | GB41: 19,048 | GC41: 0 | GD41: 0 | GE41: 0 | GF41: 0 | GG41: 0 | GH41: 0 | GI41: 0 | GJ41: 0 | GK41: 0 | GL41: 19,048 | GM41: 19,048 | GN41: 19,048 | GO41: 0 | GP41: 0 | GQ41: 0 | GR41: 0 | GS41: 0 | GT41: 0 | GU41: 0 | GV41: 0 | GW41: 0 | GX41: 0 | GY41: 0 | GZ41: 0 | HA41: 0 | HB41: 0 | HC41: 0 | HD41: 0 | HE41: 0 | HF41: 0 | HG41: 0 | HH41: 0 | HI41: 0 | HJ41: 0 | HK41: 0
A42: 42 | H42: Соответствующий поток выдержки и розлива | I42: Other | M42: бут. | X42: 8,467,350 | Y42: O | AA42: 0 | AB42: 0 | AC42: 0 | AD42: 0 | AE42: 0 | AF42: 0 | AG42: 0 | AH42: 0 | AI42: 0 | AJ42: 0 | AK42: 0 | AL42: 0 | AM42: 0 | AN42: 0 | AO42: 0 | AP42: 0 | AQ42: 0 | AR42: 0 | AS42: 0 | AT42: 0 | AU42: 0 | AV42: 0 | AW42: 0 | AX42: 0 | AY42: 0 | AZ42: 0 | BA42: 0 | BB42: 0 | BC42: 0 | BD42: 0 | BE42: 0 | BF42: 0 | BG42: 0 | BH42: 0 | BI42: 0 | BJ42: 21,197 | BK42: 21,197 | BL42: 21,197 | BM42: 0 | BN42: 0 | BO42: 0 | BP42: 0 | BQ42: 0 | BR42: 0 | BS42: 0 | BT42: 0 | BU42: 0 | BV42: 62,336 | BW42: 62,336 | BX42: 62,336 | BY42: 0 | BZ42: 0 | CA42: 0 | CB42: 0 | CC42: 0 | CD42: 0 | CE42: 0 | CF42: 0 | CG42: 0 | CH42: 124,558 | CI42: 124,558 | CJ42: 124,558 | CK42: 0 | CL42: 0 | CM42: 0 | CN42: 0 | CO42: 0 | CP42: 0 | CQ42: 0 | CR42: 0 | CS42: 0 | CT42: 176,752 | CU42: 176,752 | CV42: 176,752 | CW42: 0 | CX42: 0 | CY42: 0 | CZ42: 0 | DA42: 0 | DB42: 0 | DC42: 0 | DD42: 0 | DE42: 0 | DF42: 228,946 | DG42: 228,946 | DH42: 228,946 | DI42: 0 | DJ42: 0 | DK42: 0 | DL42: 0 | DM42: 0 | DN42: 0 | DO42: 0 | DP42: 0 | DQ42: 0 | DR42: 274,074 | DS42: 274,074 | DT42: 274,074 | DU42: 0 | DV42: 0 | DW42: 0 | DX42: 0 | DY42: 0 | DZ42: 0 | EA42: 0 | EB42: 0 | EC42: 0 | ED42: 307,236 | EE42: 307,236 | EF42: 307,236 | EG42: 0 | EH42: 0 | EI42: 0 | EJ42: 0 | EK42: 0 | EL42: 0 | EM42: 0 | EN42: 0 | EO42: 0 | EP42: 321,368 | EQ42: 321,368 | ER42: 321,368 | ES42: 0 | ET42: 0 | EU42: 0 | EV42: 0 | EW42: 0 | EX42: 0 | EY42: 0 | EZ42: 0 | FA42: 0 | FB42: 326,496 | FC42: 326,496 | FD42: 326,496 | FE42: 0 | FF42: 0 | FG42: 0 | FH42: 0 | FI42: 0 | FJ42: 0 | FK42: 0 | FL42: 0 | FM42: 0 | FN42: 326,496 | FO42: 326,496 | FP42: 326,496 | FQ42: 0 | FR42: 0 | FS42: 0 | FT42: 0 | FU42: 0 | FV42: 0 | FW42: 0 | FX42: 0 | FY42: 0 | FZ42: 326,496 | GA42: 326,496 | GB42: 326,496 | GC42: 0 | GD42: 0 | GE42: 0 | GF42: 0 | GG42: 0 | GH42: 0 | GI42: 0 | GJ42: 0 | GK42: 0 | GL42: 326,496 | GM42: 326,496 | GN42: 326,496 | GO42: 0 | GP42: 0 | GQ42: 0 | GR42: 0 | GS42: 0 | GT42: 0 | GU42: 0 | GV42: 0 | GW42: 0 | GX42: 0 | GY42: 0 | GZ42: 0 | HA42: 0 | HB42: 0 | HC42: 0 | HD42: 0 | HE42: 0 | HF42: 0 | HG42: 0 | HH42: 0 | HI42: 0 | HJ42: 0 | HK42: 0
A43: 43
A44: 44 | H44: Соответств. поток стоимости et-works без НДС | M44: руб. | Q44: запуски процесса | X44: 3,630,583,639 | AA44: 0 | AB44: 0 | AC44: 0 | AD44: 0 | AE44: 0 | AF44: 0 | AG44: 0 | AH44: 0 | AI44: 0 | AJ44: 0 | AK44: 0 | AL44: 0 | AM44: 0 | AN44: 0 | AO44: 0 | AP44: 0 | AQ44: 0 | AR44: 0 | AS44: 0 | AT44: 0 | AU44: 0 | AV44: 0 | AW44: 0 | AX44: 0 | AY44: 0 | AZ44: 0 | BA44: 0 | BB44: 0 | BC44: 0 | BD44: 0 | BE44: 0 | BF44: 0 | BG44: 0 | BH44: 0 | BI44: 0 | BJ44: 11,045,177 | BK44: 11,045,177 | BL44: 11,045,177 | BM44: 0 | BN44: 0 | BO44: 0 | BP44: 0 | BQ44: 0 | BR44: 0 | BS44: 0 | BT44: 0 | BU44: 0 | BV44: 31,224,257 | BW44: 31,224,257 | BX44: 31,224,257 | BY44: 0 | BZ44: 0 | CA44: 0 | CB44: 0 | CC44: 0 | CD44: 0 | CE44: 0 | CF44: 0 | CG44: 0 | CH44: 59,287,749 | CI44: 59,287,749 | CJ44: 59,287,749 | CK44: 0 | CL44: 0 | CM44: 0 | CN44: 0 | CO44: 0 | CP44: 0 | CQ44: 0 | CR44: 0 | CS44: 0 | CT44: 81,965,812 | CU44: 81,965,812 | CV44: 81,965,812 | CW44: 0 | CX44: 0 | CY44: 0 | CZ44: 0 | DA44: 0 | DB44: 0 | DC44: 0 | DD44: 0 | DE44: 0 | DF44: 103,691,494 | DG44: 103,691,494 | DH44: 103,691,494 | DI44: 0 | DJ44: 0 | DK44: 0 | DL44: 0 | DM44: 0 | DN44: 0 | DO44: 0 | DP44: 0 | DQ44: 0 | DR44: 119,544,974 | DS44: 119,544,974 | DT44: 119,544,974 | DU44: 0 | DV44: 0 | DW44: 0 | DX44: 0 | DY44: 0 | DZ44: 0 | EA44: 0 | EB44: 0 | EC44: 0 | ED44: 129,613,350 | EE44: 129,613,350 | EF44: 129,613,350 | EG44: 0 | EH44: 0 | EI44: 0 | EJ44: 0 | EK44: 0 | EL44: 0 | EM44: 0 | EN44: 0 | EO44: 0 | EP44: 133,738,706 | EQ44: 133,738,706 | ER44: 133,738,706 | ES44: 0 | ET44: 0 | EU44: 0 | EV44: 0 | EW44: 0 | EX44: 0 | EY44: 0 | EZ44: 0 | FA44: 0 | FB44: 135,020,757 | FC44: 135,020,757 | FD44: 135,020,757 | FE44: 0 | FF44: 0 | FG44: 0 | FH44: 0 | FI44: 0 | FJ44: 0 | FK44: 0 | FL44: 0 | FM44: 0 | FN44: 135,020,757 | FO44: 135,020,757 | FP44: 135,020,757 | FQ44: 0 | FR44: 0 | FS44: 0 | FT44: 0 | FU44: 0 | FV44: 0 | FW44: 0 | FX44: 0 | FY44: 0 | FZ44: 135,020,757 | GA44: 135,020,757 | GB44: 135,020,757 | GC44: 0 | GD44: 0 | GE44: 0 | GF44: 0 | GG44: 0 | GH44: 0 | GI44: 0 | GJ44: 0 | GK44: 0 | GL44: 135,020,757 | GM44: 135,020,757 | GN44: 135,020,757 | GO44: 0 | GP44: 0 | GQ44: 0 | GR44: 0 | GS44: 0 | GT44: 0 | GU44: 0 | GV44: 0 | GW44: 0 | GX44: 0 | GY44: 0 | GZ44: 0 | HA44: 0 | HB44: 0 | HC44: 0 | HD44: 0 | HE44: 0 | HF44: 0 | HG44: 0 | HH44: 0 | HI44: 0 | HJ44: 0 | HK44: 0
A45: 45 | H45: Соответств. поток стоимости et-works без НДС | I45: Premium Plus | M45: руб. | X45: 156,000,000 | Y45: O | AA45: 0 | AB45: 0 | AC45: 0 | AD45: 0 | AE45: 0 | AF45: 0 | AG45: 0 | AH45: 0 | AI45: 0 | AJ45: 0 | AK45: 0 | AL45: 0 | AM45: 0 | AN45: 0 | AO45: 0 | AP45: 0 | AQ45: 0 | AR45: 0 | AS45: 0 | AT45: 0 | AU45: 0 | AV45: 0 | AW45: 0 | AX45: 0 | AY45: 0 | AZ45: 0 | BA45: 0 | BB45: 0 | BC45: 0 | BD45: 0 | BE45: 0 | BF45: 0 | BG45: 0 | BH45: 0 | BI45: 0 | BJ45: 2,000,000 | BK45: 2,000,000 | BL45: 2,000,000 | BM45: 0 | BN45: 0 | BO45: 0 | BP45: 0 | BQ45: 0 | BR45: 0 | BS45: 0 | BT45: 0 | BU45: 0 | BV45: 3,333,333 | BW45: 3,333,333 | BX45: 3,333,333 | BY45: 0 | BZ45: 0 | CA45: 0 | CB45: 0 | CC45: 0 | CD45: 0 | CE45: 0 | CF45: 0 | CG45: 0 | CH45: 4,666,667 | CI45: 4,666,667 | CJ45: 4,666,667 | CK45: 0 | CL45: 0 | CM45: 0 | CN45: 0 | CO45: 0 | CP45: 0 | CQ45: 0 | CR45: 0 | CS45: 0 | CT45: 4,666,667 | CU45: 4,666,667 | CV45: 4,666,667 | CW45: 0 | CX45: 0 | CY45: 0 | CZ45: 0 | DA45: 0 | DB45: 0 | DC45: 0 | DD45: 0 | DE45: 0 | DF45: 4,666,667 | DG45: 4,666,667 | DH45: 4,666,667 | DI45: 0 | DJ45: 0 | DK45: 0 | DL45: 0 | DM45: 0 | DN45: 0 | DO45: 0 | DP45: 0 | DQ45: 0 | DR45: 4,666,667 | DS45: 4,666,667 | DT45: 4,666,667 | DU45: 0 | DV45: 0 | DW45: 0 | DX45: 0 | DY45: 0 | DZ45: 0 | EA45: 0 | EB45: 0 | EC45: 0 | ED45: 4,666,667 | EE45: 4,666,667 | EF45: 4,666,667 | EG45: 0 | EH45: 0 | EI45: 0 | EJ45: 0 | EK45: 0 | EL45: 0 | EM45: 0 | EN45: 0 | EO45: 0 | EP45: 4,666,667 | EQ45: 4,666,667 | ER45: 4,666,667 | ES45: 0 | ET45: 0 | EU45: 0 | EV45: 0 | EW45: 0 | EX45: 0 | EY45: 0 | EZ45: 0 | FA45: 0 | FB45: 4,666,667 | FC45: 4,666,667 | FD45: 4,666,667 | FE45: 0 | FF45: 0 | FG45: 0 | FH45: 0 | FI45: 0 | FJ45: 0 | FK45: 0 | FL45: 0 | FM45: 0 | FN45: 4,666,667 | FO45: 4,666,667 | FP45: 4,666,667 | FQ45: 0 | FR45: 0 | FS45: 0 | FT45: 0 | FU45: 0 | FV45: 0 | FW45: 0 | FX45: 0 | FY45: 0 | FZ45: 4,666,667 | GA45: 4,666,667 | GB45: 4,666,667 | GC45: 0 | GD45: 0 | GE45: 0 | GF45: 0 | GG45: 0 | GH45: 0 | GI45: 0 | GJ45: 0 | GK45: 0 | GL45: 4,666,667 | GM45: 4,666,667 | GN45: 4,666,667 | GO45: 0 | GP45: 0 | GQ45: 0 | GR45: 0 | GS45: 0 | GT45: 0 | GU45: 0 | GV45: 0 | GW45: 0 | GX45: 0 | GY45: 0 | GZ45: 0 | HA45: 0 | HB45: 0 | HC45: 0 | HD45: 0 | HE45: 0 | HF45: 0 | HG45: 0 | HH45: 0 | HI45: 0 | HJ45: 0 | HK45: 0
A46: 46 | H46: Соответств. поток стоимости et-works без НДС | I46: Premium | M46: руб. | X46: 608,571,429 | Y46: O | AA46: 0 | AB46: 0 | AC46: 0 | AD46: 0 | AE46: 0 | AF46: 0 | AG46: 0 | AH46: 0 | AI46: 0 | AJ46: 0 | AK46: 0 | AL46: 0 | AM46: 0 | AN46: 0 | AO46: 0 | AP46: 0 | AQ46: 0 | AR46: 0 | AS46: 0 | AT46: 0 | AU46: 0 | AV46: 0 | AW46: 0 | AX46: 0 | AY46: 0 | AZ46: 0 | BA46: 0 | BB46: 0 | BC46: 0 | BD46: 0 | BE46: 0 | BF46: 0 | BG46: 0 | BH46: 0 | BI46: 0 | BJ46: 1,428,571 | BK46: 1,428,571 | BL46: 1,428,571 | BM46: 0 | BN46: 0 | BO46: 0 | BP46: 0 | BQ46: 0 | BR46: 0 | BS46: 0 | BT46: 0 | BU46: 0 | BV46: 5,238,095 | BW46: 5,238,095 | BX46: 5,238,095 | BY46: 0 | BZ46: 0 | CA46: 0 | CB46: 0 | CC46: 0 | CD46: 0 | CE46: 0 | CF46: 0 | CG46: 0 | CH46: 10,952,381 | CI46: 10,952,381 | CJ46: 10,952,381 | CK46: 0 | CL46: 0 | CM46: 0 | CN46: 0 | CO46: 0 | CP46: 0 | CQ46: 0 | CR46: 0 | CS46: 0 | CT46: 15,714,286 | CU46: 15,714,286 | CV46: 15,714,286 | CW46: 0 | CX46: 0 | CY46: 0 | CZ46: 0 | DA46: 0 | DB46: 0 | DC46: 0 | DD46: 0 | DE46: 0 | DF46: 19,523,810 | DG46: 19,523,810 | DH46: 19,523,810 | DI46: 0 | DJ46: 0 | DK46: 0 | DL46: 0 | DM46: 0 | DN46: 0 | DO46: 0 | DP46: 0 | DQ46: 0 | DR46: 21,428,571 | DS46: 21,428,571 | DT46: 21,428,571 | DU46: 0 | DV46: 0 | DW46: 0 | DX46: 0 | DY46: 0 | DZ46: 0 | EA46: 0 | EB46: 0 | EC46: 0 | ED46: 21,428,571 | EE46: 21,428,571 | EF46: 21,428,571 | EG46: 0 | EH46: 0 | EI46: 0 | EJ46: 0 | EK46: 0 | EL46: 0 | EM46: 0 | EN46: 0 | EO46: 0 | EP46: 21,428,571 | EQ46: 21,428,571 | ER46: 21,428,571 | ES46: 0 | ET46: 0 | EU46: 0 | EV46: 0 | EW46: 0 | EX46: 0 | EY46: 0 | EZ46: 0 | FA46: 0 | FB46: 21,428,571 | FC46: 21,428,571 | FD46: 21,428,571 | FE46: 0 | FF46: 0 | FG46: 0 | FH46: 0 | FI46: 0 | FJ46: 0 | FK46: 0 | FL46: 0 | FM46: 0 | FN46: 21,428,571 | FO46: 21,428,571 | FP46: 21,428,571 | FQ46: 0 | FR46: 0 | FS46: 0 | FT46: 0 | FU46: 0 | FV46: 0 | FW46: 0 | FX46: 0 | FY46: 0 | FZ46: 21,428,571 | GA46: 21,428,571 | GB46: 21,428,571 | GC46: 0 | GD46: 0 | GE46: 0 | GF46: 0 | GG46: 0 | GH46: 0 | GI46: 0 | GJ46: 0 | GK46: 0 | GL46: 21,428,571 | GM46: 21,428,571 | GN46: 21,428,571 | GO46: 0 | GP46: 0 | GQ46: 0 | GR46: 0 | GS46: 0 | GT46: 0 | GU46: 0 | GV46: 0 | GW46: 0 | GX46: 0 | GY46: 0 | GZ46: 0 | HA46: 0 | HB46: 0 | HC46: 0 | HD46: 0 | HE46: 0 | HF46: 0 | HG46: 0 | HH46: 0 | HI46: 0 | HJ46: 0 | HK46: 0
A47: 47 | H47: Соответств. поток стоимости et-works без НДС | I47: Premium Sparkling | M47: руб. | X47: 284,285,714 | Y47: O | AA47: 0 | AB47: 0 | AC47: 0 | AD47: 0 | AE47: 0 | AF47: 0 | AG47: 0 | AH47: 0 | AI47: 0 | AJ47: 0 | AK47: 0 | AL47: 0 | AM47: 0 | AN47: 0 | AO47: 0 | AP47: 0 | AQ47: 0 | AR47: 0 | AS47: 0 | AT47: 0 | AU47: 0 | AV47: 0 | AW47: 0 | AX47: 0 | AY47: 0 | AZ47: 0 | BA47: 0 | BB47: 0 | BC47: 0 | BD47: 0 | BE47: 0 | BF47: 0 | BG47: 0 | BH47: 0 | BI47: 0 | BJ47: 1,428,571 | BK47: 1,428,571 | BL47: 1,428,571 | BM47: 0 | BN47: 0 | BO47: 0 | BP47: 0 | BQ47: 0 | BR47: 0 | BS47: 0 | BT47: 0 | BU47: 0 | BV47: 3,809,524 | BW47: 3,809,524 | BX47: 3,809,524 | BY47: 0 | BZ47: 0 | CA47: 0 | CB47: 0 | CC47: 0 | CD47: 0 | CE47: 0 | CF47: 0 | CG47: 0 | CH47: 5,714,286 | CI47: 5,714,286 | CJ47: 5,714,286 | CK47: 0 | CL47: 0 | CM47: 0 | CN47: 0 | CO47: 0 | CP47: 0 | CQ47: 0 | CR47: 0 | CS47: 0 | CT47: 7,619,048 | CU47: 7,619,048 | CV47: 7,619,048 | CW47: 0 | CX47: 0 | CY47: 0 | CZ47: 0 | DA47: 0 | DB47: 0 | DC47: 0 | DD47: 0 | DE47: 0 | DF47: 9,523,810 | DG47: 9,523,810 | DH47: 9,523,810 | DI47: 0 | DJ47: 0 | DK47: 0 | DL47: 0 | DM47: 0 | DN47: 0 | DO47: 0 | DP47: 0 | DQ47: 0 | DR47: 9,523,810 | DS47: 9,523,810 | DT47: 9,523,810 | DU47: 0 | DV47: 0 | DW47: 0 | DX47: 0 | DY47: 0 | DZ47: 0 | EA47: 0 | EB47: 0 | EC47: 0 | ED47: 9,523,810 | EE47: 9,523,810 | EF47: 9,523,810 | EG47: 0 | EH47: 0 | EI47: 0 | EJ47: 0 | EK47: 0 | EL47: 0 | EM47: 0 | EN47: 0 | EO47: 0 | EP47: 9,523,810 | EQ47: 9,523,810 | ER47: 9,523,810 | ES47: 0 | ET47: 0 | EU47: 0 | EV47: 0 | EW47: 0 | EX47: 0 | EY47: 0 | EZ47: 0 | FA47: 0 | FB47: 9,523,810 | FC47: 9,523,810 | FD47: 9,523,810 | FE47: 0 | FF47: 0 | FG47: 0 | FH47: 0 | FI47: 0 | FJ47: 0 | FK47: 0 | FL47: 0 | FM47: 0 | FN47: 9,523,810 | FO47: 9,523,810 | FP47: 9,523,810 | FQ47: 0 | FR47: 0 | FS47: 0 | FT47: 0 | FU47: 0 | FV47: 0 | FW47: 0 | FX47: 0 | FY47: 0 | FZ47: 9,523,810 | GA47: 9,523,810 | GB47: 9,523,810 | GC47: 0 | GD47: 0 | GE47: 0 | GF47: 0 | GG47: 0 | GH47: 0 | GI47: 0 | GJ47: 0 | GK47: 0 | GL47: 9,523,810 | GM47: 9,523,810 | GN47: 9,523,810 | GO47: 0 | GP47: 0 | GQ47: 0 | GR47: 0 | GS47: 0 | GT47: 0 | GU47: 0 | GV47: 0 | GW47: 0 | GX47: 0 | GY47: 0 | GZ47: 0 | HA47: 0 | HB47: 0 | HC47: 0 | HD47: 0 | HE47: 0 | HF47: 0 | HG47: 0 | HH47: 0 | HI47: 0 | HJ47: 0 | HK47: 0
A48: 48 | H48: Соответств. поток стоимости et-works без НДС | I48: Other | M48: руб. | X48: 2,581,726,496 | Y48: O | AA48: 0 | AB48: 0 | AC48: 0 | AD48: 0 | AE48: 0 | AF48: 0 | AG48: 0 | AH48: 0 | AI48: 0 | AJ48: 0 | AK48: 0 | AL48: 0 | AM48: 0 | AN48: 0 | AO48: 0 | AP48: 0 | AQ48: 0 | AR48: 0 | AS48: 0 | AT48: 0 | AU48: 0 | AV48: 0 | AW48: 0 | AX48: 0 | AY48: 0 | AZ48: 0 | BA48: 0 | BB48: 0 | BC48: 0 | BD48: 0 | BE48: 0 | BF48: 0 | BG48: 0 | BH48: 0 | BI48: 0 | BJ48: 6,188,034 | BK48: 6,188,034 | BL48: 6,188,034 | BM48: 0 | BN48: 0 | BO48: 0 | BP48: 0 | BQ48: 0 | BR48: 0 | BS48: 0 | BT48: 0 | BU48: 0 | BV48: 18,843,305 | BW48: 18,843,305 | BX48: 18,843,305 | BY48: 0 | BZ48: 0 | CA48: 0 | CB48: 0 | CC48: 0 | CD48: 0 | CE48: 0 | CF48: 0 | CG48: 0 | CH48: 37,954,416 | CI48: 37,954,416 | CJ48: 37,954,416 | CK48: 0 | CL48: 0 | CM48: 0 | CN48: 0 | CO48: 0 | CP48: 0 | CQ48: 0 | CR48: 0 | CS48: 0 | CT48: 53,965,812 | CU48: 53,965,812 | CV48: 53,965,812 | CW48: 0 | CX48: 0 | CY48: 0 | CZ48: 0 | DA48: 0 | DB48: 0 | DC48: 0 | DD48: 0 | DE48: 0 | DF48: 69,977,208 | DG48: 69,977,208 | DH48: 69,977,208 | DI48: 0 | DJ48: 0 | DK48: 0 | DL48: 0 | DM48: 0 | DN48: 0 | DO48: 0 | DP48: 0 | DQ48: 0 | DR48: 83,925,926 | DS48: 83,925,926 | DT48: 83,925,926 | DU48: 0 | DV48: 0 | DW48: 0 | DX48: 0 | DY48: 0 | DZ48: 0 | EA48: 0 | EB48: 0 | EC48: 0 | ED48: 93,994,302 | EE48: 93,994,302 | EF48: 93,994,302 | EG48: 0 | EH48: 0 | EI48: 0 | EJ48: 0 | EK48: 0 | EL48: 0 | EM48: 0 | EN48: 0 | EO48: 0 | EP48: 98,119,658 | EQ48: 98,119,658 | ER48: 98,119,658 | ES48: 0 | ET48: 0 | EU48: 0 | EV48: 0 | EW48: 0 | EX48: 0 | EY48: 0 | EZ48: 0 | FA48: 0 | FB48: 99,401,709 | FC48: 99,401,709 | FD48: 99,401,709 | FE48: 0 | FF48: 0 | FG48: 0 | FH48: 0 | FI48: 0 | FJ48: 0 | FK48: 0 | FL48: 0 | FM48: 0 | FN48: 99,401,709 | FO48: 99,401,709 | FP48: 99,401,709 | FQ48: 0 | FR48: 0 | FS48: 0 | FT48: 0 | FU48: 0 | FV48: 0 | FW48: 0 | FX48: 0 | FY48: 0 | FZ48: 99,401,709 | GA48: 99,401,709 | GB48: 99,401,709 | GC48: 0 | GD48: 0 | GE48: 0 | GF48: 0 | GG48: 0 | GH48: 0 | GI48: 0 | GJ48: 0 | GK48: 0 | GL48: 99,401,709 | GM48: 99,401,709 | GN48: 99,401,709 | GO48: 0 | GP48: 0 | GQ48: 0 | GR48: 0 | GS48: 0 | GT48: 0 | GU48: 0 | GV48: 0 | GW48: 0 | GX48: 0 | GY48: 0 | GZ48: 0 | HA48: 0 | HB48: 0 | HC48: 0 | HD48: 0 | HE48: 0 | HF48: 0 | HG48: 0 | HH48: 0 | HI48: 0 | HJ48: 0 | HK48: 0
A49: 49
A50: 50 | H50: Соответствующий поток акцизов | M50: руб. | Q50: запуски процесса | X50: 76,288,107 | AA50: 0 | AB50: 0 | AC50: 0 | AD50: 0 | AE50: 0 | AF50: 0 | AG50: 0 | AH50: 0 | AI50: 0 | AJ50: 0 | AK50: 0 | AL50: 0 | AM50: 0 | AN50: 0 | AO50: 0 | AP50: 0 | AQ50: 0 | AR50: 0 | AS50: 0 | AT50: 0 | AU50: 0 | AV50: 0 | AW50: 0 | AX50: 0 | AY50: 0 | AZ50: 0 | BA50: 0 | BB50: 0 | BC50: 0 | BD50: 0 | BE50: 0 | BF50: 0 | BG50: 0 | BH50: 0 | BI50: 0 | BJ50: 254,628 | BK50: 254,628 | BL50: 254,628 | BM50: 0 | BN50: 0 | BO50: 0 | BP50: 0 | BQ50: 0 | BR50: 0 | BS50: 0 | BT50: 0 | BU50: 0 | BV50: 709,019 | BW50: 709,019 | BX50: 709,019 | BY50: 0 | BZ50: 0 | CA50: 0 | CB50: 0 | CC50: 0 | CD50: 0 | CE50: 0 | CF50: 0 | CG50: 0 | CH50: 1,247,530 | CI50: 1,247,530 | CJ50: 1,247,530 | CK50: 0 | CL50: 0 | CM50: 0 | CN50: 0 | CO50: 0 | CP50: 0 | CQ50: 0 | CR50: 0 | CS50: 0 | CT50: 1,717,485 | CU50: 1,717,485 | CV50: 1,717,485 | CW50: 0 | CX50: 0 | CY50: 0 | CZ50: 0 | DA50: 0 | DB50: 0 | DC50: 0 | DD50: 0 | DE50: 0 | DF50: 2,177,916 | DG50: 2,177,916 | DH50: 2,177,916 | DI50: 0 | DJ50: 0 | DK50: 0 | DL50: 0 | DM50: 0 | DN50: 0 | DO50: 0 | DP50: 0 | DQ50: 0 | DR50: 2,503,630 | DS50: 2,503,630 | DT50: 2,503,630 | DU50: 0 | DV50: 0 | DW50: 0 | DX50: 0 | DY50: 0 | DZ50: 0 | EA50: 0 | EB50: 0 | EC50: 0 | ED50: 2,705,682 | EE50: 2,705,682 | EF50: 2,705,682 | EG50: 0 | EH50: 0 | EI50: 0 | EJ50: 0 | EK50: 0 | EL50: 0 | EM50: 0 | EN50: 0 | EO50: 0 | EP50: 2,794,799 | EQ50: 2,794,799 | ER50: 2,794,799 | ES50: 0 | ET50: 0 | EU50: 0 | EV50: 0 | EW50: 0 | EX50: 0 | EY50: 0 | EZ50: 0 | FA50: 0 | FB50: 2,829,670 | FC50: 2,829,670 | FD50: 2,829,670 | FE50: 0 | FF50: 0 | FG50: 0 | FH50: 0 | FI50: 0 | FJ50: 0 | FK50: 0 | FL50: 0 | FM50: 0 | FN50: 2,829,670 | FO50: 2,829,670 | FP50: 2,829,670 | FQ50: 0 | FR50: 0 | FS50: 0 | FT50: 0 | FU50: 0 | FV50: 0 | FW50: 0 | FX50: 0 | FY50: 0 | FZ50: 2,829,670 | GA50: 2,829,670 | GB50: 2,829,670 | GC50: 0 | GD50: 0 | GE50: 0 | GF50: 0 | GG50: 0 | GH50: 0 | GI50: 0 | GJ50: 0 | GK50: 0 | GL50: 2,829,670 | GM50: 2,829,670 | GN50: 2,829,670 | GO50: 0 | GP50: 0 | GQ50: 0 | GR50: 0 | GS50: 0 | GT50: 0 | GU50: 0 | GV50: 0 | GW50: 0 | GX50: 0 | GY50: 0 | GZ50: 0 | HA50: 0 | HB50: 0 | HC50: 0 | HD50: 0 | HE50: 0 | HF50: 0 | HG50: 0 | HH50: 0 | HI50: 0 | HJ50: 0 | HK50: 0
A51: 51 | H51: Соответствующий поток акцизов | I51: Premium Plus | M51: руб. | X51: 1,040,000 | Y51: O | AA51: 0 | AB51: 0 | AC51: 0 | AD51: 0 | AE51: 0 | AF51: 0 | AG51: 0 | AH51: 0 | AI51: 0 | AJ51: 0 | AK51: 0 | AL51: 0 | AM51: 0 | AN51: 0 | AO51: 0 | AP51: 0 | AQ51: 0 | AR51: 0 | AS51: 0 | AT51: 0 | AU51: 0 | AV51: 0 | AW51: 0 | AX51: 0 | AY51: 0 | AZ51: 0 | BA51: 0 | BB51: 0 | BC51: 0 | BD51: 0 | BE51: 0 | BF51: 0 | BG51: 0 | BH51: 0 | BI51: 0 | BJ51: 13,333 | BK51: 13,333 | BL51: 13,333 | BM51: 0 | BN51: 0 | BO51: 0 | BP51: 0 | BQ51: 0 | BR51: 0 | BS51: 0 | BT51: 0 | BU51: 0 | BV51: 22,222 | BW51: 22,222 | BX51: 22,222 | BY51: 0 | BZ51: 0 | CA51: 0 | CB51: 0 | CC51: 0 | CD51: 0 | CE51: 0 | CF51: 0 | CG51: 0 | CH51: 31,111 | CI51: 31,111 | CJ51: 31,111 | CK51: 0 | CL51: 0 | CM51: 0 | CN51: 0 | CO51: 0 | CP51: 0 | CQ51: 0 | CR51: 0 | CS51: 0 | CT51: 31,111 | CU51: 31,111 | CV51: 31,111 | CW51: 0 | CX51: 0 | CY51: 0 | CZ51: 0 | DA51: 0 | DB51: 0 | DC51: 0 | DD51: 0 | DE51: 0 | DF51: 31,111 | DG51: 31,111 | DH51: 31,111 | DI51: 0 | DJ51: 0 | DK51: 0 | DL51: 0 | DM51: 0 | DN51: 0 | DO51: 0 | DP51: 0 | DQ51: 0 | DR51: 31,111 | DS51: 31,111 | DT51: 31,111 | DU51: 0 | DV51: 0 | DW51: 0 | DX51: 0 | DY51: 0 | DZ51: 0 | EA51: 0 | EB51: 0 | EC51: 0 | ED51: 31,111 | EE51: 31,111 | EF51: 31,111 | EG51: 0 | EH51: 0 | EI51: 0 | EJ51: 0 | EK51: 0 | EL51: 0 | EM51: 0 | EN51: 0 | EO51: 0 | EP51: 31,111 | EQ51: 31,111 | ER51: 31,111 | ES51: 0 | ET51: 0 | EU51: 0 | EV51: 0 | EW51: 0 | EX51: 0 | EY51: 0 | EZ51: 0 | FA51: 0 | FB51: 31,111 | FC51: 31,111 | FD51: 31,111 | FE51: 0 | FF51: 0 | FG51: 0 | FH51: 0 | FI51: 0 | FJ51: 0 | FK51: 0 | FL51: 0 | FM51: 0 | FN51: 31,111 | FO51: 31,111 | FP51: 31,111 | FQ51: 0 | FR51: 0 | FS51: 0 | FT51: 0 | FU51: 0 | FV51: 0 | FW51: 0 | FX51: 0 | FY51: 0 | FZ51: 31,111 | GA51: 31,111 | GB51: 31,111 | GC51: 0 | GD51: 0 | GE51: 0 | GF51: 0 | GG51: 0 | GH51: 0 | GI51: 0 | GJ51: 0 | GK51: 0 | GL51: 31,111 | GM51: 31,111 | GN51: 31,111 | GO51: 0 | GP51: 0 | GQ51: 0 | GR51: 0 | GS51: 0 | GT51: 0 | GU51: 0 | GV51: 0 | GW51: 0 | GX51: 0 | GY51: 0 | GZ51: 0 | HA51: 0 | HB51: 0 | HC51: 0 | HD51: 0 | HE51: 0 | HF51: 0 | HG51: 0 | HH51: 0 | HI51: 0 | HJ51: 0 | HK51: 0
A52: 52 | H52: Соответствующий поток акцизов | I52: Premium | M52: руб. | X52: 6,085,714 | Y52: O | AA52: 0 | AB52: 0 | AC52: 0 | AD52: 0 | AE52: 0 | AF52: 0 | AG52: 0 | AH52: 0 | AI52: 0 | AJ52: 0 | AK52: 0 | AL52: 0 | AM52: 0 | AN52: 0 | AO52: 0 | AP52: 0 | AQ52: 0 | AR52: 0 | AS52: 0 | AT52: 0 | AU52: 0 | AV52: 0 | AW52: 0 | AX52: 0 | AY52: 0 | AZ52: 0 | BA52: 0 | BB52: 0 | BC52: 0 | BD52: 0 | BE52: 0 | BF52: 0 | BG52: 0 | BH52: 0 | BI52: 0 | BJ52: 14,286 | BK52: 14,286 | BL52: 14,286 | BM52: 0 | BN52: 0 | BO52: 0 | BP52: 0 | BQ52: 0 | BR52: 0 | BS52: 0 | BT52: 0 | BU52: 0 | BV52: 52,381 | BW52: 52,381 | BX52: 52,381 | BY52: 0 | BZ52: 0 | CA52: 0 | CB52: 0 | CC52: 0 | CD52: 0 | CE52: 0 | CF52: 0 | CG52: 0 | CH52: 109,524 | CI52: 109,524 | CJ52: 109,524 | CK52: 0 | CL52: 0 | CM52: 0 | CN52: 0 | CO52: 0 | CP52: 0 | CQ52: 0 | CR52: 0 | CS52: 0 | CT52: 157,143 | CU52: 157,143 | CV52: 157,143 | CW52: 0 | CX52: 0 | CY52: 0 | CZ52: 0 | DA52: 0 | DB52: 0 | DC52: 0 | DD52: 0 | DE52: 0 | DF52: 195,238 | DG52: 195,238 | DH52: 195,238 | DI52: 0 | DJ52: 0 | DK52: 0 | DL52: 0 | DM52: 0 | DN52: 0 | DO52: 0 | DP52: 0 | DQ52: 0 | DR52: 214,286 | DS52: 214,286 | DT52: 214,286 | DU52: 0 | DV52: 0 | DW52: 0 | DX52: 0 | DY52: 0 | DZ52: 0 | EA52: 0 | EB52: 0 | EC52: 0 | ED52: 214,286 | EE52: 214,286 | EF52: 214,286 | EG52: 0 | EH52: 0 | EI52: 0 | EJ52: 0 | EK52: 0 | EL52: 0 | EM52: 0 | EN52: 0 | EO52: 0 | EP52: 214,286 | EQ52: 214,286 | ER52: 214,286 | ES52: 0 | ET52: 0 | EU52: 0 | EV52: 0 | EW52: 0 | EX52: 0 | EY52: 0 | EZ52: 0 | FA52: 0 | FB52: 214,286 | FC52: 214,286 | FD52: 214,286 | FE52: 0 | FF52: 0 | FG52: 0 | FH52: 0 | FI52: 0 | FJ52: 0 | FK52: 0 | FL52: 0 | FM52: 0 | FN52: 214,286 | FO52: 214,286 | FP52: 214,286 | FQ52: 0 | FR52: 0 | FS52: 0 | FT52: 0 | FU52: 0 | FV52: 0 | FW52: 0 | FX52: 0 | FY52: 0 | FZ52: 214,286 | GA52: 214,286 | GB52: 214,286 | GC52: 0 | GD52: 0 | GE52: 0 | GF52: 0 | GG52: 0 | GH52: 0 | GI52: 0 | GJ52: 0 | GK52: 0 | GL52: 214,286 | GM52: 214,286 | GN52: 214,286 | GO52: 0 | GP52: 0 | GQ52: 0 | GR52: 0 | GS52: 0 | GT52: 0 | GU52: 0 | GV52: 0 | GW52: 0 | GX52: 0 | GY52: 0 | GZ52: 0 | HA52: 0 | HB52: 0 | HC52: 0 | HD52: 0 | HE52: 0 | HF52: 0 | HG52: 0 | HH52: 0 | HI52: 0 | HJ52: 0 | HK52: 0
A53: 53 | H53: Соответствующий поток акцизов | I53: Premium Sparkling | M53: руб. | X53: 7,960,000 | Y53: O | AA53: 0 | AB53: 0 | AC53: 0 | AD53: 0 | AE53: 0 | AF53: 0 | AG53: 0 | AH53: 0 | AI53: 0 | AJ53: 0 | AK53: 0 | AL53: 0 | AM53: 0 | AN53: 0 | AO53: 0 | AP53: 0 | AQ53: 0 | AR53: 0 | AS53: 0 | AT53: 0 | AU53: 0 | AV53: 0 | AW53: 0 | AX53: 0 | AY53: 0 | AZ53: 0 | BA53: 0 | BB53: 0 | BC53: 0 | BD53: 0 | BE53: 0 | BF53: 0 | BG53: 0 | BH53: 0 | BI53: 0 | BJ53: 40,000 | BK53: 40,000 | BL53: 40,000 | BM53: 0 | BN53: 0 | BO53: 0 | BP53: 0 | BQ53: 0 | BR53: 0 | BS53: 0 | BT53: 0 | BU53: 0 | BV53: 106,667 | BW53: 106,667 | BX53: 106,667 | BY53: 0 | BZ53: 0 | CA53: 0 | CB53: 0 | CC53: 0 | CD53: 0 | CE53: 0 | CF53: 0 | CG53: 0 | CH53: 160,000 | CI53: 160,000 | CJ53: 160,000 | CK53: 0 | CL53: 0 | CM53: 0 | CN53: 0 | CO53: 0 | CP53: 0 | CQ53: 0 | CR53: 0 | CS53: 0 | CT53: 213,333 | CU53: 213,333 | CV53: 213,333 | CW53: 0 | CX53: 0 | CY53: 0 | CZ53: 0 | DA53: 0 | DB53: 0 | DC53: 0 | DD53: 0 | DE53: 0 | DF53: 266,667 | DG53: 266,667 | DH53: 266,667 | DI53: 0 | DJ53: 0 | DK53: 0 | DL53: 0 | DM53: 0 | DN53: 0 | DO53: 0 | DP53: 0 | DQ53: 0 | DR53: 266,667 | DS53: 266,667 | DT53: 266,667 | DU53: 0 | DV53: 0 | DW53: 0 | DX53: 0 | DY53: 0 | DZ53: 0 | EA53: 0 | EB53: 0 | EC53: 0 | ED53: 266,667 | EE53: 266,667 | EF53: 266,667 | EG53: 0 | EH53: 0 | EI53: 0 | EJ53: 0 | EK53: 0 | EL53: 0 | EM53: 0 | EN53: 0 | EO53: 0 | EP53: 266,667 | EQ53: 266,667 | ER53: 266,667 | ES53: 0 | ET53: 0 | EU53: 0 | EV53: 0 | EW53: 0 | EX53: 0 | EY53: 0 | EZ53: 0 | FA53: 0 | FB53: 266,667 | FC53: 266,667 | FD53: 266,667 | FE53: 0 | FF53: 0 | FG53: 0 | FH53: 0 | FI53: 0 | FJ53: 0 | FK53: 0 | FL53: 0 | FM53: 0 | FN53: 266,667 | FO53: 266,667 | FP53: 266,667 | FQ53: 0 | FR53: 0 | FS53: 0 | FT53: 0 | FU53: 0 | FV53: 0 | FW53: 0 | FX53: 0 | FY53: 0 | FZ53: 266,667 | GA53: 266,667 | GB53: 266,667 | GC53: 0 | GD53: 0 | GE53: 0 | GF53: 0 | GG53: 0 | GH53: 0 | GI53: 0 | GJ53: 0 | GK53: 0 | GL53: 266,667 | GM53: 266,667 | GN53: 266,667 | GO53: 0 | GP53: 0 | GQ53: 0 | GR53: 0 | GS53: 0 | GT53: 0 | GU53: 0 | GV53: 0 | GW53: 0 | GX53: 0 | GY53: 0 | GZ53: 0 | HA53: 0 | HB53: 0 | HC53: 0 | HD53: 0 | HE53: 0 | HF53: 0 | HG53: 0 | HH53: 0 | HI53: 0 | HJ53: 0 | HK53: 0
A54: 54 | H54: Соответствующий поток акцизов | I54: Other | M54: руб. | X54: 61,202,393 | Y54: O | AA54: 0 | AB54: 0 | AC54: 0 | AD54: 0 | AE54: 0 | AF54: 0 | AG54: 0 | AH54: 0 | AI54: 0 | AJ54: 0 | AK54: 0 | AL54: 0 | AM54: 0 | AN54: 0 | AO54: 0 | AP54: 0 | AQ54: 0 | AR54: 0 | AS54: 0 | AT54: 0 | AU54: 0 | AV54: 0 | AW54: 0 | AX54: 0 | AY54: 0 | AZ54: 0 | BA54: 0 | BB54: 0 | BC54: 0 | BD54: 0 | BE54: 0 | BF54: 0 | BG54: 0 | BH54: 0 | BI54: 0 | BJ54: 187,009 | BK54: 187,009 | BL54: 187,009 | BM54: 0 | BN54: 0 | BO54: 0 | BP54: 0 | BQ54: 0 | BR54: 0 | BS54: 0 | BT54: 0 | BU54: 0 | BV54: 527,749 | BW54: 527,749 | BX54: 527,749 | BY54: 0 | BZ54: 0 | CA54: 0 | CB54: 0 | CC54: 0 | CD54: 0 | CE54: 0 | CF54: 0 | CG54: 0 | CH54: 946,895 | CI54: 946,895 | CJ54: 946,895 | CK54: 0 | CL54: 0 | CM54: 0 | CN54: 0 | CO54: 0 | CP54: 0 | CQ54: 0 | CR54: 0 | CS54: 0 | CT54: 1,315,897 | CU54: 1,315,897 | CV54: 1,315,897 | CW54: 0 | CX54: 0 | CY54: 0 | CZ54: 0 | DA54: 0 | DB54: 0 | DC54: 0 | DD54: 0 | DE54: 0 | DF54: 1,684,900 | DG54: 1,684,900 | DH54: 1,684,900 | DI54: 0 | DJ54: 0 | DK54: 0 | DL54: 0 | DM54: 0 | DN54: 0 | DO54: 0 | DP54: 0 | DQ54: 0 | DR54: 1,991,567 | DS54: 1,991,567 | DT54: 1,991,567 | DU54: 0 | DV54: 0 | DW54: 0 | DX54: 0 | DY54: 0 | DZ54: 0 | EA54: 0 | EB54: 0 | EC54: 0 | ED54: 2,193,618 | EE54: 2,193,618 | EF54: 2,193,618 | EG54: 0 | EH54: 0 | EI54: 0 | EJ54: 0 | EK54: 0 | EL54: 0 | EM54: 0 | EN54: 0 | EO54: 0 | EP54: 2,282,735 | EQ54: 2,282,735 | ER54: 2,282,735 | ES54: 0 | ET54: 0 | EU54: 0 | EV54: 0 | EW54: 0 | EX54: 0 | EY54: 0 | EZ54: 0 | FA54: 0 | FB54: 2,317,607 | FC54: 2,317,607 | FD54: 2,317,607 | FE54: 0 | FF54: 0 | FG54: 0 | FH54: 0 | FI54: 0 | FJ54: 0 | FK54: 0 | FL54: 0 | FM54: 0 | FN54: 2,317,607 | FO54: 2,317,607 | FP54: 2,317,607 | FQ54: 0 | FR54: 0 | FS54: 0 | FT54: 0 | FU54: 0 | FV54: 0 | FW54: 0 | FX54: 0 | FY54: 0 | FZ54: 2,317,607 | GA54: 2,317,607 | GB54: 2,317,607 | GC54: 0 | GD54: 0 | GE54: 0 | GF54: 0 | GG54: 0 | GH54: 0 | GI54: 0 | GJ54: 0 | GK54: 0 | GL54: 2,317,607 | GM54: 2,317,607 | GN54: 2,317,607 | GO54: 0 | GP54: 0 | GQ54: 0 | GR54: 0 | GS54: 0 | GT54: 0 | GU54: 0 | GV54: 0 | GW54: 0 | GX54: 0 | GY54: 0 | GZ54: 0 | HA54: 0 | HB54: 0 | HC54: 0 | HD54: 0 | HE54: 0 | HF54: 0 | HG54: 0 | HH54: 0 | HI54: 0 | HJ54: 0 | HK54: 0
A55: 55
A56: 56 | H56: Соответств. поток ст-сти с учетом акцизов и НДС | M56: руб. | Q56: запуски процесса | X56: 4,448,246,095 | AA56: 0 | AB56: 0 | AC56: 0 | AD56: 0 | AE56: 0 | AF56: 0 | AG56: 0 | AH56: 0 | AI56: 0 | AJ56: 0 | AK56: 0 | AL56: 0 | AM56: 0 | AN56: 0 | AO56: 0 | AP56: 0 | AQ56: 0 | AR56: 0 | AS56: 0 | AT56: 0 | AU56: 0 | AV56: 0 | AW56: 0 | AX56: 0 | AY56: 0 | AZ56: 0 | BA56: 0 | BB56: 0 | BC56: 0 | BD56: 0 | BE56: 0 | BF56: 0 | BG56: 0 | BH56: 0 | BI56: 0 | BJ56: 13,559,766 | BK56: 13,559,766 | BL56: 13,559,766 | BM56: 0 | BN56: 0 | BO56: 0 | BP56: 0 | BQ56: 0 | BR56: 0 | BS56: 0 | BT56: 0 | BU56: 0 | BV56: 38,319,932 | BW56: 38,319,932 | BX56: 38,319,932 | BY56: 0 | BZ56: 0 | CA56: 0 | CB56: 0 | CC56: 0 | CD56: 0 | CE56: 0 | CF56: 0 | CG56: 0 | CH56: 72,642,335 | CI56: 72,642,335 | CJ56: 72,642,335 | CK56: 0 | CL56: 0 | CM56: 0 | CN56: 0 | CO56: 0 | CP56: 0 | CQ56: 0 | CR56: 0 | CS56: 0 | CT56: 100,419,956 | CU56: 100,419,956 | CV56: 100,419,956 | CW56: 0 | CX56: 0 | CY56: 0 | CZ56: 0 | DA56: 0 | DB56: 0 | DC56: 0 | DD56: 0 | DE56: 0 | DF56: 127,043,292 | DG56: 127,043,292 | DH56: 127,043,292 | DI56: 0 | DJ56: 0 | DK56: 0 | DL56: 0 | DM56: 0 | DN56: 0 | DO56: 0 | DP56: 0 | DQ56: 0 | DR56: 146,458,325 | DS56: 146,458,325 | DT56: 146,458,325 | DU56: 0 | DV56: 0 | DW56: 0 | DX56: 0 | DY56: 0 | DZ56: 0 | EA56: 0 | EB56: 0 | EC56: 0 | ED56: 158,782,838 | EE56: 158,782,838 | EF56: 158,782,838 | EG56: 0 | EH56: 0 | EI56: 0 | EJ56: 0 | EK56: 0 | EL56: 0 | EM56: 0 | EN56: 0 | EO56: 0 | EP56: 163,840,205 | EQ56: 163,840,205 | ER56: 163,840,205 | ES56: 0 | ET56: 0 | EU56: 0 | EV56: 0 | EW56: 0 | EX56: 0 | EY56: 0 | EZ56: 0 | FA56: 0 | FB56: 165,420,513 | FC56: 165,420,513 | FD56: 165,420,513 | FE56: 0 | FF56: 0 | FG56: 0 | FH56: 0 | FI56: 0 | FJ56: 0 | FK56: 0 | FL56: 0 | FM56: 0 | FN56: 165,420,513 | FO56: 165,420,513 | FP56: 165,420,513 | FQ56: 0 | FR56: 0 | FS56: 0 | FT56: 0 | FU56: 0 | FV56: 0 | FW56: 0 | FX56: 0 | FY56: 0 | FZ56: 165,420,513 | GA56: 165,420,513 | GB56: 165,420,513 | GC56: 0 | GD56: 0 | GE56: 0 | GF56: 0 | GG56: 0 | GH56: 0 | GI56: 0 | GJ56: 0 | GK56: 0 | GL56: 165,420,513 | GM56: 165,420,513 | GN56: 165,420,513 | GO56: 0 | GP56: 0 | GQ56: 0 | GR56: 0 | GS56: 0 | GT56: 0 | GU56: 0 | GV56: 0 | GW56: 0 | GX56: 0 | GY56: 0 | GZ56: 0 | HA56: 0 | HB56: 0 | HC56: 0 | HD56: 0 | HE56: 0 | HF56: 0 | HG56: 0 | HH56: 0 | HI56: 0 | HJ56: 0 | HK56: 0
A57: 57 | H57: Соответств. поток ст-сти с учетом акцизов и НДС | I57: Premium Plus | M57: руб. | X57: 188,448,000 | AA57: 0 | AB57: 0 | AC57: 0 | AD57: 0 | AE57: 0 | AF57: 0 | AG57: 0 | AH57: 0 | AI57: 0 | AJ57: 0 | AK57: 0 | AL57: 0 | AM57: 0 | AN57: 0 | AO57: 0 | AP57: 0 | AQ57: 0 | AR57: 0 | AS57: 0 | AT57: 0 | AU57: 0 | AV57: 0 | AW57: 0 | AX57: 0 | AY57: 0 | AZ57: 0 | BA57: 0 | BB57: 0 | BC57: 0 | BD57: 0 | BE57: 0 | BF57: 0 | BG57: 0 | BH57: 0 | BI57: 0 | BJ57: 2,416,000 | BK57: 2,416,000 | BL57: 2,416,000 | BM57: 0 | BN57: 0 | BO57: 0 | BP57: 0 | BQ57: 0 | BR57: 0 | BS57: 0 | BT57: 0 | BU57: 0 | BV57: 4,026,667 | BW57: 4,026,667 | BX57: 4,026,667 | BY57: 0 | BZ57: 0 | CA57: 0 | CB57: 0 | CC57: 0 | CD57: 0 | CE57: 0 | CF57: 0 | CG57: 0 | CH57: 5,637,333 | CI57: 5,637,333 | CJ57: 5,637,333 | CK57: 0 | CL57: 0 | CM57: 0 | CN57: 0 | CO57: 0 | CP57: 0 | CQ57: 0 | CR57: 0 | CS57: 0 | CT57: 5,637,333 | CU57: 5,637,333 | CV57: 5,637,333 | CW57: 0 | CX57: 0 | CY57: 0 | CZ57: 0 | DA57: 0 | DB57: 0 | DC57: 0 | DD57: 0 | DE57: 0 | DF57: 5,637,333 | DG57: 5,637,333 | DH57: 5,637,333 | DI57: 0 | DJ57: 0 | DK57: 0 | DL57: 0 | DM57: 0 | DN57: 0 | DO57: 0 | DP57: 0 | DQ57: 0 | DR57: 5,637,333 | DS57: 5,637,333 | DT57: 5,637,333 | DU57: 0 | DV57: 0 | DW57: 0 | DX57: 0 | DY57: 0 | DZ57: 0 | EA57: 0 | EB57: 0 | EC57: 0 | ED57: 5,637,333 | EE57: 5,637,333 | EF57: 5,637,333 | EG57: 0 | EH57: 0 | EI57: 0 | EJ57: 0 | EK57: 0 | EL57: 0 | EM57: 0 | EN57: 0 | EO57: 0 | EP57: 5,637,333 | EQ57: 5,637,333 | ER57: 5,637,333 | ES57: 0 | ET57: 0 | EU57: 0 | EV57: 0 | EW57: 0 | EX57: 0 | EY57: 0 | EZ57: 0 | FA57: 0 | FB57: 5,637,333 | FC57: 5,637,333 | FD57: 5,637,333 | FE57: 0 | FF57: 0 | FG57: 0 | FH57: 0 | FI57: 0 | FJ57: 0 | FK57: 0 | FL57: 0 | FM57: 0 | FN57: 5,637,333 | FO57: 5,637,333 | FP57: 5,637,333 | FQ57: 0 | FR57: 0 | FS57: 0 | FT57: 0 | FU57: 0 | FV57: 0 | FW57: 0 | FX57: 0 | FY57: 0 | FZ57: 5,637,333 | GA57: 5,637,333 | GB57: 5,637,333 | GC57: 0 | GD57: 0 | GE57: 0 | GF57: 0 | GG57: 0 | GH57: 0 | GI57: 0 | GJ57: 0 | GK57: 0 | GL57: 5,637,333 | GM57: 5,637,333 | GN57: 5,637,333 | GO57: 0 | GP57: 0 | GQ57: 0 | GR57: 0 | GS57: 0 | GT57: 0 | GU57: 0 | GV57: 0 | GW57: 0 | GX57: 0 | GY57: 0 | GZ57: 0 | HA57: 0 | HB57: 0 | HC57: 0 | HD57: 0 | HE57: 0 | HF57: 0 | HG57: 0 | HH57: 0 | HI57: 0 | HJ57: 0 | HK57: 0
A58: 58 | H58: Соответств. поток ст-сти с учетом акцизов и НДС | I58: Premium | M58: руб. | X58: 737,588,571 | AA58: 0 | AB58: 0 | AC58: 0 | AD58: 0 | AE58: 0 | AF58: 0 | AG58: 0 | AH58: 0 | AI58: 0 | AJ58: 0 | AK58: 0 | AL58: 0 | AM58: 0 | AN58: 0 | AO58: 0 | AP58: 0 | AQ58: 0 | AR58: 0 | AS58: 0 | AT58: 0 | AU58: 0 | AV58: 0 | AW58: 0 | AX58: 0 | AY58: 0 | AZ58: 0 | BA58: 0 | BB58: 0 | BC58: 0 | BD58: 0 | BE58: 0 | BF58: 0 | BG58: 0 | BH58: 0 | BI58: 0 | BJ58: 1,731,429 | BK58: 1,731,429 | BL58: 1,731,429 | BM58: 0 | BN58: 0 | BO58: 0 | BP58: 0 | BQ58: 0 | BR58: 0 | BS58: 0 | BT58: 0 | BU58: 0 | BV58: 6,348,571 | BW58: 6,348,571 | BX58: 6,348,571 | BY58: 0 | BZ58: 0 | CA58: 0 | CB58: 0 | CC58: 0 | CD58: 0 | CE58: 0 | CF58: 0 | CG58: 0 | CH58: 13,274,286 | CI58: 13,274,286 | CJ58: 13,274,286 | CK58: 0 | CL58: 0 | CM58: 0 | CN58: 0 | CO58: 0 | CP58: 0 | CQ58: 0 | CR58: 0 | CS58: 0 | CT58: 19,045,714 | CU58: 19,045,714 | CV58: 19,045,714 | CW58: 0 | CX58: 0 | CY58: 0 | CZ58: 0 | DA58: 0 | DB58: 0 | DC58: 0 | DD58: 0 | DE58: 0 | DF58: 23,662,857 | DG58: 23,662,857 | DH58: 23,662,857 | DI58: 0 | DJ58: 0 | DK58: 0 | DL58: 0 | DM58: 0 | DN58: 0 | DO58: 0 | DP58: 0 | DQ58: 0 | DR58: 25,971,429 | DS58: 25,971,429 | DT58: 25,971,429 | DU58: 0 | DV58: 0 | DW58: 0 | DX58: 0 | DY58: 0 | DZ58: 0 | EA58: 0 | EB58: 0 | EC58: 0 | ED58: 25,971,429 | EE58: 25,971,429 | EF58: 25,971,429 | EG58: 0 | EH58: 0 | EI58: 0 | EJ58: 0 | EK58: 0 | EL58: 0 | EM58: 0 | EN58: 0 | EO58: 0 | EP58: 25,971,429 | EQ58: 25,971,429 | ER58: 25,971,429 | ES58: 0 | ET58: 0 | EU58: 0 | EV58: 0 | EW58: 0 | EX58: 0 | EY58: 0 | EZ58: 0 | FA58: 0 | FB58: 25,971,429 | FC58: 25,971,429 | FD58: 25,971,429 | FE58: 0 | FF58: 0 | FG58: 0 | FH58: 0 | FI58: 0 | FJ58: 0 | FK58: 0 | FL58: 0 | FM58: 0 | FN58: 25,971,429 | FO58: 25,971,429 | FP58: 25,971,429 | FQ58: 0 | FR58: 0 | FS58: 0 | FT58: 0 | FU58: 0 | FV58: 0 | FW58: 0 | FX58: 0 | FY58: 0 | FZ58: 25,971,429 | GA58: 25,971,429 | GB58: 25,971,429 | GC58: 0 | GD58: 0 | GE58: 0 | GF58: 0 | GG58: 0 | GH58: 0 | GI58: 0 | GJ58: 0 | GK58: 0 | GL58: 25,971,429 | GM58: 25,971,429 | GN58: 25,971,429 | GO58: 0 | GP58: 0 | GQ58: 0 | GR58: 0 | GS58: 0 | GT58: 0 | GU58: 0 | GV58: 0 | GW58: 0 | GX58: 0 | GY58: 0 | GZ58: 0 | HA58: 0 | HB58: 0 | HC58: 0 | HD58: 0 | HE58: 0 | HF58: 0 | HG58: 0 | HH58: 0 | HI58: 0 | HJ58: 0 | HK58: 0
A59: 59 | H59: Соответств. поток ст-сти с учетом акцизов и НДС | I59: Premium Sparkling | M59: руб. | X59: 350,694,857 | AA59: 0 | AB59: 0 | AC59: 0 | AD59: 0 | AE59: 0 | AF59: 0 | AG59: 0 | AH59: 0 | AI59: 0 | AJ59: 0 | AK59: 0 | AL59: 0 | AM59: 0 | AN59: 0 | AO59: 0 | AP59: 0 | AQ59: 0 | AR59: 0 | AS59: 0 | AT59: 0 | AU59: 0 | AV59: 0 | AW59: 0 | AX59: 0 | AY59: 0 | AZ59: 0 | BA59: 0 | BB59: 0 | BC59: 0 | BD59: 0 | BE59: 0 | BF59: 0 | BG59: 0 | BH59: 0 | BI59: 0 | BJ59: 1,762,286 | BK59: 1,762,286 | BL59: 1,762,286 | BM59: 0 | BN59: 0 | BO59: 0 | BP59: 0 | BQ59: 0 | BR59: 0 | BS59: 0 | BT59: 0 | BU59: 0 | BV59: 4,699,429 | BW59: 4,699,429 | BX59: 4,699,429 | BY59: 0 | BZ59: 0 | CA59: 0 | CB59: 0 | CC59: 0 | CD59: 0 | CE59: 0 | CF59: 0 | CG59: 0 | CH59: 7,049,143 | CI59: 7,049,143 | CJ59: 7,049,143 | CK59: 0 | CL59: 0 | CM59: 0 | CN59: 0 | CO59: 0 | CP59: 0 | CQ59: 0 | CR59: 0 | CS59: 0 | CT59: 9,398,857 | CU59: 9,398,857 | CV59: 9,398,857 | CW59: 0 | CX59: 0 | CY59: 0 | CZ59: 0 | DA59: 0 | DB59: 0 | DC59: 0 | DD59: 0 | DE59: 0 | DF59: 11,748,571 | DG59: 11,748,571 | DH59: 11,748,571 | DI59: 0 | DJ59: 0 | DK59: 0 | DL59: 0 | DM59: 0 | DN59: 0 | DO59: 0 | DP59: 0 | DQ59: 0 | DR59: 11,748,571 | DS59: 11,748,571 | DT59: 11,748,571 | DU59: 0 | DV59: 0 | DW59: 0 | DX59: 0 | DY59: 0 | DZ59: 0 | EA59: 0 | EB59: 0 | EC59: 0 | ED59: 11,748,571 | EE59: 11,748,571 | EF59: 11,748,571 | EG59: 0 | EH59: 0 | EI59: 0 | EJ59: 0 | EK59: 0 | EL59: 0 | EM59: 0 | EN59: 0 | EO59: 0 | EP59: 11,748,571 | EQ59: 11,748,571 | ER59: 11,748,571 | ES59: 0 | ET59: 0 | EU59: 0 | EV59: 0 | EW59: 0 | EX59: 0 | EY59: 0 | EZ59: 0 | FA59: 0 | FB59: 11,748,571 | FC59: 11,748,571 | FD59: 11,748,571 | FE59: 0 | FF59: 0 | FG59: 0 | FH59: 0 | FI59: 0 | FJ59: 0 | FK59: 0 | FL59: 0 | FM59: 0 | FN59: 11,748,571 | FO59: 11,748,571 | FP59: 11,748,571 | FQ59: 0 | FR59: 0 | FS59: 0 | FT59: 0 | FU59: 0 | FV59: 0 | FW59: 0 | FX59: 0 | FY59: 0 | FZ59: 11,748,571 | GA59: 11,748,571 | GB59: 11,748,571 | GC59: 0 | GD59: 0 | GE59: 0 | GF59: 0 | GG59: 0 | GH59: 0 | GI59: 0 | GJ59: 0 | GK59: 0 | GL59: 11,748,571 | GM59: 11,748,571 | GN59: 11,748,571 | GO59: 0 | GP59: 0 | GQ59: 0 | GR59: 0 | GS59: 0 | GT59: 0 | GU59: 0 | GV59: 0 | GW59: 0 | GX59: 0 | GY59: 0 | GZ59: 0 | HA59: 0 | HB59: 0 | HC59: 0 | HD59: 0 | HE59: 0 | HF59: 0 | HG59: 0 | HH59: 0 | HI59: 0 | HJ59: 0 | HK59: 0
A60: 60 | H60: Соответств. поток ст-сти с учетом акцизов и НДС | I60: Other | M60: руб. | X60: 3,171,514,667 | AA60: 0 | AB60: 0 | AC60: 0 | AD60: 0 | AE60: 0 | AF60: 0 | AG60: 0 | AH60: 0 | AI60: 0 | AJ60: 0 | AK60: 0 | AL60: 0 | AM60: 0 | AN60: 0 | AO60: 0 | AP60: 0 | AQ60: 0 | AR60: 0 | AS60: 0 | AT60: 0 | AU60: 0 | AV60: 0 | AW60: 0 | AX60: 0 | AY60: 0 | AZ60: 0 | BA60: 0 | BB60: 0 | BC60: 0 | BD60: 0 | BE60: 0 | BF60: 0 | BG60: 0 | BH60: 0 | BI60: 0 | BJ60: 7,650,051 | BK60: 7,650,051 | BL60: 7,650,051 | BM60: 0 | BN60: 0 | BO60: 0 | BP60: 0 | BQ60: 0 | BR60: 0 | BS60: 0 | BT60: 0 | BU60: 0 | BV60: 23,245,265 | BW60: 23,245,265 | BX60: 23,245,265 | BY60: 0 | BZ60: 0 | CA60: 0 | CB60: 0 | CC60: 0 | CD60: 0 | CE60: 0 | CF60: 0 | CG60: 0 | CH60: 46,681,573 | CI60: 46,681,573 | CJ60: 46,681,573 | CK60: 0 | CL60: 0 | CM60: 0 | CN60: 0 | CO60: 0 | CP60: 0 | CQ60: 0 | CR60: 0 | CS60: 0 | CT60: 66,338,051 | CU60: 66,338,051 | CV60: 66,338,051 | CW60: 0 | CX60: 0 | CY60: 0 | CZ60: 0 | DA60: 0 | DB60: 0 | DC60: 0 | DD60: 0 | DE60: 0 | DF60: 85,994,530 | DG60: 85,994,530 | DH60: 85,994,530 | DI60: 0 | DJ60: 0 | DK60: 0 | DL60: 0 | DM60: 0 | DN60: 0 | DO60: 0 | DP60: 0 | DQ60: 0 | DR60: 103,100,991 | DS60: 103,100,991 | DT60: 103,100,991 | DU60: 0 | DV60: 0 | DW60: 0 | DX60: 0 | DY60: 0 | DZ60: 0 | EA60: 0 | EB60: 0 | EC60: 0 | ED60: 115,425,504 | EE60: 115,425,504 | EF60: 115,425,504 | EG60: 0 | EH60: 0 | EI60: 0 | EJ60: 0 | EK60: 0 | EL60: 0 | EM60: 0 | EN60: 0 | EO60: 0 | EP60: 120,482,872 | EQ60: 120,482,872 | ER60: 120,482,872 | ES60: 0 | ET60: 0 | EU60: 0 | EV60: 0 | EW60: 0 | EX60: 0 | EY60: 0 | EZ60: 0 | FA60: 0 | FB60: 122,063,179 | FC60: 122,063,179 | FD60: 122,063,179 | FE60: 0 | FF60: 0 | FG60: 0 | FH60: 0 | FI60: 0 | FJ60: 0 | FK60: 0 | FL60: 0 | FM60: 0 | FN60: 122,063,179 | FO60: 122,063,179 | FP60: 122,063,179 | FQ60: 0 | FR60: 0 | FS60: 0 | FT60: 0 | FU60: 0 | FV60: 0 | FW60: 0 | FX60: 0 | FY60: 0 | FZ60: 122,063,179 | GA60: 122,063,179 | GB60: 122,063,179 | GC60: 0 | GD60: 0 | GE60: 0 | GF60: 0 | GG60: 0 | GH60: 0 | GI60: 0 | GJ60: 0 | GK60: 0 | GL60: 122,063,179 | GM60: 122,063,179 | GN60: 122,063,179 | GO60: 0 | GP60: 0 | GQ60: 0 | GR60: 0 | GS60: 0 | GT60: 0 | GU60: 0 | GV60: 0 | GW60: 0 | GX60: 0 | GY60: 0 | GZ60: 0 | HA60: 0 | HB60: 0 | HC60: 0 | HD60: 0 | HE60: 0 | HF60: 0 | HG60: 0 | HH60: 0 | HI60: 0 | HJ60: 0 | HK60: 0
A61: 61
A62: 62 | H62: Соответств. поток средних цен продажи | M62: руб. | Q62: запуски процесса | X62: 431 | AA62: 0 | AB62: 0 | AC62: 0 | AD62: 0 | AE62: 0 | AF62: 0 | AG62: 0 | AH62: 0 | AI62: 0 | AJ62: 0 | AK62: 0 | AL62: 0 | AM62: 0 | AN62: 0 | AO62: 0 | AP62: 0 | AQ62: 0 | AR62: 0 | AS62: 0 | AT62: 0 | AU62: 0 | AV62: 0 | AW62: 0 | AX62: 0 | AY62: 0 | AZ62: 0 | BA62: 0 | BB62: 0 | BC62: 0 | BD62: 0 | BE62: 0 | BF62: 0 | BG62: 0 | BH62: 0 | BI62: 0 | BJ62: 458 | BK62: 458 | BL62: 458 | BM62: 0 | BN62: 0 | BO62: 0 | BP62: 0 | BQ62: 0 | BR62: 0 | BS62: 0 | BT62: 0 | BU62: 0 | BV62: 451 | BW62: 451 | BX62: 451 | BY62: 0 | BZ62: 0 | CA62: 0 | CB62: 0 | CC62: 0 | CD62: 0 | CE62: 0 | CF62: 0 | CG62: 0 | CH62: 443 | CI62: 443 | CJ62: 443 | CK62: 0 | CL62: 0 | CM62: 0 | CN62: 0 | CO62: 0 | CP62: 0 | CQ62: 0 | CR62: 0 | CS62: 0 | CT62: 437 | CU62: 437 | CV62: 437 | CW62: 0 | CX62: 0 | CY62: 0 | CZ62: 0 | DA62: 0 | DB62: 0 | DC62: 0 | DD62: 0 | DE62: 0 | DF62: 433 | DG62: 433 | DH62: 433 | DI62: 0 | DJ62: 0 | DK62: 0 | DL62: 0 | DM62: 0 | DN62: 0 | DO62: 0 | DP62: 0 | DQ62: 0 | DR62: 428 | DS62: 428 | DT62: 428 | DU62: 0 | DV62: 0 | DW62: 0 | DX62: 0 | DY62: 0 | DZ62: 0 | EA62: 0 | EB62: 0 | EC62: 0 | ED62: 423 | EE62: 423 | EF62: 423 | EG62: 0 | EH62: 0 | EI62: 0 | EJ62: 0 | EK62: 0 | EL62: 0 | EM62: 0 | EN62: 0 | EO62: 0 | EP62: 421 | EQ62: 421 | ER62: 421 | ES62: 0 | ET62: 0 | EU62: 0 | EV62: 0 | EW62: 0 | EX62: 0 | EY62: 0 | EZ62: 0 | FA62: 0 | FB62: 419 | FC62: 419 | FD62: 419 | FE62: 0 | FF62: 0 | FG62: 0 | FH62: 0 | FI62: 0 | FJ62: 0 | FK62: 0 | FL62: 0 | FM62: 0 | FN62: 419 | FO62: 419 | FP62: 419 | FQ62: 0 | FR62: 0 | FS62: 0 | FT62: 0 | FU62: 0 | FV62: 0 | FW62: 0 | FX62: 0 | FY62: 0 | FZ62: 419 | GA62: 419 | GB62: 419 | GC62: 0 | GD62: 0 | GE62: 0 | GF62: 0 | GG62: 0 | GH62: 0 | GI62: 0 | GJ62: 0 | GK62: 0 | GL62: 419 | GM62: 419 | GN62: 419 | GO62: 0 | GP62: 0 | GQ62: 0 | GR62: 0 | GS62: 0 | GT62: 0 | GU62: 0 | GV62: 0 | GW62: 0 | GX62: 0 | GY62: 0 | GZ62: 0 | HA62: 0 | HB62: 0 | HC62: 0 | HD62: 0 | HE62: 0 | HF62: 0 | HG62: 0 | HH62: 0 | HI62: 0 | HJ62: 0 | HK62: 0
